Workbook

Sheet INTRO
B2: Joint request for selected PC medicines v.3.1
B4: As part of global efforts to accelerate expansion of preventive chemotherapy (PC) for control and elimination of lymphatic filariasis, schistosomiasis and soil-transmitted helminthiases, the World Health Organization (WHO) facilitates the supply of albendazole 400 mg tablets (GSK) to national lymphatic filariasis elimination programmes and national soil-transmitted helminth control programmes; diethylcarbamazine citrate 100 mg tablets (Eisai) to national lymphatic filariasis elimination programmes; mebendazole 500 mg tablets (J&J) for national soil-transmitted helminth control programmes; and praziquantel 600 mg tablets (Merck KGaA) for school-age children to national schistosomiasis control programmes. WHO also collaborates to supply ivermectin 3 mg tablets (Merck) for onchocerciasis and lymphatic filariasis donation programmes. This Excel-based tool is designed to assist countries in quantifying the number of tablets of relevant PC medicines required to reach the planned target population and districts for the year of request. Output of the tool is a joint request for PC medicines, which can be printed, signed and submitted to WHO to request these medicines.
B6: Structure of the application (worksheets):
B8: INTRO | C8: This worksheet includes guides on how to complete the joint request for selected PC medicines and information about the status of PC for endemic diseases in the country.
B9: COUNTRY_INFO | C9: This worksheet includes information about administrative structure of the country, population by age group, status of endemicity for each disease, population requiring PC and planned interventions.
B10: DEC, ALB_MBD, PZQ and IVM | C10: These worksheets include information about endemic districts targeted for treatment with specified PC medicines, treatment plan, and number of tablets required and requested.
B11: SUMMARY | C11: This worksheet includes summary of number of tablets requested, information about stock, and date for submission of requested medicines. Before generating the report (run macros) please select the medicine for which the report is needed. Follow the same rule to see the number of people to be treated for the specific disease. This worksheet should be printed and submitted as a joint request for selected PC medicines (see the instruction for submission in the SUMMARY worksheet).
B13: Instruction for data entry
B15: Most of the cells in the above-mentioned worksheets include formula that are calculated automatically according to the treatment policy recommended by WHO for each disease. See the link http://www.who.int/neglected_diseases/preventive_chemotherapy/pct_manual/en/index.html
B17: Please enter your data into the cells according to their colour code:
C19: White - cell is not protected. Please enter the value of the requested indicator.
C21: Yellow - cell is protected and includes name of indicator. No data entry required.
C23: Orange - cell is not protected and includes a drop-down menu. Please select the value from the drop-down list.
C26: Green - cell is not protected and includes formula. Please change the value only if your data are different from those that are calculated automatically.
C29: Blue - cell is protected and includes formula. No data entry required.
B31: Country data
B33: COUNTRY | E33: Tanzania
B35: Year for request of the medicine | E35: 2022
B37: Is country endemic for lymphatic filariasis (LF)? | E37: Endemic
B39: Is country endemic for onchocerciasis (ONCHO)? | E39: Endemic
B41: Is country endemic for soil-transmitted helminthiases (STH)? | E41: Endemic
B43: Is country endemic for schistosomiasis (SCH)? | E43: Endemic
B45: How many administrative units in the country? | E45: 185
B47: If demographical data at the second administrative level are not available by age group, please enter the proportion (%) of population by age group in the country. If data are available, please leave these cells blank.
B48: 1-4 years age | C48: Preschool-age children (PreSAC) | E48: 0.129
B49: 5-14 years age | C49: School-age children (SAC) | E49: 0.191
B50: 15 years + | C50: Adults | E50: 0.561

Sheet COUNTRY_INFO
A1: COUNTRY INFORMATION
A2: Administrative structure, population by age group, status of endemicity and planned interventions
A4: TOTAL | D4: =SUM(D$9:D$1000) -> 57696491.47 | E4: =SUM(E$9:E$1000) -> 7442848 | F4: =SUM(F$9:F$1000) -> 12620588.25 | G4: =SUM(G$9:G$1000) -> 37633055.22 | L4: =SUM(L$9:L$1000) -> 6543598.665 | M4: =SUM(M$9:M$1000) -> 6866428.172 | N4: =SUM(N$9:N$1000) -> 20063436.25 | O4: =SUM(O$9:O$1000) -> 17309053.63
A6: Country administrative structure | D6: Population | H6: Endemicity | L6: Population requiring PC | P6: Number of treatment rounds planned for the year | T6: Criteria to apply for IVM+DEC+ALB therapy | U6: Epidemiological surveys planned for the year
A7: Country | B7: Province/State | C7: District | D7: Total | E7: PreSAC | F7: SAC | G7: Adults | H7: LF | I7: Oncho | J7: STH | K7: SCH | L7: LF | M7: Oncho | N7: STH | O7: SCH | P7: LF | Q7: Oncho | R7: STH | S7: SCH | T7: LF | U7: LF | V7: Oncho | W7: STH | X7: SCH
A9: =IF(INTRO!$E$33<>0,INTRO!$E$33, " ") -> Tanzania | B9: Arusha | C9: Arusha City Council | D9: 545671.802 | E9: =IF(INTRO!$E$48="","",ROUND($D9*INTRO!$E$48,0)) -> 70392 | F9: 108056.832 | G9: 367222.97 | H9: 0 | I9: 0 | J9: 3 | K9: 2 | L9: =IF(INTRO!$E$37="Endemic",IF($H9>0,IF($H9=4,"Unknown",IF($H9=99,"Stopped",$D9)),0),"Not required") -> 0 | M9: =IF(INTRO!$E$39="Endemic", IF($I9>0, IF($I9=4,"Unknown",IF($I9=99,"Stopped",$D9)), 0),"Not required") -> 0 | N9: =IF(INTRO!$E$41="Endemic", IF(AND($J9>1,$J9<5), IF($J9=4, "Unknown", E9+F9), 0),"Not required") -> 178448.832 | O9: =IF(INTRO!$E$43="Endemic", IF(AND($K9>0,$K9<5), IF($K9=4,"Unknown", IF($K9=1, $F9*0.33, IF($K9=2, $F9*0.5+$G9*0.2, SUM(F9:G9)))), 0),"Not required") -> 127473.01 | P9: 0 | Q9: 0 | R9: 1 | S9: 0
A10: =IF(INTRO!$E$33<>0,INTRO!$E$33, " ") -> Tanzania | B10: Arusha | C10: Arusha District Council | D10: 423490.639 | E10: =IF(INTRO!$E$48="","",ROUND($D10*INTRO!$E$48,0)) -> 54630 | F10: 81859.089 | G10: 287001.55 | H10: 0 | I10: 0 | J10: 3 | K10: 2 | L10: =IF(INTRO!$E$37="Endemic",IF($H10>0,IF($H10=4,"Unknown",IF($H10=99,"Stopped",$D10)),0),"Not required") -> 0 | M10: =IF(INTRO!$E$39="Endemic", IF($I10>0, IF($I10=4,"Unknown",IF($I10=99,"Stopped",$D10)), 0),"Not required") -> 0 | N10: =IF(INTRO!$E$41="Endemic", IF(AND($J10>1,$J10<5), IF($J10=4, "Unknown", E10+F10), 0),"Not required") -> 136489.089 | O10: =IF(INTRO!$E$43="Endemic", IF(AND($K10>0,$K10<5), IF($K10=4,"Unknown", IF($K10=1, $F10*0.33, IF($K10=2, $F10*0.5+$G10*0.2, SUM(F10:G10)))), 0),"Not required") -> 98329.8545 | P10: 0 | Q10: 0 | R10: 1 | S10: 0
A11: =IF(INTRO!$E$33<>0,INTRO!$E$33, " ") -> Tanzania | B11: Arusha | C11: Karatu District Council | D11: 301590.874 | E11: =IF(INTRO!$E$48="","",ROUND($D11*INTRO!$E$48,0)) -> 38905 | F11: 62351.224 | G11: 200334.65 | H11: 0 | I11: 0 | J11: 3 | K11: 2 | L11: =IF(INTRO!$E$37="Endemic",IF($H11>0,IF($H11=4,"Unknown",IF($H11=99,"Stopped",$D11)),0),"Not required") -> 0 | M11: =IF(INTRO!$E$39="Endemic", IF($I11>0, IF($I11=4,"Unknown",IF($I11=99,"Stopped",$D11)), 0),"Not required") -> 0 | N11: =IF(INTRO!$E$41="Endemic", IF(AND($J11>1,$J11<5), IF($J11=4, "Unknown", E11+F11), 0),"Not required") -> 101256.224 | O11: =IF(INTRO!$E$43="Endemic", IF(AND($K11>0,$K11<5), IF($K11=4,"Unknown", IF($K11=1, $F11*0.33, IF($K11=2, $F11*0.5+$G11*0.2, SUM(F11:G11)))), 0),"Not required") -> 71242.542 | P11: 0 | Q11: 0 | R11: 1 | S11: 0
A12: =IF(INTRO!$E$33<>0,INTRO!$E$33, " ") -> Tanzania | B12: Arusha | C12: Longido District Council | D12: 161367.375 | E12: =IF(INTRO!$E$48="","",ROUND($D12*INTRO!$E$48,0)) -> 20816 | F12: 36917.569 | G12: 103633.806 | H12: 0 | I12: 0 | J12: 3 | K12: 2 | L12: =IF(INTRO!$E$37="Endemic",IF($H12>0,IF($H12=4,"Unknown",IF($H12=99,"Stopped",$D12)),0),"Not required") -> 0 | M12: =IF(INTRO!$E$39="Endemic", IF($I12>0, IF($I12=4,"Unknown",IF($I12=99,"Stopped",$D12)), 0),"Not required") -> 0 | N12: =IF(INTRO!$E$41="Endemic", IF(AND($J12>1,$J12<5), IF($J12=4, "Unknown", E12+F12), 0),"Not required") -> 57733.569 | O12: =IF(INTRO!$E$43="Endemic", IF(AND($K12>0,$K12<5), IF($K12=4,"Unknown", IF($K12=1, $F12*0.33, IF($K12=2, $F12*0.5+$G12*0.2, SUM(F12:G12)))), 0),"Not required") -> 39185.5457 | P12: 0 | Q12: 0 | R12: 1 | S12: 0
A13: =IF(INTRO!$E$33<>0,INTRO!$E$33, " ") -> Tanzania | B13: Arusha | C13: Meru District Council | D13: 351353.132 | E13: =IF(INTRO!$E$48="","",ROUND($D13*INTRO!$E$48,0)) -> 45325 | F13: 69162.288 | G13: 236865.844 | H13: 0 | I13: 0 | J13: 3 | K13: 2 | L13: =IF(INTRO!$E$37="Endemic",IF($H13>0,IF($H13=4,"Unknown",IF($H13=99,"Stopped",$D13)),0),"Not required") -> 0 | M13: =IF(INTRO!$E$39="Endemic", IF($I13>0, IF($I13=4,"Unknown",IF($I13=99,"Stopped",$D13)), 0),"Not required") -> 0 | N13: =IF(INTRO!$E$41="Endemic", IF(AND($J13>1,$J13<5), IF($J13=4, "Unknown", E13+F13), 0),"Not required") -> 114487.288 | O13: =IF(INTRO!$E$43="Endemic", IF(AND($K13>0,$K13<5), IF($K13=4,"Unknown", IF($K13=1, $F13*0.33, IF($K13=2, $F13*0.5+$G13*0.2, SUM(F13:G13)))), 0),"Not required") -> 81954.3128 | P13: 0 | Q13: 0 | R13: 1 | S13: 0
A14: =IF(INTRO!$E$33<>0,INTRO!$E$33, " ") -> Tanzania | B14: Arusha | C14: Monduli District Council | D14: 208245.817 | E14: =IF(INTRO!$E$48="","",ROUND($D14*INTRO!$E$48,0)) -> 26864 | F14: 44646.771 | G14: 136735.046 | H14: 0 | I14: 0 | J14: 3 | K14: 2 | L14: =IF(INTRO!$E$37="Endemic",IF($H14>0,IF($H14=4,"Unknown",IF($H14=99,"Stopped",$D14)),0),"Not required") -> 0 | M14: =IF(INTRO!$E$39="Endemic", IF($I14>0, IF($I14=4,"Unknown",IF($I14=99,"Stopped",$D14)), 0),"Not required") -> 0 | N14: =IF(INTRO!$E$41="Endemic", IF(AND($J14>1,$J14<5), IF($J14=4, "Unknown", E14+F14), 0),"Not required") -> 71510.771 | O14: =IF(INTRO!$E$43="Endemic", IF(AND($K14>0,$K14<5), IF($K14=4,"Unknown", IF($K14=1, $F14*0.33, IF($K14=2, $F14*0.5+$G14*0.2, SUM(F14:G14)))), 0),"Not required") -> 49670.3947 | P14: 0 | Q14: 0 | R14: 1 | S14: 0
A15: =IF(INTRO!$E$33<>0,INTRO!$E$33, " ") -> Tanzania | B15: Arusha | C15: Ngorongoro District Council | D15: 228359.612 | E15: =IF(INTRO!$E$48="","",ROUND($D15*INTRO!$E$48,0)) -> 29458 | F15: 49710.908 | G15: 149190.704 | H15: 0 | I15: 0 | J15: 3 | K15: 2 | L15: =IF(INTRO!$E$37="Endemic",IF($H15>0,IF($H15=4,"Unknown",IF($H15=99,"Stopped",$D15)),0),"Not required") -> 0 | M15: =IF(INTRO!$E$39="Endemic", IF($I15>0, IF($I15=4,"Unknown",IF($I15=99,"Stopped",$D15)), 0),"Not required") -> 0 | N15: =IF(INTRO!$E$41="Endemic", IF(AND($J15>1,$J15<5), IF($J15=4, "Unknown", E15+F15), 0),"Not required") -> 79168.908 | O15: =IF(INTRO!$E$43="Endemic", IF(AND($K15>0,$K15<5), IF($K15=4,"Unknown", IF($K15=1, $F15*0.33, IF($K15=2, $F15*0.5+$G15*0.2, SUM(F15:G15)))), 0),"Not required") -> 54693.5948 | P15: 0 | Q15: 0 | R15: 1 | S15: 0
A16: =IF(INTRO!$E$33<>0,INTRO!$E$33, " ") -> Tanzania | B16: Dar Es Salaam | C16: Dar es Salaam City Council | D16: 0 | E16: =IF(INTRO!$E$48="","",ROUND($D16*INTRO!$E$48,0)) -> 0 | F16: 0 | G16: 0 | H16: 1 | I16: 0 | J16: 3 | K16: 2 | L16: =IF(INTRO!$E$37="Endemic",IF($H16>0,IF($H16=4,"Unknown",IF($H16=99,"Stopped",$D16)),0),"Not required") -> 0 | M16: =IF(INTRO!$E$39="Endemic", IF($I16>0, IF($I16=4,"Unknown",IF($I16=99,"Stopped",$D16)), 0),"Not required") -> 0 | N16: =IF(INTRO!$E$41="Endemic", IF(AND($J16>1,$J16<5), IF($J16=4, "Unknown", E16+F16), 0),"Not required") -> 0 | O16: =IF(INTRO!$E$43="Endemic", IF(AND($K16>0,$K16<5), IF($K16=4,"Unknown", IF($K16=1, $F16*0.33, IF($K16=2, $F16*0.5+$G16*0.2, SUM(F16:G16)))), 0),"Not required") -> 0 | P16: 1 | Q16: 0 | R16: 1 | S16: 0
A17: =IF(INTRO!$E$33<>0,INTRO!$E$33, " ") -> Tanzania | B17: Dar Es Salaam | C17: Ilala Municipal Council | D17: 2123259.072 | E17: =IF(INTRO!$E$48="","",ROUND($D17*INTRO!$E$48,0)) -> 273900 | F17: 274100.64 | G17: 1575258.432 | H17: 1 | I17: 0 | J17: 3 | K17: 2 | L17: =IF(INTRO!$E$37="Endemic",IF($H17>0,IF($H17=4,"Unknown",IF($H17=99,"Stopped",$D17)),0),"Not required") -> 2123259.072 | M17: =IF(INTRO!$E$39="Endemic", IF($I17>0, IF($I17=4,"Unknown",IF($I17=99,"Stopped",$D17)), 0),"Not required") -> 0 | N17: =IF(INTRO!$E$41="Endemic", IF(AND($J17>1,$J17<5), IF($J17=4, "Unknown", E17+F17), 0),"Not required") -> 548000.64 | O17: =IF(INTRO!$E$43="Endemic", IF(AND($K17>0,$K17<5), IF($K17=4,"Unknown", IF($K17=1, $F17*0.33, IF($K17=2, $F17*0.5+$G17*0.2, SUM(F17:G17)))), 0),"Not required") -> 452102.0064 | P17: 1 | Q17: 0 | R17: 1 | S17: 1
A18: =IF(INTRO!$E$33<>0,INTRO!$E$33, " ") -> Tanzania | B18: Dar Es Salaam | C18: Kigamboni Municipal Council | D18: 283420.896 | E18: =IF(INTRO!$E$48="","",ROUND($D18*INTRO!$E$48,0)) -> 36561 | F18: 56132 | G18: 190727.896 | H18: 99 | I18: 0 | J18: 3 | K18: 2 | L18: =IF(INTRO!$E$37="Endemic",IF($H18>0,IF($H18=4,"Unknown",IF($H18=99,"Stopped",$D18)),0),"Not required") -> Stopped | M18: =IF(INTRO!$E$39="Endemic", IF($I18>0, IF($I18=4,"Unknown",IF($I18=99,"Stopped",$D18)), 0),"Not required") -> 0 | N18: =IF(INTRO!$E$41="Endemic", IF(AND($J18>1,$J18<5), IF($J18=4, "Unknown", E18+F18), 0),"Not required") -> 92693 | O18: =IF(INTRO!$E$43="Endemic", IF(AND($K18>0,$K18<5), IF($K18=4,"Unknown", IF($K18=1, $F18*0.33, IF($K18=2, $F18*0.5+$G18*0.2, SUM(F18:G18)))), 0),"Not required") -> 66211.5792 | P18: 0 | Q18: 0 | R18: 1 | S18: 1
A19: =IF(INTRO!$E$33<>0,INTRO!$E$33, " ") -> Tanzania | B19: Dar Es Salaam | C19: Kinondoni Municipal Council | D19: 1617183.744 | E19: =IF(INTRO!$E$48="","",ROUND($D19*INTRO!$E$48,0)) -> 208617 | F19: 188838.144 | G19: 1219728.6 | H19: 1 | I19: 0 | J19: 3 | K19: 2 | L19: =IF(INTRO!$E$37="Endemic",IF($H19>0,IF($H19=4,"Unknown",IF($H19=99,"Stopped",$D19)),0),"Not required") -> 1617183.744 | M19: =IF(INTRO!$E$39="Endemic", IF($I19>0, IF($I19=4,"Unknown",IF($I19=99,"Stopped",$D19)), 0),"Not required") -> 0 | N19: =IF(INTRO!$E$41="Endemic", IF(AND($J19>1,$J19<5), IF($J19=4, "Unknown", E19+F19), 0),"Not required") -> 397455.144 | O19: =IF(INTRO!$E$43="Endemic", IF(AND($K19>0,$K19<5), IF($K19=4,"Unknown", IF($K19=1, $F19*0.33, IF($K19=2, $F19*0.5+$G19*0.2, SUM(F19:G19)))), 0),"Not required") -> 338364.792 | P19: 1 | Q19: 0 | R19: 1 | S19: 1
A20: =IF(INTRO!$E$33<>0,INTRO!$E$33, " ") -> Tanzania | B20: Dar Es Salaam | C20: Temeke Municipal Council | D20: 2097756.672 | E20: =IF(INTRO!$E$48="","",ROUND($D20*INTRO!$E$48,0)) -> 270611 | F20: 282395.52 | G20: 1544750.152 | H20: 1 | I20: 0 | J20: 3 | K20: 2 | L20: =IF(INTRO!$E$37="Endemic",IF($H20>0,IF($H20=4,"Unknown",IF($H20=99,"Stopped",$D20)),0),"Not required") -> 2097756.672 | M20: =IF(INTRO!$E$39="Endemic", IF($I20>0, IF($I20=4,"Unknown",IF($I20=99,"Stopped",$D20)), 0),"Not required") -> 0 | N20: =IF(INTRO!$E$41="Endemic", IF(AND($J20>1,$J20<5), IF($J20=4, "Unknown", E20+F20), 0),"Not required") -> 553006.52 | O20: =IF(INTRO!$E$43="Endemic", IF(AND($K20>0,$K20<5), IF($K20=4,"Unknown", IF($K20=1, $F20*0.33, IF($K20=2, $F20*0.5+$G20*0.2, SUM(F20:G20)))), 0),"Not required") -> 450147.7904 | P20: 1 | Q20: 0 | R20: 1 | S20: 1
A21: =IF(INTRO!$E$33<>0,INTRO!$E$33, " ") -> Tanzania | B21: Dar Es Salaam | C21: Ubungo Municipal Council | D21: 1470522.24 | E21: =IF(INTRO!$E$48="","",ROUND($D21*INTRO!$E$48,0)) -> 189697 | F21: 171711.936 | G21: 1109113.304 | H21: 99 | I21: 0 | J21: 3 | K21: 2 | L21: =IF(INTRO!$E$37="Endemic",IF($H21>0,IF($H21=4,"Unknown",IF($H21=99,"Stopped",$D21)),0),"Not required") -> Stopped | M21: =IF(INTRO!$E$39="Endemic", IF($I21>0, IF($I21=4,"Unknown",IF($I21=99,"Stopped",$D21)), 0),"Not required") -> 0 | N21: =IF(INTRO!$E$41="Endemic", IF(AND($J21>1,$J21<5), IF($J21=4, "Unknown", E21+F21), 0),"Not required") -> 361408.936 | O21: =IF(INTRO!$E$43="Endemic", IF(AND($K21>0,$K21<5), IF($K21=4,"Unknown", IF($K21=1, $F21*0.33, IF($K21=2, $F21*0.5+$G21*0.2, SUM(F21:G21)))), 0),"Not required") -> 307678.6288 | P21: 0 | Q21: 0 | R21: 1 | S21: 1
A22: =IF(INTRO!$E$33<>0,INTRO!$E$33, " ") -> Tanzania | B22: Dodoma | C22: Bahi District Council | D22: 272891.859 | E22: =IF(INTRO!$E$48="","",ROUND($D22*INTRO!$E$48,0)) -> 35203 | F22: 56109.055 | G22: 181579.804 | H22: 99 | I22: 0 | J22: 3 | K22: 2 | L22: =IF(INTRO!$E$37="Endemic",IF($H22>0,IF($H22=4,"Unknown",IF($H22=99,"Stopped",$D22)),0),"Not required") -> Stopped | M22: =IF(INTRO!$E$39="Endemic", IF($I22>0, IF($I22=4,"Unknown",IF($I22=99,"Stopped",$D22)), 0),"Not required") -> 0 | N22: =IF(INTRO!$E$41="Endemic", IF(AND($J22>1,$J22<5), IF($J22=4, "Unknown", E22+F22), 0),"Not required") -> 91312.055 | O22: =IF(INTRO!$E$43="Endemic", IF(AND($K22>0,$K22<5), IF($K22=4,"Unknown", IF($K22=1, $F22*0.33, IF($K22=2, $F22*0.5+$G22*0.2, SUM(F22:G22)))), 0),"Not required") -> 64370.4883 | P22: 0 | Q22: 0 | R22: 1 | S22: 1
A23: =IF(INTRO!$E$33<>0,INTRO!$E$33, " ") -> Tanzania | B23: Dodoma | C23: Chamwino District Council | D23: 406964.474 | E23: =IF(INTRO!$E$48="","",ROUND($D23*INTRO!$E$48,0)) -> 52498 | F23: 93565.461 | G23: 260901.013 | H23: 99 | I23: 0 | J23: 3 | K23: 2 | L23: =IF(INTRO!$E$37="Endemic",IF($H23>0,IF($H23=4,"Unknown",IF($H23=99,"Stopped",$D23)),0),"Not required") -> Stopped | M23: =IF(INTRO!$E$39="Endemic", IF($I23>0, IF($I23=4,"Unknown",IF($I23=99,"Stopped",$D23)), 0),"Not required") -> 0 | N23: =IF(INTRO!$E$41="Endemic", IF(AND($J23>1,$J23<5), IF($J23=4, "Unknown", E23+F23), 0),"Not required") -> 146063.461 | O23: =IF(INTRO!$E$43="Endemic", IF(AND($K23>0,$K23<5), IF($K23=4,"Unknown", IF($K23=1, $F23*0.33, IF($K23=2, $F23*0.5+$G23*0.2, SUM(F23:G23)))), 0),"Not required") -> 98962.9331 | P23: 0 | Q23: 0 | R23: 1 | S23: 1
A24: =IF(INTRO!$E$33<>0,INTRO!$E$33, " ") -> Tanzania | B24: Dodoma | C24: Chemba District Council | D24: 335631.288 | E24: =IF(INTRO!$E$48="","",ROUND($D24*INTRO!$E$48,0)) -> 43296 | F24: 67465.638 | G24: 224869.65 | H24: 99 | I24: 0 | J24: 3 | K24: 2 | L24: =IF(INTRO!$E$37="Endemic",IF($H24>0,IF($H24=4,"Unknown",IF($H24=99,"Stopped",$D24)),0),"Not required") -> Stopped | M24: =IF(INTRO!$E$39="Endemic", IF($I24>0, IF($I24=4,"Unknown",IF($I24=99,"Stopped",$D24)), 0),"Not required") -> 0 | N24: =IF(INTRO!$E$41="Endemic", IF(AND($J24>1,$J24<5), IF($J24=4, "Unknown", E24+F24), 0),"Not required") -> 110761.638 | O24: =IF(INTRO!$E$43="Endemic", IF(AND($K24>0,$K24<5), IF($K24=4,"Unknown", IF($K24=1, $F24*0.33, IF($K24=2, $F24*0.5+$G24*0.2, SUM(F24:G24)))), 0),"Not required") -> 78706.749 | P24: 0 | Q24: 0 | R24: 1 | S24: 0
A25: =IF(INTRO!$E$33<>0,INTRO!$E$33, " ") -> Tanzania | B25: Dodoma | C25: Dodoma Municipal Council | D25: 505969.823 | E25: =IF(INTRO!$E$48="","",ROUND($D25*INTRO!$E$48,0)) -> 65270 | F25: 124484.404 | G25: 316215.419 | H25: 99 | I25: 0 | J25: 3 | K25: 2 | L25: =IF(INTRO!$E$37="Endemic",IF($H25>0,IF($H25=4,"Unknown",IF($H25=99,"Stopped",$D25)),0),"Not required") -> Stopped | M25: =IF(INTRO!$E$39="Endemic", IF($I25>0, IF($I25=4,"Unknown",IF($I25=99,"Stopped",$D25)), 0),"Not required") -> 0 | N25: =IF(INTRO!$E$41="Endemic", IF(AND($J25>1,$J25<5), IF($J25=4, "Unknown", E25+F25), 0),"Not required") -> 189754.404 | O25: =IF(INTRO!$E$43="Endemic", IF(AND($K25>0,$K25<5), IF($K25=4,"Unknown", IF($K25=1, $F25*0.33, IF($K25=2, $F25*0.5+$G25*0.2, SUM(F25:G25)))), 0),"Not required") -> 125485.2858 | P25: 0 | Q25: 0 | R25: 1 | S25: 1
A26: =IF(INTRO!$E$33<>0,INTRO!$E$33, " ") -> Tanzania | B26: Dodoma | C26: Kondoa District Council | D26: 259393.218 | E26: =IF(INTRO!$E$48="","",ROUND($D26*INTRO!$E$48,0)) -> 33462 | F26: 57809.02 | G26: 168122.198 | H26: 99 | I26: 0 | J26: 3 | K26: 2 | L26: =IF(INTRO!$E$37="Endemic",IF($H26>0,IF($H26=4,"Unknown",IF($H26=99,"Stopped",$D26)),0),"Not required") -> Stopped | M26: =IF(INTRO!$E$39="Endemic", IF($I26>0, IF($I26=4,"Unknown",IF($I26=99,"Stopped",$D26)), 0),"Not required") -> 0 | N26: =IF(INTRO!$E$41="Endemic", IF(AND($J26>1,$J26<5), IF($J26=4, "Unknown", E26+F26), 0),"Not required") -> 91271.02 | O26: =IF(INTRO!$E$43="Endemic", IF(AND($K26>0,$K26<5), IF($K26=4,"Unknown", IF($K26=1, $F26*0.33, IF($K26=2, $F26*0.5+$G26*0.2, SUM(F26:G26)))), 0),"Not required") -> 62528.9496 | P26: 0 | Q26: 0 | R26: 1 | S26: 0
A27: =IF(INTRO!$E$33<>0,INTRO!$E$33, " ") -> Tanzania | B27: Dodoma | C27: Kondoa Town Council | D27: 72666.612 | E27: =IF(INTRO!$E$48="","",ROUND($D27*INTRO!$E$48,0)) -> 9374 | F27: 17853.206 | G27: 45439.406 | H27: 99 | I27: 0 | J27: 3 | K27: 2 | L27: =IF(INTRO!$E$37="Endemic",IF($H27>0,IF($H27=4,"Unknown",IF($H27=99,"Stopped",$D27)),0),"Not required") -> Stopped | M27: =IF(INTRO!$E$39="Endemic", IF($I27>0, IF($I27=4,"Unknown",IF($I27=99,"Stopped",$D27)), 0),"Not required") -> 0 | N27: =IF(INTRO!$E$41="Endemic", IF(AND($J27>1,$J27<5), IF($J27=4, "Unknown", E27+F27), 0),"Not required") -> 27227.206 | O27: =IF(INTRO!$E$43="Endemic", IF(AND($K27>0,$K27<5), IF($K27=4,"Unknown", IF($K27=1, $F27*0.33, IF($K27=2, $F27*0.5+$G27*0.2, SUM(F27:G27)))), 0),"Not required") -> 18014.4842 | P27: 0 | Q27: 0 | R27: 1 | S27: 0
A28: =IF(INTRO!$E$33<>0,INTRO!$E$33, " ") -> Tanzania | B28: Dodoma | C28: Kongwa District Council | D28: 381640.611 | E28: =IF(INTRO!$E$48="","",ROUND($D28*INTRO!$E$48,0)) -> 49232 | F28: 94724.296 | G28: 237684.315 | H28: 99 | I28: 0 | J28: 3 | K28: 2 | L28: =IF(INTRO!$E$37="Endemic",IF($H28>0,IF($H28=4,"Unknown",IF($H28=99,"Stopped",$D28)),0),"Not required") -> Stopped | M28: =IF(INTRO!$E$39="Endemic", IF($I28>0, IF($I28=4,"Unknown",IF($I28=99,"Stopped",$D28)), 0),"Not required") -> 0 | N28: =IF(INTRO!$E$41="Endemic", IF(AND($J28>1,$J28<5), IF($J28=4, "Unknown", E28+F28), 0),"Not required") -> 143956.296 | O28: =IF(INTRO!$E$43="Endemic", IF(AND($K28>0,$K28<5), IF($K28=4,"Unknown", IF($K28=1, $F28*0.33, IF($K28=2, $F28*0.5+$G28*0.2, SUM(F28:G28)))), 0),"Not required") -> 94899.011 | P28: 0 | Q28: 0 | R28: 1 | S28: 1
A29: =IF(INTRO!$E$33<>0,INTRO!$E$33, " ") -> Tanzania | B29: Dodoma | C29: Mpwapwa District Council | D29: 375586.081 | E29: =IF(INTRO!$E$48="","",ROUND($D29*INTRO!$E$48,0)) -> 48451 | F29: 85093.203 | G29: 242041.878 | H29: 99 | I29: 0 | J29: 3 | K29: 2 | L29: =IF(INTRO!$E$37="Endemic",IF($H29>0,IF($H29=4,"Unknown",IF($H29=99,"Stopped",$D29)),0),"Not required") -> Stopped | M29: =IF(INTRO!$E$39="Endemic", IF($I29>0, IF($I29=4,"Unknown",IF($I29=99,"Stopped",$D29)), 0),"Not required") -> 0 | N29: =IF(INTRO!$E$41="Endemic", IF(AND($J29>1,$J29<5), IF($J29=4, "Unknown", E29+F29), 0),"Not required") -> 133544.203 | O29: =IF(INTRO!$E$43="Endemic", IF(AND($K29>0,$K29<5), IF($K29=4,"Unknown", IF($K29=1, $F29*0.33, IF($K29=2, $F29*0.5+$G29*0.2, SUM(F29:G29)))), 0),"Not required") -> 90954.9771 | P29: 0 | Q29: 0 | R29: 1 | S29: 1
A30: =IF(INTRO!$E$33<>0,INTRO!$E$33, " ") -> Tanzania | B30: Geita | C30: Bukombe District Council | D30: 291116.214 | E30: =IF(INTRO!$E$48="","",ROUND($D30*INTRO!$E$48,0)) -> 37554 | F30: 100163.25 | G30: 153398.964 | H30: 0 | I30: 0 | J30: 3 | K30: 2 | L30: =IF(INTRO!$E$37="Endemic",IF($H30>0,IF($H30=4,"Unknown",IF($H30=99,"Stopped",$D30)),0),"Not required") -> 0 | M30: =IF(INTRO!$E$39="Endemic", IF($I30>0, IF($I30=4,"Unknown",IF($I30=99,"Stopped",$D30)), 0),"Not required") -> 0 | N30: =IF(INTRO!$E$41="Endemic", IF(AND($J30>1,$J30<5), IF($J30=4, "Unknown", E30+F30), 0),"Not required") -> 137717.25 | O30: =IF(INTRO!$E$43="Endemic", IF(AND($K30>0,$K30<5), IF($K30=4,"Unknown", IF($K30=1, $F30*0.33, IF($K30=2, $F30*0.5+$G30*0.2, SUM(F30:G30)))), 0),"Not required") -> 80761.4178 | P30: 0 | Q30: 0 | R30: 1 | S30: 1
A31: =IF(INTRO!$E$33<>0,INTRO!$E$33, " ") -> Tanzania | B31: Geita | C31: Chato District Council | D31: 473385.114 | E31: =IF(INTRO!$E$48="","",ROUND($D31*INTRO!$E$48,0)) -> 61067 | F31: 152372.286 | G31: 259945.828 | H31: 0 | I31: 0 | J31: 3 | K31: 2 | L31: =IF(INTRO!$E$37="Endemic",IF($H31>0,IF($H31=4,"Unknown",IF($H31=99,"Stopped",$D31)),0),"Not required") -> 0 | M31: =IF(INTRO!$E$39="Endemic", IF($I31>0, IF($I31=4,"Unknown",IF($I31=99,"Stopped",$D31)), 0),"Not required") -> 0 | N31: =IF(INTRO!$E$41="Endemic", IF(AND($J31>1,$J31<5), IF($J31=4, "Unknown", E31+F31), 0),"Not required") -> 213439.286 | O31: =IF(INTRO!$E$43="Endemic", IF(AND($K31>0,$K31<5), IF($K31=4,"Unknown", IF($K31=1, $F31*0.33, IF($K31=2, $F31*0.5+$G31*0.2, SUM(F31:G31)))), 0),"Not required") -> 128175.3086 | P31: 0 | Q31: 0 | R31: 1 | S31: 0
A32: =IF(INTRO!$E$33<>0,INTRO!$E$33, " ") -> Tanzania | B32: Geita | C32: Geita District Council | D32: 797232.78 | E32: =IF(INTRO!$E$48="","",ROUND($D32*INTRO!$E$48,0)) -> 102843 | F32: 263789.73 | G32: 430600.05 | H32: 0 | I32: 0 | J32: 3 | K32: 2 | L32: =IF(INTRO!$E$37="Endemic",IF($H32>0,IF($H32=4,"Unknown",IF($H32=99,"Stopped",$D32)),0),"Not required") -> 0 | M32: =IF(INTRO!$E$39="Endemic", IF($I32>0, IF($I32=4,"Unknown",IF($I32=99,"Stopped",$D32)), 0),"Not required") -> 0 | N32: =IF(INTRO!$E$41="Endemic", IF(AND($J32>1,$J32<5), IF($J32=4, "Unknown", E32+F32), 0),"Not required") -> 366632.73 | O32: =IF(INTRO!$E$43="Endemic", IF(AND($K32>0,$K32<5), IF($K32=4,"Unknown", IF($K32=1, $F32*0.33, IF($K32=2, $F32*0.5+$G32*0.2, SUM(F32:G32)))), 0),"Not required") -> 218014.875 | P32: 0 | Q32: 0 | R32: 1 | S32: 1
A33: =IF(INTRO!$E$33<>0,INTRO!$E$33, " ") -> Tanzania | B33: Geita | C33: Geita Town Council | D33: 249843.312 | E33: =IF(INTRO!$E$48="","",ROUND($D33*INTRO!$E$48,0)) -> 32230 | F33: 74077.2 | G33: 143536.112 | H33: 0 | I33: 0 | J33: 3 | K33: 2 | L33: =IF(INTRO!$E$37="Endemic",IF($H33>0,IF($H33=4,"Unknown",IF($H33=99,"Stopped",$D33)),0),"Not required") -> 0 | M33: =IF(INTRO!$E$39="Endemic", IF($I33>0, IF($I33=4,"Unknown",IF($I33=99,"Stopped",$D33)), 0),"Not required") -> 0 | N33: =IF(INTRO!$E$41="Endemic", IF(AND($J33>1,$J33<5), IF($J33=4, "Unknown", E33+F33), 0),"Not required") -> 106307.2 | O33: =IF(INTRO!$E$43="Endemic", IF(AND($K33>0,$K33<5), IF($K33=4,"Unknown", IF($K33=1, $F33*0.33, IF($K33=2, $F33*0.5+$G33*0.2, SUM(F33:G33)))), 0),"Not required") -> 65745.8224 | P33: 0 | Q33: 0 | R33: 1 | S33: 1
A34: =IF(INTRO!$E$33<>0,INTRO!$E$33, " ") -> Tanzania | B34: Geita | C34: Mbogwe District Council | D34: 251418.222 | E34: =IF(INTRO!$E$48="","",ROUND($D34*INTRO!$E$48,0)) -> 32433 | F34: 85182.624 | G34: 133802.598 | H34: 0 | I34: 0 | J34: 3 | K34: 2 | L34: =IF(INTRO!$E$37="Endemic",IF($H34>0,IF($H34=4,"Unknown",IF($H34=99,"Stopped",$D34)),0),"Not required") -> 0 | M34: =IF(INTRO!$E$39="Endemic", IF($I34>0, IF($I34=4,"Unknown",IF($I34=99,"Stopped",$D34)), 0),"Not required") -> 0 | N34: =IF(INTRO!$E$41="Endemic", IF(AND($J34>1,$J34<5), IF($J34=4, "Unknown", E34+F34), 0),"Not required") -> 117615.624 | O34: =IF(INTRO!$E$43="Endemic", IF(AND($K34>0,$K34<5), IF($K34=4,"Unknown", IF($K34=1, $F34*0.33, IF($K34=2, $F34*0.5+$G34*0.2, SUM(F34:G34)))), 0),"Not required") -> 69351.8316 | P34: 0 | Q34: 0 | R34: 1 | S34: 1
A35: =IF(INTRO!$E$33<>0,INTRO!$E$33, " ") -> Tanzania | B35: Geita | C35: Nyang'hwale District Council | D35: 192293.946 | E35: =IF(INTRO!$E$48="","",ROUND($D35*INTRO!$E$48,0)) -> 24806 | F35: 53942.976 | G35: 113544.97 | H35: 0 | I35: 0 | J35: 3 | K35: 2 | L35: =IF(INTRO!$E$37="Endemic",IF($H35>0,IF($H35=4,"Unknown",IF($H35=99,"Stopped",$D35)),0),"Not required") -> 0 | M35: =IF(INTRO!$E$39="Endemic", IF($I35>0, IF($I35=4,"Unknown",IF($I35=99,"Stopped",$D35)), 0),"Not required") -> 0 | N35: =IF(INTRO!$E$41="Endemic", IF(AND($J35>1,$J35<5), IF($J35=4, "Unknown", E35+F35), 0),"Not required") -> 78748.976 | O35: =IF(INTRO!$E$43="Endemic", IF(AND($K35>0,$K35<5), IF($K35=4,"Unknown", IF($K35=1, $F35*0.33, IF($K35=2, $F35*0.5+$G35*0.2, SUM(F35:G35)))), 0),"Not required") -> 49680.482 | P35: 0 | Q35: 0 | R35: 1 | S35: 1
A36: =IF(INTRO!$E$33<>0,INTRO!$E$33, " ") -> Tanzania | B36: Iringa | C36: Iringa District Council | D36: 283955.526 | E36: =IF(INTRO!$E$48="","",ROUND($D36*INTRO!$E$48,0)) -> 36630 | F36: 79515.15 | G36: 167810.376 | H36: 99 | I36: 0 | J36: 3 | K36: 2 | L36: =IF(INTRO!$E$37="Endemic",IF($H36>0,IF($H36=4,"Unknown",IF($H36=99,"Stopped",$D36)),0),"Not required") -> Stopped | M36: =IF(INTRO!$E$39="Endemic", IF($I36>0, IF($I36=4,"Unknown",IF($I36=99,"Stopped",$D36)), 0),"Not required") -> 0 | N36: =IF(INTRO!$E$41="Endemic", IF(AND($J36>1,$J36<5), IF($J36=4, "Unknown", E36+F36), 0),"Not required") -> 116145.15 | O36: =IF(INTRO!$E$43="Endemic", IF(AND($K36>0,$K36<5), IF($K36=4,"Unknown", IF($K36=1, $F36*0.33, IF($K36=2, $F36*0.5+$G36*0.2, SUM(F36:G36)))), 0),"Not required") -> 73319.6502 | P36: 0 | Q36: 0 | R36: 1 | S36: 1
A37: =IF(INTRO!$E$33<>0,INTRO!$E$33, " ") -> Tanzania | B37: Iringa | C37: Iringa Municipal Council | D37: 169171.641 | E37: =IF(INTRO!$E$48="","",ROUND($D37*INTRO!$E$48,0)) -> 21823 | F37: 35921.841 | G37: 111426.8 | H37: 99 | I37: 0 | J37: 3 | K37: 2 | L37: =IF(INTRO!$E$37="Endemic",IF($H37>0,IF($H37=4,"Unknown",IF($H37=99,"Stopped",$D37)),0),"Not required") -> Stopped | M37: =IF(INTRO!$E$39="Endemic", IF($I37>0, IF($I37=4,"Unknown",IF($I37=99,"Stopped",$D37)), 0),"Not required") -> 0 | N37: =IF(INTRO!$E$41="Endemic", IF(AND($J37>1,$J37<5), IF($J37=4, "Unknown", E37+F37), 0),"Not required") -> 57744.841 | O37: =IF(INTRO!$E$43="Endemic", IF(AND($K37>0,$K37<5), IF($K37=4,"Unknown", IF($K37=1, $F37*0.33, IF($K37=2, $F37*0.5+$G37*0.2, SUM(F37:G37)))), 0),"Not required") -> 40246.2805 | P37: 0 | Q37: 0 | R37: 1 | S37: 1
A38: =IF(INTRO!$E$33<>0,INTRO!$E$33, " ") -> Tanzania | B38: Iringa | C38: Kilolo District Council | D38: 243825.903 | E38: =IF(INTRO!$E$48="","",ROUND($D38*INTRO!$E$48,0)) -> 31454 | F38: 47182.359 | G38: 165189.544 | H38: 99 | I38: 0 | J38: 3 | K38: 2 | L38: =IF(INTRO!$E$37="Endemic",IF($H38>0,IF($H38=4,"Unknown",IF($H38=99,"Stopped",$D38)),0),"Not required") -> Stopped | M38: =IF(INTRO!$E$39="Endemic", IF($I38>0, IF($I38=4,"Unknown",IF($I38=99,"Stopped",$D38)), 0),"Not required") -> 0 | N38: =IF(INTRO!$E$41="Endemic", IF(AND($J38>1,$J38<5), IF($J38=4, "Unknown", E38+F38), 0),"Not required") -> 78636.359 | O38: =IF(INTRO!$E$43="Endemic", IF(AND($K38>0,$K38<5), IF($K38=4,"Unknown", IF($K38=1, $F38*0.33, IF($K38=2, $F38*0.5+$G38*0.2, SUM(F38:G38)))), 0),"Not required") -> 56629.0883 | P38: 0 | Q38: 0 | R38: 1 | S38: 1
A39: =IF(INTRO!$E$33<>0,INTRO!$E$33, " ") -> Tanzania | B39: Iringa | C39: Mafinga Town Council | D39: 80080.299 | E39: =IF(INTRO!$E$48="","",ROUND($D39*INTRO!$E$48,0)) -> 10330 | F39: 17491.311 | G39: 52258.988 | H39: 99 | I39: 0 | J39: 3 | K39: 2 | L39: =IF(INTRO!$E$37="Endemic",IF($H39>0,IF($H39=4,"Unknown",IF($H39=99,"Stopped",$D39)),0),"Not required") -> Stopped | M39: =IF(INTRO!$E$39="Endemic", IF($I39>0, IF($I39=4,"Unknown",IF($I39=99,"Stopped",$D39)), 0),"Not required") -> 0 | N39: =IF(INTRO!$E$41="Endemic", IF(AND($J39>1,$J39<5), IF($J39=4, "Unknown", E39+F39), 0),"Not required") -> 27821.311 | O39: =IF(INTRO!$E$43="Endemic", IF(AND($K39>0,$K39<5), IF($K39=4,"Unknown", IF($K39=1, $F39*0.33, IF($K39=2, $F39*0.5+$G39*0.2, SUM(F39:G39)))), 0),"Not required") -> 19197.4531 | P39: 0 | Q39: 0 | R39: 1 | S39: 1
A40: =IF(INTRO!$E$33<>0,INTRO!$E$33, " ") -> Tanzania | B40: Iringa | C40: Mufindi District Council | D40: 291308.529 | E40: =IF(INTRO!$E$48="","",ROUND($D40*INTRO!$E$48,0)) -> 37579 | F40: 70488.942 | G40: 183240.587 | H40: 99 | I40: 1 | J40: 3 | K40: 2 | L40: =IF(INTRO!$E$37="Endemic",IF($H40>0,IF($H40=4,"Unknown",IF($H40=99,"Stopped",$D40)),0),"Not required") -> Stopped | M40: =IF(INTRO!$E$39="Endemic", IF($I40>0, IF($I40=4,"Unknown",IF($I40=99,"Stopped",$D40)), 0),"Not required") -> 291308.529 | N40: =IF(INTRO!$E$41="Endemic", IF(AND($J40>1,$J40<5), IF($J40=4, "Unknown", E40+F40), 0),"Not required") -> 108067.942 | O40: =IF(INTRO!$E$43="Endemic", IF(AND($K40>0,$K40<5), IF($K40=4,"Unknown", IF($K40=1, $F40*0.33, IF($K40=2, $F40*0.5+$G40*0.2, SUM(F40:G40)))), 0),"Not required") -> 71892.5884 | P40: 0 | Q40: 1 | R40: 1 | S40: 1
A41: =IF(INTRO!$E$33<>0,INTRO!$E$33, " ") -> Tanzania | B41: Kagera | C41: Biharamulo District Council | D41: 443550.504 | E41: =IF(INTRO!$E$48="","",ROUND($D41*INTRO!$E$48,0)) -> 57218 | F41: 95534.304 | G41: 290798.2 | H41: 0 | I41: 0 | J41: 3 | K41: 2 | L41: =IF(INTRO!$E$37="Endemic",IF($H41>0,IF($H41=4,"Unknown",IF($H41=99,"Stopped",$D41)),0),"Not required") -> 0 | M41: =IF(INTRO!$E$39="Endemic", IF($I41>0, IF($I41=4,"Unknown",IF($I41=99,"Stopped",$D41)), 0),"Not required") -> 0 | N41: =IF(INTRO!$E$41="Endemic", IF(AND($J41>1,$J41<5), IF($J41=4, "Unknown", E41+F41), 0),"Not required") -> 152752.304 | O41: =IF(INTRO!$E$43="Endemic", IF(AND($K41>0,$K41<5), IF($K41=4,"Unknown", IF($K41=1, $F41*0.33, IF($K41=2, $F41*0.5+$G41*0.2, SUM(F41:G41)))), 0),"Not required") -> 105926.792 | P41: 0 | Q41: 0 | R41: 1 | S41: 0
A42: =IF(INTRO!$E$33<>0,INTRO!$E$33, " ") -> Tanzania | B42: Kagera | C42: Bukoba District Council | D42: 397222.992 | E42: =IF(INTRO!$E$48="","",ROUND($D42*INTRO!$E$48,0)) -> 51242 | F42: 89149.32 | G42: 256831.672 | H42: 0 | I42: 0 | J42: 3 | K42: 2 | L42: =IF(INTRO!$E$37="Endemic",IF($H42>0,IF($H42=4,"Unknown",IF($H42=99,"Stopped",$D42)),0),"Not required") -> 0 | M42: =IF(INTRO!$E$39="Endemic", IF($I42>0, IF($I42=4,"Unknown",IF($I42=99,"Stopped",$D42)), 0),"Not required") -> 0 | N42: =IF(INTRO!$E$41="Endemic", IF(AND($J42>1,$J42<5), IF($J42=4, "Unknown", E42+F42), 0),"Not required") -> 140391.32 | O42: =IF(INTRO!$E$43="Endemic", IF(AND($K42>0,$K42<5), IF($K42=4,"Unknown", IF($K42=1, $F42*0.33, IF($K42=2, $F42*0.5+$G42*0.2, SUM(F42:G42)))), 0),"Not required") -> 95940.9944 | P42: 0 | Q42: 0 | R42: 1 | S42: 0
A43: =IF(INTRO!$E$33<>0,INTRO!$E$33, " ") -> Tanzania | B43: Kagera | C43: Bukoba Municipal Council | D43: 176598.936 | E43: =IF(INTRO!$E$48="","",ROUND($D43*INTRO!$E$48,0)) -> 22781 | F43: 31068.36 | G43: 122749.576 | H43: 0 | I43: 0 | J43: 3 | K43: 2 | L43: =IF(INTRO!$E$37="Endemic",IF($H43>0,IF($H43=4,"Unknown",IF($H43=99,"Stopped",$D43)),0),"Not required") -> 0 | M43: =IF(INTRO!$E$39="Endemic", IF($I43>0, IF($I43=4,"Unknown",IF($I43=99,"Stopped",$D43)), 0),"Not required") -> 0 | N43: =IF(INTRO!$E$41="Endemic", IF(AND($J43>1,$J43<5), IF($J43=4, "Unknown", E43+F43), 0),"Not required") -> 53849.36 | O43: =IF(INTRO!$E$43="Endemic", IF(AND($K43>0,$K43<5), IF($K43=4,"Unknown", IF($K43=1, $F43*0.33, IF($K43=2, $F43*0.5+$G43*0.2, SUM(F43:G43)))), 0),"Not required") -> 40084.0952 | P43: 0 | Q43: 0 | R43: 1 | S43: 0
A44: =IF(INTRO!$E$33<>0,INTRO!$E$33, " ") -> Tanzania | B44: Kagera | C44: Karagwe District Council | D44: 455251.32 | E44: =IF(INTRO!$E$48="","",ROUND($D44*INTRO!$E$48,0)) -> 58727 | F44: 89678.736 | G44: 306845.584 | H44: 0 | I44: 0 | J44: 3 | K44: 2 | L44: =IF(INTRO!$E$37="Endemic",IF($H44>0,IF($H44=4,"Unknown",IF($H44=99,"Stopped",$D44)),0),"Not required") -> 0 | M44: =IF(INTRO!$E$39="Endemic", IF($I44>0, IF($I44=4,"Unknown",IF($I44=99,"Stopped",$D44)), 0),"Not required") -> 0 | N44: =IF(INTRO!$E$41="Endemic", IF(AND($J44>1,$J44<5), IF($J44=4, "Unknown", E44+F44), 0),"Not required") -> 148405.736 | O44: =IF(INTRO!$E$43="Endemic", IF(AND($K44>0,$K44<5), IF($K44=4,"Unknown", IF($K44=1, $F44*0.33, IF($K44=2, $F44*0.5+$G44*0.2, SUM(F44:G44)))), 0),"Not required") -> 106208.4848 | P44: 0 | Q44: 0 | R44: 1 | S44: 0
A45: =IF(INTRO!$E$33<>0,INTRO!$E$33, " ") -> Tanzania | B45: Kagera | C45: Kyerwa District Council | D45: 440177.928 | E45: =IF(INTRO!$E$48="","",ROUND($D45*INTRO!$E$48,0)) -> 56783 | F45: 101517.84 | G45: 281877.088 | H45: 0 | I45: 0 | J45: 3 | K45: 2 | L45: =IF(INTRO!$E$37="Endemic",IF($H45>0,IF($H45=4,"Unknown",IF($H45=99,"Stopped",$D45)),0),"Not required") -> 0 | M45: =IF(INTRO!$E$39="Endemic", IF($I45>0, IF($I45=4,"Unknown",IF($I45=99,"Stopped",$D45)), 0),"Not required") -> 0 | N45: =IF(INTRO!$E$41="Endemic", IF(AND($J45>1,$J45<5), IF($J45=4, "Unknown", E45+F45), 0),"Not required") -> 158300.84 | O45: =IF(INTRO!$E$43="Endemic", IF(AND($K45>0,$K45<5), IF($K45=4,"Unknown", IF($K45=1, $F45*0.33, IF($K45=2, $F45*0.5+$G45*0.2, SUM(F45:G45)))), 0),"Not required") -> 107134.3376 | P45: 0 | Q45: 0 | R45: 1 | S45: 0
A46: =IF(INTRO!$E$33<>0,INTRO!$E$33, " ") -> Tanzania | B46: Kagera | C46: Missenyi District Council | D46: 277841.232 | E46: =IF(INTRO!$E$48="","",ROUND($D46*INTRO!$E$48,0)) -> 35842 | F46: 57297.672 | G46: 184701.56 | H46: 0 | I46: 0 | J46: 3 | K46: 2 | L46: =IF(INTRO!$E$37="Endemic",IF($H46>0,IF($H46=4,"Unknown",IF($H46=99,"Stopped",$D46)),0),"Not required") -> 0 | M46: =IF(INTRO!$E$39="Endemic", IF($I46>0, IF($I46=4,"Unknown",IF($I46=99,"Stopped",$D46)), 0),"Not required") -> 0 | N46: =IF(INTRO!$E$41="Endemic", IF(AND($J46>1,$J46<5), IF($J46=4, "Unknown", E46+F46), 0),"Not required") -> 93139.672 | O46: =IF(INTRO!$E$43="Endemic", IF(AND($K46>0,$K46<5), IF($K46=4,"Unknown", IF($K46=1, $F46*0.33, IF($K46=2, $F46*0.5+$G46*0.2, SUM(F46:G46)))), 0),"Not required") -> 65589.148 | P46: 0 | Q46: 0 | R46: 1 | S46: 0
A47: =IF(INTRO!$E$33<>0,INTRO!$E$33, " ") -> Tanzania | B47: Kagera | C47: Muleba District Council | D47: 740852.16 | E47: =IF(INTRO!$E$48="","",ROUND($D47*INTRO!$E$48,0)) -> 95570 | F47: 163527.624 | G47: 481754.536 | H47: 0 | I47: 0 | J47: 3 | K47: 2 | L47: =IF(INTRO!$E$37="Endemic",IF($H47>0,IF($H47=4,"Unknown",IF($H47=99,"Stopped",$D47)),0),"Not required") -> 0 | M47: =IF(INTRO!$E$39="Endemic", IF($I47>0, IF($I47=4,"Unknown",IF($I47=99,"Stopped",$D47)), 0),"Not required") -> 0 | N47: =IF(INTRO!$E$41="Endemic", IF(AND($J47>1,$J47<5), IF($J47=4, "Unknown", E47+F47), 0),"Not required") -> 259097.624 | O47: =IF(INTRO!$E$43="Endemic", IF(AND($K47>0,$K47<5), IF($K47=4,"Unknown", IF($K47=1, $F47*0.33, IF($K47=2, $F47*0.5+$G47*0.2, SUM(F47:G47)))), 0),"Not required") -> 178114.7192 | P47: 0 | Q47: 0 | R47: 1 | S47: 1
A48: =IF(INTRO!$E$33<>0,INTRO!$E$33, " ") -> Tanzania | B48: Kagera | C48: Ngara District Council | D48: 438849.744 | E48: =IF(INTRO!$E$48="","",ROUND($D48*INTRO!$E$48,0)) -> 56612 | F48: 92878.968 | G48: 289358.776 | H48: 0 | I48: 0 | J48: 3 | K48: 2 | L48: =IF(INTRO!$E$37="Endemic",IF($H48>0,IF($H48=4,"Unknown",IF($H48=99,"Stopped",$D48)),0),"Not required") -> 0 | M48: =IF(INTRO!$E$39="Endemic", IF($I48>0, IF($I48=4,"Unknown",IF($I48=99,"Stopped",$D48)), 0),"Not required") -> 0 | N48: =IF(INTRO!$E$41="Endemic", IF(AND($J48>1,$J48<5), IF($J48=4, "Unknown", E48+F48), 0),"Not required") -> 149490.968 | O48: =IF(INTRO!$E$43="Endemic", IF(AND($K48>0,$K48<5), IF($K48=4,"Unknown", IF($K48=1, $F48*0.33, IF($K48=2, $F48*0.5+$G48*0.2, SUM(F48:G48)))), 0),"Not required") -> 104311.2392 | P48: 0 | Q48: 0 | R48: 1 | S48: 0
A49: =IF(INTRO!$E$33<>0,INTRO!$E$33, " ") -> Tanzania | B49: Katavi | C49: Mlele District Council | D49: 59520.6 | E49: =IF(INTRO!$E$48="","",ROUND($D49*INTRO!$E$48,0)) -> 7678 | F49: 15557.4 | G49: 36285.2 | H49: 99 | I49: 0 | J49: 3 | K49: 2 | L49: =IF(INTRO!$E$37="Endemic",IF($H49>0,IF($H49=4,"Unknown",IF($H49=99,"Stopped",$D49)),0),"Not required") -> Stopped | M49: =IF(INTRO!$E$39="Endemic", IF($I49>0, IF($I49=4,"Unknown",IF($I49=99,"Stopped",$D49)), 0),"Not required") -> 0 | N49: =IF(INTRO!$E$41="Endemic", IF(AND($J49>1,$J49<5), IF($J49=4, "Unknown", E49+F49), 0),"Not required") -> 23235.4 | O49: =IF(INTRO!$E$43="Endemic", IF(AND($K49>0,$K49<5), IF($K49=4,"Unknown", IF($K49=1, $F49*0.33, IF($K49=2, $F49*0.5+$G49*0.2, SUM(F49:G49)))), 0),"Not required") -> 15035.74 | P49: 0 | Q49: 0 | R49: 1 | S49: 1
A50: =IF(INTRO!$E$33<>0,INTRO!$E$33, " ") -> Tanzania | B50: Katavi | C50: Mpanda District Council | D50: 246491.136 | E50: =IF(INTRO!$E$48="","",ROUND($D50*INTRO!$E$48,0)) -> 31797 | F50: 76479.456 | G50: 138214.68 | H50: 99 | I50: 0 | J50: 3 | K50: 2 | L50: =IF(INTRO!$E$37="Endemic",IF($H50>0,IF($H50=4,"Unknown",IF($H50=99,"Stopped",$D50)),0),"Not required") -> Stopped | M50: =IF(INTRO!$E$39="Endemic", IF($I50>0, IF($I50=4,"Unknown",IF($I50=99,"Stopped",$D50)), 0),"Not required") -> 0 | N50: =IF(INTRO!$E$41="Endemic", IF(AND($J50>1,$J50<5), IF($J50=4, "Unknown", E50+F50), 0),"Not required") -> 108276.456 | O50: =IF(INTRO!$E$43="Endemic", IF(AND($K50>0,$K50<5), IF($K50=4,"Unknown", IF($K50=1, $F50*0.33, IF($K50=2, $F50*0.5+$G50*0.2, SUM(F50:G50)))), 0),"Not required") -> 65882.664 | P50: 0 | Q50: 0 | R50: 1 | S50: 1
A51: =IF(INTRO!$E$33<>0,INTRO!$E$33, " ") -> Tanzania | B51: Katavi | C51: Mpanda Municipal Council | D51: 151432.584 | E51: =IF(INTRO!$E$48="","",ROUND($D51*INTRO!$E$48,0)) -> 19535 | F51: 53286.288 | G51: 78611.296 | H51: 99 | I51: 0 | J51: 3 | K51: 2 | L51: =IF(INTRO!$E$37="Endemic",IF($H51>0,IF($H51=4,"Unknown",IF($H51=99,"Stopped",$D51)),0),"Not required") -> Stopped | M51: =IF(INTRO!$E$39="Endemic", IF($I51>0, IF($I51=4,"Unknown",IF($I51=99,"Stopped",$D51)), 0),"Not required") -> 0 | N51: =IF(INTRO!$E$41="Endemic", IF(AND($J51>1,$J51<5), IF($J51=4, "Unknown", E51+F51), 0),"Not required") -> 72821.288 | O51: =IF(INTRO!$E$43="Endemic", IF(AND($K51>0,$K51<5), IF($K51=4,"Unknown", IF($K51=1, $F51*0.33, IF($K51=2, $F51*0.5+$G51*0.2, SUM(F51:G51)))), 0),"Not required") -> 42365.4032 | P51: 0 | Q51: 0 | R51: 1 | S51: 1
A52: =IF(INTRO!$E$33<>0,INTRO!$E$33, " ") -> Tanzania | B52: Katavi | C52: Mpimbwe District Council | D52: 142587.312 | E52: =IF(INTRO!$E$48="","",ROUND($D52*INTRO!$E$48,0)) -> 18394 | F52: 32373.84 | G52: 91819.472 | H52: 99 | I52: 0 | J52: 3 | K52: 2 | L52: =IF(INTRO!$E$37="Endemic",IF($H52>0,IF($H52=4,"Unknown",IF($H52=99,"Stopped",$D52)),0),"Not required") -> Stopped | M52: =IF(INTRO!$E$39="Endemic", IF($I52>0, IF($I52=4,"Unknown",IF($I52=99,"Stopped",$D52)), 0),"Not required") -> 0 | N52: =IF(INTRO!$E$41="Endemic", IF(AND($J52>1,$J52<5), IF($J52=4, "Unknown", E52+F52), 0),"Not required") -> 50767.84 | O52: =IF(INTRO!$E$43="Endemic", IF(AND($K52>0,$K52<5), IF($K52=4,"Unknown", IF($K52=1, $F52*0.33, IF($K52=2, $F52*0.5+$G52*0.2, SUM(F52:G52)))), 0),"Not required") -> 34550.8144 | P52: 0 | Q52: 0 | R52: 1 | S52: 1
A53: =IF(INTRO!$E$33<>0,INTRO!$E$33, " ") -> Tanzania | B53: Katavi | C53: Nsimbo District Council | D53: 176862.096 | E53: =IF(INTRO!$E$48="","",ROUND($D53*INTRO!$E$48,0)) -> 22815 | F53: 39440.976 | G53: 114606.12 | H53: 99 | I53: 0 | J53: 3 | K53: 2 | L53: =IF(INTRO!$E$37="Endemic",IF($H53>0,IF($H53=4,"Unknown",IF($H53=99,"Stopped",$D53)),0),"Not required") -> Stopped | M53: =IF(INTRO!$E$39="Endemic", IF($I53>0, IF($I53=4,"Unknown",IF($I53=99,"Stopped",$D53)), 0),"Not required") -> 0 | N53: =IF(INTRO!$E$41="Endemic", IF(AND($J53>1,$J53<5), IF($J53=4, "Unknown", E53+F53), 0),"Not required") -> 62255.976 | O53: =IF(INTRO!$E$43="Endemic", IF(AND($K53>0,$K53<5), IF($K53=4,"Unknown", IF($K53=1, $F53*0.33, IF($K53=2, $F53*0.5+$G53*0.2, SUM(F53:G53)))), 0),"Not required") -> 42641.712 | P53: 0 | Q53: 0 | R53: 1 | S53: 1
A54: =IF(INTRO!$E$33<>0,INTRO!$E$33, " ") -> Tanzania | B54: Kigoma | C54: Buhigwe District Council | D54: 335668.32 | E54: =IF(INTRO!$E$48="","",ROUND($D54*INTRO!$E$48,0)) -> 43301 | F54: 64550.568 | G54: 227816.752 | H54: 0 | I54: 0 | J54: 3 | K54: 2 | L54: =IF(INTRO!$E$37="Endemic",IF($H54>0,IF($H54=4,"Unknown",IF($H54=99,"Stopped",$D54)),0),"Not required") -> 0 | M54: =IF(INTRO!$E$39="Endemic", IF($I54>0, IF($I54=4,"Unknown",IF($I54=99,"Stopped",$D54)), 0),"Not required") -> 0 | N54: =IF(INTRO!$E$41="Endemic", IF(AND($J54>1,$J54<5), IF($J54=4, "Unknown", E54+F54), 0),"Not required") -> 107851.568 | O54: =IF(INTRO!$E$43="Endemic", IF(AND($K54>0,$K54<5), IF($K54=4,"Unknown", IF($K54=1, $F54*0.33, IF($K54=2, $F54*0.5+$G54*0.2, SUM(F54:G54)))), 0),"Not required") -> 77838.6344 | P54: 0 | Q54: 0 | R54: 1 | S54: 1
A55: =IF(INTRO!$E$33<>0,INTRO!$E$33, " ") -> Tanzania | B55: Kigoma | C55: Kakonko District Council | D55: 221132.832 | E55: =IF(INTRO!$E$48="","",ROUND($D55*INTRO!$E$48,0)) -> 28526 | F55: 44553.504 | G55: 148053.328 | H55: 0 | I55: 0 | J55: 3 | K55: 2 | L55: =IF(INTRO!$E$37="Endemic",IF($H55>0,IF($H55=4,"Unknown",IF($H55=99,"Stopped",$D55)),0),"Not required") -> 0 | M55: =IF(INTRO!$E$39="Endemic", IF($I55>0, IF($I55=4,"Unknown",IF($I55=99,"Stopped",$D55)), 0),"Not required") -> 0 | N55: =IF(INTRO!$E$41="Endemic", IF(AND($J55>1,$J55<5), IF($J55=4, "Unknown", E55+F55), 0),"Not required") -> 73079.504 | O55: =IF(INTRO!$E$43="Endemic", IF(AND($K55>0,$K55<5), IF($K55=4,"Unknown", IF($K55=1, $F55*0.33, IF($K55=2, $F55*0.5+$G55*0.2, SUM(F55:G55)))), 0),"Not required") -> 51887.4176 | P55: 0 | Q55: 0 | R55: 1 | S55: 0
A56: =IF(INTRO!$E$33<>0,INTRO!$E$33, " ") -> Tanzania | B56: Kigoma | C56: Kasulu District Council | D56: 561941.544 | E56: =IF(INTRO!$E$48="","",ROUND($D56*INTRO!$E$48,0)) -> 72490 | F56: 113967.888 | G56: 375483.656 | H56: 0 | I56: 0 | J56: 3 | K56: 2 | L56: =IF(INTRO!$E$37="Endemic",IF($H56>0,IF($H56=4,"Unknown",IF($H56=99,"Stopped",$D56)),0),"Not required") -> 0 | M56: =IF(INTRO!$E$39="Endemic", IF($I56>0, IF($I56=4,"Unknown",IF($I56=99,"Stopped",$D56)), 0),"Not required") -> 0 | N56: =IF(INTRO!$E$41="Endemic", IF(AND($J56>1,$J56<5), IF($J56=4, "Unknown", E56+F56), 0),"Not required") -> 186457.888 | O56: =IF(INTRO!$E$43="Endemic", IF(AND($K56>0,$K56<5), IF($K56=4,"Unknown", IF($K56=1, $F56*0.33, IF($K56=2, $F56*0.5+$G56*0.2, SUM(F56:G56)))), 0),"Not required") -> 132080.6752 | P56: 0 | Q56: 0 | R56: 1 | S56: 0
A57: =IF(INTRO!$E$33<>0,INTRO!$E$33, " ") -> Tanzania | B57: Kigoma | C57: Kasulu Town Council | D57: 274828.824 | E57: =IF(INTRO!$E$48="","",ROUND($D57*INTRO!$E$48,0)) -> 35453 | F57: 53229.528 | G57: 186146.296 | H57: 0 | I57: 0 | J57: 3 | K57: 2 | L57: =IF(INTRO!$E$37="Endemic",IF($H57>0,IF($H57=4,"Unknown",IF($H57=99,"Stopped",$D57)),0),"Not required") -> 0 | M57: =IF(INTRO!$E$39="Endemic", IF($I57>0, IF($I57=4,"Unknown",IF($I57=99,"Stopped",$D57)), 0),"Not required") -> 0 | N57: =IF(INTRO!$E$41="Endemic", IF(AND($J57>1,$J57<5), IF($J57=4, "Unknown", E57+F57), 0),"Not required") -> 88682.528 | O57: =IF(INTRO!$E$43="Endemic", IF(AND($K57>0,$K57<5), IF($K57=4,"Unknown", IF($K57=1, $F57*0.33, IF($K57=2, $F57*0.5+$G57*0.2, SUM(F57:G57)))), 0),"Not required") -> 63844.0232 | P57: 0 | Q57: 0 | R57: 1 | S57: 1
A58: =IF(INTRO!$E$33<>0,INTRO!$E$33, " ") -> Tanzania | B58: Kigoma | C58: Kibondo District Council | D58: 344892.336 | E58: =IF(INTRO!$E$48="","",ROUND($D58*INTRO!$E$48,0)) -> 44491 | F58: 68424.696 | G58: 231976.64 | H58: 0 | I58: 0 | J58: 3 | K58: 2 | L58: =IF(INTRO!$E$37="Endemic",IF($H58>0,IF($H58=4,"Unknown",IF($H58=99,"Stopped",$D58)),0),"Not required") -> 0 | M58: =IF(INTRO!$E$39="Endemic", IF($I58>0, IF($I58=4,"Unknown",IF($I58=99,"Stopped",$D58)), 0),"Not required") -> 0 | N58: =IF(INTRO!$E$41="Endemic", IF(AND($J58>1,$J58<5), IF($J58=4, "Unknown", E58+F58), 0),"Not required") -> 112915.696 | O58: =IF(INTRO!$E$43="Endemic", IF(AND($K58>0,$K58<5), IF($K58=4,"Unknown", IF($K58=1, $F58*0.33, IF($K58=2, $F58*0.5+$G58*0.2, SUM(F58:G58)))), 0),"Not required") -> 80607.676 | P58: 0 | Q58: 0 | R58: 1 | S58: 0
A59: =IF(INTRO!$E$33<>0,INTRO!$E$33, " ") -> Tanzania | B59: Kigoma | C59: Kigoma District Council | D59: 279215.856 | E59: =IF(INTRO!$E$48="","",ROUND($D59*INTRO!$E$48,0)) -> 36019 | F59: 54618.6 | G59: 188578.256 | H59: 0 | I59: 0 | J59: 3 | K59: 2 | L59: =IF(INTRO!$E$37="Endemic",IF($H59>0,IF($H59=4,"Unknown",IF($H59=99,"Stopped",$D59)),0),"Not required") -> 0 | M59: =IF(INTRO!$E$39="Endemic", IF($I59>0, IF($I59=4,"Unknown",IF($I59=99,"Stopped",$D59)), 0),"Not required") -> 0 | N59: =IF(INTRO!$E$41="Endemic", IF(AND($J59>1,$J59<5), IF($J59=4, "Unknown", E59+F59), 0),"Not required") -> 90637.6 | O59: =IF(INTRO!$E$43="Endemic", IF(AND($K59>0,$K59<5), IF($K59=4,"Unknown", IF($K59=1, $F59*0.33, IF($K59=2, $F59*0.5+$G59*0.2, SUM(F59:G59)))), 0),"Not required") -> 65024.9512 | P59: 0 | Q59: 0 | R59: 1 | S59: 1
A60: =IF(INTRO!$E$33<>0,INTRO!$E$33, " ") -> Tanzania | B60: Kigoma | C60: Kigoma-Ujiji Municipal Council | D60: 284352.12 | E60: =IF(INTRO!$E$48="","",ROUND($D60*INTRO!$E$48,0)) -> 36681 | F60: 51832.2 | G60: 195838.92 | H60: 0 | I60: 0 | J60: 3 | K60: 2 | L60: =IF(INTRO!$E$37="Endemic",IF($H60>0,IF($H60=4,"Unknown",IF($H60=99,"Stopped",$D60)),0),"Not required") -> 0 | M60: =IF(INTRO!$E$39="Endemic", IF($I60>0, IF($I60=4,"Unknown",IF($I60=99,"Stopped",$D60)), 0),"Not required") -> 0 | N60: =IF(INTRO!$E$41="Endemic", IF(AND($J60>1,$J60<5), IF($J60=4, "Unknown", E60+F60), 0),"Not required") -> 88513.2 | O60: =IF(INTRO!$E$43="Endemic", IF(AND($K60>0,$K60<5), IF($K60=4,"Unknown", IF($K60=1, $F60*0.33, IF($K60=2, $F60*0.5+$G60*0.2, SUM(F60:G60)))), 0),"Not required") -> 65083.884 | P60: 0 | Q60: 0 | R60: 1 | S60: 0
A61: =IF(INTRO!$E$33<>0,INTRO!$E$33, " ") -> Tanzania | B61: Kigoma | C61: Uvinza District Council | D61: 506308.488 | E61: =IF(INTRO!$E$48="","",ROUND($D61*INTRO!$E$48,0)) -> 65314 | F61: 96845.976 | G61: 344148.512 | H61: 0 | I61: 0 | J61: 3 | K61: 2 | L61: =IF(INTRO!$E$37="Endemic",IF($H61>0,IF($H61=4,"Unknown",IF($H61=99,"Stopped",$D61)),0),"Not required") -> 0 | M61: =IF(INTRO!$E$39="Endemic", IF($I61>0, IF($I61=4,"Unknown",IF($I61=99,"Stopped",$D61)), 0),"Not required") -> 0 | N61: =IF(INTRO!$E$41="Endemic", IF(AND($J61>1,$J61<5), IF($J61=4, "Unknown", E61+F61), 0),"Not required") -> 162159.976 | O61: =IF(INTRO!$E$43="Endemic", IF(AND($K61>0,$K61<5), IF($K61=4,"Unknown", IF($K61=1, $F61*0.33, IF($K61=2, $F61*0.5+$G61*0.2, SUM(F61:G61)))), 0),"Not required") -> 117252.6904 | P61: 0 | Q61: 0 | R61: 1 | S61: 1
A62: =IF(INTRO!$E$33<>0,INTRO!$E$33, " ") -> Tanzania | B62: Kilimanjaro | C62: Hai District Council | D62: 251228.148 | E62: =IF(INTRO!$E$48="","",ROUND($D62*INTRO!$E$48,0)) -> 32408 | F62: 42917.862 | G62: 175902.286 | H62: 0 | I62: 0 | J62: 3 | K62: 2 | L62: =IF(INTRO!$E$37="Endemic",IF($H62>0,IF($H62=4,"Unknown",IF($H62=99,"Stopped",$D62)),0),"Not required") -> 0 | M62: =IF(INTRO!$E$39="Endemic", IF($I62>0, IF($I62=4,"Unknown",IF($I62=99,"Stopped",$D62)), 0),"Not required") -> 0 | N62: =IF(INTRO!$E$41="Endemic", IF(AND($J62>1,$J62<5), IF($J62=4, "Unknown", E62+F62), 0),"Not required") -> 75325.862 | O62: =IF(INTRO!$E$43="Endemic", IF(AND($K62>0,$K62<5), IF($K62=4,"Unknown", IF($K62=1, $F62*0.33, IF($K62=2, $F62*0.5+$G62*0.2, SUM(F62:G62)))), 0),"Not required") -> 56639.3882 | P62: 0 | Q62: 0 | R62: 1 | S62: 0
A63: =IF(INTRO!$E$33<>0,INTRO!$E$33, " ") -> Tanzania | B63: Kilimanjaro | C63: Moshi District Council | D63: 556963.07 | E63: =IF(INTRO!$E$48="","",ROUND($D63*INTRO!$E$48,0)) -> 71848 | F63: 85661.646 | G63: 399453.424 | H63: 0 | I63: 0 | J63: 3 | K63: 2 | L63: =IF(INTRO!$E$37="Endemic",IF($H63>0,IF($H63=4,"Unknown",IF($H63=99,"Stopped",$D63)),0),"Not required") -> 0 | M63: =IF(INTRO!$E$39="Endemic", IF($I63>0, IF($I63=4,"Unknown",IF($I63=99,"Stopped",$D63)), 0),"Not required") -> 0 | N63: =IF(INTRO!$E$41="Endemic", IF(AND($J63>1,$J63<5), IF($J63=4, "Unknown", E63+F63), 0),"Not required") -> 157509.646 | O63: =IF(INTRO!$E$43="Endemic", IF(AND($K63>0,$K63<5), IF($K63=4,"Unknown", IF($K63=1, $F63*0.33, IF($K63=2, $F63*0.5+$G63*0.2, SUM(F63:G63)))), 0),"Not required") -> 122721.5078 | P63: 0 | Q63: 0 | R63: 1 | S63: 0
A64: =IF(INTRO!$E$33<>0,INTRO!$E$33, " ") -> Tanzania | B64: Kilimanjaro | C64: Moshi Municipal Council | D64: 219917.522 | E64: =IF(INTRO!$E$48="","",ROUND($D64*INTRO!$E$48,0)) -> 28369 | F64: 34338.158 | G64: 157210.364 | H64: 0 | I64: 0 | J64: 3 | K64: 2 | L64: =IF(INTRO!$E$37="Endemic",IF($H64>0,IF($H64=4,"Unknown",IF($H64=99,"Stopped",$D64)),0),"Not required") -> 0 | M64: =IF(INTRO!$E$39="Endemic", IF($I64>0, IF($I64=4,"Unknown",IF($I64=99,"Stopped",$D64)), 0),"Not required") -> 0 | N64: =IF(INTRO!$E$41="Endemic", IF(AND($J64>1,$J64<5), IF($J64=4, "Unknown", E64+F64), 0),"Not required") -> 62707.158 | O64: =IF(INTRO!$E$43="Endemic", IF(AND($K64>0,$K64<5), IF($K64=4,"Unknown", IF($K64=1, $F64*0.33, IF($K64=2, $F64*0.5+$G64*0.2, SUM(F64:G64)))), 0),"Not required") -> 48611.1518 | P64: 0 | Q64: 0 | R64: 1 | S64: 1
A65: =IF(INTRO!$E$33<>0,INTRO!$E$33, " ") -> Tanzania | B65: Kilimanjaro | C65: Mwanga District Council | D65: 156850.386 | E65: =IF(INTRO!$E$48="","",ROUND($D65*INTRO!$E$48,0)) -> 20234 | F65: 30473.83 | G65: 106142.556 | H65: 0 | I65: 0 | J65: 3 | K65: 2 | L65: =IF(INTRO!$E$37="Endemic",IF($H65>0,IF($H65=4,"Unknown",IF($H65=99,"Stopped",$D65)),0),"Not required") -> 0 | M65: =IF(INTRO!$E$39="Endemic", IF($I65>0, IF($I65=4,"Unknown",IF($I65=99,"Stopped",$D65)), 0),"Not required") -> 0 | N65: =IF(INTRO!$E$41="Endemic", IF(AND($J65>1,$J65<5), IF($J65=4, "Unknown", E65+F65), 0),"Not required") -> 50707.83 | O65: =IF(INTRO!$E$43="Endemic", IF(AND($K65>0,$K65<5), IF($K65=4,"Unknown", IF($K65=1, $F65*0.33, IF($K65=2, $F65*0.5+$G65*0.2, SUM(F65:G65)))), 0),"Not required") -> 36465.4262 | P65: 0 | Q65: 0 | R65: 1 | S65: 0
A66: =IF(INTRO!$E$33<>0,INTRO!$E$33, " ") -> Tanzania | B66: Kilimanjaro | C66: Rombo District Council | D66: 311408.236 | E66: =IF(INTRO!$E$48="","",ROUND($D66*INTRO!$E$48,0)) -> 40172 | F66: 43643.696 | G66: 227592.54 | H66: 0 | I66: 0 | J66: 3 | K66: 2 | L66: =IF(INTRO!$E$37="Endemic",IF($H66>0,IF($H66=4,"Unknown",IF($H66=99,"Stopped",$D66)),0),"Not required") -> 0 | M66: =IF(INTRO!$E$39="Endemic", IF($I66>0, IF($I66=4,"Unknown",IF($I66=99,"Stopped",$D66)), 0),"Not required") -> 0 | N66: =IF(INTRO!$E$41="Endemic", IF(AND($J66>1,$J66<5), IF($J66=4, "Unknown", E66+F66), 0),"Not required") -> 83815.696 | O66: =IF(INTRO!$E$43="Endemic", IF(AND($K66>0,$K66<5), IF($K66=4,"Unknown", IF($K66=1, $F66*0.33, IF($K66=2, $F66*0.5+$G66*0.2, SUM(F66:G66)))), 0),"Not required") -> 67340.356 | P66: 0 | Q66: 0 | R66: 1 | S66: 0
A67: =IF(INTRO!$E$33<>0,INTRO!$E$33, " ") -> Tanzania | B67: Kilimanjaro | C67: Same District Council | D67: 321965.914 | E67: =IF(INTRO!$E$48="","",ROUND($D67*INTRO!$E$48,0)) -> 41534 | F67: 64935.166 | G67: 215496.748 | H67: 0 | I67: 0 | J67: 3 | K67: 2 | L67: =IF(INTRO!$E$37="Endemic",IF($H67>0,IF($H67=4,"Unknown",IF($H67=99,"Stopped",$D67)),0),"Not required") -> 0 | M67: =IF(INTRO!$E$39="Endemic", IF($I67>0, IF($I67=4,"Unknown",IF($I67=99,"Stopped",$D67)), 0),"Not required") -> 0 | N67: =IF(INTRO!$E$41="Endemic", IF(AND($J67>1,$J67<5), IF($J67=4, "Unknown", E67+F67), 0),"Not required") -> 106469.166 | O67: =IF(INTRO!$E$43="Endemic", IF(AND($K67>0,$K67<5), IF($K67=4,"Unknown", IF($K67=1, $F67*0.33, IF($K67=2, $F67*0.5+$G67*0.2, SUM(F67:G67)))), 0),"Not required") -> 75566.9326 | P67: 0 | Q67: 0 | R67: 1 | S67: 1
A68: =IF(INTRO!$E$33<>0,INTRO!$E$33, " ") -> Tanzania | B68: Kilimanjaro | C68: Siha District Council | D68: 138797.174 | E68: =IF(INTRO!$E$48="","",ROUND($D68*INTRO!$E$48,0)) -> 17905 | F68: 26478.18 | G68: 94413.994 | H68: 0 | I68: 0 | J68: 3 | K68: 2 | L68: =IF(INTRO!$E$37="Endemic",IF($H68>0,IF($H68=4,"Unknown",IF($H68=99,"Stopped",$D68)),0),"Not required") -> 0 | M68: =IF(INTRO!$E$39="Endemic", IF($I68>0, IF($I68=4,"Unknown",IF($I68=99,"Stopped",$D68)), 0),"Not required") -> 0 | N68: =IF(INTRO!$E$41="Endemic", IF(AND($J68>1,$J68<5), IF($J68=4, "Unknown", E68+F68), 0),"Not required") -> 44383.18 | O68: =IF(INTRO!$E$43="Endemic", IF(AND($K68>0,$K68<5), IF($K68=4,"Unknown", IF($K68=1, $F68*0.33, IF($K68=2, $F68*0.5+$G68*0.2, SUM(F68:G68)))), 0),"Not required") -> 32121.8888 | P68: 0 | Q68: 0 | R68: 1 | S68: 0
A69: =IF(INTRO!$E$33<>0,INTRO!$E$33, " ") -> Tanzania | B69: Lindi | C69: Kilwa District Council | D69: 223324.997 | E69: =IF(INTRO!$E$48="","",ROUND($D69*INTRO!$E$48,0)) -> 28809 | F69: 57837.898 | G69: 136678.099 | H69: 1 | I69: 0 | J69: 3 | K69: 2 | L69: =IF(INTRO!$E$37="Endemic",IF($H69>0,IF($H69=4,"Unknown",IF($H69=99,"Stopped",$D69)),0),"Not required") -> 223324.997 | M69: =IF(INTRO!$E$39="Endemic", IF($I69>0, IF($I69=4,"Unknown",IF($I69=99,"Stopped",$D69)), 0),"Not required") -> 0 | N69: =IF(INTRO!$E$41="Endemic", IF(AND($J69>1,$J69<5), IF($J69=4, "Unknown", E69+F69), 0),"Not required") -> 86646.898 | O69: =IF(INTRO!$E$43="Endemic", IF(AND($K69>0,$K69<5), IF($K69=4,"Unknown", IF($K69=1, $F69*0.33, IF($K69=2, $F69*0.5+$G69*0.2, SUM(F69:G69)))), 0),"Not required") -> 56254.5688 | P69: 1 | Q69: 0 | R69: 1 | S69: 1
A70: =IF(INTRO!$E$33<>0,INTRO!$E$33, " ") -> Tanzania | B70: Lindi | C70: Lindi District Council | D70: 212733.524 | E70: =IF(INTRO!$E$48="","",ROUND($D70*INTRO!$E$48,0)) -> 27443 | F70: 43950.022 | G70: 141340.502 | H70: 1 | I70: 0 | J70: 3 | K70: 2 | L70: =IF(INTRO!$E$37="Endemic",IF($H70>0,IF($H70=4,"Unknown",IF($H70=99,"Stopped",$D70)),0),"Not required") -> 212733.524 | M70: =IF(INTRO!$E$39="Endemic", IF($I70>0, IF($I70=4,"Unknown",IF($I70=99,"Stopped",$D70)), 0),"Not required") -> 0 | N70: =IF(INTRO!$E$41="Endemic", IF(AND($J70>1,$J70<5), IF($J70=4, "Unknown", E70+F70), 0),"Not required") -> 71393.022 | O70: =IF(INTRO!$E$43="Endemic", IF(AND($K70>0,$K70<5), IF($K70=4,"Unknown", IF($K70=1, $F70*0.33, IF($K70=2, $F70*0.5+$G70*0.2, SUM(F70:G70)))), 0),"Not required") -> 50243.1114 | P70: 1 | Q70: 0 | R70: 1 | S70: 1
A71: =IF(INTRO!$E$33<>0,INTRO!$E$33, " ") -> Tanzania | B71: Lindi | C71: Lindi Municipal Council | D71: 86390.58 | E71: =IF(INTRO!$E$48="","",ROUND($D71*INTRO!$E$48,0)) -> 11144 | F71: 16970.371 | G71: 58276.209 | H71: 99 | I71: 0 | J71: 3 | K71: 2 | L71: =IF(INTRO!$E$37="Endemic",IF($H71>0,IF($H71=4,"Unknown",IF($H71=99,"Stopped",$D71)),0),"Not required") -> Stopped | M71: =IF(INTRO!$E$39="Endemic", IF($I71>0, IF($I71=4,"Unknown",IF($I71=99,"Stopped",$D71)), 0),"Not required") -> 0 | N71: =IF(INTRO!$E$41="Endemic", IF(AND($J71>1,$J71<5), IF($J71=4, "Unknown", E71+F71), 0),"Not required") -> 28114.371 | O71: =IF(INTRO!$E$43="Endemic", IF(AND($K71>0,$K71<5), IF($K71=4,"Unknown", IF($K71=1, $F71*0.33, IF($K71=2, $F71*0.5+$G71*0.2, SUM(F71:G71)))), 0),"Not required") -> 20140.4273 | P71: 0 | Q71: 0 | R71: 1 | S71: 1
A72: =IF(INTRO!$E$33<>0,INTRO!$E$33, " ") -> Tanzania | B72: Lindi | C72: Liwale District Council | D72: 100132.151 | E72: =IF(INTRO!$E$48="","",ROUND($D72*INTRO!$E$48,0)) -> 12917 | F72: 24795.166 | G72: 62419.985 | H72: 99 | I72: 0 | J72: 3 | K72: 2 | L72: =IF(INTRO!$E$37="Endemic",IF($H72>0,IF($H72=4,"Unknown",IF($H72=99,"Stopped",$D72)),0),"Not required") -> Stopped | M72: =IF(INTRO!$E$39="Endemic", IF($I72>0, IF($I72=4,"Unknown",IF($I72=99,"Stopped",$D72)), 0),"Not required") -> 0 | N72: =IF(INTRO!$E$41="Endemic", IF(AND($J72>1,$J72<5), IF($J72=4, "Unknown", E72+F72), 0),"Not required") -> 37712.166 | O72: =IF(INTRO!$E$43="Endemic", IF(AND($K72>0,$K72<5), IF($K72=4,"Unknown", IF($K72=1, $F72*0.33, IF($K72=2, $F72*0.5+$G72*0.2, SUM(F72:G72)))), 0),"Not required") -> 24881.58 | P72: 0 | Q72: 0 | R72: 1 | S72: 1
A73: =IF(INTRO!$E$33<>0,INTRO!$E$33, " ") -> Tanzania | B73: Lindi | C73: Nachingwea District Council | D73: 195553.281 | E73: =IF(INTRO!$E$48="","",ROUND($D73*INTRO!$E$48,0)) -> 25226 | F73: 41913.86 | G73: 128413.421 | H73: 99 | I73: 0 | J73: 3 | K73: 3 | L73: =IF(INTRO!$E$37="Endemic",IF($H73>0,IF($H73=4,"Unknown",IF($H73=99,"Stopped",$D73)),0),"Not required") -> Stopped | M73: =IF(INTRO!$E$39="Endemic", IF($I73>0, IF($I73=4,"Unknown",IF($I73=99,"Stopped",$D73)), 0),"Not required") -> 0 | N73: =IF(INTRO!$E$41="Endemic", IF(AND($J73>1,$J73<5), IF($J73=4, "Unknown", E73+F73), 0),"Not required") -> 67139.86 | O73: =IF(INTRO!$E$43="Endemic", IF(AND($K73>0,$K73<5), IF($K73=4,"Unknown", IF($K73=1, $F73*0.33, IF($K73=2, $F73*0.5+$G73*0.2, SUM(F73:G73)))), 0),"Not required") -> 170327.281 | P73: 0 | Q73: 0 | R73: 1 | S73: 1
A74: =IF(INTRO!$E$33<>0,INTRO!$E$33, " ") -> Tanzania | B74: Lindi | C74: Ruangwa District Council | D74: 143631.15 | E74: =IF(INTRO!$E$48="","",ROUND($D74*INTRO!$E$48,0)) -> 18528 | F74: 29292.279 | G74: 95810.871 | H74: 99 | I74: 0 | J74: 3 | K74: 3 | L74: =IF(INTRO!$E$37="Endemic",IF($H74>0,IF($H74=4,"Unknown",IF($H74=99,"Stopped",$D74)),0),"Not required") -> Stopped | M74: =IF(INTRO!$E$39="Endemic", IF($I74>0, IF($I74=4,"Unknown",IF($I74=99,"Stopped",$D74)), 0),"Not required") -> 0 | N74: =IF(INTRO!$E$41="Endemic", IF(AND($J74>1,$J74<5), IF($J74=4, "Unknown", E74+F74), 0),"Not required") -> 47820.279 | O74: =IF(INTRO!$E$43="Endemic", IF(AND($K74>0,$K74<5), IF($K74=4,"Unknown", IF($K74=1, $F74*0.33, IF($K74=2, $F74*0.5+$G74*0.2, SUM(F74:G74)))), 0),"Not required") -> 125103.15 | P74: 0 | Q74: 0 | R74: 1 | S74: 1
A75: =IF(INTRO!$E$33<>0,INTRO!$E$33, " ") -> Tanzania | B75: Manyara | C75: Babati District Council | D75: 428556.576 | E75: =IF(INTRO!$E$48="","",ROUND($D75*INTRO!$E$48,0)) -> 55284 | F75: 86975.928 | G75: 286296.648 | H75: 99 | I75: 0 | J75: 3 | K75: 2 | L75: =IF(INTRO!$E$37="Endemic",IF($H75>0,IF($H75=4,"Unknown",IF($H75=99,"Stopped",$D75)),0),"Not required") -> Stopped | M75: =IF(INTRO!$E$39="Endemic", IF($I75>0, IF($I75=4,"Unknown",IF($I75=99,"Stopped",$D75)), 0),"Not required") -> 0 | N75: =IF(INTRO!$E$41="Endemic", IF(AND($J75>1,$J75<5), IF($J75=4, "Unknown", E75+F75), 0),"Not required") -> 142259.928 | O75: =IF(INTRO!$E$43="Endemic", IF(AND($K75>0,$K75<5), IF($K75=4,"Unknown", IF($K75=1, $F75*0.33, IF($K75=2, $F75*0.5+$G75*0.2, SUM(F75:G75)))), 0),"Not required") -> 100747.2936 | P75: 0 | Q75: 0 | R75: 1 | S75: 0
A76: =IF(INTRO!$E$33<>0,INTRO!$E$33, " ") -> Tanzania | B76: Manyara | C76: Babati Town Council | D76: 127733.736 | E76: =IF(INTRO!$E$48="","",ROUND($D76*INTRO!$E$48,0)) -> 16478 | F76: 25414.032 | G76: 85841.704 | H76: 99 | I76: 0 | J76: 3 | K76: 2 | L76: =IF(INTRO!$E$37="Endemic",IF($H76>0,IF($H76=4,"Unknown",IF($H76=99,"Stopped",$D76)),0),"Not required") -> Stopped | M76: =IF(INTRO!$E$39="Endemic", IF($I76>0, IF($I76=4,"Unknown",IF($I76=99,"Stopped",$D76)), 0),"Not required") -> 0 | N76: =IF(INTRO!$E$41="Endemic", IF(AND($J76>1,$J76<5), IF($J76=4, "Unknown", E76+F76), 0),"Not required") -> 41892.032 | O76: =IF(INTRO!$E$43="Endemic", IF(AND($K76>0,$K76<5), IF($K76=4,"Unknown", IF($K76=1, $F76*0.33, IF($K76=2, $F76*0.5+$G76*0.2, SUM(F76:G76)))), 0),"Not required") -> 29875.3568 | P76: 0 | Q76: 0 | R76: 1 | S76: 0
A77: =IF(INTRO!$E$33<>0,INTRO!$E$33, " ") -> Tanzania | B77: Manyara | C77: Hanang District Council | D77: 378622.224 | E77: =IF(INTRO!$E$48="","",ROUND($D77*INTRO!$E$48,0)) -> 48842 | F77: 76071.816 | G77: 253708.408 | H77: 99 | I77: 0 | J77: 3 | K77: 2 | L77: =IF(INTRO!$E$37="Endemic",IF($H77>0,IF($H77=4,"Unknown",IF($H77=99,"Stopped",$D77)),0),"Not required") -> Stopped | M77: =IF(INTRO!$E$39="Endemic", IF($I77>0, IF($I77=4,"Unknown",IF($I77=99,"Stopped",$D77)), 0),"Not required") -> 0 | N77: =IF(INTRO!$E$41="Endemic", IF(AND($J77>1,$J77<5), IF($J77=4, "Unknown", E77+F77), 0),"Not required") -> 124913.816 | O77: =IF(INTRO!$E$43="Endemic", IF(AND($K77>0,$K77<5), IF($K77=4,"Unknown", IF($K77=1, $F77*0.33, IF($K77=2, $F77*0.5+$G77*0.2, SUM(F77:G77)))), 0),"Not required") -> 88777.5896 | P77: 0 | Q77: 0 | R77: 1 | S77: 0
A78: =IF(INTRO!$E$33<>0,INTRO!$E$33, " ") -> Tanzania | B78: Manyara | C78: Kiteto District Council | D78: 335650.776 | E78: =IF(INTRO!$E$48="","",ROUND($D78*INTRO!$E$48,0)) -> 43299 | F78: 64316.304 | G78: 228035.472 | H78: 99 | I78: 0 | J78: 3 | K78: 2 | L78: =IF(INTRO!$E$37="Endemic",IF($H78>0,IF($H78=4,"Unknown",IF($H78=99,"Stopped",$D78)),0),"Not required") -> Stopped | M78: =IF(INTRO!$E$39="Endemic", IF($I78>0, IF($I78=4,"Unknown",IF($I78=99,"Stopped",$D78)), 0),"Not required") -> 0 | N78: =IF(INTRO!$E$41="Endemic", IF(AND($J78>1,$J78<5), IF($J78=4, "Unknown", E78+F78), 0),"Not required") -> 107615.304 | O78: =IF(INTRO!$E$43="Endemic", IF(AND($K78>0,$K78<5), IF($K78=4,"Unknown", IF($K78=1, $F78*0.33, IF($K78=2, $F78*0.5+$G78*0.2, SUM(F78:G78)))), 0),"Not required") -> 77765.2464 | P78: 0 | Q78: 0 | R78: 1 | S78: 0
A79: =IF(INTRO!$E$33<>0,INTRO!$E$33, " ") -> Tanzania | B79: Manyara | C79: Mbulu District Council | D79: 262328.208 | E79: =IF(INTRO!$E$48="","",ROUND($D79*INTRO!$E$48,0)) -> 33840 | F79: 52584.528 | G79: 175903.68 | H79: 99 | I79: 0 | J79: 3 | K79: 2 | L79: =IF(INTRO!$E$37="Endemic",IF($H79>0,IF($H79=4,"Unknown",IF($H79=99,"Stopped",$D79)),0),"Not required") -> Stopped | M79: =IF(INTRO!$E$39="Endemic", IF($I79>0, IF($I79=4,"Unknown",IF($I79=99,"Stopped",$D79)), 0),"Not required") -> 0 | N79: =IF(INTRO!$E$41="Endemic", IF(AND($J79>1,$J79<5), IF($J79=4, "Unknown", E79+F79), 0),"Not required") -> 86424.528 | O79: =IF(INTRO!$E$43="Endemic", IF(AND($K79>0,$K79<5), IF($K79=4,"Unknown", IF($K79=1, $F79*0.33, IF($K79=2, $F79*0.5+$G79*0.2, SUM(F79:G79)))), 0),"Not required") -> 61473 | P79: 0 | Q79: 0 | R79: 1 | S79: 0
A80: =IF(INTRO!$E$33<>0,INTRO!$E$33, " ") -> Tanzania | B80: Manyara | C80: Mbulu Town Council | D80: 177049.92 | E80: =IF(INTRO!$E$48="","",ROUND($D80*INTRO!$E$48,0)) -> 22839 | F80: 35490.48 | G80: 118720.44 | H80: 99 | I80: 0 | J80: 3 | K80: 2 | L80: =IF(INTRO!$E$37="Endemic",IF($H80>0,IF($H80=4,"Unknown",IF($H80=99,"Stopped",$D80)),0),"Not required") -> Stopped | M80: =IF(INTRO!$E$39="Endemic", IF($I80>0, IF($I80=4,"Unknown",IF($I80=99,"Stopped",$D80)), 0),"Not required") -> 0 | N80: =IF(INTRO!$E$41="Endemic", IF(AND($J80>1,$J80<5), IF($J80=4, "Unknown", E80+F80), 0),"Not required") -> 58329.48 | O80: =IF(INTRO!$E$43="Endemic", IF(AND($K80>0,$K80<5), IF($K80=4,"Unknown", IF($K80=1, $F80*0.33, IF($K80=2, $F80*0.5+$G80*0.2, SUM(F80:G80)))), 0),"Not required") -> 41489.328 | P80: 0 | Q80: 0 | R80: 1 | S80: 0
A81: =IF(INTRO!$E$33<>0,INTRO!$E$33, " ") -> Tanzania | B81: Manyara | C81: Simanjiro District Council | D81: 245139.216 | E81: =IF(INTRO!$E$48="","",ROUND($D81*INTRO!$E$48,0)) -> 31623 | F81: 47927.112 | G81: 165589.104 | H81: 99 | I81: 0 | J81: 3 | K81: 2 | L81: =IF(INTRO!$E$37="Endemic",IF($H81>0,IF($H81=4,"Unknown",IF($H81=99,"Stopped",$D81)),0),"Not required") -> Stopped | M81: =IF(INTRO!$E$39="Endemic", IF($I81>0, IF($I81=4,"Unknown",IF($I81=99,"Stopped",$D81)), 0),"Not required") -> 0 | N81: =IF(INTRO!$E$41="Endemic", IF(AND($J81>1,$J81<5), IF($J81=4, "Unknown", E81+F81), 0),"Not required") -> 79550.112 | O81: =IF(INTRO!$E$43="Endemic", IF(AND($K81>0,$K81<5), IF($K81=4,"Unknown", IF($K81=1, $F81*0.33, IF($K81=2, $F81*0.5+$G81*0.2, SUM(F81:G81)))), 0),"Not required") -> 57081.3768 | P81: 0 | Q81: 0 | R81: 1 | S81: 0
A82: =IF(INTRO!$E$33<>0,INTRO!$E$33, " ") -> Tanzania | B82: Mara | C82: Bunda District Council | D82: 282908.2 | E82: =IF(INTRO!$E$48="","",ROUND($D82*INTRO!$E$48,0)) -> 36495 | F82: 72521.825 | G82: 173891.375 | H82: 0 | I82: 0 | J82: 3 | K82: 2 | L82: =IF(INTRO!$E$37="Endemic",IF($H82>0,IF($H82=4,"Unknown",IF($H82=99,"Stopped",$D82)),0),"Not required") -> 0 | M82: =IF(INTRO!$E$39="Endemic", IF($I82>0, IF($I82=4,"Unknown",IF($I82=99,"Stopped",$D82)), 0),"Not required") -> 0 | N82: =IF(INTRO!$E$41="Endemic", IF(AND($J82>1,$J82<5), IF($J82=4, "Unknown", E82+F82), 0),"Not required") -> 109016.825 | O82: =IF(INTRO!$E$43="Endemic", IF(AND($K82>0,$K82<5), IF($K82=4,"Unknown", IF($K82=1, $F82*0.33, IF($K82=2, $F82*0.5+$G82*0.2, SUM(F82:G82)))), 0),"Not required") -> 71039.1875 | P82: 0 | Q82: 0 | R82: 1 | S82: 0
A83: =IF(INTRO!$E$33<>0,INTRO!$E$33, " ") -> Tanzania | B83: Mara | C83: Bunda Town Council | D83: 145821.625 | E83: =IF(INTRO!$E$48="","",ROUND($D83*INTRO!$E$48,0)) -> 18811 | F83: 51349.425 | G83: 75661.2 | H83: 0 | I83: 0 | J83: 3 | K83: 2 | L83: =IF(INTRO!$E$37="Endemic",IF($H83>0,IF($H83=4,"Unknown",IF($H83=99,"Stopped",$D83)),0),"Not required") -> 0 | M83: =IF(INTRO!$E$39="Endemic", IF($I83>0, IF($I83=4,"Unknown",IF($I83=99,"Stopped",$D83)), 0),"Not required") -> 0 | N83: =IF(INTRO!$E$41="Endemic", IF(AND($J83>1,$J83<5), IF($J83=4, "Unknown", E83+F83), 0),"Not required") -> 70160.425 | O83: =IF(INTRO!$E$43="Endemic", IF(AND($K83>0,$K83<5), IF($K83=4,"Unknown", IF($K83=1, $F83*0.33, IF($K83=2, $F83*0.5+$G83*0.2, SUM(F83:G83)))), 0),"Not required") -> 40806.9525 | P83: 0 | Q83: 0 | R83: 1 | S83: 0
A84: =IF(INTRO!$E$33<>0,INTRO!$E$33, " ") -> Tanzania | B84: Mara | C84: Butiama District Council | D84: 271137.1 | E84: =IF(INTRO!$E$48="","",ROUND($D84*INTRO!$E$48,0)) -> 34977 | F84: 83266.9 | G84: 152893.2 | H84: 0 | I84: 0 | J84: 3 | K84: 2 | L84: =IF(INTRO!$E$37="Endemic",IF($H84>0,IF($H84=4,"Unknown",IF($H84=99,"Stopped",$D84)),0),"Not required") -> 0 | M84: =IF(INTRO!$E$39="Endemic", IF($I84>0, IF($I84=4,"Unknown",IF($I84=99,"Stopped",$D84)), 0),"Not required") -> 0 | N84: =IF(INTRO!$E$41="Endemic", IF(AND($J84>1,$J84<5), IF($J84=4, "Unknown", E84+F84), 0),"Not required") -> 118243.9 | O84: =IF(INTRO!$E$43="Endemic", IF(AND($K84>0,$K84<5), IF($K84=4,"Unknown", IF($K84=1, $F84*0.33, IF($K84=2, $F84*0.5+$G84*0.2, SUM(F84:G84)))), 0),"Not required") -> 72212.09 | P84: 0 | Q84: 0 | R84: 1 | S84: 0
A85: =IF(INTRO!$E$33<>0,INTRO!$E$33, " ") -> Tanzania | B85: Mara | C85: Musoma District Council | D85: 266388.275 | E85: =IF(INTRO!$E$48="","",ROUND($D85*INTRO!$E$48,0)) -> 34364 | F85: 74065.475 | G85: 157958.8 | H85: 0 | I85: 0 | J85: 3 | K85: 2 | L85: =IF(INTRO!$E$37="Endemic",IF($H85>0,IF($H85=4,"Unknown",IF($H85=99,"Stopped",$D85)),0),"Not required") -> 0 | M85: =IF(INTRO!$E$39="Endemic", IF($I85>0, IF($I85=4,"Unknown",IF($I85=99,"Stopped",$D85)), 0),"Not required") -> 0 | N85: =IF(INTRO!$E$41="Endemic", IF(AND($J85>1,$J85<5), IF($J85=4, "Unknown", E85+F85), 0),"Not required") -> 108429.475 | O85: =IF(INTRO!$E$43="Endemic", IF(AND($K85>0,$K85<5), IF($K85=4,"Unknown", IF($K85=1, $F85*0.33, IF($K85=2, $F85*0.5+$G85*0.2, SUM(F85:G85)))), 0),"Not required") -> 68624.4975 | P85: 0 | Q85: 0 | R85: 1 | S85: 0
A86: =IF(INTRO!$E$33<>0,INTRO!$E$33, " ") -> Tanzania | B86: Mara | C86: Musoma Municipal Council | D86: 171881.225 | E86: =IF(INTRO!$E$48="","",ROUND($D86*INTRO!$E$48,0)) -> 22173 | F86: 45172.775 | G86: 104535.45 | H86: 0 | I86: 0 | J86: 3 | K86: 2 | L86: =IF(INTRO!$E$37="Endemic",IF($H86>0,IF($H86=4,"Unknown",IF($H86=99,"Stopped",$D86)),0),"Not required") -> 0 | M86: =IF(INTRO!$E$39="Endemic", IF($I86>0, IF($I86=4,"Unknown",IF($I86=99,"Stopped",$D86)), 0),"Not required") -> 0 | N86: =IF(INTRO!$E$41="Endemic", IF(AND($J86>1,$J86<5), IF($J86=4, "Unknown", E86+F86), 0),"Not required") -> 67345.775 | O86: =IF(INTRO!$E$43="Endemic", IF(AND($K86>0,$K86<5), IF($K86=4,"Unknown", IF($K86=1, $F86*0.33, IF($K86=2, $F86*0.5+$G86*0.2, SUM(F86:G86)))), 0),"Not required") -> 43493.4775 | P86: 0 | Q86: 0 | R86: 1 | S86: 0
A87: =IF(INTRO!$E$33<>0,INTRO!$E$33, " ") -> Tanzania | B87: Mara | C87: Rorya District Council | D87: 339391.85 | E87: =IF(INTRO!$E$48="","",ROUND($D87*INTRO!$E$48,0)) -> 43782 | F87: 105456.1 | G87: 190153.75 | H87: 0 | I87: 0 | J87: 3 | K87: 2 | L87: =IF(INTRO!$E$37="Endemic",IF($H87>0,IF($H87=4,"Unknown",IF($H87=99,"Stopped",$D87)),0),"Not required") -> 0 | M87: =IF(INTRO!$E$39="Endemic", IF($I87>0, IF($I87=4,"Unknown",IF($I87=99,"Stopped",$D87)), 0),"Not required") -> 0 | N87: =IF(INTRO!$E$41="Endemic", IF(AND($J87>1,$J87<5), IF($J87=4, "Unknown", E87+F87), 0),"Not required") -> 149238.1 | O87: =IF(INTRO!$E$43="Endemic", IF(AND($K87>0,$K87<5), IF($K87=4,"Unknown", IF($K87=1, $F87*0.33, IF($K87=2, $F87*0.5+$G87*0.2, SUM(F87:G87)))), 0),"Not required") -> 90758.8 | P87: 0 | Q87: 0 | R87: 1 | S87: 0
A88: =IF(INTRO!$E$33<>0,INTRO!$E$33, " ") -> Tanzania | B88: Mara | C88: Serengeti District Council | D88: 319147.075 | E88: =IF(INTRO!$E$48="","",ROUND($D88*INTRO!$E$48,0)) -> 41170 | F88: 86953.825 | G88: 191023.25 | H88: 0 | I88: 0 | J88: 3 | K88: 2 | L88: =IF(INTRO!$E$37="Endemic",IF($H88>0,IF($H88=4,"Unknown",IF($H88=99,"Stopped",$D88)),0),"Not required") -> 0 | M88: =IF(INTRO!$E$39="Endemic", IF($I88>0, IF($I88=4,"Unknown",IF($I88=99,"Stopped",$D88)), 0),"Not required") -> 0 | N88: =IF(INTRO!$E$41="Endemic", IF(AND($J88>1,$J88<5), IF($J88=4, "Unknown", E88+F88), 0),"Not required") -> 128123.825 | O88: =IF(INTRO!$E$43="Endemic", IF(AND($K88>0,$K88<5), IF($K88=4,"Unknown", IF($K88=1, $F88*0.33, IF($K88=2, $F88*0.5+$G88*0.2, SUM(F88:G88)))), 0),"Not required") -> 81681.5625 | P88: 0 | Q88: 0 | R88: 1 | S88: 0
A89: =IF(INTRO!$E$33<>0,INTRO!$E$33, " ") -> Tanzania | B89: Mara | C89: Tarime District Council | D89: 334804.975 | E89: =IF(INTRO!$E$48="","",ROUND($D89*INTRO!$E$48,0)) -> 43190 | F89: 107982.725 | G89: 183632.25 | H89: 0 | I89: 0 | J89: 3 | K89: 2 | L89: =IF(INTRO!$E$37="Endemic",IF($H89>0,IF($H89=4,"Unknown",IF($H89=99,"Stopped",$D89)),0),"Not required") -> 0 | M89: =IF(INTRO!$E$39="Endemic", IF($I89>0, IF($I89=4,"Unknown",IF($I89=99,"Stopped",$D89)), 0),"Not required") -> 0 | N89: =IF(INTRO!$E$41="Endemic", IF(AND($J89>1,$J89<5), IF($J89=4, "Unknown", E89+F89), 0),"Not required") -> 151172.725 | O89: =IF(INTRO!$E$43="Endemic", IF(AND($K89>0,$K89<5), IF($K89=4,"Unknown", IF($K89=1, $F89*0.33, IF($K89=2, $F89*0.5+$G89*0.2, SUM(F89:G89)))), 0),"Not required") -> 90717.8125 | P89: 0 | Q89: 0 | R89: 1 | S89: 0
A90: =IF(INTRO!$E$33<>0,INTRO!$E$33, " ") -> Tanzania | B90: Mara | C90: Tarime Town Council | D90: 99850.375 | E90: =IF(INTRO!$E$48="","",ROUND($D90*INTRO!$E$48,0)) -> 12881 | F90: 34934.05 | G90: 52035.325 | H90: 0 | I90: 0 | J90: 3 | K90: 2 | L90: =IF(INTRO!$E$37="Endemic",IF($H90>0,IF($H90=4,"Unknown",IF($H90=99,"Stopped",$D90)),0),"Not required") -> 0 | M90: =IF(INTRO!$E$39="Endemic", IF($I90>0, IF($I90=4,"Unknown",IF($I90=99,"Stopped",$D90)), 0),"Not required") -> 0 | N90: =IF(INTRO!$E$41="Endemic", IF(AND($J90>1,$J90<5), IF($J90=4, "Unknown", E90+F90), 0),"Not required") -> 47815.05 | O90: =IF(INTRO!$E$43="Endemic", IF(AND($K90>0,$K90<5), IF($K90=4,"Unknown", IF($K90=1, $F90*0.33, IF($K90=2, $F90*0.5+$G90*0.2, SUM(F90:G90)))), 0),"Not required") -> 27874.09 | P90: 0 | Q90: 0 | R90: 1 | S90: 0
A91: =IF(INTRO!$E$33<>0,INTRO!$E$33, " ") -> Tanzania | B91: Mbeya | C91: Busokelo District Council | D91: 124303.972 | E91: =IF(INTRO!$E$48="","",ROUND($D91*INTRO!$E$48,0)) -> 16035 | F91: 24279.307 | G91: 83989.665 | H91: 99 | I91: 1 | J91: 3 | K91: 2 | L91: =IF(INTRO!$E$37="Endemic",IF($H91>0,IF($H91=4,"Unknown",IF($H91=99,"Stopped",$D91)),0),"Not required") -> Stopped | M91: =IF(INTRO!$E$39="Endemic", IF($I91>0, IF($I91=4,"Unknown",IF($I91=99,"Stopped",$D91)), 0),"Not required") -> 124303.972 | N91: =IF(INTRO!$E$41="Endemic", IF(AND($J91>1,$J91<5), IF($J91=4, "Unknown", E91+F91), 0),"Not required") -> 40314.307 | O91: =IF(INTRO!$E$43="Endemic", IF(AND($K91>0,$K91<5), IF($K91=4,"Unknown", IF($K91=1, $F91*0.33, IF($K91=2, $F91*0.5+$G91*0.2, SUM(F91:G91)))), 0),"Not required") -> 28937.5865 | P91: 0 | Q91: 1 | R91: 1 | S91: 1
A92: =IF(INTRO!$E$33<>0,INTRO!$E$33, " ") -> Tanzania | B92: Mbeya | C92: Chunya District Council | D92: 202277.92 | E92: =IF(INTRO!$E$48="","",ROUND($D92*INTRO!$E$48,0)) -> 26094 | F92: 43211.025 | G92: 132972.895 | H92: 99 | I92: 0 | J92: 3 | K92: 2 | L92: =IF(INTRO!$E$37="Endemic",IF($H92>0,IF($H92=4,"Unknown",IF($H92=99,"Stopped",$D92)),0),"Not required") -> Stopped | M92: =IF(INTRO!$E$39="Endemic", IF($I92>0, IF($I92=4,"Unknown",IF($I92=99,"Stopped",$D92)), 0),"Not required") -> 0 | N92: =IF(INTRO!$E$41="Endemic", IF(AND($J92>1,$J92<5), IF($J92=4, "Unknown", E92+F92), 0),"Not required") -> 69305.025 | O92: =IF(INTRO!$E$43="Endemic", IF(AND($K92>0,$K92<5), IF($K92=4,"Unknown", IF($K92=1, $F92*0.33, IF($K92=2, $F92*0.5+$G92*0.2, SUM(F92:G92)))), 0),"Not required") -> 48200.0915 | P92: 0 | Q92: 0 | R92: 1 | S92: 0
A93: =IF(INTRO!$E$33<>0,INTRO!$E$33, " ") -> Tanzania | B93: Mbeya | C93: Kyela District Council | D93: 285752.48 | E93: =IF(INTRO!$E$48="","",ROUND($D93*INTRO!$E$48,0)) -> 36862 | F93: 61742.213 | G93: 187148.267 | H93: 99 | I93: 1 | J93: 3 | K93: 3 | L93: =IF(INTRO!$E$37="Endemic",IF($H93>0,IF($H93=4,"Unknown",IF($H93=99,"Stopped",$D93)),0),"Not required") -> Stopped | M93: =IF(INTRO!$E$39="Endemic", IF($I93>0, IF($I93=4,"Unknown",IF($I93=99,"Stopped",$D93)), 0),"Not required") -> 285752.48 | N93: =IF(INTRO!$E$41="Endemic", IF(AND($J93>1,$J93<5), IF($J93=4, "Unknown", E93+F93), 0),"Not required") -> 98604.213 | O93: =IF(INTRO!$E$43="Endemic", IF(AND($K93>0,$K93<5), IF($K93=4,"Unknown", IF($K93=1, $F93*0.33, IF($K93=2, $F93*0.5+$G93*0.2, SUM(F93:G93)))), 0),"Not required") -> 248890.48 | P93: 0 | Q93: 1 | R93: 1 | S93: 1
A94: =IF(INTRO!$E$33<>0,INTRO!$E$33, " ") -> Tanzania | B94: Mbeya | C94: Mbarali District Council | D94: 387709.959 | E94: =IF(INTRO!$E$48="","",ROUND($D94*INTRO!$E$48,0)) -> 50015 | F94: 78876.681 | G94: 258818.278 | H94: 99 | I94: 0 | J94: 3 | K94: 2 | L94: =IF(INTRO!$E$37="Endemic",IF($H94>0,IF($H94=4,"Unknown",IF($H94=99,"Stopped",$D94)),0),"Not required") -> Stopped | M94: =IF(INTRO!$E$39="Endemic", IF($I94>0, IF($I94=4,"Unknown",IF($I94=99,"Stopped",$D94)), 0),"Not required") -> 0 | N94: =IF(INTRO!$E$41="Endemic", IF(AND($J94>1,$J94<5), IF($J94=4, "Unknown", E94+F94), 0),"Not required") -> 128891.681 | O94: =IF(INTRO!$E$43="Endemic", IF(AND($K94>0,$K94<5), IF($K94=4,"Unknown", IF($K94=1, $F94*0.33, IF($K94=2, $F94*0.5+$G94*0.2, SUM(F94:G94)))), 0),"Not required") -> 91201.9961 | P94: 0 | Q94: 0 | R94: 1 | S94: 1
A95: =IF(INTRO!$E$33<>0,INTRO!$E$33, " ") -> Tanzania | B95: Mbeya | C95: Mbeya City Council | D95: 497065.946 | E95: =IF(INTRO!$E$48="","",ROUND($D95*INTRO!$E$48,0)) -> 64122 | F95: 98484.165 | G95: 334459.781 | H95: 99 | I95: 0 | J95: 3 | K95: 2 | L95: =IF(INTRO!$E$37="Endemic",IF($H95>0,IF($H95=4,"Unknown",IF($H95=99,"Stopped",$D95)),0),"Not required") -> Stopped | M95: =IF(INTRO!$E$39="Endemic", IF($I95>0, IF($I95=4,"Unknown",IF($I95=99,"Stopped",$D95)), 0),"Not required") -> 0 | N95: =IF(INTRO!$E$41="Endemic", IF(AND($J95>1,$J95<5), IF($J95=4, "Unknown", E95+F95), 0),"Not required") -> 162606.165 | O95: =IF(INTRO!$E$43="Endemic", IF(AND($K95>0,$K95<5), IF($K95=4,"Unknown", IF($K95=1, $F95*0.33, IF($K95=2, $F95*0.5+$G95*0.2, SUM(F95:G95)))), 0),"Not required") -> 116134.0387 | P95: 0 | Q95: 0 | R95: 1 | S95: 1
A96: =IF(INTRO!$E$33<>0,INTRO!$E$33, " ") -> Tanzania | B96: Mbeya | C96: Mbeya District Council | D96: 393907.904 | E96: =IF(INTRO!$E$48="","",ROUND($D96*INTRO!$E$48,0)) -> 50814 | F96: 80781.766 | G96: 262312.138 | H96: 99 | I96: 0 | J96: 3 | K96: 2 | L96: =IF(INTRO!$E$37="Endemic",IF($H96>0,IF($H96=4,"Unknown",IF($H96=99,"Stopped",$D96)),0),"Not required") -> Stopped | M96: =IF(INTRO!$E$39="Endemic", IF($I96>0, IF($I96=4,"Unknown",IF($I96=99,"Stopped",$D96)), 0),"Not required") -> 0 | N96: =IF(INTRO!$E$41="Endemic", IF(AND($J96>1,$J96<5), IF($J96=4, "Unknown", E96+F96), 0),"Not required") -> 131595.766 | O96: =IF(INTRO!$E$43="Endemic", IF(AND($K96>0,$K96<5), IF($K96=4,"Unknown", IF($K96=1, $F96*0.33, IF($K96=2, $F96*0.5+$G96*0.2, SUM(F96:G96)))), 0),"Not required") -> 92853.3106 | P96: 0 | Q96: 0 | R96: 1 | S96: 1
A97: =IF(INTRO!$E$33<>0,INTRO!$E$33, " ") -> Tanzania | B97: Mbeya | C97: Rungwe District Council | D97: 313259.648 | E97: =IF(INTRO!$E$48="","",ROUND($D97*INTRO!$E$48,0)) -> 40410 | F97: 63162.554 | G97: 209687.094 | H97: 99 | I97: 1 | J97: 3 | K97: 2 | L97: =IF(INTRO!$E$37="Endemic",IF($H97>0,IF($H97=4,"Unknown",IF($H97=99,"Stopped",$D97)),0),"Not required") -> Stopped | M97: =IF(INTRO!$E$39="Endemic", IF($I97>0, IF($I97=4,"Unknown",IF($I97=99,"Stopped",$D97)), 0),"Not required") -> 313259.648 | N97: =IF(INTRO!$E$41="Endemic", IF(AND($J97>1,$J97<5), IF($J97=4, "Unknown", E97+F97), 0),"Not required") -> 103572.554 | O97: =IF(INTRO!$E$43="Endemic", IF(AND($K97>0,$K97<5), IF($K97=4,"Unknown", IF($K97=1, $F97*0.33, IF($K97=2, $F97*0.5+$G97*0.2, SUM(F97:G97)))), 0),"Not required") -> 73518.6958 | P97: 0 | Q97: 1 | R97: 1 | S97: 1
A98: =IF(INTRO!$E$33<>0,INTRO!$E$33, " ") -> Tanzania | B98: Morogoro | C98: Gairo District Council | D98: 245636.125 | E98: =IF(INTRO!$E$48="","",ROUND($D98*INTRO!$E$48,0)) -> 31687 | F98: 51005.025 | G98: 162944.1 | H98: 99 | I98: 1 | J98: 3 | K98: 2 | L98: =IF(INTRO!$E$37="Endemic",IF($H98>0,IF($H98=4,"Unknown",IF($H98=99,"Stopped",$D98)),0),"Not required") -> Stopped | M98: =IF(INTRO!$E$39="Endemic", IF($I98>0, IF($I98=4,"Unknown",IF($I98=99,"Stopped",$D98)), 0),"Not required") -> 245636.125 | N98: =IF(INTRO!$E$41="Endemic", IF(AND($J98>1,$J98<5), IF($J98=4, "Unknown", E98+F98), 0),"Not required") -> 82692.025 | O98: =IF(INTRO!$E$43="Endemic", IF(AND($K98>0,$K98<5), IF($K98=4,"Unknown", IF($K98=1, $F98*0.33, IF($K98=2, $F98*0.5+$G98*0.2, SUM(F98:G98)))), 0),"Not required") -> 58091.3325 | P98: 0 | Q98: 1 | R98: 1 | S98: 1
A99: =IF(INTRO!$E$33<>0,INTRO!$E$33, " ") -> Tanzania | B99: Morogoro | C99: Ifakara Town Council | D99: 144543.45 | E99: =IF(INTRO!$E$48="","",ROUND($D99*INTRO!$E$48,0)) -> 18646 | F99: 27158 | G99: 98739.45 | H99: 99 | I99: 1 | J99: 3 | K99: 2 | L99: =IF(INTRO!$E$37="Endemic",IF($H99>0,IF($H99=4,"Unknown",IF($H99=99,"Stopped",$D99)),0),"Not required") -> Stopped | M99: =IF(INTRO!$E$39="Endemic", IF($I99>0, IF($I99=4,"Unknown",IF($I99=99,"Stopped",$D99)), 0),"Not required") -> 144543.45 | N99: =IF(INTRO!$E$41="Endemic", IF(AND($J99>1,$J99<5), IF($J99=4, "Unknown", E99+F99), 0),"Not required") -> 45804 | O99: =IF(INTRO!$E$43="Endemic", IF(AND($K99>0,$K99<5), IF($K99=4,"Unknown", IF($K99=1, $F99*0.33, IF($K99=2, $F99*0.5+$G99*0.2, SUM(F99:G99)))), 0),"Not required") -> 33326.89 | P99: 0 | Q99: 2 | R99: 1 | S99: 1
A100: =IF(INTRO!$E$33<>0,INTRO!$E$33, " ") -> Tanzania | B100: Morogoro | C100: Kilombero District Council | D100: 383649.3 | E100: =IF(INTRO!$E$48="","",ROUND($D100*INTRO!$E$48,0)) -> 49491 | F100: 83561.075 | G100: 250597.225 | H100: 99 | I100: 1 | J100: 3 | K100: 2 | L100: =IF(INTRO!$E$37="Endemic",IF($H100>0,IF($H100=4,"Unknown",IF($H100=99,"Stopped",$D100)),0),"Not required") -> Stopped | M100: =IF(INTRO!$E$39="Endemic", IF($I100>0, IF($I100=4,"Unknown",IF($I100=99,"Stopped",$D100)), 0),"Not required") -> 383649.3 | N100: =IF(INTRO!$E$41="Endemic", IF(AND($J100>1,$J100<5), IF($J100=4, "Unknown", E100+F100), 0),"Not required") -> 133052.075 | O100: =IF(INTRO!$E$43="Endemic", IF(AND($K100>0,$K100<5), IF($K100=4,"Unknown", IF($K100=1, $F100*0.33, IF($K100=2, $F100*0.5+$G100*0.2, SUM(F100:G100)))), 0),"Not required") -> 91899.9825 | P100: 0 | Q100: 2 | R100: 1 | S100: 1
A101: =IF(INTRO!$E$33<>0,INTRO!$E$33, " ") -> Tanzania | B101: Morogoro | C101: Kilosa District Council | D101: 557646.125 | E101: =IF(INTRO!$E$48="","",ROUND($D101*INTRO!$E$48,0)) -> 71936 | F101: 111708.6 | G101: 374001.525 | H101: 99 | I101: 1 | J101: 3 | K101: 2 | L101: =IF(INTRO!$E$37="Endemic",IF($H101>0,IF($H101=4,"Unknown",IF($H101=99,"Stopped",$D101)),0),"Not required") -> Stopped | M101: =IF(INTRO!$E$39="Endemic", IF($I101>0, IF($I101=4,"Unknown",IF($I101=99,"Stopped",$D101)), 0),"Not required") -> 557646.125 | N101: =IF(INTRO!$E$41="Endemic", IF(AND($J101>1,$J101<5), IF($J101=4, "Unknown", E101+F101), 0),"Not required") -> 183644.6 | O101: =IF(INTRO!$E$43="Endemic", IF(AND($K101>0,$K101<5), IF($K101=4,"Unknown", IF($K101=1, $F101*0.33, IF($K101=2, $F101*0.5+$G101*0.2, SUM(F101:G101)))), 0),"Not required") -> 130654.605 | P101: 0 | Q101: 1 | R101: 1 | S101: 1
A102: =IF(INTRO!$E$33<>0,INTRO!$E$33, " ") -> Tanzania | B102: Morogoro | C102: Malinyi District Council | D102: 167932.925 | E102: =IF(INTRO!$E$48="","",ROUND($D102*INTRO!$E$48,0)) -> 21663 | F102: 34941 | G102: 111328.925 | H102: 99 | I102: 1 | J102: 3 | K102: 2 | L102: =IF(INTRO!$E$37="Endemic",IF($H102>0,IF($H102=4,"Unknown",IF($H102=99,"Stopped",$D102)),0),"Not required") -> Stopped | M102: =IF(INTRO!$E$39="Endemic", IF($I102>0, IF($I102=4,"Unknown",IF($I102=99,"Stopped",$D102)), 0),"Not required") -> 167932.925 | N102: =IF(INTRO!$E$41="Endemic", IF(AND($J102>1,$J102<5), IF($J102=4, "Unknown", E102+F102), 0),"Not required") -> 56604 | O102: =IF(INTRO!$E$43="Endemic", IF(AND($K102>0,$K102<5), IF($K102=4,"Unknown", IF($K102=1, $F102*0.33, IF($K102=2, $F102*0.5+$G102*0.2, SUM(F102:G102)))), 0),"Not required") -> 39736.285 | P102: 0 | Q102: 2 | R102: 1 | S102: 1
A103: =IF(INTRO!$E$33<>0,INTRO!$E$33, " ") -> Tanzania | B103: Morogoro | C103: Morogoro District Council | D103: 364297.3 | E103: =IF(INTRO!$E$48="","",ROUND($D103*INTRO!$E$48,0)) -> 46994 | F103: 83532.375 | G103: 233770.925 | H103: 99 | I103: 1 | J103: 3 | K103: 2 | L103: =IF(INTRO!$E$37="Endemic",IF($H103>0,IF($H103=4,"Unknown",IF($H103=99,"Stopped",$D103)),0),"Not required") -> Stopped | M103: =IF(INTRO!$E$39="Endemic", IF($I103>0, IF($I103=4,"Unknown",IF($I103=99,"Stopped",$D103)), 0),"Not required") -> 364297.3 | N103: =IF(INTRO!$E$41="Endemic", IF(AND($J103>1,$J103<5), IF($J103=4, "Unknown", E103+F103), 0),"Not required") -> 130526.375 | O103: =IF(INTRO!$E$43="Endemic", IF(AND($K103>0,$K103<5), IF($K103=4,"Unknown", IF($K103=1, $F103*0.33, IF($K103=2, $F103*0.5+$G103*0.2, SUM(F103:G103)))), 0),"Not required") -> 88520.3725 | P103: 0 | Q103: 1 | R103: 1 | S103: 1
A104: =IF(INTRO!$E$33<>0,INTRO!$E$33, " ") -> Tanzania | B104: Morogoro | C104: Morogoro Municipal Council | D104: 401988.6 | E104: =IF(INTRO!$E$48="","",ROUND($D104*INTRO!$E$48,0)) -> 51857 | F104: 87270.55 | G104: 262861.05 | H104: 99 | I104: 0 | J104: 3 | K104: 2 | L104: =IF(INTRO!$E$37="Endemic",IF($H104>0,IF($H104=4,"Unknown",IF($H104=99,"Stopped",$D104)),0),"Not required") -> Stopped | M104: =IF(INTRO!$E$39="Endemic", IF($I104>0, IF($I104=4,"Unknown",IF($I104=99,"Stopped",$D104)), 0),"Not required") -> 0 | N104: =IF(INTRO!$E$41="Endemic", IF(AND($J104>1,$J104<5), IF($J104=4, "Unknown", E104+F104), 0),"Not required") -> 139127.55 | O104: =IF(INTRO!$E$43="Endemic", IF(AND($K104>0,$K104<5), IF($K104=4,"Unknown", IF($K104=1, $F104*0.33, IF($K104=2, $F104*0.5+$G104*0.2, SUM(F104:G104)))), 0),"Not required") -> 96207.485 | P104: 0 | Q104: 0 | R104: 1 | S104: 1
A105: =IF(INTRO!$E$33<>0,INTRO!$E$33, " ") -> Tanzania | B105: Morogoro | C105: Mvomero District Council | D105: 397211.075 | E105: =IF(INTRO!$E$48="","",ROUND($D105*INTRO!$E$48,0)) -> 51240 | F105: 87422.25 | G105: 258548.825 | H105: 99 | I105: 1 | J105: 3 | K105: 2 | L105: =IF(INTRO!$E$37="Endemic",IF($H105>0,IF($H105=4,"Unknown",IF($H105=99,"Stopped",$D105)),0),"Not required") -> Stopped | M105: =IF(INTRO!$E$39="Endemic", IF($I105>0, IF($I105=4,"Unknown",IF($I105=99,"Stopped",$D105)), 0),"Not required") -> 397211.075 | N105: =IF(INTRO!$E$41="Endemic", IF(AND($J105>1,$J105<5), IF($J105=4, "Unknown", E105+F105), 0),"Not required") -> 138662.25 | O105: =IF(INTRO!$E$43="Endemic", IF(AND($K105>0,$K105<5), IF($K105=4,"Unknown", IF($K105=1, $F105*0.33, IF($K105=2, $F105*0.5+$G105*0.2, SUM(F105:G105)))), 0),"Not required") -> 95420.89 | P105: 0 | Q105: 1 | R105: 1 | S105: 1
A106: =IF(INTRO!$E$33<>0,INTRO!$E$33, " ") -> Tanzania | B106: Morogoro | C106: Ulanga District Council | D106: 218978.95 | E106: =IF(INTRO!$E$48="","",ROUND($D106*INTRO!$E$48,0)) -> 28248 | F106: 53883.225 | G106: 136847.725 | H106: 99 | I106: 1 | J106: 3 | K106: 2 | L106: =IF(INTRO!$E$37="Endemic",IF($H106>0,IF($H106=4,"Unknown",IF($H106=99,"Stopped",$D106)),0),"Not required") -> Stopped | M106: =IF(INTRO!$E$39="Endemic", IF($I106>0, IF($I106=4,"Unknown",IF($I106=99,"Stopped",$D106)), 0),"Not required") -> 218978.95 | N106: =IF(INTRO!$E$41="Endemic", IF(AND($J106>1,$J106<5), IF($J106=4, "Unknown", E106+F106), 0),"Not required") -> 82131.225 | O106: =IF(INTRO!$E$43="Endemic", IF(AND($K106>0,$K106<5), IF($K106=4,"Unknown", IF($K106=1, $F106*0.33, IF($K106=2, $F106*0.5+$G106*0.2, SUM(F106:G106)))), 0),"Not required") -> 54311.1575 | P106: 0 | Q106: 2 | R106: 1 | S106: 1
A107: =IF(INTRO!$E$33<>0,INTRO!$E$33, " ") -> Tanzania | B107: Mtwara | C107: Masasi District Council | D107: 294357.404 | E107: =IF(INTRO!$E$48="","",ROUND($D107*INTRO!$E$48,0)) -> 37972 | F107: 52530.896 | G107: 203854.508 | H107: 99 | I107: 0 | J107: 3 | K107: 3 | L107: =IF(INTRO!$E$37="Endemic",IF($H107>0,IF($H107=4,"Unknown",IF($H107=99,"Stopped",$D107)),0),"Not required") -> Stopped | M107: =IF(INTRO!$E$39="Endemic", IF($I107>0, IF($I107=4,"Unknown",IF($I107=99,"Stopped",$D107)), 0),"Not required") -> 0 | N107: =IF(INTRO!$E$41="Endemic", IF(AND($J107>1,$J107<5), IF($J107=4, "Unknown", E107+F107), 0),"Not required") -> 90502.896 | O107: =IF(INTRO!$E$43="Endemic", IF(AND($K107>0,$K107<5), IF($K107=4,"Unknown", IF($K107=1, $F107*0.33, IF($K107=2, $F107*0.5+$G107*0.2, SUM(F107:G107)))), 0),"Not required") -> 256385.404 | P107: 1 | Q107: 0 | R107: 1 | S107: 1
A108: =IF(INTRO!$E$33<>0,INTRO!$E$33, " ") -> Tanzania | B108: Mtwara | C108: Masasi Town Council | D108: 101372.04 | E108: =IF(INTRO!$E$48="","",ROUND($D108*INTRO!$E$48,0)) -> 13077 | F108: 25051.048 | G108: 63243.992 | H108: 99 | I108: 0 | J108: 3 | K108: 3 | L108: =IF(INTRO!$E$37="Endemic",IF($H108>0,IF($H108=4,"Unknown",IF($H108=99,"Stopped",$D108)),0),"Not required") -> Stopped | M108: =IF(INTRO!$E$39="Endemic", IF($I108>0, IF($I108=4,"Unknown",IF($I108=99,"Stopped",$D108)), 0),"Not required") -> 0 | N108: =IF(INTRO!$E$41="Endemic", IF(AND($J108>1,$J108<5), IF($J108=4, "Unknown", E108+F108), 0),"Not required") -> 38128.048 | O108: =IF(INTRO!$E$43="Endemic", IF(AND($K108>0,$K108<5), IF($K108=4,"Unknown", IF($K108=1, $F108*0.33, IF($K108=2, $F108*0.5+$G108*0.2, SUM(F108:G108)))), 0),"Not required") -> 88295.04 | P108: 0 | Q108: 0 | R108: 1 | S108: 1
A109: =IF(INTRO!$E$33<>0,INTRO!$E$33, " ") -> Tanzania | B109: Mtwara | C109: Mtwara District Council | D109: 138792.764 | E109: =IF(INTRO!$E$48="","",ROUND($D109*INTRO!$E$48,0)) -> 17904 | F109: 34738.924 | G109: 86149.84 | H109: 99 | I109: 0 | J109: 3 | K109: 3 | L109: =IF(INTRO!$E$37="Endemic",IF($H109>0,IF($H109=4,"Unknown",IF($H109=99,"Stopped",$D109)),0),"Not required") -> Stopped | M109: =IF(INTRO!$E$39="Endemic", IF($I109>0, IF($I109=4,"Unknown",IF($I109=99,"Stopped",$D109)), 0),"Not required") -> 0 | N109: =IF(INTRO!$E$41="Endemic", IF(AND($J109>1,$J109<5), IF($J109=4, "Unknown", E109+F109), 0),"Not required") -> 52642.924 | O109: =IF(INTRO!$E$43="Endemic", IF(AND($K109>0,$K109<5), IF($K109=4,"Unknown", IF($K109=1, $F109*0.33, IF($K109=2, $F109*0.5+$G109*0.2, SUM(F109:G109)))), 0),"Not required") -> 120888.764 | P109: 0 | Q109: 0 | R109: 1 | S109: 1
A110: =IF(INTRO!$E$33<>0,INTRO!$E$33, " ") -> Tanzania | B110: Mtwara | C110: Mtwara-Mikindani Municipal Council | D110: 144309.176 | E110: =IF(INTRO!$E$48="","",ROUND($D110*INTRO!$E$48,0)) -> 18616 | F110: 26963.728 | G110: 98729.448 | H110: 1 | I110: 0 | J110: 3 | K110: 2 | L110: =IF(INTRO!$E$37="Endemic",IF($H110>0,IF($H110=4,"Unknown",IF($H110=99,"Stopped",$D110)),0),"Not required") -> 144309.176 | M110: =IF(INTRO!$E$39="Endemic", IF($I110>0, IF($I110=4,"Unknown",IF($I110=99,"Stopped",$D110)), 0),"Not required") -> 0 | N110: =IF(INTRO!$E$41="Endemic", IF(AND($J110>1,$J110<5), IF($J110=4, "Unknown", E110+F110), 0),"Not required") -> 45579.728 | O110: =IF(INTRO!$E$43="Endemic", IF(AND($K110>0,$K110<5), IF($K110=4,"Unknown", IF($K110=1, $F110*0.33, IF($K110=2, $F110*0.5+$G110*0.2, SUM(F110:G110)))), 0),"Not required") -> 33227.7536 | P110: 1 | Q110: 0 | R110: 1 | S110: 0
A111: =IF(INTRO!$E$33<>0,INTRO!$E$33, " ") -> Tanzania | B111: Mtwara | C111: Nanyamba District Council | D111: 118489.008 | E111: =IF(INTRO!$E$48="","",ROUND($D111*INTRO!$E$48,0)) -> 15285 | F111: 26279.616 | G111: 76924.392 | H111: 99 | I111: 0 | J111: 3 | K111: 3 | L111: =IF(INTRO!$E$37="Endemic",IF($H111>0,IF($H111=4,"Unknown",IF($H111=99,"Stopped",$D111)),0),"Not required") -> Stopped | M111: =IF(INTRO!$E$39="Endemic", IF($I111>0, IF($I111=4,"Unknown",IF($I111=99,"Stopped",$D111)), 0),"Not required") -> 0 | N111: =IF(INTRO!$E$41="Endemic", IF(AND($J111>1,$J111<5), IF($J111=4, "Unknown", E111+F111), 0),"Not required") -> 41564.616 | O111: =IF(INTRO!$E$43="Endemic", IF(AND($K111>0,$K111<5), IF($K111=4,"Unknown", IF($K111=1, $F111*0.33, IF($K111=2, $F111*0.5+$G111*0.2, SUM(F111:G111)))), 0),"Not required") -> 103204.008 | P111: 0 | Q111: 0 | R111: 1 | S111: 0
A112: =IF(INTRO!$E$33<>0,INTRO!$E$33, " ") -> Tanzania | B112: Mtwara | C112: Nanyumbu District Council | D112: 170229.532 | E112: =IF(INTRO!$E$48="","",ROUND($D112*INTRO!$E$48,0)) -> 21960 | F112: 41193.46 | G112: 107076.072 | H112: 99 | I112: 0 | J112: 3 | K112: 3 | L112: =IF(INTRO!$E$37="Endemic",IF($H112>0,IF($H112=4,"Unknown",IF($H112=99,"Stopped",$D112)),0),"Not required") -> Stopped | M112: =IF(INTRO!$E$39="Endemic", IF($I112>0, IF($I112=4,"Unknown",IF($I112=99,"Stopped",$D112)), 0),"Not required") -> 0 | N112: =IF(INTRO!$E$41="Endemic", IF(AND($J112>1,$J112<5), IF($J112=4, "Unknown", E112+F112), 0),"Not required") -> 63153.46 | O112: =IF(INTRO!$E$43="Endemic", IF(AND($K112>0,$K112<5), IF($K112=4,"Unknown", IF($K112=1, $F112*0.33, IF($K112=2, $F112*0.5+$G112*0.2, SUM(F112:G112)))), 0),"Not required") -> 148269.532 | P112: 0 | Q112: 0 | R112: 1 | S112: 1
A113: =IF(INTRO!$E$33<>0,INTRO!$E$33, " ") -> Tanzania | B113: Mtwara | C113: Newala District Council | D113: 131170.38 | E113: =IF(INTRO!$E$48="","",ROUND($D113*INTRO!$E$48,0)) -> 16921 | F113: 26849.372 | G113: 87400.008 | H113: 99 | I113: 0 | J113: 3 | K113: 2 | L113: =IF(INTRO!$E$37="Endemic",IF($H113>0,IF($H113=4,"Unknown",IF($H113=99,"Stopped",$D113)),0),"Not required") -> Stopped | M113: =IF(INTRO!$E$39="Endemic", IF($I113>0, IF($I113=4,"Unknown",IF($I113=99,"Stopped",$D113)), 0),"Not required") -> 0 | N113: =IF(INTRO!$E$41="Endemic", IF(AND($J113>1,$J113<5), IF($J113=4, "Unknown", E113+F113), 0),"Not required") -> 43770.372 | O113: =IF(INTRO!$E$43="Endemic", IF(AND($K113>0,$K113<5), IF($K113=4,"Unknown", IF($K113=1, $F113*0.33, IF($K113=2, $F113*0.5+$G113*0.2, SUM(F113:G113)))), 0),"Not required") -> 30904.6876 | P113: 0 | Q113: 0 | R113: 1 | S113: 1
A114: =IF(INTRO!$E$33<>0,INTRO!$E$33, " ") -> Tanzania | B114: Mtwara | C114: Newala Town Council | D114: 100711.204 | E114: =IF(INTRO!$E$48="","",ROUND($D114*INTRO!$E$48,0)) -> 12992 | F114: 22482.592 | G114: 65236.612 | H114: 99 | I114: 0 | J114: 3 | K114: 2 | L114: =IF(INTRO!$E$37="Endemic",IF($H114>0,IF($H114=4,"Unknown",IF($H114=99,"Stopped",$D114)),0),"Not required") -> Stopped | M114: =IF(INTRO!$E$39="Endemic", IF($I114>0, IF($I114=4,"Unknown",IF($I114=99,"Stopped",$D114)), 0),"Not required") -> 0 | N114: =IF(INTRO!$E$41="Endemic", IF(AND($J114>1,$J114<5), IF($J114=4, "Unknown", E114+F114), 0),"Not required") -> 35474.592 | O114: =IF(INTRO!$E$43="Endemic", IF(AND($K114>0,$K114<5), IF($K114=4,"Unknown", IF($K114=1, $F114*0.33, IF($K114=2, $F114*0.5+$G114*0.2, SUM(F114:G114)))), 0),"Not required") -> 24288.6184 | P114: 0 | Q114: 0 | R114: 1 | S114: 0
A115: =IF(INTRO!$E$33<>0,INTRO!$E$33, " ") -> Tanzania | B115: Mtwara | C115: Tandahimba District Council | D115: 256732.256 | E115: =IF(INTRO!$E$48="","",ROUND($D115*INTRO!$E$48,0)) -> 33118 | F115: 65765.832 | G115: 157848.424 | H115: 99 | I115: 0 | J115: 3 | K115: 2 | L115: =IF(INTRO!$E$37="Endemic",IF($H115>0,IF($H115=4,"Unknown",IF($H115=99,"Stopped",$D115)),0),"Not required") -> Stopped | M115: =IF(INTRO!$E$39="Endemic", IF($I115>0, IF($I115=4,"Unknown",IF($I115=99,"Stopped",$D115)), 0),"Not required") -> 0 | N115: =IF(INTRO!$E$41="Endemic", IF(AND($J115>1,$J115<5), IF($J115=4, "Unknown", E115+F115), 0),"Not required") -> 98883.832 | O115: =IF(INTRO!$E$43="Endemic", IF(AND($K115>0,$K115<5), IF($K115=4,"Unknown", IF($K115=1, $F115*0.33, IF($K115=2, $F115*0.5+$G115*0.2, SUM(F115:G115)))), 0),"Not required") -> 64452.6008 | P115: 0 | Q115: 0 | R115: 1 | S115: 1
A116: =IF(INTRO!$E$33<>0,INTRO!$E$33, " ") -> Tanzania | B116: Mwanza | C116: Buchosa District Council | D116: 440933.73 | E116: =IF(INTRO!$E$48="","",ROUND($D116*INTRO!$E$48,0)) -> 56880 | F116: 112285.45 | G116: 271768.28 | H116: 0 | I116: 0 | J116: 3 | K116: 2 | L116: =IF(INTRO!$E$37="Endemic",IF($H116>0,IF($H116=4,"Unknown",IF($H116=99,"Stopped",$D116)),0),"Not required") -> 0 | M116: =IF(INTRO!$E$39="Endemic", IF($I116>0, IF($I116=4,"Unknown",IF($I116=99,"Stopped",$D116)), 0),"Not required") -> 0 | N116: =IF(INTRO!$E$41="Endemic", IF(AND($J116>1,$J116<5), IF($J116=4, "Unknown", E116+F116), 0),"Not required") -> 169165.45 | O116: =IF(INTRO!$E$43="Endemic", IF(AND($K116>0,$K116<5), IF($K116=4,"Unknown", IF($K116=1, $F116*0.33, IF($K116=2, $F116*0.5+$G116*0.2, SUM(F116:G116)))), 0),"Not required") -> 110496.381 | P116: 0 | Q116: 0 | R116: 1 | S116: 1
A117: =IF(INTRO!$E$33<>0,INTRO!$E$33, " ") -> Tanzania | B117: Mwanza | C117: Ilemela Municipal Council | D117: 461427.64 | E117: =IF(INTRO!$E$48="","",ROUND($D117*INTRO!$E$48,0)) -> 59524 | F117: 100512.55 | G117: 301391.09 | H117: 0 | I117: 0 | J117: 3 | K117: 2 | L117: =IF(INTRO!$E$37="Endemic",IF($H117>0,IF($H117=4,"Unknown",IF($H117=99,"Stopped",$D117)),0),"Not required") -> 0 | M117: =IF(INTRO!$E$39="Endemic", IF($I117>0, IF($I117=4,"Unknown",IF($I117=99,"Stopped",$D117)), 0),"Not required") -> 0 | N117: =IF(INTRO!$E$41="Endemic", IF(AND($J117>1,$J117<5), IF($J117=4, "Unknown", E117+F117), 0),"Not required") -> 160036.55 | O117: =IF(INTRO!$E$43="Endemic", IF(AND($K117>0,$K117<5), IF($K117=4,"Unknown", IF($K117=1, $F117*0.33, IF($K117=2, $F117*0.5+$G117*0.2, SUM(F117:G117)))), 0),"Not required") -> 110534.493 | P117: 0 | Q117: 0 | R117: 1 | S117: 1
A118: =IF(INTRO!$E$33<>0,INTRO!$E$33, " ") -> Tanzania | B118: Mwanza | C118: Kwimba District Council | D118: 546864.08 | E118: =IF(INTRO!$E$48="","",ROUND($D118*INTRO!$E$48,0)) -> 70545 | F118: 121291.77 | G118: 355027.31 | H118: 0 | I118: 0 | J118: 3 | K118: 3 | L118: =IF(INTRO!$E$37="Endemic",IF($H118>0,IF($H118=4,"Unknown",IF($H118=99,"Stopped",$D118)),0),"Not required") -> 0 | M118: =IF(INTRO!$E$39="Endemic", IF($I118>0, IF($I118=4,"Unknown",IF($I118=99,"Stopped",$D118)), 0),"Not required") -> 0 | N118: =IF(INTRO!$E$41="Endemic", IF(AND($J118>1,$J118<5), IF($J118=4, "Unknown", E118+F118), 0),"Not required") -> 191836.77 | O118: =IF(INTRO!$E$43="Endemic", IF(AND($K118>0,$K118<5), IF($K118=4,"Unknown", IF($K118=1, $F118*0.33, IF($K118=2, $F118*0.5+$G118*0.2, SUM(F118:G118)))), 0),"Not required") -> 476319.08 | P118: 0 | Q118: 0 | R118: 1 | S118: 1
A119: =IF(INTRO!$E$33<>0,INTRO!$E$33, " ") -> Tanzania | B119: Mwanza | C119: Magu District Council | D119: 403257.36 | E119: =IF(INTRO!$E$48="","",ROUND($D119*INTRO!$E$48,0)) -> 52020 | F119: 100512.55 | G119: 250724.81 | H119: 0 | I119: 0 | J119: 3 | K119: 3 | L119: =IF(INTRO!$E$37="Endemic",IF($H119>0,IF($H119=4,"Unknown",IF($H119=99,"Stopped",$D119)),0),"Not required") -> 0 | M119: =IF(INTRO!$E$39="Endemic", IF($I119>0, IF($I119=4,"Unknown",IF($I119=99,"Stopped",$D119)), 0),"Not required") -> 0 | N119: =IF(INTRO!$E$41="Endemic", IF(AND($J119>1,$J119<5), IF($J119=4, "Unknown", E119+F119), 0),"Not required") -> 152532.55 | O119: =IF(INTRO!$E$43="Endemic", IF(AND($K119>0,$K119<5), IF($K119=4,"Unknown", IF($K119=1, $F119*0.33, IF($K119=2, $F119*0.5+$G119*0.2, SUM(F119:G119)))), 0),"Not required") -> 351237.36 | P119: 0 | Q119: 0 | R119: 1 | S119: 1
A120: =IF(INTRO!$E$33<>0,INTRO!$E$33, " ") -> Tanzania | B120: Mwanza | C120: Misungwi District Council | D120: 473004.84 | E120: =IF(INTRO!$E$48="","",ROUND($D120*INTRO!$E$48,0)) -> 61018 | F120: 108134.55 | G120: 303852.29 | H120: 0 | I120: 0 | J120: 3 | K120: 3 | L120: =IF(INTRO!$E$37="Endemic",IF($H120>0,IF($H120=4,"Unknown",IF($H120=99,"Stopped",$D120)),0),"Not required") -> 0 | M120: =IF(INTRO!$E$39="Endemic", IF($I120>0, IF($I120=4,"Unknown",IF($I120=99,"Stopped",$D120)), 0),"Not required") -> 0 | N120: =IF(INTRO!$E$41="Endemic", IF(AND($J120>1,$J120<5), IF($J120=4, "Unknown", E120+F120), 0),"Not required") -> 169152.55 | O120: =IF(INTRO!$E$43="Endemic", IF(AND($K120>0,$K120<5), IF($K120=4,"Unknown", IF($K120=1, $F120*0.33, IF($K120=2, $F120*0.5+$G120*0.2, SUM(F120:G120)))), 0),"Not required") -> 411986.84 | P120: 0 | Q120: 0 | R120: 1 | S120: 1
A121: =IF(INTRO!$E$33<>0,INTRO!$E$33, " ") -> Tanzania | B121: Mwanza | C121: Mwanza-Nyamagana City Council | D121: 488938.94 | E121: =IF(INTRO!$E$48="","",ROUND($D121*INTRO!$E$48,0)) -> 63073 | F121: 120440.99 | G121: 305424.95 | H121: 0 | I121: 0 | J121: 3 | K121: 2 | L121: =IF(INTRO!$E$37="Endemic",IF($H121>0,IF($H121=4,"Unknown",IF($H121=99,"Stopped",$D121)),0),"Not required") -> 0 | M121: =IF(INTRO!$E$39="Endemic", IF($I121>0, IF($I121=4,"Unknown",IF($I121=99,"Stopped",$D121)), 0),"Not required") -> 0 | N121: =IF(INTRO!$E$41="Endemic", IF(AND($J121>1,$J121<5), IF($J121=4, "Unknown", E121+F121), 0),"Not required") -> 183513.99 | O121: =IF(INTRO!$E$43="Endemic", IF(AND($K121>0,$K121<5), IF($K121=4,"Unknown", IF($K121=1, $F121*0.33, IF($K121=2, $F121*0.5+$G121*0.2, SUM(F121:G121)))), 0),"Not required") -> 121305.485 | P121: 0 | Q121: 0 | R121: 1 | S121: 0
A122: =IF(INTRO!$E$33<>0,INTRO!$E$33, " ") -> Tanzania | B122: Mwanza | C122: Sengerema District Council | D122: 451023.61 | E122: =IF(INTRO!$E$48="","",ROUND($D122*INTRO!$E$48,0)) -> 58182 | F122: 119726.17 | G122: 273115.44 | H122: 0 | I122: 0 | J122: 3 | K122: 2 | L122: =IF(INTRO!$E$37="Endemic",IF($H122>0,IF($H122=4,"Unknown",IF($H122=99,"Stopped",$D122)),0),"Not required") -> 0 | M122: =IF(INTRO!$E$39="Endemic", IF($I122>0, IF($I122=4,"Unknown",IF($I122=99,"Stopped",$D122)), 0),"Not required") -> 0 | N122: =IF(INTRO!$E$41="Endemic", IF(AND($J122>1,$J122<5), IF($J122=4, "Unknown", E122+F122), 0),"Not required") -> 177908.17 | O122: =IF(INTRO!$E$43="Endemic", IF(AND($K122>0,$K122<5), IF($K122=4,"Unknown", IF($K122=1, $F122*0.33, IF($K122=2, $F122*0.5+$G122*0.2, SUM(F122:G122)))), 0),"Not required") -> 114486.173 | P122: 0 | Q122: 0 | R122: 1 | S122: 1
A123: =IF(INTRO!$E$33<>0,INTRO!$E$33, " ") -> Tanzania | B123: Mwanza | C123: Ukerewe District Council | D123: 464314.73 | E123: =IF(INTRO!$E$48="","",ROUND($D123*INTRO!$E$48,0)) -> 59897 | F123: 118645.7 | G123: 285772.03 | H123: 0 | I123: 0 | J123: 3 | K123: 2 | L123: =IF(INTRO!$E$37="Endemic",IF($H123>0,IF($H123=4,"Unknown",IF($H123=99,"Stopped",$D123)),0),"Not required") -> 0 | M123: =IF(INTRO!$E$39="Endemic", IF($I123>0, IF($I123=4,"Unknown",IF($I123=99,"Stopped",$D123)), 0),"Not required") -> 0 | N123: =IF(INTRO!$E$41="Endemic", IF(AND($J123>1,$J123<5), IF($J123=4, "Unknown", E123+F123), 0),"Not required") -> 178542.7 | O123: =IF(INTRO!$E$43="Endemic", IF(AND($K123>0,$K123<5), IF($K123=4,"Unknown", IF($K123=1, $F123*0.33, IF($K123=2, $F123*0.5+$G123*0.2, SUM(F123:G123)))), 0),"Not required") -> 116477.256 | P123: 0 | Q123: 0 | R123: 1 | S123: 1
A124: =IF(INTRO!$E$33<>0,INTRO!$E$33, " ") -> Tanzania | B124: Njombe | C124: Ludewa District Council | D124: 144252.864 | E124: =IF(INTRO!$E$48="","",ROUND($D124*INTRO!$E$48,0)) -> 18609 | F124: 39482.352 | G124: 86161.512 | H124: 99 | I124: 1 | J124: 3 | K124: 2 | L124: =IF(INTRO!$E$37="Endemic",IF($H124>0,IF($H124=4,"Unknown",IF($H124=99,"Stopped",$D124)),0),"Not required") -> Stopped | M124: =IF(INTRO!$E$39="Endemic", IF($I124>0, IF($I124=4,"Unknown",IF($I124=99,"Stopped",$D124)), 0),"Not required") -> 144252.864 | N124: =IF(INTRO!$E$41="Endemic", IF(AND($J124>1,$J124<5), IF($J124=4, "Unknown", E124+F124), 0),"Not required") -> 58091.352 | O124: =IF(INTRO!$E$43="Endemic", IF(AND($K124>0,$K124<5), IF($K124=4,"Unknown", IF($K124=1, $F124*0.33, IF($K124=2, $F124*0.5+$G124*0.2, SUM(F124:G124)))), 0),"Not required") -> 36973.4784 | P124: 0 | Q124: 1 | R124: 1 | S124: 1
A125: =IF(INTRO!$E$33<>0,INTRO!$E$33, " ") -> Tanzania | B125: Njombe | C125: Makambako Town Council | D125: 101597.328 | E125: =IF(INTRO!$E$48="","",ROUND($D125*INTRO!$E$48,0)) -> 13106 | F125: 26722.08 | G125: 61769.248 | H125: 99 | I125: 0 | J125: 3 | K125: 2 | L125: =IF(INTRO!$E$37="Endemic",IF($H125>0,IF($H125=4,"Unknown",IF($H125=99,"Stopped",$D125)),0),"Not required") -> Stopped | M125: =IF(INTRO!$E$39="Endemic", IF($I125>0, IF($I125=4,"Unknown",IF($I125=99,"Stopped",$D125)), 0),"Not required") -> 0 | N125: =IF(INTRO!$E$41="Endemic", IF(AND($J125>1,$J125<5), IF($J125=4, "Unknown", E125+F125), 0),"Not required") -> 39828.08 | O125: =IF(INTRO!$E$43="Endemic", IF(AND($K125>0,$K125<5), IF($K125=4,"Unknown", IF($K125=1, $F125*0.33, IF($K125=2, $F125*0.5+$G125*0.2, SUM(F125:G125)))), 0),"Not required") -> 25714.8896 | P125: 0 | Q125: 0 | R125: 1 | S125: 1
A126: =IF(INTRO!$E$33<>0,INTRO!$E$33, " ") -> Tanzania | B126: Njombe | C126: Makete District Council | D126: 105320.88 | E126: =IF(INTRO!$E$48="","",ROUND($D126*INTRO!$E$48,0)) -> 13586 | F126: 23385.6 | G126: 68349.28 | H126: 99 | I126: 0 | J126: 3 | K126: 2 | L126: =IF(INTRO!$E$37="Endemic",IF($H126>0,IF($H126=4,"Unknown",IF($H126=99,"Stopped",$D126)),0),"Not required") -> Stopped | M126: =IF(INTRO!$E$39="Endemic", IF($I126>0, IF($I126=4,"Unknown",IF($I126=99,"Stopped",$D126)), 0),"Not required") -> 0 | N126: =IF(INTRO!$E$41="Endemic", IF(AND($J126>1,$J126<5), IF($J126=4, "Unknown", E126+F126), 0),"Not required") -> 36971.6 | O126: =IF(INTRO!$E$43="Endemic", IF(AND($K126>0,$K126<5), IF($K126=4,"Unknown", IF($K126=1, $F126*0.33, IF($K126=2, $F126*0.5+$G126*0.2, SUM(F126:G126)))), 0),"Not required") -> 25362.656 | P126: 0 | Q126: 0 | R126: 1 | S126: 1
A127: =IF(INTRO!$E$33<>0,INTRO!$E$33, " ") -> Tanzania | B127: Njombe | C127: Njombe District Council | D127: 92850.912 | E127: =IF(INTRO!$E$48="","",ROUND($D127*INTRO!$E$48,0)) -> 11978 | F127: 24579.072 | G127: 56293.84 | H127: 99 | I127: 1 | J127: 3 | K127: 2 | L127: =IF(INTRO!$E$37="Endemic",IF($H127>0,IF($H127=4,"Unknown",IF($H127=99,"Stopped",$D127)),0),"Not required") -> Stopped | M127: =IF(INTRO!$E$39="Endemic", IF($I127>0, IF($I127=4,"Unknown",IF($I127=99,"Stopped",$D127)), 0),"Not required") -> 92850.912 | N127: =IF(INTRO!$E$41="Endemic", IF(AND($J127>1,$J127<5), IF($J127=4, "Unknown", E127+F127), 0),"Not required") -> 36557.072 | O127: =IF(INTRO!$E$43="Endemic", IF(AND($K127>0,$K127<5), IF($K127=4,"Unknown", IF($K127=1, $F127*0.33, IF($K127=2, $F127*0.5+$G127*0.2, SUM(F127:G127)))), 0),"Not required") -> 23548.304 | P127: 0 | Q127: 1 | R127: 1 | S127: 1
A128: =IF(INTRO!$E$33<>0,INTRO!$E$33, " ") -> Tanzania | B128: Njombe | C128: Njombe Town Council | D128: 141009.12 | E128: =IF(INTRO!$E$48="","",ROUND($D128*INTRO!$E$48,0)) -> 18190 | F128: 37940.112 | G128: 84879.008 | H128: 99 | I128: 0 | J128: 3 | K128: 2 | L128: =IF(INTRO!$E$37="Endemic",IF($H128>0,IF($H128=4,"Unknown",IF($H128=99,"Stopped",$D128)),0),"Not required") -> Stopped | M128: =IF(INTRO!$E$39="Endemic", IF($I128>0, IF($I128=4,"Unknown",IF($I128=99,"Stopped",$D128)), 0),"Not required") -> 0 | N128: =IF(INTRO!$E$41="Endemic", IF(AND($J128>1,$J128<5), IF($J128=4, "Unknown", E128+F128), 0),"Not required") -> 56130.112 | O128: =IF(INTRO!$E$43="Endemic", IF(AND($K128>0,$K128<5), IF($K128=4,"Unknown", IF($K128=1, $F128*0.33, IF($K128=2, $F128*0.5+$G128*0.2, SUM(F128:G128)))), 0),"Not required") -> 35945.8576 | P128: 0 | Q128: 0 | R128: 1 | S128: 1
A129: =IF(INTRO!$E$33<>0,INTRO!$E$33, " ") -> Tanzania | B129: Njombe | C129: Wanging'ombe District Council | D129: 175218.624 | E129: =IF(INTRO!$E$48="","",ROUND($D129*INTRO!$E$48,0)) -> 22603 | F129: 43530.48 | G129: 109085.144 | H129: 99 | I129: 0 | J129: 3 | K129: 2 | L129: =IF(INTRO!$E$37="Endemic",IF($H129>0,IF($H129=4,"Unknown",IF($H129=99,"Stopped",$D129)),0),"Not required") -> Stopped | M129: =IF(INTRO!$E$39="Endemic", IF($I129>0, IF($I129=4,"Unknown",IF($I129=99,"Stopped",$D129)), 0),"Not required") -> 0 | N129: =IF(INTRO!$E$41="Endemic", IF(AND($J129>1,$J129<5), IF($J129=4, "Unknown", E129+F129), 0),"Not required") -> 66133.48 | O129: =IF(INTRO!$E$43="Endemic", IF(AND($K129>0,$K129<5), IF($K129=4,"Unknown", IF($K129=1, $F129*0.33, IF($K129=2, $F129*0.5+$G129*0.2, SUM(F129:G129)))), 0),"Not required") -> 43582.2688 | P129: 0 | Q129: 0 | R129: 1 | S129: 1
A130: =IF(INTRO!$E$33<>0,INTRO!$E$33, " ") -> Tanzania | B130: Pwani | C130: Bagamoyo District Council | D130: 121317.532 | E130: =IF(INTRO!$E$48="","",ROUND($D130*INTRO!$E$48,0)) -> 15650 | F130: 35722.988 | G130: 69944.544 | H130: 99 | I130: 0 | J130: 3 | K130: 2 | L130: =IF(INTRO!$E$37="Endemic",IF($H130>0,IF($H130=4,"Unknown",IF($H130=99,"Stopped",$D130)),0),"Not required") -> Stopped | M130: =IF(INTRO!$E$39="Endemic", IF($I130>0, IF($I130=4,"Unknown",IF($I130=99,"Stopped",$D130)), 0),"Not required") -> 0 | N130: =IF(INTRO!$E$41="Endemic", IF(AND($J130>1,$J130<5), IF($J130=4, "Unknown", E130+F130), 0),"Not required") -> 51372.988 | O130: =IF(INTRO!$E$43="Endemic", IF(AND($K130>0,$K130<5), IF($K130=4,"Unknown", IF($K130=1, $F130*0.33, IF($K130=2, $F130*0.5+$G130*0.2, SUM(F130:G130)))), 0),"Not required") -> 31850.4028 | P130: 0 | Q130: 0 | R130: 1 | S130: 0
A131: =IF(INTRO!$E$33<>0,INTRO!$E$33, " ") -> Tanzania | B131: Pwani | C131: Chalinze District Council | D131: 265943.818 | E131: =IF(INTRO!$E$48="","",ROUND($D131*INTRO!$E$48,0)) -> 34307 | F131: 62068.104 | G131: 169568.714 | H131: 99 | I131: 0 | J131: 3 | K131: 2 | L131: =IF(INTRO!$E$37="Endemic",IF($H131>0,IF($H131=4,"Unknown",IF($H131=99,"Stopped",$D131)),0),"Not required") -> Stopped | M131: =IF(INTRO!$E$39="Endemic", IF($I131>0, IF($I131=4,"Unknown",IF($I131=99,"Stopped",$D131)), 0),"Not required") -> 0 | N131: =IF(INTRO!$E$41="Endemic", IF(AND($J131>1,$J131<5), IF($J131=4, "Unknown", E131+F131), 0),"Not required") -> 96375.104 | O131: =IF(INTRO!$E$43="Endemic", IF(AND($K131>0,$K131<5), IF($K131=4,"Unknown", IF($K131=1, $F131*0.33, IF($K131=2, $F131*0.5+$G131*0.2, SUM(F131:G131)))), 0),"Not required") -> 64947.7948 | P131: 0 | Q131: 0 | R131: 1 | S131: 0
A132: =IF(INTRO!$E$33<>0,INTRO!$E$33, " ") -> Tanzania | B132: Pwani | C132: Kibaha District Council | D132: 87219.524 | E132: =IF(INTRO!$E$48="","",ROUND($D132*INTRO!$E$48,0)) -> 11251 | F132: 21973 | G132: 53995.524 | H132: 99 | I132: 0 | J132: 3 | K132: 2 | L132: =IF(INTRO!$E$37="Endemic",IF($H132>0,IF($H132=4,"Unknown",IF($H132=99,"Stopped",$D132)),0),"Not required") -> Stopped | M132: =IF(INTRO!$E$39="Endemic", IF($I132>0, IF($I132=4,"Unknown",IF($I132=99,"Stopped",$D132)), 0),"Not required") -> 0 | N132: =IF(INTRO!$E$41="Endemic", IF(AND($J132>1,$J132<5), IF($J132=4, "Unknown", E132+F132), 0),"Not required") -> 33224 | O132: =IF(INTRO!$E$43="Endemic", IF(AND($K132>0,$K132<5), IF($K132=4,"Unknown", IF($K132=1, $F132*0.33, IF($K132=2, $F132*0.5+$G132*0.2, SUM(F132:G132)))), 0),"Not required") -> 21785.6048 | P132: 0 | Q132: 0 | R132: 1 | S132: 1
A133: =IF(INTRO!$E$33<>0,INTRO!$E$33, " ") -> Tanzania | B133: Pwani | C133: Kibaha Town Council | D133: 159614.938 | E133: =IF(INTRO!$E$48="","",ROUND($D133*INTRO!$E$48,0)) -> 20590 | F133: 35321.342 | G133: 103703.596 | H133: 99 | I133: 0 | J133: 3 | K133: 2 | L133: =IF(INTRO!$E$37="Endemic",IF($H133>0,IF($H133=4,"Unknown",IF($H133=99,"Stopped",$D133)),0),"Not required") -> Stopped | M133: =IF(INTRO!$E$39="Endemic", IF($I133>0, IF($I133=4,"Unknown",IF($I133=99,"Stopped",$D133)), 0),"Not required") -> 0 | N133: =IF(INTRO!$E$41="Endemic", IF(AND($J133>1,$J133<5), IF($J133=4, "Unknown", E133+F133), 0),"Not required") -> 55911.342 | O133: =IF(INTRO!$E$43="Endemic", IF(AND($K133>0,$K133<5), IF($K133=4,"Unknown", IF($K133=1, $F133*0.33, IF($K133=2, $F133*0.5+$G133*0.2, SUM(F133:G133)))), 0),"Not required") -> 38401.3902 | P133: 0 | Q133: 0 | R133: 1 | S133: 1
A134: =IF(INTRO!$E$33<>0,INTRO!$E$33, " ") -> Tanzania | B134: Pwani | C134: Kibiti District Council | D134: 129107.216 | E134: =IF(INTRO!$E$48="","",ROUND($D134*INTRO!$E$48,0)) -> 16655 | F134: 42771.722 | G134: 69680.494 | H134: 99 | I134: 0 | J134: 3 | K134: 2 | L134: =IF(INTRO!$E$37="Endemic",IF($H134>0,IF($H134=4,"Unknown",IF($H134=99,"Stopped",$D134)),0),"Not required") -> Stopped | M134: =IF(INTRO!$E$39="Endemic", IF($I134>0, IF($I134=4,"Unknown",IF($I134=99,"Stopped",$D134)), 0),"Not required") -> 0 | N134: =IF(INTRO!$E$41="Endemic", IF(AND($J134>1,$J134<5), IF($J134=4, "Unknown", E134+F134), 0),"Not required") -> 59426.722 | O134: =IF(INTRO!$E$43="Endemic", IF(AND($K134>0,$K134<5), IF($K134=4,"Unknown", IF($K134=1, $F134*0.33, IF($K134=2, $F134*0.5+$G134*0.2, SUM(F134:G134)))), 0),"Not required") -> 35321.9598 | P134: 0 | Q134: 0 | R134: 1 | S134: 0
A135: =IF(INTRO!$E$33<>0,INTRO!$E$33, " ") -> Tanzania | B135: Pwani | C135: Kisarawe District Council | D135: 126209.846 | E135: =IF(INTRO!$E$48="","",ROUND($D135*INTRO!$E$48,0)) -> 16281 | F135: 32184.824 | G135: 77744.022 | H135: 99 | I135: 0 | J135: 3 | K135: 2 | L135: =IF(INTRO!$E$37="Endemic",IF($H135>0,IF($H135=4,"Unknown",IF($H135=99,"Stopped",$D135)),0),"Not required") -> Stopped | M135: =IF(INTRO!$E$39="Endemic", IF($I135>0, IF($I135=4,"Unknown",IF($I135=99,"Stopped",$D135)), 0),"Not required") -> 0 | N135: =IF(INTRO!$E$41="Endemic", IF(AND($J135>1,$J135<5), IF($J135=4, "Unknown", E135+F135), 0),"Not required") -> 48465.824 | O135: =IF(INTRO!$E$43="Endemic", IF(AND($K135>0,$K135<5), IF($K135=4,"Unknown", IF($K135=1, $F135*0.33, IF($K135=2, $F135*0.5+$G135*0.2, SUM(F135:G135)))), 0),"Not required") -> 31641.2164 | P135: 0 | Q135: 0 | R135: 1 | S135: 0
A136: =IF(INTRO!$E$33<>0,INTRO!$E$33, " ") -> Tanzania | B136: Pwani | C136: Mafia District Council | D136: 57687.812 | E136: =IF(INTRO!$E$48="","",ROUND($D136*INTRO!$E$48,0)) -> 7442 | F136: 12694.262 | G136: 37551.55 | H136: 1 | I136: 0 | J136: 3 | K136: 2 | L136: =IF(INTRO!$E$37="Endemic",IF($H136>0,IF($H136=4,"Unknown",IF($H136=99,"Stopped",$D136)),0),"Not required") -> 57687.812 | M136: =IF(INTRO!$E$39="Endemic", IF($I136>0, IF($I136=4,"Unknown",IF($I136=99,"Stopped",$D136)), 0),"Not required") -> 0 | N136: =IF(INTRO!$E$41="Endemic", IF(AND($J136>1,$J136<5), IF($J136=4, "Unknown", E136+F136), 0),"Not required") -> 20136.262 | O136: =IF(INTRO!$E$43="Endemic", IF(AND($K136>0,$K136<5), IF($K136=4,"Unknown", IF($K136=1, $F136*0.33, IF($K136=2, $F136*0.5+$G136*0.2, SUM(F136:G136)))), 0),"Not required") -> 13857.441 | P136: 1 | Q136: 0 | R136: 1 | S136: 1
A137: =IF(INTRO!$E$33<>0,INTRO!$E$33, " ") -> Tanzania | B137: Pwani | C137: Mkuranga District Council | D137: 276927.252 | E137: =IF(INTRO!$E$48="","",ROUND($D137*INTRO!$E$48,0)) -> 35724 | F137: 87193.974 | G137: 154009.278 | H137: 99 | I137: 0 | J137: 3 | K137: 2 | L137: =IF(INTRO!$E$37="Endemic",IF($H137>0,IF($H137=4,"Unknown",IF($H137=99,"Stopped",$D137)),0),"Not required") -> Stopped | M137: =IF(INTRO!$E$39="Endemic", IF($I137>0, IF($I137=4,"Unknown",IF($I137=99,"Stopped",$D137)), 0),"Not required") -> 0 | N137: =IF(INTRO!$E$41="Endemic", IF(AND($J137>1,$J137<5), IF($J137=4, "Unknown", E137+F137), 0),"Not required") -> 122917.974 | O137: =IF(INTRO!$E$43="Endemic", IF(AND($K137>0,$K137<5), IF($K137=4,"Unknown", IF($K137=1, $F137*0.33, IF($K137=2, $F137*0.5+$G137*0.2, SUM(F137:G137)))), 0),"Not required") -> 74398.8426 | P137: 0 | Q137: 0 | R137: 1 | S137: 1
A138: =IF(INTRO!$E$33<>0,INTRO!$E$33, " ") -> Tanzania | B138: Pwani | C138: Rufiji District Council | D138: 140801.962 | E138: =IF(INTRO!$E$48="","",ROUND($D138*INTRO!$E$48,0)) -> 18163 | F138: 35437.85 | G138: 87201.112 | H138: 99 | I138: 0 | J138: 3 | K138: 2 | L138: =IF(INTRO!$E$37="Endemic",IF($H138>0,IF($H138=4,"Unknown",IF($H138=99,"Stopped",$D138)),0),"Not required") -> Stopped | M138: =IF(INTRO!$E$39="Endemic", IF($I138>0, IF($I138=4,"Unknown",IF($I138=99,"Stopped",$D138)), 0),"Not required") -> 0 | N138: =IF(INTRO!$E$41="Endemic", IF(AND($J138>1,$J138<5), IF($J138=4, "Unknown", E138+F138), 0),"Not required") -> 53600.85 | O138: =IF(INTRO!$E$43="Endemic", IF(AND($K138>0,$K138<5), IF($K138=4,"Unknown", IF($K138=1, $F138*0.33, IF($K138=2, $F138*0.5+$G138*0.2, SUM(F138:G138)))), 0),"Not required") -> 35159.1474 | P138: 0 | Q138: 0 | R138: 1 | S138: 1
A139: =IF(INTRO!$E$33<>0,INTRO!$E$33, " ") -> Tanzania | B139: Rukwa | C139: Kalambo District Council | D139: 285387.216 | E139: =IF(INTRO!$E$48="","",ROUND($D139*INTRO!$E$48,0)) -> 36815 | F139: 63766.248 | G139: 184805.968 | H139: 99 | I139: 0 | J139: 3 | K139: 2 | L139: =IF(INTRO!$E$37="Endemic",IF($H139>0,IF($H139=4,"Unknown",IF($H139=99,"Stopped",$D139)),0),"Not required") -> Stopped | M139: =IF(INTRO!$E$39="Endemic", IF($I139>0, IF($I139=4,"Unknown",IF($I139=99,"Stopped",$D139)), 0),"Not required") -> 0 | N139: =IF(INTRO!$E$41="Endemic", IF(AND($J139>1,$J139<5), IF($J139=4, "Unknown", E139+F139), 0),"Not required") -> 100581.248 | O139: =IF(INTRO!$E$43="Endemic", IF(AND($K139>0,$K139<5), IF($K139=4,"Unknown", IF($K139=1, $F139*0.33, IF($K139=2, $F139*0.5+$G139*0.2, SUM(F139:G139)))), 0),"Not required") -> 68844.3176 | P139: 0 | Q139: 0 | R139: 1 | S139: 1
A140: =IF(INTRO!$E$33<>0,INTRO!$E$33, " ") -> Tanzania | B140: Rukwa | C140: Nkasi District Council | D140: 386381.832 | E140: =IF(INTRO!$E$48="","",ROUND($D140*INTRO!$E$48,0)) -> 49843 | F140: 95253.6 | G140: 241285.232 | H140: 99 | I140: 0 | J140: 3 | K140: 2 | L140: =IF(INTRO!$E$37="Endemic",IF($H140>0,IF($H140=4,"Unknown",IF($H140=99,"Stopped",$D140)),0),"Not required") -> Stopped | M140: =IF(INTRO!$E$39="Endemic", IF($I140>0, IF($I140=4,"Unknown",IF($I140=99,"Stopped",$D140)), 0),"Not required") -> 0 | N140: =IF(INTRO!$E$41="Endemic", IF(AND($J140>1,$J140<5), IF($J140=4, "Unknown", E140+F140), 0),"Not required") -> 145096.6 | O140: =IF(INTRO!$E$43="Endemic", IF(AND($K140>0,$K140<5), IF($K140=4,"Unknown", IF($K140=1, $F140*0.33, IF($K140=2, $F140*0.5+$G140*0.2, SUM(F140:G140)))), 0),"Not required") -> 95883.8464 | P140: 0 | Q140: 0 | R140: 1 | S140: 1
A141: =IF(INTRO!$E$33<>0,INTRO!$E$33, " ") -> Tanzania | B141: Rukwa | C141: Sumbawanga District Council | D141: 420246.912 | E141: =IF(INTRO!$E$48="","",ROUND($D141*INTRO!$E$48,0)) -> 54212 | F141: 103990.512 | G141: 262044.4 | H141: 99 | I141: 0 | J141: 3 | K141: 2 | L141: =IF(INTRO!$E$37="Endemic",IF($H141>0,IF($H141=4,"Unknown",IF($H141=99,"Stopped",$D141)),0),"Not required") -> Stopped | M141: =IF(INTRO!$E$39="Endemic", IF($I141>0, IF($I141=4,"Unknown",IF($I141=99,"Stopped",$D141)), 0),"Not required") -> 0 | N141: =IF(INTRO!$E$41="Endemic", IF(AND($J141>1,$J141<5), IF($J141=4, "Unknown", E141+F141), 0),"Not required") -> 158202.512 | O141: =IF(INTRO!$E$43="Endemic", IF(AND($K141>0,$K141<5), IF($K141=4,"Unknown", IF($K141=1, $F141*0.33, IF($K141=2, $F141*0.5+$G141*0.2, SUM(F141:G141)))), 0),"Not required") -> 104404.136 | P141: 0 | Q141: 0 | R141: 1 | S141: 1
A142: =IF(INTRO!$E$33<>0,INTRO!$E$33, " ") -> Tanzania | B142: Rukwa | C142: Sumbawanga Municipal Council | D142: 288262.368 | E142: =IF(INTRO!$E$48="","",ROUND($D142*INTRO!$E$48,0)) -> 37186 | F142: 68762.16 | G142: 182314.208 | H142: 99 | I142: 0 | J142: 3 | K142: 2 | L142: =IF(INTRO!$E$37="Endemic",IF($H142>0,IF($H142=4,"Unknown",IF($H142=99,"Stopped",$D142)),0),"Not required") -> Stopped | M142: =IF(INTRO!$E$39="Endemic", IF($I142>0, IF($I142=4,"Unknown",IF($I142=99,"Stopped",$D142)), 0),"Not required") -> 0 | N142: =IF(INTRO!$E$41="Endemic", IF(AND($J142>1,$J142<5), IF($J142=4, "Unknown", E142+F142), 0),"Not required") -> 105948.16 | O142: =IF(INTRO!$E$43="Endemic", IF(AND($K142>0,$K142<5), IF($K142=4,"Unknown", IF($K142=1, $F142*0.33, IF($K142=2, $F142*0.5+$G142*0.2, SUM(F142:G142)))), 0),"Not required") -> 70843.9216 | P142: 0 | Q142: 0 | R142: 1 | S142: 1
A143: =IF(INTRO!$E$33<>0,INTRO!$E$33, " ") -> Tanzania | B143: Ruvuma | C143: Madaba District Council | D143: 58936.204 | E143: =IF(INTRO!$E$48="","",ROUND($D143*INTRO!$E$48,0)) -> 7603 | F143: 11389.255 | G143: 39943.949 | H143: 99 | I143: 1 | J143: 3 | K143: 2 | L143: =IF(INTRO!$E$37="Endemic",IF($H143>0,IF($H143=4,"Unknown",IF($H143=99,"Stopped",$D143)),0),"Not required") -> Stopped | M143: =IF(INTRO!$E$39="Endemic", IF($I143>0, IF($I143=4,"Unknown",IF($I143=99,"Stopped",$D143)), 0),"Not required") -> 58936.204 | N143: =IF(INTRO!$E$41="Endemic", IF(AND($J143>1,$J143<5), IF($J143=4, "Unknown", E143+F143), 0),"Not required") -> 18992.255 | O143: =IF(INTRO!$E$43="Endemic", IF(AND($K143>0,$K143<5), IF($K143=4,"Unknown", IF($K143=1, $F143*0.33, IF($K143=2, $F143*0.5+$G143*0.2, SUM(F143:G143)))), 0),"Not required") -> 13683.4173 | P143: 0 | Q143: 1 | R143: 1 | S143: 1
A144: =IF(INTRO!$E$33<>0,INTRO!$E$33, " ") -> Tanzania | B144: Ruvuma | C144: Mbinga District Council | D144: 276812.499 | E144: =IF(INTRO!$E$48="","",ROUND($D144*INTRO!$E$48,0)) -> 35709 | F144: 67363.538 | G144: 173739.961 | H144: 99 | I144: 1 | J144: 3 | K144: 2 | L144: =IF(INTRO!$E$37="Endemic",IF($H144>0,IF($H144=4,"Unknown",IF($H144=99,"Stopped",$D144)),0),"Not required") -> Stopped | M144: =IF(INTRO!$E$39="Endemic", IF($I144>0, IF($I144=4,"Unknown",IF($I144=99,"Stopped",$D144)), 0),"Not required") -> 276812.499 | N144: =IF(INTRO!$E$41="Endemic", IF(AND($J144>1,$J144<5), IF($J144=4, "Unknown", E144+F144), 0),"Not required") -> 103072.538 | O144: =IF(INTRO!$E$43="Endemic", IF(AND($K144>0,$K144<5), IF($K144=4,"Unknown", IF($K144=1, $F144*0.33, IF($K144=2, $F144*0.5+$G144*0.2, SUM(F144:G144)))), 0),"Not required") -> 68429.7612 | P144: 0 | Q144: 1 | R144: 1 | S144: 1
A145: =IF(INTRO!$E$33<>0,INTRO!$E$33, " ") -> Tanzania | B145: Ruvuma | C145: Mbinga Town Council | D145: 109717.681 | E145: =IF(INTRO!$E$48="","",ROUND($D145*INTRO!$E$48,0)) -> 14154 | F145: 31967.51 | G145: 63596.171 | H145: 99 | I145: 1 | J145: 3 | K145: 2 | L145: =IF(INTRO!$E$37="Endemic",IF($H145>0,IF($H145=4,"Unknown",IF($H145=99,"Stopped",$D145)),0),"Not required") -> Stopped | M145: =IF(INTRO!$E$39="Endemic", IF($I145>0, IF($I145=4,"Unknown",IF($I145=99,"Stopped",$D145)), 0),"Not required") -> 109717.681 | N145: =IF(INTRO!$E$41="Endemic", IF(AND($J145>1,$J145<5), IF($J145=4, "Unknown", E145+F145), 0),"Not required") -> 46121.51 | O145: =IF(INTRO!$E$43="Endemic", IF(AND($K145>0,$K145<5), IF($K145=4,"Unknown", IF($K145=1, $F145*0.33, IF($K145=2, $F145*0.5+$G145*0.2, SUM(F145:G145)))), 0),"Not required") -> 28702.9892 | P145: 0 | Q145: 1 | R145: 1 | S145: 1
A146: =IF(INTRO!$E$33<>0,INTRO!$E$33, " ") -> Tanzania | B146: Ruvuma | C146: Namtumbo District Council | D146: 248751.335 | E146: =IF(INTRO!$E$48="","",ROUND($D146*INTRO!$E$48,0)) -> 32089 | F146: 58042.829 | G146: 158619.506 | H146: 99 | I146: 1 | J146: 3 | K146: 2 | L146: =IF(INTRO!$E$37="Endemic",IF($H146>0,IF($H146=4,"Unknown",IF($H146=99,"Stopped",$D146)),0),"Not required") -> Stopped | M146: =IF(INTRO!$E$39="Endemic", IF($I146>0, IF($I146=4,"Unknown",IF($I146=99,"Stopped",$D146)), 0),"Not required") -> 248751.335 | N146: =IF(INTRO!$E$41="Endemic", IF(AND($J146>1,$J146<5), IF($J146=4, "Unknown", E146+F146), 0),"Not required") -> 90131.829 | O146: =IF(INTRO!$E$43="Endemic", IF(AND($K146>0,$K146<5), IF($K146=4,"Unknown", IF($K146=1, $F146*0.33, IF($K146=2, $F146*0.5+$G146*0.2, SUM(F146:G146)))), 0),"Not required") -> 60745.3157 | P146: 0 | Q146: 1 | R146: 1 | S146: 1
A147: =IF(INTRO!$E$33<>0,INTRO!$E$33, " ") -> Tanzania | B147: Ruvuma | C147: Nyasa District Council | D147: 180308.6 | E147: =IF(INTRO!$E$48="","",ROUND($D147*INTRO!$E$48,0)) -> 23260 | F147: 47614.335 | G147: 109434.265 | H147: 99 | I147: 1 | J147: 3 | K147: 2 | L147: =IF(INTRO!$E$37="Endemic",IF($H147>0,IF($H147=4,"Unknown",IF($H147=99,"Stopped",$D147)),0),"Not required") -> Stopped | M147: =IF(INTRO!$E$39="Endemic", IF($I147>0, IF($I147=4,"Unknown",IF($I147=99,"Stopped",$D147)), 0),"Not required") -> 180308.6 | N147: =IF(INTRO!$E$41="Endemic", IF(AND($J147>1,$J147<5), IF($J147=4, "Unknown", E147+F147), 0),"Not required") -> 70874.335 | O147: =IF(INTRO!$E$43="Endemic", IF(AND($K147>0,$K147<5), IF($K147=4,"Unknown", IF($K147=1, $F147*0.33, IF($K147=2, $F147*0.5+$G147*0.2, SUM(F147:G147)))), 0),"Not required") -> 45694.0205 | P147: 0 | Q147: 1 | R147: 1 | S147: 1
A148: =IF(INTRO!$E$33<>0,INTRO!$E$33, " ") -> Tanzania | B148: Ruvuma | C148: Songea District Council | D148: 155498.3 | E148: =IF(INTRO!$E$48="","",ROUND($D148*INTRO!$E$48,0)) -> 20059 | F148: 31868.473 | G148: 103570.827 | H148: 99 | I148: 1 | J148: 3 | K148: 2 | L148: =IF(INTRO!$E$37="Endemic",IF($H148>0,IF($H148=4,"Unknown",IF($H148=99,"Stopped",$D148)),0),"Not required") -> Stopped | M148: =IF(INTRO!$E$39="Endemic", IF($I148>0, IF($I148=4,"Unknown",IF($I148=99,"Stopped",$D148)), 0),"Not required") -> 155498.3 | N148: =IF(INTRO!$E$41="Endemic", IF(AND($J148>1,$J148<5), IF($J148=4, "Unknown", E148+F148), 0),"Not required") -> 51927.473 | O148: =IF(INTRO!$E$43="Endemic", IF(AND($K148>0,$K148<5), IF($K148=4,"Unknown", IF($K148=1, $F148*0.33, IF($K148=2, $F148*0.5+$G148*0.2, SUM(F148:G148)))), 0),"Not required") -> 36648.4019 | P148: 0 | Q148: 1 | R148: 1 | S148: 1
A149: =IF(INTRO!$E$33<>0,INTRO!$E$33, " ") -> Tanzania | B149: Ruvuma | C149: Songea Municipal Council | D149: 250812.734 | E149: =IF(INTRO!$E$48="","",ROUND($D149*INTRO!$E$48,0)) -> 32355 | F149: 57520.077 | G149: 160937.657 | H149: 99 | I149: 1 | J149: 3 | K149: 2 | L149: =IF(INTRO!$E$37="Endemic",IF($H149>0,IF($H149=4,"Unknown",IF($H149=99,"Stopped",$D149)),0),"Not required") -> Stopped | M149: =IF(INTRO!$E$39="Endemic", IF($I149>0, IF($I149=4,"Unknown",IF($I149=99,"Stopped",$D149)), 0),"Not required") -> 250812.734 | N149: =IF(INTRO!$E$41="Endemic", IF(AND($J149>1,$J149<5), IF($J149=4, "Unknown", E149+F149), 0),"Not required") -> 89875.077 | O149: =IF(INTRO!$E$43="Endemic", IF(AND($K149>0,$K149<5), IF($K149=4,"Unknown", IF($K149=1, $F149*0.33, IF($K149=2, $F149*0.5+$G149*0.2, SUM(F149:G149)))), 0),"Not required") -> 60947.5699 | P149: 0 | Q149: 1 | R149: 1 | S149: 1
A150: =IF(INTRO!$E$33<>0,INTRO!$E$33, " ") -> Tanzania | B150: Ruvuma | C150: Tunduru District Council | D150: 367971.463 | E150: =IF(INTRO!$E$48="","",ROUND($D150*INTRO!$E$48,0)) -> 47468 | F150: 72528.777 | G150: 247974.686 | H150: 99 | I150: 1 | J150: 3 | K150: 3 | L150: =IF(INTRO!$E$37="Endemic",IF($H150>0,IF($H150=4,"Unknown",IF($H150=99,"Stopped",$D150)),0),"Not required") -> Stopped | M150: =IF(INTRO!$E$39="Endemic", IF($I150>0, IF($I150=4,"Unknown",IF($I150=99,"Stopped",$D150)), 0),"Not required") -> 367971.463 | N150: =IF(INTRO!$E$41="Endemic", IF(AND($J150>1,$J150<5), IF($J150=4, "Unknown", E150+F150), 0),"Not required") -> 119996.777 | O150: =IF(INTRO!$E$43="Endemic", IF(AND($K150>0,$K150<5), IF($K150=4,"Unknown", IF($K150=1, $F150*0.33, IF($K150=2, $F150*0.5+$G150*0.2, SUM(F150:G150)))), 0),"Not required") -> 320503.463 | P150: 0 | Q150: 1 | R150: 1 | S150: 1
A151: =IF(INTRO!$E$33<>0,INTRO!$E$33, " ") -> Tanzania | B151: Shinyanga | C151: Kahama Town Council | D151: 297868.582 | E151: =IF(INTRO!$E$48="","",ROUND($D151*INTRO!$E$48,0)) -> 38425 | F151: 90774.047 | G151: 168669.535 | H151: 0 | I151: 0 | J151: 3 | K151: 2 | L151: =IF(INTRO!$E$37="Endemic",IF($H151>0,IF($H151=4,"Unknown",IF($H151=99,"Stopped",$D151)),0),"Not required") -> 0 | M151: =IF(INTRO!$E$39="Endemic", IF($I151>0, IF($I151=4,"Unknown",IF($I151=99,"Stopped",$D151)), 0),"Not required") -> 0 | N151: =IF(INTRO!$E$41="Endemic", IF(AND($J151>1,$J151<5), IF($J151=4, "Unknown", E151+F151), 0),"Not required") -> 129199.047 | O151: =IF(INTRO!$E$43="Endemic", IF(AND($K151>0,$K151<5), IF($K151=4,"Unknown", IF($K151=1, $F151*0.33, IF($K151=2, $F151*0.5+$G151*0.2, SUM(F151:G151)))), 0),"Not required") -> 79120.9305 | P151: 0 | Q151: 0 | R151: 1 | S151: 1
A152: =IF(INTRO!$E$33<>0,INTRO!$E$33, " ") -> Tanzania | B152: Shinyanga | C152: Kishapu District Council | D152: 335723.178 | E152: =IF(INTRO!$E$48="","",ROUND($D152*INTRO!$E$48,0)) -> 43308 | F152: 91737.871 | G152: 200677.307 | H152: 0 | I152: 0 | J152: 3 | K152: 2 | L152: =IF(INTRO!$E$37="Endemic",IF($H152>0,IF($H152=4,"Unknown",IF($H152=99,"Stopped",$D152)),0),"Not required") -> 0 | M152: =IF(INTRO!$E$39="Endemic", IF($I152>0, IF($I152=4,"Unknown",IF($I152=99,"Stopped",$D152)), 0),"Not required") -> 0 | N152: =IF(INTRO!$E$41="Endemic", IF(AND($J152>1,$J152<5), IF($J152=4, "Unknown", E152+F152), 0),"Not required") -> 135045.871 | O152: =IF(INTRO!$E$43="Endemic", IF(AND($K152>0,$K152<5), IF($K152=4,"Unknown", IF($K152=1, $F152*0.33, IF($K152=2, $F152*0.5+$G152*0.2, SUM(F152:G152)))), 0),"Not required") -> 86004.3969 | P152: 0 | Q152: 0 | R152: 1 | S152: 1
A153: =IF(INTRO!$E$33<>0,INTRO!$E$33, " ") -> Tanzania | B153: Shinyanga | C153: Msalala District Council | D153: 308346.084 | E153: =IF(INTRO!$E$48="","",ROUND($D153*INTRO!$E$48,0)) -> 39777 | F153: 68935.878 | G153: 199633.206 | H153: 0 | I153: 0 | J153: 3 | K153: 2 | L153: =IF(INTRO!$E$37="Endemic",IF($H153>0,IF($H153=4,"Unknown",IF($H153=99,"Stopped",$D153)),0),"Not required") -> 0 | M153: =IF(INTRO!$E$39="Endemic", IF($I153>0, IF($I153=4,"Unknown",IF($I153=99,"Stopped",$D153)), 0),"Not required") -> 0 | N153: =IF(INTRO!$E$41="Endemic", IF(AND($J153>1,$J153<5), IF($J153=4, "Unknown", E153+F153), 0),"Not required") -> 108712.878 | O153: =IF(INTRO!$E$43="Endemic", IF(AND($K153>0,$K153<5), IF($K153=4,"Unknown", IF($K153=1, $F153*0.33, IF($K153=2, $F153*0.5+$G153*0.2, SUM(F153:G153)))), 0),"Not required") -> 74394.5802 | P153: 0 | Q153: 0 | R153: 1 | S153: 1
A154: =IF(INTRO!$E$33<>0,INTRO!$E$33, " ") -> Tanzania | B154: Shinyanga | C154: Shinyanga District Council | D154: 411267.989 | E154: =IF(INTRO!$E$48="","",ROUND($D154*INTRO!$E$48,0)) -> 53054 | F154: 93760.472 | G154: 264453.517 | H154: 0 | I154: 0 | J154: 3 | K154: 2 | L154: =IF(INTRO!$E$37="Endemic",IF($H154>0,IF($H154=4,"Unknown",IF($H154=99,"Stopped",$D154)),0),"Not required") -> 0 | M154: =IF(INTRO!$E$39="Endemic", IF($I154>0, IF($I154=4,"Unknown",IF($I154=99,"Stopped",$D154)), 0),"Not required") -> 0 | N154: =IF(INTRO!$E$41="Endemic", IF(AND($J154>1,$J154<5), IF($J154=4, "Unknown", E154+F154), 0),"Not required") -> 146814.472 | O154: =IF(INTRO!$E$43="Endemic", IF(AND($K154>0,$K154<5), IF($K154=4,"Unknown", IF($K154=1, $F154*0.33, IF($K154=2, $F154*0.5+$G154*0.2, SUM(F154:G154)))), 0),"Not required") -> 99770.9394 | P154: 0 | Q154: 0 | R154: 1 | S154: 1
A155: =IF(INTRO!$E$33<>0,INTRO!$E$33, " ") -> Tanzania | B155: Shinyanga | C155: Shinyanga Municipal Council | D155: 198480.358 | E155: =IF(INTRO!$E$48="","",ROUND($D155*INTRO!$E$48,0)) -> 25604 | F155: 43974.47 | G155: 128901.888 | H155: 0 | I155: 0 | J155: 3 | K155: 2 | L155: =IF(INTRO!$E$37="Endemic",IF($H155>0,IF($H155=4,"Unknown",IF($H155=99,"Stopped",$D155)),0),"Not required") -> 0 | M155: =IF(INTRO!$E$39="Endemic", IF($I155>0, IF($I155=4,"Unknown",IF($I155=99,"Stopped",$D155)), 0),"Not required") -> 0 | N155: =IF(INTRO!$E$41="Endemic", IF(AND($J155>1,$J155<5), IF($J155=4, "Unknown", E155+F155), 0),"Not required") -> 69578.47 | O155: =IF(INTRO!$E$43="Endemic", IF(AND($K155>0,$K155<5), IF($K155=4,"Unknown", IF($K155=1, $F155*0.33, IF($K155=2, $F155*0.5+$G155*0.2, SUM(F155:G155)))), 0),"Not required") -> 47767.6126 | P155: 0 | Q155: 0 | R155: 1 | S155: 1
A156: =IF(INTRO!$E$33<>0,INTRO!$E$33, " ") -> Tanzania | B156: Shinyanga | C156: Ushetu District Council | D156: 335826.299 | E156: =IF(INTRO!$E$48="","",ROUND($D156*INTRO!$E$48,0)) -> 43322 | F156: 86596.115 | G156: 205908.184 | H156: 0 | I156: 0 | J156: 3 | K156: 2 | L156: =IF(INTRO!$E$37="Endemic",IF($H156>0,IF($H156=4,"Unknown",IF($H156=99,"Stopped",$D156)),0),"Not required") -> 0 | M156: =IF(INTRO!$E$39="Endemic", IF($I156>0, IF($I156=4,"Unknown",IF($I156=99,"Stopped",$D156)), 0),"Not required") -> 0 | N156: =IF(INTRO!$E$41="Endemic", IF(AND($J156>1,$J156<5), IF($J156=4, "Unknown", E156+F156), 0),"Not required") -> 129918.115 | O156: =IF(INTRO!$E$43="Endemic", IF(AND($K156>0,$K156<5), IF($K156=4,"Unknown", IF($K156=1, $F156*0.33, IF($K156=2, $F156*0.5+$G156*0.2, SUM(F156:G156)))), 0),"Not required") -> 84479.6943 | P156: 0 | Q156: 0 | R156: 1 | S156: 1
A157: =IF(INTRO!$E$33<>0,INTRO!$E$33, " ") -> Tanzania | B157: Simiyu | C157: Bariadi District Council | D157: 320402.266 | E157: =IF(INTRO!$E$48="","",ROUND($D157*INTRO!$E$48,0)) -> 41332 | F157: 93366.888 | G157: 185703.378 | H157: 0 | I157: 0 | J157: 3 | K157: 3 | L157: =IF(INTRO!$E$37="Endemic",IF($H157>0,IF($H157=4,"Unknown",IF($H157=99,"Stopped",$D157)),0),"Not required") -> 0 | M157: =IF(INTRO!$E$39="Endemic", IF($I157>0, IF($I157=4,"Unknown",IF($I157=99,"Stopped",$D157)), 0),"Not required") -> 0 | N157: =IF(INTRO!$E$41="Endemic", IF(AND($J157>1,$J157<5), IF($J157=4, "Unknown", E157+F157), 0),"Not required") -> 134698.888 | O157: =IF(INTRO!$E$43="Endemic", IF(AND($K157>0,$K157<5), IF($K157=4,"Unknown", IF($K157=1, $F157*0.33, IF($K157=2, $F157*0.5+$G157*0.2, SUM(F157:G157)))), 0),"Not required") -> 279070.266 | P157: 0 | Q157: 0 | R157: 1 | S157: 1
A158: =IF(INTRO!$E$33<>0,INTRO!$E$33, " ") -> Tanzania | B158: Simiyu | C158: Bariadi Town Council | D158: 186536.284 | E158: =IF(INTRO!$E$48="","",ROUND($D158*INTRO!$E$48,0)) -> 24063 | F158: 54967.928 | G158: 107505.356 | H158: 0 | I158: 0 | J158: 3 | K158: 3 | L158: =IF(INTRO!$E$37="Endemic",IF($H158>0,IF($H158=4,"Unknown",IF($H158=99,"Stopped",$D158)),0),"Not required") -> 0 | M158: =IF(INTRO!$E$39="Endemic", IF($I158>0, IF($I158=4,"Unknown",IF($I158=99,"Stopped",$D158)), 0),"Not required") -> 0 | N158: =IF(INTRO!$E$41="Endemic", IF(AND($J158>1,$J158<5), IF($J158=4, "Unknown", E158+F158), 0),"Not required") -> 79030.928 | O158: =IF(INTRO!$E$43="Endemic", IF(AND($K158>0,$K158<5), IF($K158=4,"Unknown", IF($K158=1, $F158*0.33, IF($K158=2, $F158*0.5+$G158*0.2, SUM(F158:G158)))), 0),"Not required") -> 162473.284 | P158: 0 | Q158: 0 | R158: 1 | S158: 1
A159: =IF(INTRO!$E$33<>0,INTRO!$E$33, " ") -> Tanzania | B159: Simiyu | C159: Busega District Council | D159: 244046.158 | E159: =IF(INTRO!$E$48="","",ROUND($D159*INTRO!$E$48,0)) -> 31482 | F159: 87011.514 | G159: 125552.644 | H159: 0 | I159: 0 | J159: 3 | K159: 2 | L159: =IF(INTRO!$E$37="Endemic",IF($H159>0,IF($H159=4,"Unknown",IF($H159=99,"Stopped",$D159)),0),"Not required") -> 0 | M159: =IF(INTRO!$E$39="Endemic", IF($I159>0, IF($I159=4,"Unknown",IF($I159=99,"Stopped",$D159)), 0),"Not required") -> 0 | N159: =IF(INTRO!$E$41="Endemic", IF(AND($J159>1,$J159<5), IF($J159=4, "Unknown", E159+F159), 0),"Not required") -> 118493.514 | O159: =IF(INTRO!$E$43="Endemic", IF(AND($K159>0,$K159<5), IF($K159=4,"Unknown", IF($K159=1, $F159*0.33, IF($K159=2, $F159*0.5+$G159*0.2, SUM(F159:G159)))), 0),"Not required") -> 68616.2858 | P159: 0 | Q159: 0 | R159: 1 | S159: 1
A160: =IF(INTRO!$E$33<>0,INTRO!$E$33, " ") -> Tanzania | B160: Simiyu | C160: Itilima District Council | D160: 376260.944 | E160: =IF(INTRO!$E$48="","",ROUND($D160*INTRO!$E$48,0)) -> 48538 | F160: 103545.87 | G160: 224177.074 | H160: 0 | I160: 0 | J160: 3 | K160: 3 | L160: =IF(INTRO!$E$37="Endemic",IF($H160>0,IF($H160=4,"Unknown",IF($H160=99,"Stopped",$D160)),0),"Not required") -> 0 | M160: =IF(INTRO!$E$39="Endemic", IF($I160>0, IF($I160=4,"Unknown",IF($I160=99,"Stopped",$D160)), 0),"Not required") -> 0 | N160: =IF(INTRO!$E$41="Endemic", IF(AND($J160>1,$J160<5), IF($J160=4, "Unknown", E160+F160), 0),"Not required") -> 152083.87 | O160: =IF(INTRO!$E$43="Endemic", IF(AND($K160>0,$K160<5), IF($K160=4,"Unknown", IF($K160=1, $F160*0.33, IF($K160=2, $F160*0.5+$G160*0.2, SUM(F160:G160)))), 0),"Not required") -> 327722.944 | P160: 0 | Q160: 0 | R160: 1 | S160: 1
A161: =IF(INTRO!$E$33<>0,INTRO!$E$33, " ") -> Tanzania | B161: Simiyu | C161: Maswa District Council | D161: 412494.618 | E161: =IF(INTRO!$E$48="","",ROUND($D161*INTRO!$E$48,0)) -> 53212 | F161: 83951.406 | G161: 275331.212 | H161: 0 | I161: 0 | J161: 3 | K161: 3 | L161: =IF(INTRO!$E$37="Endemic",IF($H161>0,IF($H161=4,"Unknown",IF($H161=99,"Stopped",$D161)),0),"Not required") -> 0 | M161: =IF(INTRO!$E$39="Endemic", IF($I161>0, IF($I161=4,"Unknown",IF($I161=99,"Stopped",$D161)), 0),"Not required") -> 0 | N161: =IF(INTRO!$E$41="Endemic", IF(AND($J161>1,$J161<5), IF($J161=4, "Unknown", E161+F161), 0),"Not required") -> 137163.406 | O161: =IF(INTRO!$E$43="Endemic", IF(AND($K161>0,$K161<5), IF($K161=4,"Unknown", IF($K161=1, $F161*0.33, IF($K161=2, $F161*0.5+$G161*0.2, SUM(F161:G161)))), 0),"Not required") -> 359282.618 | P161: 0 | Q161: 0 | R161: 1 | S161: 1
A162: =IF(INTRO!$E$33<>0,INTRO!$E$33, " ") -> Tanzania | B162: Simiyu | C162: Meatu District Council | D162: 359146.328 | E162: =IF(INTRO!$E$48="","",ROUND($D162*INTRO!$E$48,0)) -> 46330 | F162: 73717.452 | G162: 239098.876 | H162: 0 | I162: 0 | J162: 3 | K162: 2 | L162: =IF(INTRO!$E$37="Endemic",IF($H162>0,IF($H162=4,"Unknown",IF($H162=99,"Stopped",$D162)),0),"Not required") -> 0 | M162: =IF(INTRO!$E$39="Endemic", IF($I162>0, IF($I162=4,"Unknown",IF($I162=99,"Stopped",$D162)), 0),"Not required") -> 0 | N162: =IF(INTRO!$E$41="Endemic", IF(AND($J162>1,$J162<5), IF($J162=4, "Unknown", E162+F162), 0),"Not required") -> 120047.452 | O162: =IF(INTRO!$E$43="Endemic", IF(AND($K162>0,$K162<5), IF($K162=4,"Unknown", IF($K162=1, $F162*0.33, IF($K162=2, $F162*0.5+$G162*0.2, SUM(F162:G162)))), 0),"Not required") -> 84678.5012 | P162: 0 | Q162: 0 | R162: 1 | S162: 1
A163: =IF(INTRO!$E$33<>0,INTRO!$E$33, " ") -> Tanzania | B163: Singida | C163: Ikungi District Council | D163: 343458.951 | E163: =IF(INTRO!$E$48="","",ROUND($D163*INTRO!$E$48,0)) -> 44306 | F163: 85726.377 | G163: 213426.574 | H163: 99 | I163: 0 | J163: 3 | K163: 2 | L163: =IF(INTRO!$E$37="Endemic",IF($H163>0,IF($H163=4,"Unknown",IF($H163=99,"Stopped",$D163)),0),"Not required") -> Stopped | M163: =IF(INTRO!$E$39="Endemic", IF($I163>0, IF($I163=4,"Unknown",IF($I163=99,"Stopped",$D163)), 0),"Not required") -> 0 | N163: =IF(INTRO!$E$41="Endemic", IF(AND($J163>1,$J163<5), IF($J163=4, "Unknown", E163+F163), 0),"Not required") -> 130032.377 | O163: =IF(INTRO!$E$43="Endemic", IF(AND($K163>0,$K163<5), IF($K163=4,"Unknown", IF($K163=1, $F163*0.33, IF($K163=2, $F163*0.5+$G163*0.2, SUM(F163:G163)))), 0),"Not required") -> 85548.5033 | P163: 0 | Q163: 0 | R163: 1 | S163: 1
A164: =IF(INTRO!$E$33<>0,INTRO!$E$33, " ") -> Tanzania | B164: Singida | C164: Iramba District Council | D164: 297306.306 | E164: =IF(INTRO!$E$48="","",ROUND($D164*INTRO!$E$48,0)) -> 38353 | F164: 68798.796 | G164: 190154.51 | H164: 99 | I164: 0 | J164: 3 | K164: 2 | L164: =IF(INTRO!$E$37="Endemic",IF($H164>0,IF($H164=4,"Unknown",IF($H164=99,"Stopped",$D164)),0),"Not required") -> Stopped | M164: =IF(INTRO!$E$39="Endemic", IF($I164>0, IF($I164=4,"Unknown",IF($I164=99,"Stopped",$D164)), 0),"Not required") -> 0 | N164: =IF(INTRO!$E$41="Endemic", IF(AND($J164>1,$J164<5), IF($J164=4, "Unknown", E164+F164), 0),"Not required") -> 107151.796 | O164: =IF(INTRO!$E$43="Endemic", IF(AND($K164>0,$K164<5), IF($K164=4,"Unknown", IF($K164=1, $F164*0.33, IF($K164=2, $F164*0.5+$G164*0.2, SUM(F164:G164)))), 0),"Not required") -> 72430.3 | P164: 0 | Q164: 0 | R164: 1 | S164: 0
A165: =IF(INTRO!$E$33<>0,INTRO!$E$33, " ") -> Tanzania | B165: Singida | C165: Itigi District Council | D165: 141639.465 | E165: =IF(INTRO!$E$48="","",ROUND($D165*INTRO!$E$48,0)) -> 18271 | F165: 40175.256 | G165: 83193.209 | H165: 99 | I165: 0 | J165: 3 | K165: 2 | L165: =IF(INTRO!$E$37="Endemic",IF($H165>0,IF($H165=4,"Unknown",IF($H165=99,"Stopped",$D165)),0),"Not required") -> Stopped | M165: =IF(INTRO!$E$39="Endemic", IF($I165>0, IF($I165=4,"Unknown",IF($I165=99,"Stopped",$D165)), 0),"Not required") -> 0 | N165: =IF(INTRO!$E$41="Endemic", IF(AND($J165>1,$J165<5), IF($J165=4, "Unknown", E165+F165), 0),"Not required") -> 58446.256 | O165: =IF(INTRO!$E$43="Endemic", IF(AND($K165>0,$K165<5), IF($K165=4,"Unknown", IF($K165=1, $F165*0.33, IF($K165=2, $F165*0.5+$G165*0.2, SUM(F165:G165)))), 0),"Not required") -> 36726.2698 | P165: 0 | Q165: 0 | R165: 1 | S165: 0
A166: =IF(INTRO!$E$33<>0,INTRO!$E$33, " ") -> Tanzania | B166: Singida | C166: Manyoni District Council | D166: 231769.857 | E166: =IF(INTRO!$E$48="","",ROUND($D166*INTRO!$E$48,0)) -> 29898 | F166: 50544.384 | G166: 151327.473 | H166: 99 | I166: 0 | J166: 3 | K166: 2 | L166: =IF(INTRO!$E$37="Endemic",IF($H166>0,IF($H166=4,"Unknown",IF($H166=99,"Stopped",$D166)),0),"Not required") -> Stopped | M166: =IF(INTRO!$E$39="Endemic", IF($I166>0, IF($I166=4,"Unknown",IF($I166=99,"Stopped",$D166)), 0),"Not required") -> 0 | N166: =IF(INTRO!$E$41="Endemic", IF(AND($J166>1,$J166<5), IF($J166=4, "Unknown", E166+F166), 0),"Not required") -> 80442.384 | O166: =IF(INTRO!$E$43="Endemic", IF(AND($K166>0,$K166<5), IF($K166=4,"Unknown", IF($K166=1, $F166*0.33, IF($K166=2, $F166*0.5+$G166*0.2, SUM(F166:G166)))), 0),"Not required") -> 55537.6866 | P166: 0 | Q166: 0 | R166: 1 | S166: 1
A167: =IF(INTRO!$E$33<>0,INTRO!$E$33, " ") -> Tanzania | B167: Singida | C167: Mkalama District Council | D167: 237478.197 | E167: =IF(INTRO!$E$48="","",ROUND($D167*INTRO!$E$48,0)) -> 30635 | F167: 61247.01 | G167: 145596.187 | H167: 99 | I167: 0 | J167: 3 | K167: 2 | L167: =IF(INTRO!$E$37="Endemic",IF($H167>0,IF($H167=4,"Unknown",IF($H167=99,"Stopped",$D167)),0),"Not required") -> Stopped | M167: =IF(INTRO!$E$39="Endemic", IF($I167>0, IF($I167=4,"Unknown",IF($I167=99,"Stopped",$D167)), 0),"Not required") -> 0 | N167: =IF(INTRO!$E$41="Endemic", IF(AND($J167>1,$J167<5), IF($J167=4, "Unknown", E167+F167), 0),"Not required") -> 91882.01 | O167: =IF(INTRO!$E$43="Endemic", IF(AND($K167>0,$K167<5), IF($K167=4,"Unknown", IF($K167=1, $F167*0.33, IF($K167=2, $F167*0.5+$G167*0.2, SUM(F167:G167)))), 0),"Not required") -> 59742.7424 | P167: 0 | Q167: 0 | R167: 1 | S167: 0
A168: =IF(INTRO!$E$33<>0,INTRO!$E$33, " ") -> Tanzania | B168: Singida | C168: Singida District Council | D168: 283765.878 | E168: =IF(INTRO!$E$48="","",ROUND($D168*INTRO!$E$48,0)) -> 36606 | F168: 78362.823 | G168: 168797.055 | H168: 99 | I168: 0 | J168: 3 | K168: 2 | L168: =IF(INTRO!$E$37="Endemic",IF($H168>0,IF($H168=4,"Unknown",IF($H168=99,"Stopped",$D168)),0),"Not required") -> Stopped | M168: =IF(INTRO!$E$39="Endemic", IF($I168>0, IF($I168=4,"Unknown",IF($I168=99,"Stopped",$D168)), 0),"Not required") -> 0 | N168: =IF(INTRO!$E$41="Endemic", IF(AND($J168>1,$J168<5), IF($J168=4, "Unknown", E168+F168), 0),"Not required") -> 114968.823 | O168: =IF(INTRO!$E$43="Endemic", IF(AND($K168>0,$K168<5), IF($K168=4,"Unknown", IF($K168=1, $F168*0.33, IF($K168=2, $F168*0.5+$G168*0.2, SUM(F168:G168)))), 0),"Not required") -> 72940.8225 | P168: 0 | Q168: 0 | R168: 1 | S168: 0
A169: =IF(INTRO!$E$33<>0,INTRO!$E$33, " ") -> Tanzania | B169: Singida | C169: Singida Municipal Council | D169: 189217.149 | E169: =IF(INTRO!$E$48="","",ROUND($D169*INTRO!$E$48,0)) -> 24409 | F169: 51047.7 | G169: 113760.449 | H169: 99 | I169: 0 | J169: 3 | K169: 2 | L169: =IF(INTRO!$E$37="Endemic",IF($H169>0,IF($H169=4,"Unknown",IF($H169=99,"Stopped",$D169)),0),"Not required") -> Stopped | M169: =IF(INTRO!$E$39="Endemic", IF($I169>0, IF($I169=4,"Unknown",IF($I169=99,"Stopped",$D169)), 0),"Not required") -> 0 | N169: =IF(INTRO!$E$41="Endemic", IF(AND($J169>1,$J169<5), IF($J169=4, "Unknown", E169+F169), 0),"Not required") -> 75456.7 | O169: =IF(INTRO!$E$43="Endemic", IF(AND($K169>0,$K169<5), IF($K169=4,"Unknown", IF($K169=1, $F169*0.33, IF($K169=2, $F169*0.5+$G169*0.2, SUM(F169:G169)))), 0),"Not required") -> 48275.9398 | P169: 0 | Q169: 0 | R169: 1 | S169: 1
A170: =IF(INTRO!$E$33<>0,INTRO!$E$33, " ") -> Tanzania | B170: Songwe | C170: Ileje District Council | D170: 167068.252 | E170: =IF(INTRO!$E$48="","",ROUND($D170*INTRO!$E$48,0)) -> 21552 | F170: 31910 | G170: 113606.252 | H170: 99 | I170: 1 | J170: 3 | K170: 2 | L170: =IF(INTRO!$E$37="Endemic",IF($H170>0,IF($H170=4,"Unknown",IF($H170=99,"Stopped",$D170)),0),"Not required") -> Stopped | M170: =IF(INTRO!$E$39="Endemic", IF($I170>0, IF($I170=4,"Unknown",IF($I170=99,"Stopped",$D170)), 0),"Not required") -> 167068.252 | N170: =IF(INTRO!$E$41="Endemic", IF(AND($J170>1,$J170<5), IF($J170=4, "Unknown", E170+F170), 0),"Not required") -> 53462 | O170: =IF(INTRO!$E$43="Endemic", IF(AND($K170>0,$K170<5), IF($K170=4,"Unknown", IF($K170=1, $F170*0.33, IF($K170=2, $F170*0.5+$G170*0.2, SUM(F170:G170)))), 0),"Not required") -> 38676.2504 | P170: 0 | Q170: 1 | R170: 1 | S170: 1
A171: =IF(INTRO!$E$33<>0,INTRO!$E$33, " ") -> Tanzania | B171: Songwe | C171: Mbozi District Council | D171: 599177.475 | E171: =IF(INTRO!$E$48="","",ROUND($D171*INTRO!$E$48,0)) -> 77294 | F171: 126878.661 | G171: 395004.814 | H171: 99 | I171: 0 | J171: 3 | K171: 3 | L171: =IF(INTRO!$E$37="Endemic",IF($H171>0,IF($H171=4,"Unknown",IF($H171=99,"Stopped",$D171)),0),"Not required") -> Stopped | M171: =IF(INTRO!$E$39="Endemic", IF($I171>0, IF($I171=4,"Unknown",IF($I171=99,"Stopped",$D171)), 0),"Not required") -> 0 | N171: =IF(INTRO!$E$41="Endemic", IF(AND($J171>1,$J171<5), IF($J171=4, "Unknown", E171+F171), 0),"Not required") -> 204172.661 | O171: =IF(INTRO!$E$43="Endemic", IF(AND($K171>0,$K171<5), IF($K171=4,"Unknown", IF($K171=1, $F171*0.33, IF($K171=2, $F171*0.5+$G171*0.2, SUM(F171:G171)))), 0),"Not required") -> 521883.475 | P171: 0 | Q171: 0 | R171: 1 | S171: 1
A172: =IF(INTRO!$E$33<>0,INTRO!$E$33, " ") -> Tanzania | B172: Songwe | C172: Momba District Council | D172: 226520.255 | E172: =IF(INTRO!$E$48="","",ROUND($D172*INTRO!$E$48,0)) -> 29221 | F172: 51695.072 | G172: 145604.183 | H172: 99 | I172: 0 | J172: 3 | K172: 3 | L172: =IF(INTRO!$E$37="Endemic",IF($H172>0,IF($H172=4,"Unknown",IF($H172=99,"Stopped",$D172)),0),"Not required") -> Stopped | M172: =IF(INTRO!$E$39="Endemic", IF($I172>0, IF($I172=4,"Unknown",IF($I172=99,"Stopped",$D172)), 0),"Not required") -> 0 | N172: =IF(INTRO!$E$41="Endemic", IF(AND($J172>1,$J172<5), IF($J172=4, "Unknown", E172+F172), 0),"Not required") -> 80916.072 | O172: =IF(INTRO!$E$43="Endemic", IF(AND($K172>0,$K172<5), IF($K172=4,"Unknown", IF($K172=1, $F172*0.33, IF($K172=2, $F172*0.5+$G172*0.2, SUM(F172:G172)))), 0),"Not required") -> 197299.255 | P172: 0 | Q172: 0 | R172: 1 | S172: 1
A173: =IF(INTRO!$E$33<>0,INTRO!$E$33, " ") -> Tanzania | B173: Songwe | C173: Songwe District Council | D173: 179472.358 | E173: =IF(INTRO!$E$48="","",ROUND($D173*INTRO!$E$48,0)) -> 23152 | F173: 36879.57 | G173: 119440.788 | H173: 99 | I173: 0 | J173: 3 | K173: 2 | L173: =IF(INTRO!$E$37="Endemic",IF($H173>0,IF($H173=4,"Unknown",IF($H173=99,"Stopped",$D173)),0),"Not required") -> Stopped | M173: =IF(INTRO!$E$39="Endemic", IF($I173>0, IF($I173=4,"Unknown",IF($I173=99,"Stopped",$D173)), 0),"Not required") -> 0 | N173: =IF(INTRO!$E$41="Endemic", IF(AND($J173>1,$J173<5), IF($J173=4, "Unknown", E173+F173), 0),"Not required") -> 60031.57 | O173: =IF(INTRO!$E$43="Endemic", IF(AND($K173>0,$K173<5), IF($K173=4,"Unknown", IF($K173=1, $F173*0.33, IF($K173=2, $F173*0.5+$G173*0.2, SUM(F173:G173)))), 0),"Not required") -> 42327.9426 | P173: 0 | Q173: 0 | R173: 1 | S173: 1
A174: =IF(INTRO!$E$33<>0,INTRO!$E$33, " ") -> Tanzania | B174: Songwe | C174: Tunduma Town Council | D174: 168665.237 | E174: =IF(INTRO!$E$48="","",ROUND($D174*INTRO!$E$48,0)) -> 21758 | F174: 39354.64 | G174: 107552.597 | H174: 99 | I174: 0 | J174: 3 | K174: 3 | L174: =IF(INTRO!$E$37="Endemic",IF($H174>0,IF($H174=4,"Unknown",IF($H174=99,"Stopped",$D174)),0),"Not required") -> Stopped | M174: =IF(INTRO!$E$39="Endemic", IF($I174>0, IF($I174=4,"Unknown",IF($I174=99,"Stopped",$D174)), 0),"Not required") -> 0 | N174: =IF(INTRO!$E$41="Endemic", IF(AND($J174>1,$J174<5), IF($J174=4, "Unknown", E174+F174), 0),"Not required") -> 61112.64 | O174: =IF(INTRO!$E$43="Endemic", IF(AND($K174>0,$K174<5), IF($K174=4,"Unknown", IF($K174=1, $F174*0.33, IF($K174=2, $F174*0.5+$G174*0.2, SUM(F174:G174)))), 0),"Not required") -> 146907.237 | P174: 0 | Q174: 0 | R174: 1 | S174: 1
A175: =IF(INTRO!$E$33<>0,INTRO!$E$33, " ") -> Tanzania | B175: Tabora | C175: Igunga District Council | D175: 533768.025 | E175: =IF(INTRO!$E$48="","",ROUND($D175*INTRO!$E$48,0)) -> 68856 | F175: 102715.809 | G175: 362196.216 | H175: 99 | I175: 0 | J175: 3 | K175: 2 | L175: =IF(INTRO!$E$37="Endemic",IF($H175>0,IF($H175=4,"Unknown",IF($H175=99,"Stopped",$D175)),0),"Not required") -> Stopped | M175: =IF(INTRO!$E$39="Endemic", IF($I175>0, IF($I175=4,"Unknown",IF($I175=99,"Stopped",$D175)), 0),"Not required") -> 0 | N175: =IF(INTRO!$E$41="Endemic", IF(AND($J175>1,$J175<5), IF($J175=4, "Unknown", E175+F175), 0),"Not required") -> 171571.809 | O175: =IF(INTRO!$E$43="Endemic", IF(AND($K175>0,$K175<5), IF($K175=4,"Unknown", IF($K175=1, $F175*0.33, IF($K175=2, $F175*0.5+$G175*0.2, SUM(F175:G175)))), 0),"Not required") -> 123797.1477 | P175: 0 | Q175: 0 | R175: 1 | S175: 1
A176: =IF(INTRO!$E$33<>0,INTRO!$E$33, " ") -> Tanzania | B176: Tabora | C176: Kaliua District Council | D176: 525263.34 | E176: =IF(INTRO!$E$48="","",ROUND($D176*INTRO!$E$48,0)) -> 67759 | F176: 128582.811 | G176: 328921.529 | H176: 99 | I176: 0 | J176: 3 | K176: 2 | L176: =IF(INTRO!$E$37="Endemic",IF($H176>0,IF($H176=4,"Unknown",IF($H176=99,"Stopped",$D176)),0),"Not required") -> Stopped | M176: =IF(INTRO!$E$39="Endemic", IF($I176>0, IF($I176=4,"Unknown",IF($I176=99,"Stopped",$D176)), 0),"Not required") -> 0 | N176: =IF(INTRO!$E$41="Endemic", IF(AND($J176>1,$J176<5), IF($J176=4, "Unknown", E176+F176), 0),"Not required") -> 196341.811 | O176: =IF(INTRO!$E$43="Endemic", IF(AND($K176>0,$K176<5), IF($K176=4,"Unknown", IF($K176=1, $F176*0.33, IF($K176=2, $F176*0.5+$G176*0.2, SUM(F176:G176)))), 0),"Not required") -> 130075.7113 | P176: 0 | Q176: 0 | R176: 1 | S176: 1
A177: =IF(INTRO!$E$33<>0,INTRO!$E$33, " ") -> Tanzania | B177: Tabora | C177: Nzega District Council | D177: 584726.163 | E177: =IF(INTRO!$E$48="","",ROUND($D177*INTRO!$E$48,0)) -> 75430 | F177: 130977.294 | G177: 378318.869 | H177: 99 | I177: 0 | J177: 3 | K177: 2 | L177: =IF(INTRO!$E$37="Endemic",IF($H177>0,IF($H177=4,"Unknown",IF($H177=99,"Stopped",$D177)),0),"Not required") -> Stopped | M177: =IF(INTRO!$E$39="Endemic", IF($I177>0, IF($I177=4,"Unknown",IF($I177=99,"Stopped",$D177)), 0),"Not required") -> 0 | N177: =IF(INTRO!$E$41="Endemic", IF(AND($J177>1,$J177<5), IF($J177=4, "Unknown", E177+F177), 0),"Not required") -> 206407.294 | O177: =IF(INTRO!$E$43="Endemic", IF(AND($K177>0,$K177<5), IF($K177=4,"Unknown", IF($K177=1, $F177*0.33, IF($K177=2, $F177*0.5+$G177*0.2, SUM(F177:G177)))), 0),"Not required") -> 141152.4208 | P177: 0 | Q177: 0 | R177: 1 | S177: 1
A178: =IF(INTRO!$E$33<>0,INTRO!$E$33, " ") -> Tanzania | B178: Tabora | C178: Nzega Town Council | D178: 85952.37 | E178: =IF(INTRO!$E$48="","",ROUND($D178*INTRO!$E$48,0)) -> 11088 | F178: 27966.162 | G178: 46898.208 | H178: 99 | I178: 0 | J178: 3 | K178: 2 | L178: =IF(INTRO!$E$37="Endemic",IF($H178>0,IF($H178=4,"Unknown",IF($H178=99,"Stopped",$D178)),0),"Not required") -> Stopped | M178: =IF(INTRO!$E$39="Endemic", IF($I178>0, IF($I178=4,"Unknown",IF($I178=99,"Stopped",$D178)), 0),"Not required") -> 0 | N178: =IF(INTRO!$E$41="Endemic", IF(AND($J178>1,$J178<5), IF($J178=4, "Unknown", E178+F178), 0),"Not required") -> 39054.162 | O178: =IF(INTRO!$E$43="Endemic", IF(AND($K178>0,$K178<5), IF($K178=4,"Unknown", IF($K178=1, $F178*0.33, IF($K178=2, $F178*0.5+$G178*0.2, SUM(F178:G178)))), 0),"Not required") -> 23362.7226 | P178: 0 | Q178: 0 | R178: 1 | S178: 1
A179: =IF(INTRO!$E$33<>0,INTRO!$E$33, " ") -> Tanzania | B179: Tabora | C179: Sikonge District Council | D179: 240203.586 | E179: =IF(INTRO!$E$48="","",ROUND($D179*INTRO!$E$48,0)) -> 30986 | F179: 56226.618 | G179: 152990.968 | H179: 99 | I179: 0 | J179: 3 | K179: 2 | L179: =IF(INTRO!$E$37="Endemic",IF($H179>0,IF($H179=4,"Unknown",IF($H179=99,"Stopped",$D179)),0),"Not required") -> Stopped | M179: =IF(INTRO!$E$39="Endemic", IF($I179>0, IF($I179=4,"Unknown",IF($I179=99,"Stopped",$D179)), 0),"Not required") -> 0 | N179: =IF(INTRO!$E$41="Endemic", IF(AND($J179>1,$J179<5), IF($J179=4, "Unknown", E179+F179), 0),"Not required") -> 87212.618 | O179: =IF(INTRO!$E$43="Endemic", IF(AND($K179>0,$K179<5), IF($K179=4,"Unknown", IF($K179=1, $F179*0.33, IF($K179=2, $F179*0.5+$G179*0.2, SUM(F179:G179)))), 0),"Not required") -> 58711.5026 | P179: 0 | Q179: 0 | R179: 1 | S179: 0
A180: =IF(INTRO!$E$33<>0,INTRO!$E$33, " ") -> Tanzania | B180: Tabora | C180: Tabora Municipal Council | D180: 303118.704 | E180: =IF(INTRO!$E$48="","",ROUND($D180*INTRO!$E$48,0)) -> 39102 | F180: 57893 | G180: 206123.704 | H180: 99 | I180: 0 | J180: 3 | K180: 2 | L180: =IF(INTRO!$E$37="Endemic",IF($H180>0,IF($H180=4,"Unknown",IF($H180=99,"Stopped",$D180)),0),"Not required") -> Stopped | M180: =IF(INTRO!$E$39="Endemic", IF($I180>0, IF($I180=4,"Unknown",IF($I180=99,"Stopped",$D180)), 0),"Not required") -> 0 | N180: =IF(INTRO!$E$41="Endemic", IF(AND($J180>1,$J180<5), IF($J180=4, "Unknown", E180+F180), 0),"Not required") -> 96995 | O180: =IF(INTRO!$E$43="Endemic", IF(AND($K180>0,$K180<5), IF($K180=4,"Unknown", IF($K180=1, $F180*0.33, IF($K180=2, $F180*0.5+$G180*0.2, SUM(F180:G180)))), 0),"Not required") -> 70171.2408 | P180: 0 | Q180: 0 | R180: 1 | S180: 1
A181: =IF(INTRO!$E$33<>0,INTRO!$E$33, " ") -> Tanzania | B181: Tabora | C181: Urambo District Council | D181: 257429.046 | E181: =IF(INTRO!$E$48="","",ROUND($D181*INTRO!$E$48,0)) -> 33208 | F181: 58126.152 | G181: 166094.894 | H181: 99 | I181: 0 | J181: 3 | K181: 2 | L181: =IF(INTRO!$E$37="Endemic",IF($H181>0,IF($H181=4,"Unknown",IF($H181=99,"Stopped",$D181)),0),"Not required") -> Stopped | M181: =IF(INTRO!$E$39="Endemic", IF($I181>0, IF($I181=4,"Unknown",IF($I181=99,"Stopped",$D181)), 0),"Not required") -> 0 | N181: =IF(INTRO!$E$41="Endemic", IF(AND($J181>1,$J181<5), IF($J181=4, "Unknown", E181+F181), 0),"Not required") -> 91334.152 | O181: =IF(INTRO!$E$43="Endemic", IF(AND($K181>0,$K181<5), IF($K181=4,"Unknown", IF($K181=1, $F181*0.33, IF($K181=2, $F181*0.5+$G181*0.2, SUM(F181:G181)))), 0),"Not required") -> 62282.0548 | P181: 0 | Q181: 0 | R181: 1 | S181: 1
A182: =IF(INTRO!$E$33<>0,INTRO!$E$33, " ") -> Tanzania | B182: Tabora | C182: Uyui District Council | D182: 529627.329 | E182: =IF(INTRO!$E$48="","",ROUND($D182*INTRO!$E$48,0)) -> 68322 | F182: 118127.142 | G182: 343178.187 | H182: 99 | I182: 0 | J182: 3 | K182: 2 | L182: =IF(INTRO!$E$37="Endemic",IF($H182>0,IF($H182=4,"Unknown",IF($H182=99,"Stopped",$D182)),0),"Not required") -> Stopped | M182: =IF(INTRO!$E$39="Endemic", IF($I182>0, IF($I182=4,"Unknown",IF($I182=99,"Stopped",$D182)), 0),"Not required") -> 0 | N182: =IF(INTRO!$E$41="Endemic", IF(AND($J182>1,$J182<5), IF($J182=4, "Unknown", E182+F182), 0),"Not required") -> 186449.142 | O182: =IF(INTRO!$E$43="Endemic", IF(AND($K182>0,$K182<5), IF($K182=4,"Unknown", IF($K182=1, $F182*0.33, IF($K182=2, $F182*0.5+$G182*0.2, SUM(F182:G182)))), 0),"Not required") -> 127699.2084 | P182: 0 | Q182: 0 | R182: 1 | S182: 1
A183: =IF(INTRO!$E$33<>0,INTRO!$E$33, " ") -> Tanzania | B183: Tanga | C183: Bumbuli District Council | D183: 200812.437 | E183: =IF(INTRO!$E$48="","",ROUND($D183*INTRO!$E$48,0)) -> 25905 | F183: 44298.45 | G183: 130608.987 | H183: 99 | I183: 1 | J183: 3 | K183: 2 | L183: =IF(INTRO!$E$37="Endemic",IF($H183>0,IF($H183=4,"Unknown",IF($H183=99,"Stopped",$D183)),0),"Not required") -> Stopped | M183: =IF(INTRO!$E$39="Endemic", IF($I183>0, IF($I183=4,"Unknown",IF($I183=99,"Stopped",$D183)), 0),"Not required") -> 200812.437 | N183: =IF(INTRO!$E$41="Endemic", IF(AND($J183>1,$J183<5), IF($J183=4, "Unknown", E183+F183), 0),"Not required") -> 70203.45 | O183: =IF(INTRO!$E$43="Endemic", IF(AND($K183>0,$K183<5), IF($K183=4,"Unknown", IF($K183=1, $F183*0.33, IF($K183=2, $F183*0.5+$G183*0.2, SUM(F183:G183)))), 0),"Not required") -> 48271.0224 | P183: 0 | Q183: 2 | R183: 1 | S183: 1
A184: =IF(INTRO!$E$33<>0,INTRO!$E$33, " ") -> Tanzania | B184: Tanga | C184: Handeni District Council | D184: 344841.196 | E184: =IF(INTRO!$E$48="","",ROUND($D184*INTRO!$E$48,0)) -> 44485 | F184: 79229.528 | G184: 221126.668 | H184: 99 | I184: 0 | J184: 3 | K184: 2 | L184: =IF(INTRO!$E$37="Endemic",IF($H184>0,IF($H184=4,"Unknown",IF($H184=99,"Stopped",$D184)),0),"Not required") -> Stopped | M184: =IF(INTRO!$E$39="Endemic", IF($I184>0, IF($I184=4,"Unknown",IF($I184=99,"Stopped",$D184)), 0),"Not required") -> 0 | N184: =IF(INTRO!$E$41="Endemic", IF(AND($J184>1,$J184<5), IF($J184=4, "Unknown", E184+F184), 0),"Not required") -> 123714.528 | O184: =IF(INTRO!$E$43="Endemic", IF(AND($K184>0,$K184<5), IF($K184=4,"Unknown", IF($K184=1, $F184*0.33, IF($K184=2, $F184*0.5+$G184*0.2, SUM(F184:G184)))), 0),"Not required") -> 83840.0976 | P184: 0 | Q184: 0 | R184: 1 | S184: 1
A185: =IF(INTRO!$E$33<>0,INTRO!$E$33, " ") -> Tanzania | B185: Tanga | C185: Handeni Town Council | D185: 98542.262 | E185: =IF(INTRO!$E$48="","",ROUND($D185*INTRO!$E$48,0)) -> 12712 | F185: 23573.452 | G185: 62256.81 | H185: 99 | I185: 0 | J185: 3 | K185: 2 | L185: =IF(INTRO!$E$37="Endemic",IF($H185>0,IF($H185=4,"Unknown",IF($H185=99,"Stopped",$D185)),0),"Not required") -> Stopped | M185: =IF(INTRO!$E$39="Endemic", IF($I185>0, IF($I185=4,"Unknown",IF($I185=99,"Stopped",$D185)), 0),"Not required") -> 0 | N185: =IF(INTRO!$E$41="Endemic", IF(AND($J185>1,$J185<5), IF($J185=4, "Unknown", E185+F185), 0),"Not required") -> 36285.452 | O185: =IF(INTRO!$E$43="Endemic", IF(AND($K185>0,$K185<5), IF($K185=4,"Unknown", IF($K185=1, $F185*0.33, IF($K185=2, $F185*0.5+$G185*0.2, SUM(F185:G185)))), 0),"Not required") -> 24238.088 | P185: 0 | Q185: 0 | R185: 1 | S185: 1
A186: =IF(INTRO!$E$33<>0,INTRO!$E$33, " ") -> Tanzania | B186: Tanga | C186: Kilindi District Council | D186: 295214.92 | E186: =IF(INTRO!$E$48="","",ROUND($D186*INTRO!$E$48,0)) -> 38083 | F186: 72615.144 | G186: 184516.776 | H186: 99 | I186: 0 | J186: 3 | K186: 2 | L186: =IF(INTRO!$E$37="Endemic",IF($H186>0,IF($H186=4,"Unknown",IF($H186=99,"Stopped",$D186)),0),"Not required") -> Stopped | M186: =IF(INTRO!$E$39="Endemic", IF($I186>0, IF($I186=4,"Unknown",IF($I186=99,"Stopped",$D186)), 0),"Not required") -> 0 | N186: =IF(INTRO!$E$41="Endemic", IF(AND($J186>1,$J186<5), IF($J186=4, "Unknown", E186+F186), 0),"Not required") -> 110698.144 | O186: =IF(INTRO!$E$43="Endemic", IF(AND($K186>0,$K186<5), IF($K186=4,"Unknown", IF($K186=1, $F186*0.33, IF($K186=2, $F186*0.5+$G186*0.2, SUM(F186:G186)))), 0),"Not required") -> 73210.9272 | P186: 0 | Q186: 0 | R186: 1 | S186: 1
A187: =IF(INTRO!$E$33<>0,INTRO!$E$33, " ") -> Tanzania | B187: Tanga | C187: Korogwe District Council | D187: 301700.532 | E187: =IF(INTRO!$E$48="","",ROUND($D187*INTRO!$E$48,0)) -> 38919 | F187: 65358.944 | G187: 197422.588 | H187: 99 | I187: 1 | J187: 3 | K187: 2 | L187: =IF(INTRO!$E$37="Endemic",IF($H187>0,IF($H187=4,"Unknown",IF($H187=99,"Stopped",$D187)),0),"Not required") -> Stopped | M187: =IF(INTRO!$E$39="Endemic", IF($I187>0, IF($I187=4,"Unknown",IF($I187=99,"Stopped",$D187)), 0),"Not required") -> 301700.532 | N187: =IF(INTRO!$E$41="Endemic", IF(AND($J187>1,$J187<5), IF($J187=4, "Unknown", E187+F187), 0),"Not required") -> 104277.944 | O187: =IF(INTRO!$E$43="Endemic", IF(AND($K187>0,$K187<5), IF($K187=4,"Unknown", IF($K187=1, $F187*0.33, IF($K187=2, $F187*0.5+$G187*0.2, SUM(F187:G187)))), 0),"Not required") -> 72163.9896 | P187: 0 | Q187: 2 | R187: 1 | S187: 1
A188: =IF(INTRO!$E$33<>0,INTRO!$E$33, " ") -> Tanzania | B188: Tanga | C188: Korogwe Town Council | D188: 85146.908 | E188: =IF(INTRO!$E$48="","",ROUND($D188*INTRO!$E$48,0)) -> 10984 | F188: 18137.434 | G188: 56025.474 | H188: 99 | I188: 0 | J188: 3 | K188: 2 | L188: =IF(INTRO!$E$37="Endemic",IF($H188>0,IF($H188=4,"Unknown",IF($H188=99,"Stopped",$D188)),0),"Not required") -> Stopped | M188: =IF(INTRO!$E$39="Endemic", IF($I188>0, IF($I188=4,"Unknown",IF($I188=99,"Stopped",$D188)), 0),"Not required") -> 0 | N188: =IF(INTRO!$E$41="Endemic", IF(AND($J188>1,$J188<5), IF($J188=4, "Unknown", E188+F188), 0),"Not required") -> 29121.434 | O188: =IF(INTRO!$E$43="Endemic", IF(AND($K188>0,$K188<5), IF($K188=4,"Unknown", IF($K188=1, $F188*0.33, IF($K188=2, $F188*0.5+$G188*0.2, SUM(F188:G188)))), 0),"Not required") -> 20273.8118 | P188: 0 | Q188: 0 | R188: 1 | S188: 1
A189: =IF(INTRO!$E$33<>0,INTRO!$E$33, " ") -> Tanzania | B189: Tanga | C189: Lushoto District Council | D189: 414384.208 | E189: =IF(INTRO!$E$48="","",ROUND($D189*INTRO!$E$48,0)) -> 53456 | F189: 96131.364 | G189: 264796.844 | H189: 99 | I189: 1 | J189: 3 | K189: 2 | L189: =IF(INTRO!$E$37="Endemic",IF($H189>0,IF($H189=4,"Unknown",IF($H189=99,"Stopped",$D189)),0),"Not required") -> Stopped | M189: =IF(INTRO!$E$39="Endemic", IF($I189>0, IF($I189=4,"Unknown",IF($I189=99,"Stopped",$D189)), 0),"Not required") -> 414384.208 | N189: =IF(INTRO!$E$41="Endemic", IF(AND($J189>1,$J189<5), IF($J189=4, "Unknown", E189+F189), 0),"Not required") -> 149587.364 | O189: =IF(INTRO!$E$43="Endemic", IF(AND($K189>0,$K189<5), IF($K189=4,"Unknown", IF($K189=1, $F189*0.33, IF($K189=2, $F189*0.5+$G189*0.2, SUM(F189:G189)))), 0),"Not required") -> 101025.0508 | P189: 0 | Q189: 2 | R189: 1 | S189: 1
A190: =IF(INTRO!$E$33<>0,INTRO!$E$33, " ") -> Tanzania | B190: Tanga | C190: Mkinga District Council | D190: 147169.022 | E190: =IF(INTRO!$E$48="","",ROUND($D190*INTRO!$E$48,0)) -> 18985 | F190: 34803.188 | G190: 93380.834 | H190: 99 | I190: 1 | J190: 3 | K190: 2 | L190: =IF(INTRO!$E$37="Endemic",IF($H190>0,IF($H190=4,"Unknown",IF($H190=99,"Stopped",$D190)),0),"Not required") -> Stopped | M190: =IF(INTRO!$E$39="Endemic", IF($I190>0, IF($I190=4,"Unknown",IF($I190=99,"Stopped",$D190)), 0),"Not required") -> 147169.022 | N190: =IF(INTRO!$E$41="Endemic", IF(AND($J190>1,$J190<5), IF($J190=4, "Unknown", E190+F190), 0),"Not required") -> 53788.188 | O190: =IF(INTRO!$E$43="Endemic", IF(AND($K190>0,$K190<5), IF($K190=4,"Unknown", IF($K190=1, $F190*0.33, IF($K190=2, $F190*0.5+$G190*0.2, SUM(F190:G190)))), 0),"Not required") -> 36077.7608 | P190: 0 | Q190: 2 | R190: 1 | S190: 1
A191: =IF(INTRO!$E$33<>0,INTRO!$E$33, " ") -> Tanzania | B191: Tanga | C191: Muheza District Council | D191: 254861.25 | E191: =IF(INTRO!$E$48="","",ROUND($D191*INTRO!$E$48,0)) -> 32877 | F191: 48680 | G191: 173304.25 | H191: 99 | I191: 1 | J191: 3 | K191: 2 | L191: =IF(INTRO!$E$37="Endemic",IF($H191>0,IF($H191=4,"Unknown",IF($H191=99,"Stopped",$D191)),0),"Not required") -> Stopped | M191: =IF(INTRO!$E$39="Endemic", IF($I191>0, IF($I191=4,"Unknown",IF($I191=99,"Stopped",$D191)), 0),"Not required") -> 254861.25 | N191: =IF(INTRO!$E$41="Endemic", IF(AND($J191>1,$J191<5), IF($J191=4, "Unknown", E191+F191), 0),"Not required") -> 81557 | O191: =IF(INTRO!$E$43="Endemic", IF(AND($K191>0,$K191<5), IF($K191=4,"Unknown", IF($K191=1, $F191*0.33, IF($K191=2, $F191*0.5+$G191*0.2, SUM(F191:G191)))), 0),"Not required") -> 59000.85 | P191: 0 | Q191: 2 | R191: 1 | S191: 1
A192: =IF(INTRO!$E$33<>0,INTRO!$E$33, " ") -> Tanzania | B192: Tanga | C192: Pangani District Council | D192: 67343.668 | E192: =IF(INTRO!$E$48="","",ROUND($D192*INTRO!$E$48,0)) -> 8687 | F192: 14826.154 | G192: 43830.514 | H192: 1 | I192: 0 | J192: 3 | K192: 2 | L192: =IF(INTRO!$E$37="Endemic",IF($H192>0,IF($H192=4,"Unknown",IF($H192=99,"Stopped",$D192)),0),"Not required") -> 67343.668 | M192: =IF(INTRO!$E$39="Endemic", IF($I192>0, IF($I192=4,"Unknown",IF($I192=99,"Stopped",$D192)), 0),"Not required") -> 0 | N192: =IF(INTRO!$E$41="Endemic", IF(AND($J192>1,$J192<5), IF($J192=4, "Unknown", E192+F192), 0),"Not required") -> 23513.154 | O192: =IF(INTRO!$E$43="Endemic", IF(AND($K192>0,$K192<5), IF($K192=4,"Unknown", IF($K192=1, $F192*0.33, IF($K192=2, $F192*0.5+$G192*0.2, SUM(F192:G192)))), 0),"Not required") -> 16179.1798 | P192: 1 | Q192: 0 | R192: 1 | S192: 1 | U192: Both
A193: =IF(INTRO!$E$33<>0,INTRO!$E$33, " ") -> Tanzania | B193: Tanga | C193: Tanga City Council | D193: 340707.206 | E193: =IF(INTRO!$E$48="","",ROUND($D193*INTRO!$E$48,0)) -> 43951 | F193: 99239.266 | G193: 197516.94 | H193: 99 | I193: 0 | J193: 3 | K193: 2 | L193: =IF(INTRO!$E$37="Endemic",IF($H193>0,IF($H193=4,"Unknown",IF($H193=99,"Stopped",$D193)),0),"Not required") -> Stopped | M193: =IF(INTRO!$E$39="Endemic", IF($I193>0, IF($I193=4,"Unknown",IF($I193=99,"Stopped",$D193)), 0),"Not required") -> 0 | N193: =IF(INTRO!$E$41="Endemic", IF(AND($J193>1,$J193<5), IF($J193=4, "Unknown", E193+F193), 0),"Not required") -> 143190.266 | O193: =IF(INTRO!$E$43="Endemic", IF(AND($K193>0,$K193<5), IF($K193=4,"Unknown", IF($K193=1, $F193*0.33, IF($K193=2, $F193*0.5+$G193*0.2, SUM(F193:G193)))), 0),"Not required") -> 89123.021 | P193: 0 | Q193: 0 | R193: 1 | S193: 1

Sheet DEC (hidden)
A1: Diethylcarbamazine citrate (DEC)
A2: Administrative structure, eligible population by age group, treatment plan and information about tablets
A4: TOTAL | D4: =SUM(D$9:D$1000) -> 0 | E4: =SUM(E$9:E$1000) -> 0 | F4: =SUM(F$9:F$1000) -> 0 | G4: =SUM(G$9:G$1000) -> 0 | I4: =SUM(I$9:I$1000) -> 0 | J4: =SUM(J$9:J$1000) -> 0 | K4: =SUM(K$9:K$1000) -> 0 | L4: =SUM(L$9:L$1000) -> 0 | M4: =SUM(M$9:M$1000) -> 0
A6: Country administrative structure | D6: Population requiring treatment with DEC | H6: Treatment plan | I6: Target population | J6: Diethylcarbamazine citrate (DEC)
A7: Country | B7: Province/State | C7: District | D7: PreSAC | E7: SAC | F7: Adults | G7: Total | H7: LF | I7: LF | J7: Total required | K7: Remaining in stock | L7: Tablets to be procured | M7: Bottle (100 mg) 1000 tablets
A9: =IF(INTRO!$E$39<>"Non-endemic", " ", IF(INTRO!$E$37="Non-endemic"," ", IF(COUNTRY_INFO!A9=0," ",COUNTRY_INFO!A9))) ->  | B9: =IF(INTRO!$E$39<>"Non-endemic", " ", IF(INTRO!$E$37="Non-endemic"," ", IF(COUNTRY_INFO!B9=0," ",COUNTRY_INFO!B9))) ->  | C9: =IF(INTRO!$E$39<>"Non-endemic", " ", IF(INTRO!$E$37="Non-endemic"," ", IF(COUNTRY_INFO!C9=0," ",COUNTRY_INFO!C9))) ->  | D9: =IF(INTRO!$E$39<>"Non-endemic", 0, IF(INTRO!$E$37="Non-endemic",0,IF(COUNTRY_INFO!$H9=1,COUNTRY_INFO!E9,0))) -> 0 | E9: =IF(INTRO!$E$39<>"Non-endemic", 0, IF(INTRO!$E$37="Non-endemic",0,IF(COUNTRY_INFO!$H9=1,COUNTRY_INFO!F9,0))) -> 0 | F9: =IF(INTRO!$E$39<>"Non-endemic", 0, IF(INTRO!$E$37="Non-endemic",0,IF(COUNTRY_INFO!$H9=1,COUNTRY_INFO!G9,0))) -> 0 | G9: =SUM(D9:F9) -> 0 | H9: =IF(INTRO!$E$39="Non-endemic",IF(INTRO!$E$37="Non-endemic","Not required",COUNTRY_INFO!P9),"Treat with IVM") -> Treat with IVM | I9: =IF(H9=1,G9,0) -> 0 | J9: =IF(I9>0,I9*2.5,0) -> 0 | L9: =IF($J9>$K9,$J9-$K9,0) -> 0 | M9: =ROUNDUP($J9/1000,0) -> 0
A10: =IF(INTRO!$E$39<>"Non-endemic", " ", IF(INTRO!$E$37="Non-endemic"," ", IF(COUNTRY_INFO!A10=0," ",COUNTRY_INFO!A10))) ->  | B10: =IF(INTRO!$E$39<>"Non-endemic", " ", IF(INTRO!$E$37="Non-endemic"," ", IF(COUNTRY_INFO!B10=0," ",COUNTRY_INFO!B10))) ->  | C10: =IF(INTRO!$E$39<>"Non-endemic", " ", IF(INTRO!$E$37="Non-endemic"," ", IF(COUNTRY_INFO!C10=0," ",COUNTRY_INFO!C10))) ->  | D10: =IF(INTRO!$E$39<>"Non-endemic", 0, IF(INTRO!$E$37="Non-endemic",0,IF(COUNTRY_INFO!$H10=1,COUNTRY_INFO!E10,0))) -> 0 | E10: =IF(INTRO!$E$39<>"Non-endemic", 0, IF(INTRO!$E$37="Non-endemic",0,IF(COUNTRY_INFO!$H10=1,COUNTRY_INFO!F10,0))) -> 0 | F10: =IF(INTRO!$E$39<>"Non-endemic", 0, IF(INTRO!$E$37="Non-endemic",0,IF(COUNTRY_INFO!$H10=1,COUNTRY_INFO!G10,0))) -> 0 | G10: 0 | H10: =IF(INTRO!$E$39="Non-endemic",IF(INTRO!$E$37="Non-endemic","Not required",COUNTRY_INFO!P10),"Treat with IVM") -> Treat with IVM | I10: 0 | J10: 0 | L10: 0 | M10: 0
A11: =IF(INTRO!$E$39<>"Non-endemic", " ", IF(INTRO!$E$37="Non-endemic"," ", IF(COUNTRY_INFO!A11=0," ",COUNTRY_INFO!A11))) ->  | B11: =IF(INTRO!$E$39<>"Non-endemic", " ", IF(INTRO!$E$37="Non-endemic"," ", IF(COUNTRY_INFO!B11=0," ",COUNTRY_INFO!B11))) ->  | C11: =IF(INTRO!$E$39<>"Non-endemic", " ", IF(INTRO!$E$37="Non-endemic"," ", IF(COUNTRY_INFO!C11=0," ",COUNTRY_INFO!C11))) ->  | D11: =IF(INTRO!$E$39<>"Non-endemic", 0, IF(INTRO!$E$37="Non-endemic",0,IF(COUNTRY_INFO!$H11=1,COUNTRY_INFO!E11,0))) -> 0 | E11: =IF(INTRO!$E$39<>"Non-endemic", 0, IF(INTRO!$E$37="Non-endemic",0,IF(COUNTRY_INFO!$H11=1,COUNTRY_INFO!F11,0))) -> 0 | F11: =IF(INTRO!$E$39<>"Non-endemic", 0, IF(INTRO!$E$37="Non-endemic",0,IF(COUNTRY_INFO!$H11=1,COUNTRY_INFO!G11,0))) -> 0 | G11: 0 | H11: =IF(INTRO!$E$39="Non-endemic",IF(INTRO!$E$37="Non-endemic","Not required",COUNTRY_INFO!P11),"Treat with IVM") -> Treat with IVM | I11: 0 | J11: 0 | L11: 0 | M11: 0
A12: =IF(INTRO!$E$39<>"Non-endemic", " ", IF(INTRO!$E$37="Non-endemic"," ", IF(COUNTRY_INFO!A12=0," ",COUNTRY_INFO!A12))) ->  | B12: =IF(INTRO!$E$39<>"Non-endemic", " ", IF(INTRO!$E$37="Non-endemic"," ", IF(COUNTRY_INFO!B12=0," ",COUNTRY_INFO!B12))) ->  | C12: =IF(INTRO!$E$39<>"Non-endemic", " ", IF(INTRO!$E$37="Non-endemic"," ", IF(COUNTRY_INFO!C12=0," ",COUNTRY_INFO!C12))) ->  | D12: =IF(INTRO!$E$39<>"Non-endemic", 0, IF(INTRO!$E$37="Non-endemic",0,IF(COUNTRY_INFO!$H12=1,COUNTRY_INFO!E12,0))) -> 0 | E12: =IF(INTRO!$E$39<>"Non-endemic", 0, IF(INTRO!$E$37="Non-endemic",0,IF(COUNTRY_INFO!$H12=1,COUNTRY_INFO!F12,0))) -> 0 | F12: =IF(INTRO!$E$39<>"Non-endemic", 0, IF(INTRO!$E$37="Non-endemic",0,IF(COUNTRY_INFO!$H12=1,COUNTRY_INFO!G12,0))) -> 0 | G12: 0 | H12: =IF(INTRO!$E$39="Non-endemic",IF(INTRO!$E$37="Non-endemic","Not required",COUNTRY_INFO!P12),"Treat with IVM") -> Treat with IVM | I12: 0 | J12: 0 | L12: 0 | M12: 0
A13: =IF(INTRO!$E$39<>"Non-endemic", " ", IF(INTRO!$E$37="Non-endemic"," ", IF(COUNTRY_INFO!A13=0," ",COUNTRY_INFO!A13))) ->  | B13: =IF(INTRO!$E$39<>"Non-endemic", " ", IF(INTRO!$E$37="Non-endemic"," ", IF(COUNTRY_INFO!B13=0," ",COUNTRY_INFO!B13))) ->  | C13: =IF(INTRO!$E$39<>"Non-endemic", " ", IF(INTRO!$E$37="Non-endemic"," ", IF(COUNTRY_INFO!C13=0," ",COUNTRY_INFO!C13))) ->  | D13: =IF(INTRO!$E$39<>"Non-endemic", 0, IF(INTRO!$E$37="Non-endemic",0,IF(COUNTRY_INFO!$H13=1,COUNTRY_INFO!E13,0))) -> 0 | E13: =IF(INTRO!$E$39<>"Non-endemic", 0, IF(INTRO!$E$37="Non-endemic",0,IF(COUNTRY_INFO!$H13=1,COUNTRY_INFO!F13,0))) -> 0 | F13: =IF(INTRO!$E$39<>"Non-endemic", 0, IF(INTRO!$E$37="Non-endemic",0,IF(COUNTRY_INFO!$H13=1,COUNTRY_INFO!G13,0))) -> 0 | G13: 0 | H13: =IF(INTRO!$E$39="Non-endemic",IF(INTRO!$E$37="Non-endemic","Not required",COUNTRY_INFO!P13),"Treat with IVM") -> Treat with IVM | I13: 0 | J13: 0 | L13: 0 | M13: 0
A14: =IF(INTRO!$E$39<>"Non-endemic", " ", IF(INTRO!$E$37="Non-endemic"," ", IF(COUNTRY_INFO!A14=0," ",COUNTRY_INFO!A14))) ->  | B14: =IF(INTRO!$E$39<>"Non-endemic", " ", IF(INTRO!$E$37="Non-endemic"," ", IF(COUNTRY_INFO!B14=0," ",COUNTRY_INFO!B14))) ->  | C14: =IF(INTRO!$E$39<>"Non-endemic", " ", IF(INTRO!$E$37="Non-endemic"," ", IF(COUNTRY_INFO!C14=0," ",COUNTRY_INFO!C14))) ->  | D14: =IF(INTRO!$E$39<>"Non-endemic", 0, IF(INTRO!$E$37="Non-endemic",0,IF(COUNTRY_INFO!$H14=1,COUNTRY_INFO!E14,0))) -> 0 | E14: =IF(INTRO!$E$39<>"Non-endemic", 0, IF(INTRO!$E$37="Non-endemic",0,IF(COUNTRY_INFO!$H14=1,COUNTRY_INFO!F14,0))) -> 0 | F14: =IF(INTRO!$E$39<>"Non-endemic", 0, IF(INTRO!$E$37="Non-endemic",0,IF(COUNTRY_INFO!$H14=1,COUNTRY_INFO!G14,0))) -> 0 | G14: 0 | H14: =IF(INTRO!$E$39="Non-endemic",IF(INTRO!$E$37="Non-endemic","Not required",COUNTRY_INFO!P14),"Treat with IVM") -> Treat with IVM | I14: 0 | J14: 0 | L14: 0 | M14: 0
A15: =IF(INTRO!$E$39<>"Non-endemic", " ", IF(INTRO!$E$37="Non-endemic"," ", IF(COUNTRY_INFO!A15=0," ",COUNTRY_INFO!A15))) ->  | B15: =IF(INTRO!$E$39<>"Non-endemic", " ", IF(INTRO!$E$37="Non-endemic"," ", IF(COUNTRY_INFO!B15=0," ",COUNTRY_INFO!B15))) ->  | C15: =IF(INTRO!$E$39<>"Non-endemic", " ", IF(INTRO!$E$37="Non-endemic"," ", IF(COUNTRY_INFO!C15=0," ",COUNTRY_INFO!C15))) ->  | D15: =IF(INTRO!$E$39<>"Non-endemic", 0, IF(INTRO!$E$37="Non-endemic",0,IF(COUNTRY_INFO!$H15=1,COUNTRY_INFO!E15,0))) -> 0 | E15: =IF(INTRO!$E$39<>"Non-endemic", 0, IF(INTRO!$E$37="Non-endemic",0,IF(COUNTRY_INFO!$H15=1,COUNTRY_INFO!F15,0))) -> 0 | F15: =IF(INTRO!$E$39<>"Non-endemic", 0, IF(INTRO!$E$37="Non-endemic",0,IF(COUNTRY_INFO!$H15=1,COUNTRY_INFO!G15,0))) -> 0 | G15: 0 | H15: =IF(INTRO!$E$39="Non-endemic",IF(INTRO!$E$37="Non-endemic","Not required",COUNTRY_INFO!P15),"Treat with IVM") -> Treat with IVM | I15: 0 | J15: 0 | L15: 0 | M15: 0
A16: =IF(INTRO!$E$39<>"Non-endemic", " ", IF(INTRO!$E$37="Non-endemic"," ", IF(COUNTRY_INFO!A16=0," ",COUNTRY_INFO!A16))) ->  | B16: =IF(INTRO!$E$39<>"Non-endemic", " ", IF(INTRO!$E$37="Non-endemic"," ", IF(COUNTRY_INFO!B16=0," ",COUNTRY_INFO!B16))) ->  | C16: =IF(INTRO!$E$39<>"Non-endemic", " ", IF(INTRO!$E$37="Non-endemic"," ", IF(COUNTRY_INFO!C16=0," ",COUNTRY_INFO!C16))) ->  | D16: =IF(INTRO!$E$39<>"Non-endemic", 0, IF(INTRO!$E$37="Non-endemic",0,IF(COUNTRY_INFO!$H16=1,COUNTRY_INFO!E16,0))) -> 0 | E16: =IF(INTRO!$E$39<>"Non-endemic", 0, IF(INTRO!$E$37="Non-endemic",0,IF(COUNTRY_INFO!$H16=1,COUNTRY_INFO!F16,0))) -> 0 | F16: =IF(INTRO!$E$39<>"Non-endemic", 0, IF(INTRO!$E$37="Non-endemic",0,IF(COUNTRY_INFO!$H16=1,COUNTRY_INFO!G16,0))) -> 0 | G16: 0 | H16: =IF(INTRO!$E$39="Non-endemic",IF(INTRO!$E$37="Non-endemic","Not required",COUNTRY_INFO!P16),"Treat with IVM") -> Treat with IVM | I16: 0 | J16: 0 | L16: 0 | M16: 0
A17: =IF(INTRO!$E$39<>"Non-endemic", " ", IF(INTRO!$E$37="Non-endemic"," ", IF(COUNTRY_INFO!A17=0," ",COUNTRY_INFO!A17))) ->  | B17: =IF(INTRO!$E$39<>"Non-endemic", " ", IF(INTRO!$E$37="Non-endemic"," ", IF(COUNTRY_INFO!B17=0," ",COUNTRY_INFO!B17))) ->  | C17: =IF(INTRO!$E$39<>"Non-endemic", " ", IF(INTRO!$E$37="Non-endemic"," ", IF(COUNTRY_INFO!C17=0," ",COUNTRY_INFO!C17))) ->  | D17: =IF(INTRO!$E$39<>"Non-endemic", 0, IF(INTRO!$E$37="Non-endemic",0,IF(COUNTRY_INFO!$H17=1,COUNTRY_INFO!E17,0))) -> 0 | E17: =IF(INTRO!$E$39<>"Non-endemic", 0, IF(INTRO!$E$37="Non-endemic",0,IF(COUNTRY_INFO!$H17=1,COUNTRY_INFO!F17,0))) -> 0 | F17: =IF(INTRO!$E$39<>"Non-endemic", 0, IF(INTRO!$E$37="Non-endemic",0,IF(COUNTRY_INFO!$H17=1,COUNTRY_INFO!G17,0))) -> 0 | G17: 0 | H17: =IF(INTRO!$E$39="Non-endemic",IF(INTRO!$E$37="Non-endemic","Not required",COUNTRY_INFO!P17),"Treat with IVM") -> Treat with IVM | I17: 0 | J17: 0 | L17: 0 | M17: 0
A18: =IF(INTRO!$E$39<>"Non-endemic", " ", IF(INTRO!$E$37="Non-endemic"," ", IF(COUNTRY_INFO!A18=0," ",COUNTRY_INFO!A18))) ->  | B18: =IF(INTRO!$E$39<>"Non-endemic", " ", IF(INTRO!$E$37="Non-endemic"," ", IF(COUNTRY_INFO!B18=0," ",COUNTRY_INFO!B18))) ->  | C18: =IF(INTRO!$E$39<>"Non-endemic", " ", IF(INTRO!$E$37="Non-endemic"," ", IF(COUNTRY_INFO!C18=0," ",COUNTRY_INFO!C18))) ->  | D18: =IF(INTRO!$E$39<>"Non-endemic", 0, IF(INTRO!$E$37="Non-endemic",0,IF(COUNTRY_INFO!$H18=1,COUNTRY_INFO!E18,0))) -> 0 | E18: =IF(INTRO!$E$39<>"Non-endemic", 0, IF(INTRO!$E$37="Non-endemic",0,IF(COUNTRY_INFO!$H18=1,COUNTRY_INFO!F18,0))) -> 0 | F18: =IF(INTRO!$E$39<>"Non-endemic", 0, IF(INTRO!$E$37="Non-endemic",0,IF(COUNTRY_INFO!$H18=1,COUNTRY_INFO!G18,0))) -> 0 | G18: 0 | H18: =IF(INTRO!$E$39="Non-endemic",IF(INTRO!$E$37="Non-endemic","Not required",COUNTRY_INFO!P18),"Treat with IVM") -> Treat with IVM | I18: 0 | J18: 0 | L18: 0 | M18: 0
A19: =IF(INTRO!$E$39<>"Non-endemic", " ", IF(INTRO!$E$37="Non-endemic"," ", IF(COUNTRY_INFO!A19=0," ",COUNTRY_INFO!A19))) ->  | B19: =IF(INTRO!$E$39<>"Non-endemic", " ", IF(INTRO!$E$37="Non-endemic"," ", IF(COUNTRY_INFO!B19=0," ",COUNTRY_INFO!B19))) ->  | C19: =IF(INTRO!$E$39<>"Non-endemic", " ", IF(INTRO!$E$37="Non-endemic"," ", IF(COUNTRY_INFO!C19=0," ",COUNTRY_INFO!C19))) ->  | D19: =IF(INTRO!$E$39<>"Non-endemic", 0, IF(INTRO!$E$37="Non-endemic",0,IF(COUNTRY_INFO!$H19=1,COUNTRY_INFO!E19,0))) -> 0 | E19: =IF(INTRO!$E$39<>"Non-endemic", 0, IF(INTRO!$E$37="Non-endemic",0,IF(COUNTRY_INFO!$H19=1,COUNTRY_INFO!F19,0))) -> 0 | F19: =IF(INTRO!$E$39<>"Non-endemic", 0, IF(INTRO!$E$37="Non-endemic",0,IF(COUNTRY_INFO!$H19=1,COUNTRY_INFO!G19,0))) -> 0 | G19: 0 | H19: =IF(INTRO!$E$39="Non-endemic",IF(INTRO!$E$37="Non-endemic","Not required",COUNTRY_INFO!P19),"Treat with IVM") -> Treat with IVM | I19: 0 | J19: 0 | L19: 0 | M19: 0
A20: =IF(INTRO!$E$39<>"Non-endemic", " ", IF(INTRO!$E$37="Non-endemic"," ", IF(COUNTRY_INFO!A20=0," ",COUNTRY_INFO!A20))) ->  | B20: =IF(INTRO!$E$39<>"Non-endemic", " ", IF(INTRO!$E$37="Non-endemic"," ", IF(COUNTRY_INFO!B20=0," ",COUNTRY_INFO!B20))) ->  | C20: =IF(INTRO!$E$39<>"Non-endemic", " ", IF(INTRO!$E$37="Non-endemic"," ", IF(COUNTRY_INFO!C20=0," ",COUNTRY_INFO!C20))) ->  | D20: =IF(INTRO!$E$39<>"Non-endemic", 0, IF(INTRO!$E$37="Non-endemic",0,IF(COUNTRY_INFO!$H20=1,COUNTRY_INFO!E20,0))) -> 0 | E20: =IF(INTRO!$E$39<>"Non-endemic", 0, IF(INTRO!$E$37="Non-endemic",0,IF(COUNTRY_INFO!$H20=1,COUNTRY_INFO!F20,0))) -> 0 | F20: =IF(INTRO!$E$39<>"Non-endemic", 0, IF(INTRO!$E$37="Non-endemic",0,IF(COUNTRY_INFO!$H20=1,COUNTRY_INFO!G20,0))) -> 0 | G20: 0 | H20: =IF(INTRO!$E$39="Non-endemic",IF(INTRO!$E$37="Non-endemic","Not required",COUNTRY_INFO!P20),"Treat with IVM") -> Treat with IVM | I20: 0 | J20: 0 | L20: 0 | M20: 0
A21: =IF(INTRO!$E$39<>"Non-endemic", " ", IF(INTRO!$E$37="Non-endemic"," ", IF(COUNTRY_INFO!A21=0," ",COUNTRY_INFO!A21))) ->  | B21: =IF(INTRO!$E$39<>"Non-endemic", " ", IF(INTRO!$E$37="Non-endemic"," ", IF(COUNTRY_INFO!B21=0," ",COUNTRY_INFO!B21))) ->  | C21: =IF(INTRO!$E$39<>"Non-endemic", " ", IF(INTRO!$E$37="Non-endemic"," ", IF(COUNTRY_INFO!C21=0," ",COUNTRY_INFO!C21))) ->  | D21: =IF(INTRO!$E$39<>"Non-endemic", 0, IF(INTRO!$E$37="Non-endemic",0,IF(COUNTRY_INFO!$H21=1,COUNTRY_INFO!E21,0))) -> 0 | E21: =IF(INTRO!$E$39<>"Non-endemic", 0, IF(INTRO!$E$37="Non-endemic",0,IF(COUNTRY_INFO!$H21=1,COUNTRY_INFO!F21,0))) -> 0 | F21: =IF(INTRO!$E$39<>"Non-endemic", 0, IF(INTRO!$E$37="Non-endemic",0,IF(COUNTRY_INFO!$H21=1,COUNTRY_INFO!G21,0))) -> 0 | G21: 0 | H21: =IF(INTRO!$E$39="Non-endemic",IF(INTRO!$E$37="Non-endemic","Not required",COUNTRY_INFO!P21),"Treat with IVM") -> Treat with IVM | I21: 0 | J21: 0 | L21: 0 | M21: 0
A22: =IF(INTRO!$E$39<>"Non-endemic", " ", IF(INTRO!$E$37="Non-endemic"," ", IF(COUNTRY_INFO!A22=0," ",COUNTRY_INFO!A22))) ->  | B22: =IF(INTRO!$E$39<>"Non-endemic", " ", IF(INTRO!$E$37="Non-endemic"," ", IF(COUNTRY_INFO!B22=0," ",COUNTRY_INFO!B22))) ->  | C22: =IF(INTRO!$E$39<>"Non-endemic", " ", IF(INTRO!$E$37="Non-endemic"," ", IF(COUNTRY_INFO!C22=0," ",COUNTRY_INFO!C22))) ->  | D22: =IF(INTRO!$E$39<>"Non-endemic", 0, IF(INTRO!$E$37="Non-endemic",0,IF(COUNTRY_INFO!$H22=1,COUNTRY_INFO!E22,0))) -> 0 | E22: =IF(INTRO!$E$39<>"Non-endemic", 0, IF(INTRO!$E$37="Non-endemic",0,IF(COUNTRY_INFO!$H22=1,COUNTRY_INFO!F22,0))) -> 0 | F22: =IF(INTRO!$E$39<>"Non-endemic", 0, IF(INTRO!$E$37="Non-endemic",0,IF(COUNTRY_INFO!$H22=1,COUNTRY_INFO!G22,0))) -> 0 | G22: 0 | H22: =IF(INTRO!$E$39="Non-endemic",IF(INTRO!$E$37="Non-endemic","Not required",COUNTRY_INFO!P22),"Treat with IVM") -> Treat with IVM | I22: 0 | J22: 0 | L22: 0 | M22: 0
A23: =IF(INTRO!$E$39<>"Non-endemic", " ", IF(INTRO!$E$37="Non-endemic"," ", IF(COUNTRY_INFO!A23=0," ",COUNTRY_INFO!A23))) ->  | B23: =IF(INTRO!$E$39<>"Non-endemic", " ", IF(INTRO!$E$37="Non-endemic"," ", IF(COUNTRY_INFO!B23=0," ",COUNTRY_INFO!B23))) ->  | C23: =IF(INTRO!$E$39<>"Non-endemic", " ", IF(INTRO!$E$37="Non-endemic"," ", IF(COUNTRY_INFO!C23=0," ",COUNTRY_INFO!C23))) ->  | D23: =IF(INTRO!$E$39<>"Non-endemic", 0, IF(INTRO!$E$37="Non-endemic",0,IF(COUNTRY_INFO!$H23=1,COUNTRY_INFO!E23,0))) -> 0 | E23: =IF(INTRO!$E$39<>"Non-endemic", 0, IF(INTRO!$E$37="Non-endemic",0,IF(COUNTRY_INFO!$H23=1,COUNTRY_INFO!F23,0))) -> 0 | F23: =IF(INTRO!$E$39<>"Non-endemic", 0, IF(INTRO!$E$37="Non-endemic",0,IF(COUNTRY_INFO!$H23=1,COUNTRY_INFO!G23,0))) -> 0 | G23: 0 | H23: =IF(INTRO!$E$39="Non-endemic",IF(INTRO!$E$37="Non-endemic","Not required",COUNTRY_INFO!P23),"Treat with IVM") -> Treat with IVM | I23: 0 | J23: 0 | L23: 0 | M23: 0
A24: =IF(INTRO!$E$39<>"Non-endemic", " ", IF(INTRO!$E$37="Non-endemic"," ", IF(COUNTRY_INFO!A24=0," ",COUNTRY_INFO!A24))) ->  | B24: =IF(INTRO!$E$39<>"Non-endemic", " ", IF(INTRO!$E$37="Non-endemic"," ", IF(COUNTRY_INFO!B24=0," ",COUNTRY_INFO!B24))) ->  | C24: =IF(INTRO!$E$39<>"Non-endemic", " ", IF(INTRO!$E$37="Non-endemic"," ", IF(COUNTRY_INFO!C24=0," ",COUNTRY_INFO!C24))) ->  | D24: =IF(INTRO!$E$39<>"Non-endemic", 0, IF(INTRO!$E$37="Non-endemic",0,IF(COUNTRY_INFO!$H24=1,COUNTRY_INFO!E24,0))) -> 0 | E24: =IF(INTRO!$E$39<>"Non-endemic", 0, IF(INTRO!$E$37="Non-endemic",0,IF(COUNTRY_INFO!$H24=1,COUNTRY_INFO!F24,0))) -> 0 | F24: =IF(INTRO!$E$39<>"Non-endemic", 0, IF(INTRO!$E$37="Non-endemic",0,IF(COUNTRY_INFO!$H24=1,COUNTRY_INFO!G24,0))) -> 0 | G24: 0 | H24: =IF(INTRO!$E$39="Non-endemic",IF(INTRO!$E$37="Non-endemic","Not required",COUNTRY_INFO!P24),"Treat with IVM") -> Treat with IVM | I24: 0 | J24: 0 | L24: 0 | M24: 0
A25: =IF(INTRO!$E$39<>"Non-endemic", " ", IF(INTRO!$E$37="Non-endemic"," ", IF(COUNTRY_INFO!A25=0," ",COUNTRY_INFO!A25))) ->  | B25: =IF(INTRO!$E$39<>"Non-endemic", " ", IF(INTRO!$E$37="Non-endemic"," ", IF(COUNTRY_INFO!B25=0," ",COUNTRY_INFO!B25))) ->  | C25: =IF(INTRO!$E$39<>"Non-endemic", " ", IF(INTRO!$E$37="Non-endemic"," ", IF(COUNTRY_INFO!C25=0," ",COUNTRY_INFO!C25))) ->  | D25: =IF(INTRO!$E$39<>"Non-endemic", 0, IF(INTRO!$E$37="Non-endemic",0,IF(COUNTRY_INFO!$H25=1,COUNTRY_INFO!E25,0))) -> 0 | E25: =IF(INTRO!$E$39<>"Non-endemic", 0, IF(INTRO!$E$37="Non-endemic",0,IF(COUNTRY_INFO!$H25=1,COUNTRY_INFO!F25,0))) -> 0 | F25: =IF(INTRO!$E$39<>"Non-endemic", 0, IF(INTRO!$E$37="Non-endemic",0,IF(COUNTRY_INFO!$H25=1,COUNTRY_INFO!G25,0))) -> 0 | G25: 0 | H25: =IF(INTRO!$E$39="Non-endemic",IF(INTRO!$E$37="Non-endemic","Not required",COUNTRY_INFO!P25),"Treat with IVM") -> Treat with IVM | I25: 0 | J25: 0 | L25: 0 | M25: 0
A26: =IF(INTRO!$E$39<>"Non-endemic", " ", IF(INTRO!$E$37="Non-endemic"," ", IF(COUNTRY_INFO!A26=0," ",COUNTRY_INFO!A26))) ->  | B26: =IF(INTRO!$E$39<>"Non-endemic", " ", IF(INTRO!$E$37="Non-endemic"," ", IF(COUNTRY_INFO!B26=0," ",COUNTRY_INFO!B26))) ->  | C26: =IF(INTRO!$E$39<>"Non-endemic", " ", IF(INTRO!$E$37="Non-endemic"," ", IF(COUNTRY_INFO!C26=0," ",COUNTRY_INFO!C26))) ->  | D26: =IF(INTRO!$E$39<>"Non-endemic", 0, IF(INTRO!$E$37="Non-endemic",0,IF(COUNTRY_INFO!$H26=1,COUNTRY_INFO!E26,0))) -> 0 | E26: =IF(INTRO!$E$39<>"Non-endemic", 0, IF(INTRO!$E$37="Non-endemic",0,IF(COUNTRY_INFO!$H26=1,COUNTRY_INFO!F26,0))) -> 0 | F26: =IF(INTRO!$E$39<>"Non-endemic", 0, IF(INTRO!$E$37="Non-endemic",0,IF(COUNTRY_INFO!$H26=1,COUNTRY_INFO!G26,0))) -> 0 | G26: 0 | H26: =IF(INTRO!$E$39="Non-endemic",IF(INTRO!$E$37="Non-endemic","Not required",COUNTRY_INFO!P26),"Treat with IVM") -> Treat with IVM | I26: 0 | J26: 0 | L26: 0 | M26: 0
A27: =IF(INTRO!$E$39<>"Non-endemic", " ", IF(INTRO!$E$37="Non-endemic"," ", IF(COUNTRY_INFO!A27=0," ",COUNTRY_INFO!A27))) ->  | B27: =IF(INTRO!$E$39<>"Non-endemic", " ", IF(INTRO!$E$37="Non-endemic"," ", IF(COUNTRY_INFO!B27=0," ",COUNTRY_INFO!B27))) ->  | C27: =IF(INTRO!$E$39<>"Non-endemic", " ", IF(INTRO!$E$37="Non-endemic"," ", IF(COUNTRY_INFO!C27=0," ",COUNTRY_INFO!C27))) ->  | D27: =IF(INTRO!$E$39<>"Non-endemic", 0, IF(INTRO!$E$37="Non-endemic",0,IF(COUNTRY_INFO!$H27=1,COUNTRY_INFO!E27,0))) -> 0 | E27: =IF(INTRO!$E$39<>"Non-endemic", 0, IF(INTRO!$E$37="Non-endemic",0,IF(COUNTRY_INFO!$H27=1,COUNTRY_INFO!F27,0))) -> 0 | F27: =IF(INTRO!$E$39<>"Non-endemic", 0, IF(INTRO!$E$37="Non-endemic",0,IF(COUNTRY_INFO!$H27=1,COUNTRY_INFO!G27,0))) -> 0 | G27: 0 | H27: =IF(INTRO!$E$39="Non-endemic",IF(INTRO!$E$37="Non-endemic","Not required",COUNTRY_INFO!P27),"Treat with IVM") -> Treat with IVM | I27: 0 | J27: 0 | L27: 0 | M27: 0
A28: =IF(INTRO!$E$39<>"Non-endemic", " ", IF(INTRO!$E$37="Non-endemic"," ", IF(COUNTRY_INFO!A28=0," ",COUNTRY_INFO!A28))) ->  | B28: =IF(INTRO!$E$39<>"Non-endemic", " ", IF(INTRO!$E$37="Non-endemic"," ", IF(COUNTRY_INFO!B28=0," ",COUNTRY_INFO!B28))) ->  | C28: =IF(INTRO!$E$39<>"Non-endemic", " ", IF(INTRO!$E$37="Non-endemic"," ", IF(COUNTRY_INFO!C28=0," ",COUNTRY_INFO!C28))) ->  | D28: =IF(INTRO!$E$39<>"Non-endemic", 0, IF(INTRO!$E$37="Non-endemic",0,IF(COUNTRY_INFO!$H28=1,COUNTRY_INFO!E28,0))) -> 0 | E28: =IF(INTRO!$E$39<>"Non-endemic", 0, IF(INTRO!$E$37="Non-endemic",0,IF(COUNTRY_INFO!$H28=1,COUNTRY_INFO!F28,0))) -> 0 | F28: =IF(INTRO!$E$39<>"Non-endemic", 0, IF(INTRO!$E$37="Non-endemic",0,IF(COUNTRY_INFO!$H28=1,COUNTRY_INFO!G28,0))) -> 0 | G28: 0 | H28: =IF(INTRO!$E$39="Non-endemic",IF(INTRO!$E$37="Non-endemic","Not required",COUNTRY_INFO!P28),"Treat with IVM") -> Treat with IVM | I28: 0 | J28: 0 | L28: 0 | M28: 0
A29: =IF(INTRO!$E$39<>"Non-endemic", " ", IF(INTRO!$E$37="Non-endemic"," ", IF(COUNTRY_INFO!A29=0," ",COUNTRY_INFO!A29))) ->  | B29: =IF(INTRO!$E$39<>"Non-endemic", " ", IF(INTRO!$E$37="Non-endemic"," ", IF(COUNTRY_INFO!B29=0," ",COUNTRY_INFO!B29))) ->  | C29: =IF(INTRO!$E$39<>"Non-endemic", " ", IF(INTRO!$E$37="Non-endemic"," ", IF(COUNTRY_INFO!C29=0," ",COUNTRY_INFO!C29))) ->  | D29: =IF(INTRO!$E$39<>"Non-endemic", 0, IF(INTRO!$E$37="Non-endemic",0,IF(COUNTRY_INFO!$H29=1,COUNTRY_INFO!E29,0))) -> 0 | E29: =IF(INTRO!$E$39<>"Non-endemic", 0, IF(INTRO!$E$37="Non-endemic",0,IF(COUNTRY_INFO!$H29=1,COUNTRY_INFO!F29,0))) -> 0 | F29: =IF(INTRO!$E$39<>"Non-endemic", 0, IF(INTRO!$E$37="Non-endemic",0,IF(COUNTRY_INFO!$H29=1,COUNTRY_INFO!G29,0))) -> 0 | G29: 0 | H29: =IF(INTRO!$E$39="Non-endemic",IF(INTRO!$E$37="Non-endemic","Not required",COUNTRY_INFO!P29),"Treat with IVM") -> Treat with IVM | I29: 0 | J29: 0 | L29: 0 | M29: 0
A30: =IF(INTRO!$E$39<>"Non-endemic", " ", IF(INTRO!$E$37="Non-endemic"," ", IF(COUNTRY_INFO!A30=0," ",COUNTRY_INFO!A30))) ->  | B30: =IF(INTRO!$E$39<>"Non-endemic", " ", IF(INTRO!$E$37="Non-endemic"," ", IF(COUNTRY_INFO!B30=0," ",COUNTRY_INFO!B30))) ->  | C30: =IF(INTRO!$E$39<>"Non-endemic", " ", IF(INTRO!$E$37="Non-endemic"," ", IF(COUNTRY_INFO!C30=0," ",COUNTRY_INFO!C30))) ->  | D30: =IF(INTRO!$E$39<>"Non-endemic", 0, IF(INTRO!$E$37="Non-endemic",0,IF(COUNTRY_INFO!$H30=1,COUNTRY_INFO!E30,0))) -> 0 | E30: =IF(INTRO!$E$39<>"Non-endemic", 0, IF(INTRO!$E$37="Non-endemic",0,IF(COUNTRY_INFO!$H30=1,COUNTRY_INFO!F30,0))) -> 0 | F30: =IF(INTRO!$E$39<>"Non-endemic", 0, IF(INTRO!$E$37="Non-endemic",0,IF(COUNTRY_INFO!$H30=1,COUNTRY_INFO!G30,0))) -> 0 | G30: 0 | H30: =IF(INTRO!$E$39="Non-endemic",IF(INTRO!$E$37="Non-endemic","Not required",COUNTRY_INFO!P30),"Treat with IVM") -> Treat with IVM | I30: 0 | J30: 0 | L30: 0 | M30: 0
A31: =IF(INTRO!$E$39<>"Non-endemic", " ", IF(INTRO!$E$37="Non-endemic"," ", IF(COUNTRY_INFO!A31=0," ",COUNTRY_INFO!A31))) ->  | B31: =IF(INTRO!$E$39<>"Non-endemic", " ", IF(INTRO!$E$37="Non-endemic"," ", IF(COUNTRY_INFO!B31=0," ",COUNTRY_INFO!B31))) ->  | C31: =IF(INTRO!$E$39<>"Non-endemic", " ", IF(INTRO!$E$37="Non-endemic"," ", IF(COUNTRY_INFO!C31=0," ",COUNTRY_INFO!C31))) ->  | D31: =IF(INTRO!$E$39<>"Non-endemic", 0, IF(INTRO!$E$37="Non-endemic",0,IF(COUNTRY_INFO!$H31=1,COUNTRY_INFO!E31,0))) -> 0 | E31: =IF(INTRO!$E$39<>"Non-endemic", 0, IF(INTRO!$E$37="Non-endemic",0,IF(COUNTRY_INFO!$H31=1,COUNTRY_INFO!F31,0))) -> 0 | F31: =IF(INTRO!$E$39<>"Non-endemic", 0, IF(INTRO!$E$37="Non-endemic",0,IF(COUNTRY_INFO!$H31=1,COUNTRY_INFO!G31,0))) -> 0 | G31: 0 | H31: =IF(INTRO!$E$39="Non-endemic",IF(INTRO!$E$37="Non-endemic","Not required",COUNTRY_INFO!P31),"Treat with IVM") -> Treat with IVM | I31: 0 | J31: 0 | L31: 0 | M31: 0
A32: =IF(INTRO!$E$39<>"Non-endemic", " ", IF(INTRO!$E$37="Non-endemic"," ", IF(COUNTRY_INFO!A32=0," ",COUNTRY_INFO!A32))) ->  | B32: =IF(INTRO!$E$39<>"Non-endemic", " ", IF(INTRO!$E$37="Non-endemic"," ", IF(COUNTRY_INFO!B32=0," ",COUNTRY_INFO!B32))) ->  | C32: =IF(INTRO!$E$39<>"Non-endemic", " ", IF(INTRO!$E$37="Non-endemic"," ", IF(COUNTRY_INFO!C32=0," ",COUNTRY_INFO!C32))) ->  | D32: =IF(INTRO!$E$39<>"Non-endemic", 0, IF(INTRO!$E$37="Non-endemic",0,IF(COUNTRY_INFO!$H32=1,COUNTRY_INFO!E32,0))) -> 0 | E32: =IF(INTRO!$E$39<>"Non-endemic", 0, IF(INTRO!$E$37="Non-endemic",0,IF(COUNTRY_INFO!$H32=1,COUNTRY_INFO!F32,0))) -> 0 | F32: =IF(INTRO!$E$39<>"Non-endemic", 0, IF(INTRO!$E$37="Non-endemic",0,IF(COUNTRY_INFO!$H32=1,COUNTRY_INFO!G32,0))) -> 0 | G32: 0 | H32: =IF(INTRO!$E$39="Non-endemic",IF(INTRO!$E$37="Non-endemic","Not required",COUNTRY_INFO!P32),"Treat with IVM") -> Treat with IVM | I32: 0 | J32: 0 | L32: 0 | M32: 0
A33: =IF(INTRO!$E$39<>"Non-endemic", " ", IF(INTRO!$E$37="Non-endemic"," ", IF(COUNTRY_INFO!A33=0," ",COUNTRY_INFO!A33))) ->  | B33: =IF(INTRO!$E$39<>"Non-endemic", " ", IF(INTRO!$E$37="Non-endemic"," ", IF(COUNTRY_INFO!B33=0," ",COUNTRY_INFO!B33))) ->  | C33: =IF(INTRO!$E$39<>"Non-endemic", " ", IF(INTRO!$E$37="Non-endemic"," ", IF(COUNTRY_INFO!C33=0," ",COUNTRY_INFO!C33))) ->  | D33: =IF(INTRO!$E$39<>"Non-endemic", 0, IF(INTRO!$E$37="Non-endemic",0,IF(COUNTRY_INFO!$H33=1,COUNTRY_INFO!E33,0))) -> 0 | E33: =IF(INTRO!$E$39<>"Non-endemic", 0, IF(INTRO!$E$37="Non-endemic",0,IF(COUNTRY_INFO!$H33=1,COUNTRY_INFO!F33,0))) -> 0 | F33: =IF(INTRO!$E$39<>"Non-endemic", 0, IF(INTRO!$E$37="Non-endemic",0,IF(COUNTRY_INFO!$H33=1,COUNTRY_INFO!G33,0))) -> 0 | G33: 0 | H33: =IF(INTRO!$E$39="Non-endemic",IF(INTRO!$E$37="Non-endemic","Not required",COUNTRY_INFO!P33),"Treat with IVM") -> Treat with IVM | I33: 0 | J33: 0 | L33: 0 | M33: 0
A34: =IF(INTRO!$E$39<>"Non-endemic", " ", IF(INTRO!$E$37="Non-endemic"," ", IF(COUNTRY_INFO!A34=0," ",COUNTRY_INFO!A34))) ->  | B34: =IF(INTRO!$E$39<>"Non-endemic", " ", IF(INTRO!$E$37="Non-endemic"," ", IF(COUNTRY_INFO!B34=0," ",COUNTRY_INFO!B34))) ->  | C34: =IF(INTRO!$E$39<>"Non-endemic", " ", IF(INTRO!$E$37="Non-endemic"," ", IF(COUNTRY_INFO!C34=0," ",COUNTRY_INFO!C34))) ->  | D34: =IF(INTRO!$E$39<>"Non-endemic", 0, IF(INTRO!$E$37="Non-endemic",0,IF(COUNTRY_INFO!$H34=1,COUNTRY_INFO!E34,0))) -> 0 | E34: =IF(INTRO!$E$39<>"Non-endemic", 0, IF(INTRO!$E$37="Non-endemic",0,IF(COUNTRY_INFO!$H34=1,COUNTRY_INFO!F34,0))) -> 0 | F34: =IF(INTRO!$E$39<>"Non-endemic", 0, IF(INTRO!$E$37="Non-endemic",0,IF(COUNTRY_INFO!$H34=1,COUNTRY_INFO!G34,0))) -> 0 | G34: 0 | H34: =IF(INTRO!$E$39="Non-endemic",IF(INTRO!$E$37="Non-endemic","Not required",COUNTRY_INFO!P34),"Treat with IVM") -> Treat with IVM | I34: 0 | J34: 0 | L34: 0 | M34: 0
A35: =IF(INTRO!$E$39<>"Non-endemic", " ", IF(INTRO!$E$37="Non-endemic"," ", IF(COUNTRY_INFO!A35=0," ",COUNTRY_INFO!A35))) ->  | B35: =IF(INTRO!$E$39<>"Non-endemic", " ", IF(INTRO!$E$37="Non-endemic"," ", IF(COUNTRY_INFO!B35=0," ",COUNTRY_INFO!B35))) ->  | C35: =IF(INTRO!$E$39<>"Non-endemic", " ", IF(INTRO!$E$37="Non-endemic"," ", IF(COUNTRY_INFO!C35=0," ",COUNTRY_INFO!C35))) ->  | D35: =IF(INTRO!$E$39<>"Non-endemic", 0, IF(INTRO!$E$37="Non-endemic",0,IF(COUNTRY_INFO!$H35=1,COUNTRY_INFO!E35,0))) -> 0 | E35: =IF(INTRO!$E$39<>"Non-endemic", 0, IF(INTRO!$E$37="Non-endemic",0,IF(COUNTRY_INFO!$H35=1,COUNTRY_INFO!F35,0))) -> 0 | F35: =IF(INTRO!$E$39<>"Non-endemic", 0, IF(INTRO!$E$37="Non-endemic",0,IF(COUNTRY_INFO!$H35=1,COUNTRY_INFO!G35,0))) -> 0 | G35: 0 | H35: =IF(INTRO!$E$39="Non-endemic",IF(INTRO!$E$37="Non-endemic","Not required",COUNTRY_INFO!P35),"Treat with IVM") -> Treat with IVM | I35: 0 | J35: 0 | L35: 0 | M35: 0
A36: =IF(INTRO!$E$39<>"Non-endemic", " ", IF(INTRO!$E$37="Non-endemic"," ", IF(COUNTRY_INFO!A36=0," ",COUNTRY_INFO!A36))) ->  | B36: =IF(INTRO!$E$39<>"Non-endemic", " ", IF(INTRO!$E$37="Non-endemic"," ", IF(COUNTRY_INFO!B36=0," ",COUNTRY_INFO!B36))) ->  | C36: =IF(INTRO!$E$39<>"Non-endemic", " ", IF(INTRO!$E$37="Non-endemic"," ", IF(COUNTRY_INFO!C36=0," ",COUNTRY_INFO!C36))) ->  | D36: =IF(INTRO!$E$39<>"Non-endemic", 0, IF(INTRO!$E$37="Non-endemic",0,IF(COUNTRY_INFO!$H36=1,COUNTRY_INFO!E36,0))) -> 0 | E36: =IF(INTRO!$E$39<>"Non-endemic", 0, IF(INTRO!$E$37="Non-endemic",0,IF(COUNTRY_INFO!$H36=1,COUNTRY_INFO!F36,0))) -> 0 | F36: =IF(INTRO!$E$39<>"Non-endemic", 0, IF(INTRO!$E$37="Non-endemic",0,IF(COUNTRY_INFO!$H36=1,COUNTRY_INFO!G36,0))) -> 0 | G36: 0 | H36: =IF(INTRO!$E$39="Non-endemic",IF(INTRO!$E$37="Non-endemic","Not required",COUNTRY_INFO!P36),"Treat with IVM") -> Treat with IVM | I36: 0 | J36: 0 | L36: 0 | M36: 0
A37: =IF(INTRO!$E$39<>"Non-endemic", " ", IF(INTRO!$E$37="Non-endemic"," ", IF(COUNTRY_INFO!A37=0," ",COUNTRY_INFO!A37))) ->  | B37: =IF(INTRO!$E$39<>"Non-endemic", " ", IF(INTRO!$E$37="Non-endemic"," ", IF(COUNTRY_INFO!B37=0," ",COUNTRY_INFO!B37))) ->  | C37: =IF(INTRO!$E$39<>"Non-endemic", " ", IF(INTRO!$E$37="Non-endemic"," ", IF(COUNTRY_INFO!C37=0," ",COUNTRY_INFO!C37))) ->  | D37: =IF(INTRO!$E$39<>"Non-endemic", 0, IF(INTRO!$E$37="Non-endemic",0,IF(COUNTRY_INFO!$H37=1,COUNTRY_INFO!E37,0))) -> 0 | E37: =IF(INTRO!$E$39<>"Non-endemic", 0, IF(INTRO!$E$37="Non-endemic",0,IF(COUNTRY_INFO!$H37=1,COUNTRY_INFO!F37,0))) -> 0 | F37: =IF(INTRO!$E$39<>"Non-endemic", 0, IF(INTRO!$E$37="Non-endemic",0,IF(COUNTRY_INFO!$H37=1,COUNTRY_INFO!G37,0))) -> 0 | G37: 0 | H37: =IF(INTRO!$E$39="Non-endemic",IF(INTRO!$E$37="Non-endemic","Not required",COUNTRY_INFO!P37),"Treat with IVM") -> Treat with IVM | I37: 0 | J37: 0 | L37: 0 | M37: 0
A38: =IF(INTRO!$E$39<>"Non-endemic", " ", IF(INTRO!$E$37="Non-endemic"," ", IF(COUNTRY_INFO!A38=0," ",COUNTRY_INFO!A38))) ->  | B38: =IF(INTRO!$E$39<>"Non-endemic", " ", IF(INTRO!$E$37="Non-endemic"," ", IF(COUNTRY_INFO!B38=0," ",COUNTRY_INFO!B38))) ->  | C38: =IF(INTRO!$E$39<>"Non-endemic", " ", IF(INTRO!$E$37="Non-endemic"," ", IF(COUNTRY_INFO!C38=0," ",COUNTRY_INFO!C38))) ->  | D38: =IF(INTRO!$E$39<>"Non-endemic", 0, IF(INTRO!$E$37="Non-endemic",0,IF(COUNTRY_INFO!$H38=1,COUNTRY_INFO!E38,0))) -> 0 | E38: =IF(INTRO!$E$39<>"Non-endemic", 0, IF(INTRO!$E$37="Non-endemic",0,IF(COUNTRY_INFO!$H38=1,COUNTRY_INFO!F38,0))) -> 0 | F38: =IF(INTRO!$E$39<>"Non-endemic", 0, IF(INTRO!$E$37="Non-endemic",0,IF(COUNTRY_INFO!$H38=1,COUNTRY_INFO!G38,0))) -> 0 | G38: 0 | H38: =IF(INTRO!$E$39="Non-endemic",IF(INTRO!$E$37="Non-endemic","Not required",COUNTRY_INFO!P38),"Treat with IVM") -> Treat with IVM | I38: 0 | J38: 0 | L38: 0 | M38: 0
A39: =IF(INTRO!$E$39<>"Non-endemic", " ", IF(INTRO!$E$37="Non-endemic"," ", IF(COUNTRY_INFO!A39=0," ",COUNTRY_INFO!A39))) ->  | B39: =IF(INTRO!$E$39<>"Non-endemic", " ", IF(INTRO!$E$37="Non-endemic"," ", IF(COUNTRY_INFO!B39=0," ",COUNTRY_INFO!B39))) ->  | C39: =IF(INTRO!$E$39<>"Non-endemic", " ", IF(INTRO!$E$37="Non-endemic"," ", IF(COUNTRY_INFO!C39=0," ",COUNTRY_INFO!C39))) ->  | D39: =IF(INTRO!$E$39<>"Non-endemic", 0, IF(INTRO!$E$37="Non-endemic",0,IF(COUNTRY_INFO!$H39=1,COUNTRY_INFO!E39,0))) -> 0 | E39: =IF(INTRO!$E$39<>"Non-endemic", 0, IF(INTRO!$E$37="Non-endemic",0,IF(COUNTRY_INFO!$H39=1,COUNTRY_INFO!F39,0))) -> 0 | F39: =IF(INTRO!$E$39<>"Non-endemic", 0, IF(INTRO!$E$37="Non-endemic",0,IF(COUNTRY_INFO!$H39=1,COUNTRY_INFO!G39,0))) -> 0 | G39: 0 | H39: =IF(INTRO!$E$39="Non-endemic",IF(INTRO!$E$37="Non-endemic","Not required",COUNTRY_INFO!P39),"Treat with IVM") -> Treat with IVM | I39: 0 | J39: 0 | L39: 0 | M39: 0
A40: =IF(INTRO!$E$39<>"Non-endemic", " ", IF(INTRO!$E$37="Non-endemic"," ", IF(COUNTRY_INFO!A40=0," ",COUNTRY_INFO!A40))) ->  | B40: =IF(INTRO!$E$39<>"Non-endemic", " ", IF(INTRO!$E$37="Non-endemic"," ", IF(COUNTRY_INFO!B40=0," ",COUNTRY_INFO!B40))) ->  | C40: =IF(INTRO!$E$39<>"Non-endemic", " ", IF(INTRO!$E$37="Non-endemic"," ", IF(COUNTRY_INFO!C40=0," ",COUNTRY_INFO!C40))) ->  | D40: =IF(INTRO!$E$39<>"Non-endemic", 0, IF(INTRO!$E$37="Non-endemic",0,IF(COUNTRY_INFO!$H40=1,COUNTRY_INFO!E40,0))) -> 0 | E40: =IF(INTRO!$E$39<>"Non-endemic", 0, IF(INTRO!$E$37="Non-endemic",0,IF(COUNTRY_INFO!$H40=1,COUNTRY_INFO!F40,0))) -> 0 | F40: =IF(INTRO!$E$39<>"Non-endemic", 0, IF(INTRO!$E$37="Non-endemic",0,IF(COUNTRY_INFO!$H40=1,COUNTRY_INFO!G40,0))) -> 0 | G40: 0 | H40: =IF(INTRO!$E$39="Non-endemic",IF(INTRO!$E$37="Non-endemic","Not required",COUNTRY_INFO!P40),"Treat with IVM") -> Treat with IVM | I40: 0 | J40: 0 | L40: 0 | M40: 0
A41: =IF(INTRO!$E$39<>"Non-endemic", " ", IF(INTRO!$E$37="Non-endemic"," ", IF(COUNTRY_INFO!A41=0," ",COUNTRY_INFO!A41))) ->  | B41: =IF(INTRO!$E$39<>"Non-endemic", " ", IF(INTRO!$E$37="Non-endemic"," ", IF(COUNTRY_INFO!B41=0," ",COUNTRY_INFO!B41))) ->  | C41: =IF(INTRO!$E$39<>"Non-endemic", " ", IF(INTRO!$E$37="Non-endemic"," ", IF(COUNTRY_INFO!C41=0," ",COUNTRY_INFO!C41))) ->  | D41: =IF(INTRO!$E$39<>"Non-endemic", 0, IF(INTRO!$E$37="Non-endemic",0,IF(COUNTRY_INFO!$H41=1,COUNTRY_INFO!E41,0))) -> 0 | E41: =IF(INTRO!$E$39<>"Non-endemic", 0, IF(INTRO!$E$37="Non-endemic",0,IF(COUNTRY_INFO!$H41=1,COUNTRY_INFO!F41,0))) -> 0 | F41: =IF(INTRO!$E$39<>"Non-endemic", 0, IF(INTRO!$E$37="Non-endemic",0,IF(COUNTRY_INFO!$H41=1,COUNTRY_INFO!G41,0))) -> 0 | G41: =SUM(D41:F41) -> 0 | H41: =IF(INTRO!$E$39="Non-endemic",IF(INTRO!$E$37="Non-endemic","Not required",COUNTRY_INFO!P41),"Treat with IVM") -> Treat with IVM | I41: =IF(H41=1,G41,0) -> 0 | J41: =IF(I41>0,I41*2.5,0) -> 0 | L41: =IF($J41>$K41,$J41-$K41,0) -> 0 | M41: =ROUNDUP($J41/1000,0) -> 0
A42: =IF(INTRO!$E$39<>"Non-endemic", " ", IF(INTRO!$E$37="Non-endemic"," ", IF(COUNTRY_INFO!A42=0," ",COUNTRY_INFO!A42))) ->  | B42: =IF(INTRO!$E$39<>"Non-endemic", " ", IF(INTRO!$E$37="Non-endemic"," ", IF(COUNTRY_INFO!B42=0," ",COUNTRY_INFO!B42))) ->  | C42: =IF(INTRO!$E$39<>"Non-endemic", " ", IF(INTRO!$E$37="Non-endemic"," ", IF(COUNTRY_INFO!C42=0," ",COUNTRY_INFO!C42))) ->  | D42: =IF(INTRO!$E$39<>"Non-endemic", 0, IF(INTRO!$E$37="Non-endemic",0,IF(COUNTRY_INFO!$H42=1,COUNTRY_INFO!E42,0))) -> 0 | E42: =IF(INTRO!$E$39<>"Non-endemic", 0, IF(INTRO!$E$37="Non-endemic",0,IF(COUNTRY_INFO!$H42=1,COUNTRY_INFO!F42,0))) -> 0 | F42: =IF(INTRO!$E$39<>"Non-endemic", 0, IF(INTRO!$E$37="Non-endemic",0,IF(COUNTRY_INFO!$H42=1,COUNTRY_INFO!G42,0))) -> 0 | G42: 0 | H42: =IF(INTRO!$E$39="Non-endemic",IF(INTRO!$E$37="Non-endemic","Not required",COUNTRY_INFO!P42),"Treat with IVM") -> Treat with IVM | I42: 0 | J42: 0 | L42: 0 | M42: 0
A43: =IF(INTRO!$E$39<>"Non-endemic", " ", IF(INTRO!$E$37="Non-endemic"," ", IF(COUNTRY_INFO!A43=0," ",COUNTRY_INFO!A43))) ->  | B43: =IF(INTRO!$E$39<>"Non-endemic", " ", IF(INTRO!$E$37="Non-endemic"," ", IF(COUNTRY_INFO!B43=0," ",COUNTRY_INFO!B43))) ->  | C43: =IF(INTRO!$E$39<>"Non-endemic", " ", IF(INTRO!$E$37="Non-endemic"," ", IF(COUNTRY_INFO!C43=0," ",COUNTRY_INFO!C43))) ->  | D43: =IF(INTRO!$E$39<>"Non-endemic", 0, IF(INTRO!$E$37="Non-endemic",0,IF(COUNTRY_INFO!$H43=1,COUNTRY_INFO!E43,0))) -> 0 | E43: =IF(INTRO!$E$39<>"Non-endemic", 0, IF(INTRO!$E$37="Non-endemic",0,IF(COUNTRY_INFO!$H43=1,COUNTRY_INFO!F43,0))) -> 0 | F43: =IF(INTRO!$E$39<>"Non-endemic", 0, IF(INTRO!$E$37="Non-endemic",0,IF(COUNTRY_INFO!$H43=1,COUNTRY_INFO!G43,0))) -> 0 | G43: 0 | H43: =IF(INTRO!$E$39="Non-endemic",IF(INTRO!$E$37="Non-endemic","Not required",COUNTRY_INFO!P43),"Treat with IVM") -> Treat with IVM | I43: 0 | J43: 0 | L43: 0 | M43: 0
A44: =IF(INTRO!$E$39<>"Non-endemic", " ", IF(INTRO!$E$37="Non-endemic"," ", IF(COUNTRY_INFO!A44=0," ",COUNTRY_INFO!A44))) ->  | B44: =IF(INTRO!$E$39<>"Non-endemic", " ", IF(INTRO!$E$37="Non-endemic"," ", IF(COUNTRY_INFO!B44=0," ",COUNTRY_INFO!B44))) ->  | C44: =IF(INTRO!$E$39<>"Non-endemic", " ", IF(INTRO!$E$37="Non-endemic"," ", IF(COUNTRY_INFO!C44=0," ",COUNTRY_INFO!C44))) ->  | D44: =IF(INTRO!$E$39<>"Non-endemic", 0, IF(INTRO!$E$37="Non-endemic",0,IF(COUNTRY_INFO!$H44=1,COUNTRY_INFO!E44,0))) -> 0 | E44: =IF(INTRO!$E$39<>"Non-endemic", 0, IF(INTRO!$E$37="Non-endemic",0,IF(COUNTRY_INFO!$H44=1,COUNTRY_INFO!F44,0))) -> 0 | F44: =IF(INTRO!$E$39<>"Non-endemic", 0, IF(INTRO!$E$37="Non-endemic",0,IF(COUNTRY_INFO!$H44=1,COUNTRY_INFO!G44,0))) -> 0 | G44: 0 | H44: =IF(INTRO!$E$39="Non-endemic",IF(INTRO!$E$37="Non-endemic","Not required",COUNTRY_INFO!P44),"Treat with IVM") -> Treat with IVM | I44: 0 | J44: 0 | L44: 0 | M44: 0
A45: =IF(INTRO!$E$39<>"Non-endemic", " ", IF(INTRO!$E$37="Non-endemic"," ", IF(COUNTRY_INFO!A45=0," ",COUNTRY_INFO!A45))) ->  | B45: =IF(INTRO!$E$39<>"Non-endemic", " ", IF(INTRO!$E$37="Non-endemic"," ", IF(COUNTRY_INFO!B45=0," ",COUNTRY_INFO!B45))) ->  | C45: =IF(INTRO!$E$39<>"Non-endemic", " ", IF(INTRO!$E$37="Non-endemic"," ", IF(COUNTRY_INFO!C45=0," ",COUNTRY_INFO!C45))) ->  | D45: =IF(INTRO!$E$39<>"Non-endemic", 0, IF(INTRO!$E$37="Non-endemic",0,IF(COUNTRY_INFO!$H45=1,COUNTRY_INFO!E45,0))) -> 0 | E45: =IF(INTRO!$E$39<>"Non-endemic", 0, IF(INTRO!$E$37="Non-endemic",0,IF(COUNTRY_INFO!$H45=1,COUNTRY_INFO!F45,0))) -> 0 | F45: =IF(INTRO!$E$39<>"Non-endemic", 0, IF(INTRO!$E$37="Non-endemic",0,IF(COUNTRY_INFO!$H45=1,COUNTRY_INFO!G45,0))) -> 0 | G45: 0 | H45: =IF(INTRO!$E$39="Non-endemic",IF(INTRO!$E$37="Non-endemic","Not required",COUNTRY_INFO!P45),"Treat with IVM") -> Treat with IVM | I45: 0 | J45: 0 | L45: 0 | M45: 0
A46: =IF(INTRO!$E$39<>"Non-endemic", " ", IF(INTRO!$E$37="Non-endemic"," ", IF(COUNTRY_INFO!A46=0," ",COUNTRY_INFO!A46))) ->  | B46: =IF(INTRO!$E$39<>"Non-endemic", " ", IF(INTRO!$E$37="Non-endemic"," ", IF(COUNTRY_INFO!B46=0," ",COUNTRY_INFO!B46))) ->  | C46: =IF(INTRO!$E$39<>"Non-endemic", " ", IF(INTRO!$E$37="Non-endemic"," ", IF(COUNTRY_INFO!C46=0," ",COUNTRY_INFO!C46))) ->  | D46: =IF(INTRO!$E$39<>"Non-endemic", 0, IF(INTRO!$E$37="Non-endemic",0,IF(COUNTRY_INFO!$H46=1,COUNTRY_INFO!E46,0))) -> 0 | E46: =IF(INTRO!$E$39<>"Non-endemic", 0, IF(INTRO!$E$37="Non-endemic",0,IF(COUNTRY_INFO!$H46=1,COUNTRY_INFO!F46,0))) -> 0 | F46: =IF(INTRO!$E$39<>"Non-endemic", 0, IF(INTRO!$E$37="Non-endemic",0,IF(COUNTRY_INFO!$H46=1,COUNTRY_INFO!G46,0))) -> 0 | G46: 0 | H46: =IF(INTRO!$E$39="Non-endemic",IF(INTRO!$E$37="Non-endemic","Not required",COUNTRY_INFO!P46),"Treat with IVM") -> Treat with IVM | I46: 0 | J46: 0 | L46: 0 | M46: 0
A47: =IF(INTRO!$E$39<>"Non-endemic", " ", IF(INTRO!$E$37="Non-endemic"," ", IF(COUNTRY_INFO!A47=0," ",COUNTRY_INFO!A47))) ->  | B47: =IF(INTRO!$E$39<>"Non-endemic", " ", IF(INTRO!$E$37="Non-endemic"," ", IF(COUNTRY_INFO!B47=0," ",COUNTRY_INFO!B47))) ->  | C47: =IF(INTRO!$E$39<>"Non-endemic", " ", IF(INTRO!$E$37="Non-endemic"," ", IF(COUNTRY_INFO!C47=0," ",COUNTRY_INFO!C47))) ->  | D47: =IF(INTRO!$E$39<>"Non-endemic", 0, IF(INTRO!$E$37="Non-endemic",0,IF(COUNTRY_INFO!$H47=1,COUNTRY_INFO!E47,0))) -> 0 | E47: =IF(INTRO!$E$39<>"Non-endemic", 0, IF(INTRO!$E$37="Non-endemic",0,IF(COUNTRY_INFO!$H47=1,COUNTRY_INFO!F47,0))) -> 0 | F47: =IF(INTRO!$E$39<>"Non-endemic", 0, IF(INTRO!$E$37="Non-endemic",0,IF(COUNTRY_INFO!$H47=1,COUNTRY_INFO!G47,0))) -> 0 | G47: 0 | H47: =IF(INTRO!$E$39="Non-endemic",IF(INTRO!$E$37="Non-endemic","Not required",COUNTRY_INFO!P47),"Treat with IVM") -> Treat with IVM | I47: 0 | J47: 0 | L47: 0 | M47: 0
A48: =IF(INTRO!$E$39<>"Non-endemic", " ", IF(INTRO!$E$37="Non-endemic"," ", IF(COUNTRY_INFO!A48=0," ",COUNTRY_INFO!A48))) ->  | B48: =IF(INTRO!$E$39<>"Non-endemic", " ", IF(INTRO!$E$37="Non-endemic"," ", IF(COUNTRY_INFO!B48=0," ",COUNTRY_INFO!B48))) ->  | C48: =IF(INTRO!$E$39<>"Non-endemic", " ", IF(INTRO!$E$37="Non-endemic"," ", IF(COUNTRY_INFO!C48=0," ",COUNTRY_INFO!C48))) ->  | D48: =IF(INTRO!$E$39<>"Non-endemic", 0, IF(INTRO!$E$37="Non-endemic",0,IF(COUNTRY_INFO!$H48=1,COUNTRY_INFO!E48,0))) -> 0 | E48: =IF(INTRO!$E$39<>"Non-endemic", 0, IF(INTRO!$E$37="Non-endemic",0,IF(COUNTRY_INFO!$H48=1,COUNTRY_INFO!F48,0))) -> 0 | F48: =IF(INTRO!$E$39<>"Non-endemic", 0, IF(INTRO!$E$37="Non-endemic",0,IF(COUNTRY_INFO!$H48=1,COUNTRY_INFO!G48,0))) -> 0 | G48: 0 | H48: =IF(INTRO!$E$39="Non-endemic",IF(INTRO!$E$37="Non-endemic","Not required",COUNTRY_INFO!P48),"Treat with IVM") -> Treat with IVM | I48: 0 | J48: 0 | L48: 0 | M48: 0
A49: =IF(INTRO!$E$39<>"Non-endemic", " ", IF(INTRO!$E$37="Non-endemic"," ", IF(COUNTRY_INFO!A49=0," ",COUNTRY_INFO!A49))) ->  | B49: =IF(INTRO!$E$39<>"Non-endemic", " ", IF(INTRO!$E$37="Non-endemic"," ", IF(COUNTRY_INFO!B49=0," ",COUNTRY_INFO!B49))) ->  | C49: =IF(INTRO!$E$39<>"Non-endemic", " ", IF(INTRO!$E$37="Non-endemic"," ", IF(COUNTRY_INFO!C49=0," ",COUNTRY_INFO!C49))) ->  | D49: =IF(INTRO!$E$39<>"Non-endemic", 0, IF(INTRO!$E$37="Non-endemic",0,IF(COUNTRY_INFO!$H49=1,COUNTRY_INFO!E49,0))) -> 0 | E49: =IF(INTRO!$E$39<>"Non-endemic", 0, IF(INTRO!$E$37="Non-endemic",0,IF(COUNTRY_INFO!$H49=1,COUNTRY_INFO!F49,0))) -> 0 | F49: =IF(INTRO!$E$39<>"Non-endemic", 0, IF(INTRO!$E$37="Non-endemic",0,IF(COUNTRY_INFO!$H49=1,COUNTRY_INFO!G49,0))) -> 0 | G49: 0 | H49: =IF(INTRO!$E$39="Non-endemic",IF(INTRO!$E$37="Non-endemic","Not required",COUNTRY_INFO!P49),"Treat with IVM") -> Treat with IVM | I49: 0 | J49: 0 | L49: 0 | M49: 0
A50: =IF(INTRO!$E$39<>"Non-endemic", " ", IF(INTRO!$E$37="Non-endemic"," ", IF(COUNTRY_INFO!A50=0," ",COUNTRY_INFO!A50))) ->  | B50: =IF(INTRO!$E$39<>"Non-endemic", " ", IF(INTRO!$E$37="Non-endemic"," ", IF(COUNTRY_INFO!B50=0," ",COUNTRY_INFO!B50))) ->  | C50: =IF(INTRO!$E$39<>"Non-endemic", " ", IF(INTRO!$E$37="Non-endemic"," ", IF(COUNTRY_INFO!C50=0," ",COUNTRY_INFO!C50))) ->  | D50: =IF(INTRO!$E$39<>"Non-endemic", 0, IF(INTRO!$E$37="Non-endemic",0,IF(COUNTRY_INFO!$H50=1,COUNTRY_INFO!E50,0))) -> 0 | E50: =IF(INTRO!$E$39<>"Non-endemic", 0, IF(INTRO!$E$37="Non-endemic",0,IF(COUNTRY_INFO!$H50=1,COUNTRY_INFO!F50,0))) -> 0 | F50: =IF(INTRO!$E$39<>"Non-endemic", 0, IF(INTRO!$E$37="Non-endemic",0,IF(COUNTRY_INFO!$H50=1,COUNTRY_INFO!G50,0))) -> 0 | G50: 0 | H50: =IF(INTRO!$E$39="Non-endemic",IF(INTRO!$E$37="Non-endemic","Not required",COUNTRY_INFO!P50),"Treat with IVM") -> Treat with IVM | I50: 0 | J50: 0 | L50: 0 | M50: 0
A51: =IF(INTRO!$E$39<>"Non-endemic", " ", IF(INTRO!$E$37="Non-endemic"," ", IF(COUNTRY_INFO!A51=0," ",COUNTRY_INFO!A51))) ->  | B51: =IF(INTRO!$E$39<>"Non-endemic", " ", IF(INTRO!$E$37="Non-endemic"," ", IF(COUNTRY_INFO!B51=0," ",COUNTRY_INFO!B51))) ->  | C51: =IF(INTRO!$E$39<>"Non-endemic", " ", IF(INTRO!$E$37="Non-endemic"," ", IF(COUNTRY_INFO!C51=0," ",COUNTRY_INFO!C51))) ->  | D51: =IF(INTRO!$E$39<>"Non-endemic", 0, IF(INTRO!$E$37="Non-endemic",0,IF(COUNTRY_INFO!$H51=1,COUNTRY_INFO!E51,0))) -> 0 | E51: =IF(INTRO!$E$39<>"Non-endemic", 0, IF(INTRO!$E$37="Non-endemic",0,IF(COUNTRY_INFO!$H51=1,COUNTRY_INFO!F51,0))) -> 0 | F51: =IF(INTRO!$E$39<>"Non-endemic", 0, IF(INTRO!$E$37="Non-endemic",0,IF(COUNTRY_INFO!$H51=1,COUNTRY_INFO!G51,0))) -> 0 | G51: 0 | H51: =IF(INTRO!$E$39="Non-endemic",IF(INTRO!$E$37="Non-endemic","Not required",COUNTRY_INFO!P51),"Treat with IVM") -> Treat with IVM | I51: 0 | J51: 0 | L51: 0 | M51: 0
A52: =IF(INTRO!$E$39<>"Non-endemic", " ", IF(INTRO!$E$37="Non-endemic"," ", IF(COUNTRY_INFO!A52=0," ",COUNTRY_INFO!A52))) ->  | B52: =IF(INTRO!$E$39<>"Non-endemic", " ", IF(INTRO!$E$37="Non-endemic"," ", IF(COUNTRY_INFO!B52=0," ",COUNTRY_INFO!B52))) ->  | C52: =IF(INTRO!$E$39<>"Non-endemic", " ", IF(INTRO!$E$37="Non-endemic"," ", IF(COUNTRY_INFO!C52=0," ",COUNTRY_INFO!C52))) ->  | D52: =IF(INTRO!$E$39<>"Non-endemic", 0, IF(INTRO!$E$37="Non-endemic",0,IF(COUNTRY_INFO!$H52=1,COUNTRY_INFO!E52,0))) -> 0 | E52: =IF(INTRO!$E$39<>"Non-endemic", 0, IF(INTRO!$E$37="Non-endemic",0,IF(COUNTRY_INFO!$H52=1,COUNTRY_INFO!F52,0))) -> 0 | F52: =IF(INTRO!$E$39<>"Non-endemic", 0, IF(INTRO!$E$37="Non-endemic",0,IF(COUNTRY_INFO!$H52=1,COUNTRY_INFO!G52,0))) -> 0 | G52: 0 | H52: =IF(INTRO!$E$39="Non-endemic",IF(INTRO!$E$37="Non-endemic","Not required",COUNTRY_INFO!P52),"Treat with IVM") -> Treat with IVM | I52: 0 | J52: 0 | L52: 0 | M52: 0
A53: =IF(INTRO!$E$39<>"Non-endemic", " ", IF(INTRO!$E$37="Non-endemic"," ", IF(COUNTRY_INFO!A53=0," ",COUNTRY_INFO!A53))) ->  | B53: =IF(INTRO!$E$39<>"Non-endemic", " ", IF(INTRO!$E$37="Non-endemic"," ", IF(COUNTRY_INFO!B53=0," ",COUNTRY_INFO!B53))) ->  | C53: =IF(INTRO!$E$39<>"Non-endemic", " ", IF(INTRO!$E$37="Non-endemic"," ", IF(COUNTRY_INFO!C53=0," ",COUNTRY_INFO!C53))) ->  | D53: =IF(INTRO!$E$39<>"Non-endemic", 0, IF(INTRO!$E$37="Non-endemic",0,IF(COUNTRY_INFO!$H53=1,COUNTRY_INFO!E53,0))) -> 0 | E53: =IF(INTRO!$E$39<>"Non-endemic", 0, IF(INTRO!$E$37="Non-endemic",0,IF(COUNTRY_INFO!$H53=1,COUNTRY_INFO!F53,0))) -> 0 | F53: =IF(INTRO!$E$39<>"Non-endemic", 0, IF(INTRO!$E$37="Non-endemic",0,IF(COUNTRY_INFO!$H53=1,COUNTRY_INFO!G53,0))) -> 0 | G53: 0 | H53: =IF(INTRO!$E$39="Non-endemic",IF(INTRO!$E$37="Non-endemic","Not required",COUNTRY_INFO!P53),"Treat with IVM") -> Treat with IVM | I53: 0 | J53: 0 | L53: 0 | M53: 0
A54: =IF(INTRO!$E$39<>"Non-endemic", " ", IF(INTRO!$E$37="Non-endemic"," ", IF(COUNTRY_INFO!A54=0," ",COUNTRY_INFO!A54))) ->  | B54: =IF(INTRO!$E$39<>"Non-endemic", " ", IF(INTRO!$E$37="Non-endemic"," ", IF(COUNTRY_INFO!B54=0," ",COUNTRY_INFO!B54))) ->  | C54: =IF(INTRO!$E$39<>"Non-endemic", " ", IF(INTRO!$E$37="Non-endemic"," ", IF(COUNTRY_INFO!C54=0," ",COUNTRY_INFO!C54))) ->  | D54: =IF(INTRO!$E$39<>"Non-endemic", 0, IF(INTRO!$E$37="Non-endemic",0,IF(COUNTRY_INFO!$H54=1,COUNTRY_INFO!E54,0))) -> 0 | E54: =IF(INTRO!$E$39<>"Non-endemic", 0, IF(INTRO!$E$37="Non-endemic",0,IF(COUNTRY_INFO!$H54=1,COUNTRY_INFO!F54,0))) -> 0 | F54: =IF(INTRO!$E$39<>"Non-endemic", 0, IF(INTRO!$E$37="Non-endemic",0,IF(COUNTRY_INFO!$H54=1,COUNTRY_INFO!G54,0))) -> 0 | G54: 0 | H54: =IF(INTRO!$E$39="Non-endemic",IF(INTRO!$E$37="Non-endemic","Not required",COUNTRY_INFO!P54),"Treat with IVM") -> Treat with IVM | I54: 0 | J54: 0 | L54: 0 | M54: 0
A55: =IF(INTRO!$E$39<>"Non-endemic", " ", IF(INTRO!$E$37="Non-endemic"," ", IF(COUNTRY_INFO!A55=0," ",COUNTRY_INFO!A55))) ->  | B55: =IF(INTRO!$E$39<>"Non-endemic", " ", IF(INTRO!$E$37="Non-endemic"," ", IF(COUNTRY_INFO!B55=0," ",COUNTRY_INFO!B55))) ->  | C55: =IF(INTRO!$E$39<>"Non-endemic", " ", IF(INTRO!$E$37="Non-endemic"," ", IF(COUNTRY_INFO!C55=0," ",COUNTRY_INFO!C55))) ->  | D55: =IF(INTRO!$E$39<>"Non-endemic", 0, IF(INTRO!$E$37="Non-endemic",0,IF(COUNTRY_INFO!$H55=1,COUNTRY_INFO!E55,0))) -> 0 | E55: =IF(INTRO!$E$39<>"Non-endemic", 0, IF(INTRO!$E$37="Non-endemic",0,IF(COUNTRY_INFO!$H55=1,COUNTRY_INFO!F55,0))) -> 0 | F55: =IF(INTRO!$E$39<>"Non-endemic", 0, IF(INTRO!$E$37="Non-endemic",0,IF(COUNTRY_INFO!$H55=1,COUNTRY_INFO!G55,0))) -> 0 | G55: 0 | H55: =IF(INTRO!$E$39="Non-endemic",IF(INTRO!$E$37="Non-endemic","Not required",COUNTRY_INFO!P55),"Treat with IVM") -> Treat with IVM | I55: 0 | J55: 0 | L55: 0 | M55: 0
A56: =IF(INTRO!$E$39<>"Non-endemic", " ", IF(INTRO!$E$37="Non-endemic"," ", IF(COUNTRY_INFO!A56=0," ",COUNTRY_INFO!A56))) ->  | B56: =IF(INTRO!$E$39<>"Non-endemic", " ", IF(INTRO!$E$37="Non-endemic"," ", IF(COUNTRY_INFO!B56=0," ",COUNTRY_INFO!B56))) ->  | C56: =IF(INTRO!$E$39<>"Non-endemic", " ", IF(INTRO!$E$37="Non-endemic"," ", IF(COUNTRY_INFO!C56=0," ",COUNTRY_INFO!C56))) ->  | D56: =IF(INTRO!$E$39<>"Non-endemic", 0, IF(INTRO!$E$37="Non-endemic",0,IF(COUNTRY_INFO!$H56=1,COUNTRY_INFO!E56,0))) -> 0 | E56: =IF(INTRO!$E$39<>"Non-endemic", 0, IF(INTRO!$E$37="Non-endemic",0,IF(COUNTRY_INFO!$H56=1,COUNTRY_INFO!F56,0))) -> 0 | F56: =IF(INTRO!$E$39<>"Non-endemic", 0, IF(INTRO!$E$37="Non-endemic",0,IF(COUNTRY_INFO!$H56=1,COUNTRY_INFO!G56,0))) -> 0 | G56: 0 | H56: =IF(INTRO!$E$39="Non-endemic",IF(INTRO!$E$37="Non-endemic","Not required",COUNTRY_INFO!P56),"Treat with IVM") -> Treat with IVM | I56: 0 | J56: 0 | L56: 0 | M56: 0
A57: =IF(INTRO!$E$39<>"Non-endemic", " ", IF(INTRO!$E$37="Non-endemic"," ", IF(COUNTRY_INFO!A57=0," ",COUNTRY_INFO!A57))) ->  | B57: =IF(INTRO!$E$39<>"Non-endemic", " ", IF(INTRO!$E$37="Non-endemic"," ", IF(COUNTRY_INFO!B57=0," ",COUNTRY_INFO!B57))) ->  | C57: =IF(INTRO!$E$39<>"Non-endemic", " ", IF(INTRO!$E$37="Non-endemic"," ", IF(COUNTRY_INFO!C57=0," ",COUNTRY_INFO!C57))) ->  | D57: =IF(INTRO!$E$39<>"Non-endemic", 0, IF(INTRO!$E$37="Non-endemic",0,IF(COUNTRY_INFO!$H57=1,COUNTRY_INFO!E57,0))) -> 0 | E57: =IF(INTRO!$E$39<>"Non-endemic", 0, IF(INTRO!$E$37="Non-endemic",0,IF(COUNTRY_INFO!$H57=1,COUNTRY_INFO!F57,0))) -> 0 | F57: =IF(INTRO!$E$39<>"Non-endemic", 0, IF(INTRO!$E$37="Non-endemic",0,IF(COUNTRY_INFO!$H57=1,COUNTRY_INFO!G57,0))) -> 0 | G57: 0 | H57: =IF(INTRO!$E$39="Non-endemic",IF(INTRO!$E$37="Non-endemic","Not required",COUNTRY_INFO!P57),"Treat with IVM") -> Treat with IVM | I57: 0 | J57: 0 | L57: 0 | M57: 0
A58: =IF(INTRO!$E$39<>"Non-endemic", " ", IF(INTRO!$E$37="Non-endemic"," ", IF(COUNTRY_INFO!A58=0," ",COUNTRY_INFO!A58))) ->  | B58: =IF(INTRO!$E$39<>"Non-endemic", " ", IF(INTRO!$E$37="Non-endemic"," ", IF(COUNTRY_INFO!B58=0," ",COUNTRY_INFO!B58))) ->  | C58: =IF(INTRO!$E$39<>"Non-endemic", " ", IF(INTRO!$E$37="Non-endemic"," ", IF(COUNTRY_INFO!C58=0," ",COUNTRY_INFO!C58))) ->  | D58: =IF(INTRO!$E$39<>"Non-endemic", 0, IF(INTRO!$E$37="Non-endemic",0,IF(COUNTRY_INFO!$H58=1,COUNTRY_INFO!E58,0))) -> 0 | E58: =IF(INTRO!$E$39<>"Non-endemic", 0, IF(INTRO!$E$37="Non-endemic",0,IF(COUNTRY_INFO!$H58=1,COUNTRY_INFO!F58,0))) -> 0 | F58: =IF(INTRO!$E$39<>"Non-endemic", 0, IF(INTRO!$E$37="Non-endemic",0,IF(COUNTRY_INFO!$H58=1,COUNTRY_INFO!G58,0))) -> 0 | G58: 0 | H58: =IF(INTRO!$E$39="Non-endemic",IF(INTRO!$E$37="Non-endemic","Not required",COUNTRY_INFO!P58),"Treat with IVM") -> Treat with IVM | I58: 0 | J58: 0 | L58: 0 | M58: 0
A59: =IF(INTRO!$E$39<>"Non-endemic", " ", IF(INTRO!$E$37="Non-endemic"," ", IF(COUNTRY_INFO!A59=0," ",COUNTRY_INFO!A59))) ->  | B59: =IF(INTRO!$E$39<>"Non-endemic", " ", IF(INTRO!$E$37="Non-endemic"," ", IF(COUNTRY_INFO!B59=0," ",COUNTRY_INFO!B59))) ->  | C59: =IF(INTRO!$E$39<>"Non-endemic", " ", IF(INTRO!$E$37="Non-endemic"," ", IF(COUNTRY_INFO!C59=0," ",COUNTRY_INFO!C59))) ->  | D59: =IF(INTRO!$E$39<>"Non-endemic", 0, IF(INTRO!$E$37="Non-endemic",0,IF(COUNTRY_INFO!$H59=1,COUNTRY_INFO!E59,0))) -> 0 | E59: =IF(INTRO!$E$39<>"Non-endemic", 0, IF(INTRO!$E$37="Non-endemic",0,IF(COUNTRY_INFO!$H59=1,COUNTRY_INFO!F59,0))) -> 0 | F59: =IF(INTRO!$E$39<>"Non-endemic", 0, IF(INTRO!$E$37="Non-endemic",0,IF(COUNTRY_INFO!$H59=1,COUNTRY_INFO!G59,0))) -> 0 | G59: 0 | H59: =IF(INTRO!$E$39="Non-endemic",IF(INTRO!$E$37="Non-endemic","Not required",COUNTRY_INFO!P59),"Treat with IVM") -> Treat with IVM | I59: 0 | J59: 0 | L59: 0 | M59: 0
A60: =IF(INTRO!$E$39<>"Non-endemic", " ", IF(INTRO!$E$37="Non-endemic"," ", IF(COUNTRY_INFO!A60=0," ",COUNTRY_INFO!A60))) ->  | B60: =IF(INTRO!$E$39<>"Non-endemic", " ", IF(INTRO!$E$37="Non-endemic"," ", IF(COUNTRY_INFO!B60=0," ",COUNTRY_INFO!B60))) ->  | C60: =IF(INTRO!$E$39<>"Non-endemic", " ", IF(INTRO!$E$37="Non-endemic"," ", IF(COUNTRY_INFO!C60=0," ",COUNTRY_INFO!C60))) ->  | D60: =IF(INTRO!$E$39<>"Non-endemic", 0, IF(INTRO!$E$37="Non-endemic",0,IF(COUNTRY_INFO!$H60=1,COUNTRY_INFO!E60,0))) -> 0 | E60: =IF(INTRO!$E$39<>"Non-endemic", 0, IF(INTRO!$E$37="Non-endemic",0,IF(COUNTRY_INFO!$H60=1,COUNTRY_INFO!F60,0))) -> 0 | F60: =IF(INTRO!$E$39<>"Non-endemic", 0, IF(INTRO!$E$37="Non-endemic",0,IF(COUNTRY_INFO!$H60=1,COUNTRY_INFO!G60,0))) -> 0 | G60: 0 | H60: =IF(INTRO!$E$39="Non-endemic",IF(INTRO!$E$37="Non-endemic","Not required",COUNTRY_INFO!P60),"Treat with IVM") -> Treat with IVM | I60: 0 | J60: 0 | L60: 0 | M60: 0
A61: =IF(INTRO!$E$39<>"Non-endemic", " ", IF(INTRO!$E$37="Non-endemic"," ", IF(COUNTRY_INFO!A61=0," ",COUNTRY_INFO!A61))) ->  | B61: =IF(INTRO!$E$39<>"Non-endemic", " ", IF(INTRO!$E$37="Non-endemic"," ", IF(COUNTRY_INFO!B61=0," ",COUNTRY_INFO!B61))) ->  | C61: =IF(INTRO!$E$39<>"Non-endemic", " ", IF(INTRO!$E$37="Non-endemic"," ", IF(COUNTRY_INFO!C61=0," ",COUNTRY_INFO!C61))) ->  | D61: =IF(INTRO!$E$39<>"Non-endemic", 0, IF(INTRO!$E$37="Non-endemic",0,IF(COUNTRY_INFO!$H61=1,COUNTRY_INFO!E61,0))) -> 0 | E61: =IF(INTRO!$E$39<>"Non-endemic", 0, IF(INTRO!$E$37="Non-endemic",0,IF(COUNTRY_INFO!$H61=1,COUNTRY_INFO!F61,0))) -> 0 | F61: =IF(INTRO!$E$39<>"Non-endemic", 0, IF(INTRO!$E$37="Non-endemic",0,IF(COUNTRY_INFO!$H61=1,COUNTRY_INFO!G61,0))) -> 0 | G61: 0 | H61: =IF(INTRO!$E$39="Non-endemic",IF(INTRO!$E$37="Non-endemic","Not required",COUNTRY_INFO!P61),"Treat with IVM") -> Treat with IVM | I61: 0 | J61: 0 | L61: 0 | M61: 0
A62: =IF(INTRO!$E$39<>"Non-endemic", " ", IF(INTRO!$E$37="Non-endemic"," ", IF(COUNTRY_INFO!A62=0," ",COUNTRY_INFO!A62))) ->  | B62: =IF(INTRO!$E$39<>"Non-endemic", " ", IF(INTRO!$E$37="Non-endemic"," ", IF(COUNTRY_INFO!B62=0," ",COUNTRY_INFO!B62))) ->  | C62: =IF(INTRO!$E$39<>"Non-endemic", " ", IF(INTRO!$E$37="Non-endemic"," ", IF(COUNTRY_INFO!C62=0," ",COUNTRY_INFO!C62))) ->  | D62: =IF(INTRO!$E$39<>"Non-endemic", 0, IF(INTRO!$E$37="Non-endemic",0,IF(COUNTRY_INFO!$H62=1,COUNTRY_INFO!E62,0))) -> 0 | E62: =IF(INTRO!$E$39<>"Non-endemic", 0, IF(INTRO!$E$37="Non-endemic",0,IF(COUNTRY_INFO!$H62=1,COUNTRY_INFO!F62,0))) -> 0 | F62: =IF(INTRO!$E$39<>"Non-endemic", 0, IF(INTRO!$E$37="Non-endemic",0,IF(COUNTRY_INFO!$H62=1,COUNTRY_INFO!G62,0))) -> 0 | G62: 0 | H62: =IF(INTRO!$E$39="Non-endemic",IF(INTRO!$E$37="Non-endemic","Not required",COUNTRY_INFO!P62),"Treat with IVM") -> Treat with IVM | I62: 0 | J62: 0 | L62: 0 | M62: 0
A63: =IF(INTRO!$E$39<>"Non-endemic", " ", IF(INTRO!$E$37="Non-endemic"," ", IF(COUNTRY_INFO!A63=0," ",COUNTRY_INFO!A63))) ->  | B63: =IF(INTRO!$E$39<>"Non-endemic", " ", IF(INTRO!$E$37="Non-endemic"," ", IF(COUNTRY_INFO!B63=0," ",COUNTRY_INFO!B63))) ->  | C63: =IF(INTRO!$E$39<>"Non-endemic", " ", IF(INTRO!$E$37="Non-endemic"," ", IF(COUNTRY_INFO!C63=0," ",COUNTRY_INFO!C63))) ->  | D63: =IF(INTRO!$E$39<>"Non-endemic", 0, IF(INTRO!$E$37="Non-endemic",0,IF(COUNTRY_INFO!$H63=1,COUNTRY_INFO!E63,0))) -> 0 | E63: =IF(INTRO!$E$39<>"Non-endemic", 0, IF(INTRO!$E$37="Non-endemic",0,IF(COUNTRY_INFO!$H63=1,COUNTRY_INFO!F63,0))) -> 0 | F63: =IF(INTRO!$E$39<>"Non-endemic", 0, IF(INTRO!$E$37="Non-endemic",0,IF(COUNTRY_INFO!$H63=1,COUNTRY_INFO!G63,0))) -> 0 | G63: 0 | H63: =IF(INTRO!$E$39="Non-endemic",IF(INTRO!$E$37="Non-endemic","Not required",COUNTRY_INFO!P63),"Treat with IVM") -> Treat with IVM | I63: 0 | J63: 0 | L63: 0 | M63: 0
A64: =IF(INTRO!$E$39<>"Non-endemic", " ", IF(INTRO!$E$37="Non-endemic"," ", IF(COUNTRY_INFO!A64=0," ",COUNTRY_INFO!A64))) ->  | B64: =IF(INTRO!$E$39<>"Non-endemic", " ", IF(INTRO!$E$37="Non-endemic"," ", IF(COUNTRY_INFO!B64=0," ",COUNTRY_INFO!B64))) ->  | C64: =IF(INTRO!$E$39<>"Non-endemic", " ", IF(INTRO!$E$37="Non-endemic"," ", IF(COUNTRY_INFO!C64=0," ",COUNTRY_INFO!C64))) ->  | D64: =IF(INTRO!$E$39<>"Non-endemic", 0, IF(INTRO!$E$37="Non-endemic",0,IF(COUNTRY_INFO!$H64=1,COUNTRY_INFO!E64,0))) -> 0 | E64: =IF(INTRO!$E$39<>"Non-endemic", 0, IF(INTRO!$E$37="Non-endemic",0,IF(COUNTRY_INFO!$H64=1,COUNTRY_INFO!F64,0))) -> 0 | F64: =IF(INTRO!$E$39<>"Non-endemic", 0, IF(INTRO!$E$37="Non-endemic",0,IF(COUNTRY_INFO!$H64=1,COUNTRY_INFO!G64,0))) -> 0 | G64: 0 | H64: =IF(INTRO!$E$39="Non-endemic",IF(INTRO!$E$37="Non-endemic","Not required",COUNTRY_INFO!P64),"Treat with IVM") -> Treat with IVM | I64: 0 | J64: 0 | L64: 0 | M64: 0
A65: =IF(INTRO!$E$39<>"Non-endemic", " ", IF(INTRO!$E$37="Non-endemic"," ", IF(COUNTRY_INFO!A65=0," ",COUNTRY_INFO!A65))) ->  | B65: =IF(INTRO!$E$39<>"Non-endemic", " ", IF(INTRO!$E$37="Non-endemic"," ", IF(COUNTRY_INFO!B65=0," ",COUNTRY_INFO!B65))) ->  | C65: =IF(INTRO!$E$39<>"Non-endemic", " ", IF(INTRO!$E$37="Non-endemic"," ", IF(COUNTRY_INFO!C65=0," ",COUNTRY_INFO!C65))) ->  | D65: =IF(INTRO!$E$39<>"Non-endemic", 0, IF(INTRO!$E$37="Non-endemic",0,IF(COUNTRY_INFO!$H65=1,COUNTRY_INFO!E65,0))) -> 0 | E65: =IF(INTRO!$E$39<>"Non-endemic", 0, IF(INTRO!$E$37="Non-endemic",0,IF(COUNTRY_INFO!$H65=1,COUNTRY_INFO!F65,0))) -> 0 | F65: =IF(INTRO!$E$39<>"Non-endemic", 0, IF(INTRO!$E$37="Non-endemic",0,IF(COUNTRY_INFO!$H65=1,COUNTRY_INFO!G65,0))) -> 0 | G65: 0 | H65: =IF(INTRO!$E$39="Non-endemic",IF(INTRO!$E$37="Non-endemic","Not required",COUNTRY_INFO!P65),"Treat with IVM") -> Treat with IVM | I65: 0 | J65: 0 | L65: 0 | M65: 0
A66: =IF(INTRO!$E$39<>"Non-endemic", " ", IF(INTRO!$E$37="Non-endemic"," ", IF(COUNTRY_INFO!A66=0," ",COUNTRY_INFO!A66))) ->  | B66: =IF(INTRO!$E$39<>"Non-endemic", " ", IF(INTRO!$E$37="Non-endemic"," ", IF(COUNTRY_INFO!B66=0," ",COUNTRY_INFO!B66))) ->  | C66: =IF(INTRO!$E$39<>"Non-endemic", " ", IF(INTRO!$E$37="Non-endemic"," ", IF(COUNTRY_INFO!C66=0," ",COUNTRY_INFO!C66))) ->  | D66: =IF(INTRO!$E$39<>"Non-endemic", 0, IF(INTRO!$E$37="Non-endemic",0,IF(COUNTRY_INFO!$H66=1,COUNTRY_INFO!E66,0))) -> 0 | E66: =IF(INTRO!$E$39<>"Non-endemic", 0, IF(INTRO!$E$37="Non-endemic",0,IF(COUNTRY_INFO!$H66=1,COUNTRY_INFO!F66,0))) -> 0 | F66: =IF(INTRO!$E$39<>"Non-endemic", 0, IF(INTRO!$E$37="Non-endemic",0,IF(COUNTRY_INFO!$H66=1,COUNTRY_INFO!G66,0))) -> 0 | G66: 0 | H66: =IF(INTRO!$E$39="Non-endemic",IF(INTRO!$E$37="Non-endemic","Not required",COUNTRY_INFO!P66),"Treat with IVM") -> Treat with IVM | I66: 0 | J66: 0 | L66: 0 | M66: 0
A67: =IF(INTRO!$E$39<>"Non-endemic", " ", IF(INTRO!$E$37="Non-endemic"," ", IF(COUNTRY_INFO!A67=0," ",COUNTRY_INFO!A67))) ->  | B67: =IF(INTRO!$E$39<>"Non-endemic", " ", IF(INTRO!$E$37="Non-endemic"," ", IF(COUNTRY_INFO!B67=0," ",COUNTRY_INFO!B67))) ->  | C67: =IF(INTRO!$E$39<>"Non-endemic", " ", IF(INTRO!$E$37="Non-endemic"," ", IF(COUNTRY_INFO!C67=0," ",COUNTRY_INFO!C67))) ->  | D67: =IF(INTRO!$E$39<>"Non-endemic", 0, IF(INTRO!$E$37="Non-endemic",0,IF(COUNTRY_INFO!$H67=1,COUNTRY_INFO!E67,0))) -> 0 | E67: =IF(INTRO!$E$39<>"Non-endemic", 0, IF(INTRO!$E$37="Non-endemic",0,IF(COUNTRY_INFO!$H67=1,COUNTRY_INFO!F67,0))) -> 0 | F67: =IF(INTRO!$E$39<>"Non-endemic", 0, IF(INTRO!$E$37="Non-endemic",0,IF(COUNTRY_INFO!$H67=1,COUNTRY_INFO!G67,0))) -> 0 | G67: 0 | H67: =IF(INTRO!$E$39="Non-endemic",IF(INTRO!$E$37="Non-endemic","Not required",COUNTRY_INFO!P67),"Treat with IVM") -> Treat with IVM | I67: 0 | J67: 0 | L67: 0 | M67: 0
A68: =IF(INTRO!$E$39<>"Non-endemic", " ", IF(INTRO!$E$37="Non-endemic"," ", IF(COUNTRY_INFO!A68=0," ",COUNTRY_INFO!A68))) ->  | B68: =IF(INTRO!$E$39<>"Non-endemic", " ", IF(INTRO!$E$37="Non-endemic"," ", IF(COUNTRY_INFO!B68=0," ",COUNTRY_INFO!B68))) ->  | C68: =IF(INTRO!$E$39<>"Non-endemic", " ", IF(INTRO!$E$37="Non-endemic"," ", IF(COUNTRY_INFO!C68=0," ",COUNTRY_INFO!C68))) ->  | D68: =IF(INTRO!$E$39<>"Non-endemic", 0, IF(INTRO!$E$37="Non-endemic",0,IF(COUNTRY_INFO!$H68=1,COUNTRY_INFO!E68,0))) -> 0 | E68: =IF(INTRO!$E$39<>"Non-endemic", 0, IF(INTRO!$E$37="Non-endemic",0,IF(COUNTRY_INFO!$H68=1,COUNTRY_INFO!F68,0))) -> 0 | F68: =IF(INTRO!$E$39<>"Non-endemic", 0, IF(INTRO!$E$37="Non-endemic",0,IF(COUNTRY_INFO!$H68=1,COUNTRY_INFO!G68,0))) -> 0 | G68: 0 | H68: =IF(INTRO!$E$39="Non-endemic",IF(INTRO!$E$37="Non-endemic","Not required",COUNTRY_INFO!P68),"Treat with IVM") -> Treat with IVM | I68: 0 | J68: 0 | L68: 0 | M68: 0
A69: =IF(INTRO!$E$39<>"Non-endemic", " ", IF(INTRO!$E$37="Non-endemic"," ", IF(COUNTRY_INFO!A69=0," ",COUNTRY_INFO!A69))) ->  | B69: =IF(INTRO!$E$39<>"Non-endemic", " ", IF(INTRO!$E$37="Non-endemic"," ", IF(COUNTRY_INFO!B69=0," ",COUNTRY_INFO!B69))) ->  | C69: =IF(INTRO!$E$39<>"Non-endemic", " ", IF(INTRO!$E$37="Non-endemic"," ", IF(COUNTRY_INFO!C69=0," ",COUNTRY_INFO!C69))) ->  | D69: =IF(INTRO!$E$39<>"Non-endemic", 0, IF(INTRO!$E$37="Non-endemic",0,IF(COUNTRY_INFO!$H69=1,COUNTRY_INFO!E69,0))) -> 0 | E69: =IF(INTRO!$E$39<>"Non-endemic", 0, IF(INTRO!$E$37="Non-endemic",0,IF(COUNTRY_INFO!$H69=1,COUNTRY_INFO!F69,0))) -> 0 | F69: =IF(INTRO!$E$39<>"Non-endemic", 0, IF(INTRO!$E$37="Non-endemic",0,IF(COUNTRY_INFO!$H69=1,COUNTRY_INFO!G69,0))) -> 0 | G69: 0 | H69: =IF(INTRO!$E$39="Non-endemic",IF(INTRO!$E$37="Non-endemic","Not required",COUNTRY_INFO!P69),"Treat with IVM") -> Treat with IVM | I69: 0 | J69: 0 | L69: 0 | M69: 0
A70: =IF(INTRO!$E$39<>"Non-endemic", " ", IF(INTRO!$E$37="Non-endemic"," ", IF(COUNTRY_INFO!A70=0," ",COUNTRY_INFO!A70))) ->  | B70: =IF(INTRO!$E$39<>"Non-endemic", " ", IF(INTRO!$E$37="Non-endemic"," ", IF(COUNTRY_INFO!B70=0," ",COUNTRY_INFO!B70))) ->  | C70: =IF(INTRO!$E$39<>"Non-endemic", " ", IF(INTRO!$E$37="Non-endemic"," ", IF(COUNTRY_INFO!C70=0," ",COUNTRY_INFO!C70))) ->  | D70: =IF(INTRO!$E$39<>"Non-endemic", 0, IF(INTRO!$E$37="Non-endemic",0,IF(COUNTRY_INFO!$H70=1,COUNTRY_INFO!E70,0))) -> 0 | E70: =IF(INTRO!$E$39<>"Non-endemic", 0, IF(INTRO!$E$37="Non-endemic",0,IF(COUNTRY_INFO!$H70=1,COUNTRY_INFO!F70,0))) -> 0 | F70: =IF(INTRO!$E$39<>"Non-endemic", 0, IF(INTRO!$E$37="Non-endemic",0,IF(COUNTRY_INFO!$H70=1,COUNTRY_INFO!G70,0))) -> 0 | G70: 0 | H70: =IF(INTRO!$E$39="Non-endemic",IF(INTRO!$E$37="Non-endemic","Not required",COUNTRY_INFO!P70),"Treat with IVM") -> Treat with IVM | I70: 0 | J70: 0 | L70: 0 | M70: 0
A71: =IF(INTRO!$E$39<>"Non-endemic", " ", IF(INTRO!$E$37="Non-endemic"," ", IF(COUNTRY_INFO!A71=0," ",COUNTRY_INFO!A71))) ->  | B71: =IF(INTRO!$E$39<>"Non-endemic", " ", IF(INTRO!$E$37="Non-endemic"," ", IF(COUNTRY_INFO!B71=0," ",COUNTRY_INFO!B71))) ->  | C71: =IF(INTRO!$E$39<>"Non-endemic", " ", IF(INTRO!$E$37="Non-endemic"," ", IF(COUNTRY_INFO!C71=0," ",COUNTRY_INFO!C71))) ->  | D71: =IF(INTRO!$E$39<>"Non-endemic", 0, IF(INTRO!$E$37="Non-endemic",0,IF(COUNTRY_INFO!$H71=1,COUNTRY_INFO!E71,0))) -> 0 | E71: =IF(INTRO!$E$39<>"Non-endemic", 0, IF(INTRO!$E$37="Non-endemic",0,IF(COUNTRY_INFO!$H71=1,COUNTRY_INFO!F71,0))) -> 0 | F71: =IF(INTRO!$E$39<>"Non-endemic", 0, IF(INTRO!$E$37="Non-endemic",0,IF(COUNTRY_INFO!$H71=1,COUNTRY_INFO!G71,0))) -> 0 | G71: 0 | H71: =IF(INTRO!$E$39="Non-endemic",IF(INTRO!$E$37="Non-endemic","Not required",COUNTRY_INFO!P71),"Treat with IVM") -> Treat with IVM | I71: 0 | J71: 0 | L71: 0 | M71: 0
A72: =IF(INTRO!$E$39<>"Non-endemic", " ", IF(INTRO!$E$37="Non-endemic"," ", IF(COUNTRY_INFO!A72=0," ",COUNTRY_INFO!A72))) ->  | B72: =IF(INTRO!$E$39<>"Non-endemic", " ", IF(INTRO!$E$37="Non-endemic"," ", IF(COUNTRY_INFO!B72=0," ",COUNTRY_INFO!B72))) ->  | C72: =IF(INTRO!$E$39<>"Non-endemic", " ", IF(INTRO!$E$37="Non-endemic"," ", IF(COUNTRY_INFO!C72=0," ",COUNTRY_INFO!C72))) ->  | D72: =IF(INTRO!$E$39<>"Non-endemic", 0, IF(INTRO!$E$37="Non-endemic",0,IF(COUNTRY_INFO!$H72=1,COUNTRY_INFO!E72,0))) -> 0 | E72: =IF(INTRO!$E$39<>"Non-endemic", 0, IF(INTRO!$E$37="Non-endemic",0,IF(COUNTRY_INFO!$H72=1,COUNTRY_INFO!F72,0))) -> 0 | F72: =IF(INTRO!$E$39<>"Non-endemic", 0, IF(INTRO!$E$37="Non-endemic",0,IF(COUNTRY_INFO!$H72=1,COUNTRY_INFO!G72,0))) -> 0 | G72: 0 | H72: =IF(INTRO!$E$39="Non-endemic",IF(INTRO!$E$37="Non-endemic","Not required",COUNTRY_INFO!P72),"Treat with IVM") -> Treat with IVM | I72: 0 | J72: 0 | L72: 0 | M72: 0
A73: =IF(INTRO!$E$39<>"Non-endemic", " ", IF(INTRO!$E$37="Non-endemic"," ", IF(COUNTRY_INFO!A73=0," ",COUNTRY_INFO!A73))) ->  | B73: =IF(INTRO!$E$39<>"Non-endemic", " ", IF(INTRO!$E$37="Non-endemic"," ", IF(COUNTRY_INFO!B73=0," ",COUNTRY_INFO!B73))) ->  | C73: =IF(INTRO!$E$39<>"Non-endemic", " ", IF(INTRO!$E$37="Non-endemic"," ", IF(COUNTRY_INFO!C73=0," ",COUNTRY_INFO!C73))) ->  | D73: =IF(INTRO!$E$39<>"Non-endemic", 0, IF(INTRO!$E$37="Non-endemic",0,IF(COUNTRY_INFO!$H73=1,COUNTRY_INFO!E73,0))) -> 0 | E73: =IF(INTRO!$E$39<>"Non-endemic", 0, IF(INTRO!$E$37="Non-endemic",0,IF(COUNTRY_INFO!$H73=1,COUNTRY_INFO!F73,0))) -> 0 | F73: =IF(INTRO!$E$39<>"Non-endemic", 0, IF(INTRO!$E$37="Non-endemic",0,IF(COUNTRY_INFO!$H73=1,COUNTRY_INFO!G73,0))) -> 0 | G73: =SUM(D73:F73) -> 0 | H73: =IF(INTRO!$E$39="Non-endemic",IF(INTRO!$E$37="Non-endemic","Not required",COUNTRY_INFO!P73),"Treat with IVM") -> Treat with IVM | I73: =IF(H73=1,G73,0) -> 0 | J73: =IF(I73>0,I73*2.5,0) -> 0 | L73: =IF($J73>$K73,$J73-$K73,0) -> 0 | M73: =ROUNDUP($J73/1000,0) -> 0
A74: =IF(INTRO!$E$39<>"Non-endemic", " ", IF(INTRO!$E$37="Non-endemic"," ", IF(COUNTRY_INFO!A74=0," ",COUNTRY_INFO!A74))) ->  | B74: =IF(INTRO!$E$39<>"Non-endemic", " ", IF(INTRO!$E$37="Non-endemic"," ", IF(COUNTRY_INFO!B74=0," ",COUNTRY_INFO!B74))) ->  | C74: =IF(INTRO!$E$39<>"Non-endemic", " ", IF(INTRO!$E$37="Non-endemic"," ", IF(COUNTRY_INFO!C74=0," ",COUNTRY_INFO!C74))) ->  | D74: =IF(INTRO!$E$39<>"Non-endemic", 0, IF(INTRO!$E$37="Non-endemic",0,IF(COUNTRY_INFO!$H74=1,COUNTRY_INFO!E74,0))) -> 0 | E74: =IF(INTRO!$E$39<>"Non-endemic", 0, IF(INTRO!$E$37="Non-endemic",0,IF(COUNTRY_INFO!$H74=1,COUNTRY_INFO!F74,0))) -> 0 | F74: =IF(INTRO!$E$39<>"Non-endemic", 0, IF(INTRO!$E$37="Non-endemic",0,IF(COUNTRY_INFO!$H74=1,COUNTRY_INFO!G74,0))) -> 0 | G74: 0 | H74: =IF(INTRO!$E$39="Non-endemic",IF(INTRO!$E$37="Non-endemic","Not required",COUNTRY_INFO!P74),"Treat with IVM") -> Treat with IVM | I74: 0 | J74: 0 | L74: 0 | M74: 0
A75: =IF(INTRO!$E$39<>"Non-endemic", " ", IF(INTRO!$E$37="Non-endemic"," ", IF(COUNTRY_INFO!A75=0," ",COUNTRY_INFO!A75))) ->  | B75: =IF(INTRO!$E$39<>"Non-endemic", " ", IF(INTRO!$E$37="Non-endemic"," ", IF(COUNTRY_INFO!B75=0," ",COUNTRY_INFO!B75))) ->  | C75: =IF(INTRO!$E$39<>"Non-endemic", " ", IF(INTRO!$E$37="Non-endemic"," ", IF(COUNTRY_INFO!C75=0," ",COUNTRY_INFO!C75))) ->  | D75: =IF(INTRO!$E$39<>"Non-endemic", 0, IF(INTRO!$E$37="Non-endemic",0,IF(COUNTRY_INFO!$H75=1,COUNTRY_INFO!E75,0))) -> 0 | E75: =IF(INTRO!$E$39<>"Non-endemic", 0, IF(INTRO!$E$37="Non-endemic",0,IF(COUNTRY_INFO!$H75=1,COUNTRY_INFO!F75,0))) -> 0 | F75: =IF(INTRO!$E$39<>"Non-endemic", 0, IF(INTRO!$E$37="Non-endemic",0,IF(COUNTRY_INFO!$H75=1,COUNTRY_INFO!G75,0))) -> 0 | G75: 0 | H75: =IF(INTRO!$E$39="Non-endemic",IF(INTRO!$E$37="Non-endemic","Not required",COUNTRY_INFO!P75),"Treat with IVM") -> Treat with IVM | I75: 0 | J75: 0 | L75: 0 | M75: 0
A76: =IF(INTRO!$E$39<>"Non-endemic", " ", IF(INTRO!$E$37="Non-endemic"," ", IF(COUNTRY_INFO!A76=0," ",COUNTRY_INFO!A76))) ->  | B76: =IF(INTRO!$E$39<>"Non-endemic", " ", IF(INTRO!$E$37="Non-endemic"," ", IF(COUNTRY_INFO!B76=0," ",COUNTRY_INFO!B76))) ->  | C76: =IF(INTRO!$E$39<>"Non-endemic", " ", IF(INTRO!$E$37="Non-endemic"," ", IF(COUNTRY_INFO!C76=0," ",COUNTRY_INFO!C76))) ->  | D76: =IF(INTRO!$E$39<>"Non-endemic", 0, IF(INTRO!$E$37="Non-endemic",0,IF(COUNTRY_INFO!$H76=1,COUNTRY_INFO!E76,0))) -> 0 | E76: =IF(INTRO!$E$39<>"Non-endemic", 0, IF(INTRO!$E$37="Non-endemic",0,IF(COUNTRY_INFO!$H76=1,COUNTRY_INFO!F76,0))) -> 0 | F76: =IF(INTRO!$E$39<>"Non-endemic", 0, IF(INTRO!$E$37="Non-endemic",0,IF(COUNTRY_INFO!$H76=1,COUNTRY_INFO!G76,0))) -> 0 | G76: 0 | H76: =IF(INTRO!$E$39="Non-endemic",IF(INTRO!$E$37="Non-endemic","Not required",COUNTRY_INFO!P76),"Treat with IVM") -> Treat with IVM | I76: 0 | J76: 0 | L76: 0 | M76: 0
A77: =IF(INTRO!$E$39<>"Non-endemic", " ", IF(INTRO!$E$37="Non-endemic"," ", IF(COUNTRY_INFO!A77=0," ",COUNTRY_INFO!A77))) ->  | B77: =IF(INTRO!$E$39<>"Non-endemic", " ", IF(INTRO!$E$37="Non-endemic"," ", IF(COUNTRY_INFO!B77=0," ",COUNTRY_INFO!B77))) ->  | C77: =IF(INTRO!$E$39<>"Non-endemic", " ", IF(INTRO!$E$37="Non-endemic"," ", IF(COUNTRY_INFO!C77=0," ",COUNTRY_INFO!C77))) ->  | D77: =IF(INTRO!$E$39<>"Non-endemic", 0, IF(INTRO!$E$37="Non-endemic",0,IF(COUNTRY_INFO!$H77=1,COUNTRY_INFO!E77,0))) -> 0 | E77: =IF(INTRO!$E$39<>"Non-endemic", 0, IF(INTRO!$E$37="Non-endemic",0,IF(COUNTRY_INFO!$H77=1,COUNTRY_INFO!F77,0))) -> 0 | F77: =IF(INTRO!$E$39<>"Non-endemic", 0, IF(INTRO!$E$37="Non-endemic",0,IF(COUNTRY_INFO!$H77=1,COUNTRY_INFO!G77,0))) -> 0 | G77: 0 | H77: =IF(INTRO!$E$39="Non-endemic",IF(INTRO!$E$37="Non-endemic","Not required",COUNTRY_INFO!P77),"Treat with IVM") -> Treat with IVM | I77: 0 | J77: 0 | L77: 0 | M77: 0
A78: =IF(INTRO!$E$39<>"Non-endemic", " ", IF(INTRO!$E$37="Non-endemic"," ", IF(COUNTRY_INFO!A78=0," ",COUNTRY_INFO!A78))) ->  | B78: =IF(INTRO!$E$39<>"Non-endemic", " ", IF(INTRO!$E$37="Non-endemic"," ", IF(COUNTRY_INFO!B78=0," ",COUNTRY_INFO!B78))) ->  | C78: =IF(INTRO!$E$39<>"Non-endemic", " ", IF(INTRO!$E$37="Non-endemic"," ", IF(COUNTRY_INFO!C78=0," ",COUNTRY_INFO!C78))) ->  | D78: =IF(INTRO!$E$39<>"Non-endemic", 0, IF(INTRO!$E$37="Non-endemic",0,IF(COUNTRY_INFO!$H78=1,COUNTRY_INFO!E78,0))) -> 0 | E78: =IF(INTRO!$E$39<>"Non-endemic", 0, IF(INTRO!$E$37="Non-endemic",0,IF(COUNTRY_INFO!$H78=1,COUNTRY_INFO!F78,0))) -> 0 | F78: =IF(INTRO!$E$39<>"Non-endemic", 0, IF(INTRO!$E$37="Non-endemic",0,IF(COUNTRY_INFO!$H78=1,COUNTRY_INFO!G78,0))) -> 0 | G78: 0 | H78: =IF(INTRO!$E$39="Non-endemic",IF(INTRO!$E$37="Non-endemic","Not required",COUNTRY_INFO!P78),"Treat with IVM") -> Treat with IVM | I78: 0 | J78: 0 | L78: 0 | M78: 0
A79: =IF(INTRO!$E$39<>"Non-endemic", " ", IF(INTRO!$E$37="Non-endemic"," ", IF(COUNTRY_INFO!A79=0," ",COUNTRY_INFO!A79))) ->  | B79: =IF(INTRO!$E$39<>"Non-endemic", " ", IF(INTRO!$E$37="Non-endemic"," ", IF(COUNTRY_INFO!B79=0," ",COUNTRY_INFO!B79))) ->  | C79: =IF(INTRO!$E$39<>"Non-endemic", " ", IF(INTRO!$E$37="Non-endemic"," ", IF(COUNTRY_INFO!C79=0," ",COUNTRY_INFO!C79))) ->  | D79: =IF(INTRO!$E$39<>"Non-endemic", 0, IF(INTRO!$E$37="Non-endemic",0,IF(COUNTRY_INFO!$H79=1,COUNTRY_INFO!E79,0))) -> 0 | E79: =IF(INTRO!$E$39<>"Non-endemic", 0, IF(INTRO!$E$37="Non-endemic",0,IF(COUNTRY_INFO!$H79=1,COUNTRY_INFO!F79,0))) -> 0 | F79: =IF(INTRO!$E$39<>"Non-endemic", 0, IF(INTRO!$E$37="Non-endemic",0,IF(COUNTRY_INFO!$H79=1,COUNTRY_INFO!G79,0))) -> 0 | G79: 0 | H79: =IF(INTRO!$E$39="Non-endemic",IF(INTRO!$E$37="Non-endemic","Not required",COUNTRY_INFO!P79),"Treat with IVM") -> Treat with IVM | I79: 0 | J79: 0 | L79: 0 | M79: 0
A80: =IF(INTRO!$E$39<>"Non-endemic", " ", IF(INTRO!$E$37="Non-endemic"," ", IF(COUNTRY_INFO!A80=0," ",COUNTRY_INFO!A80))) ->  | B80: =IF(INTRO!$E$39<>"Non-endemic", " ", IF(INTRO!$E$37="Non-endemic"," ", IF(COUNTRY_INFO!B80=0," ",COUNTRY_INFO!B80))) ->  | C80: =IF(INTRO!$E$39<>"Non-endemic", " ", IF(INTRO!$E$37="Non-endemic"," ", IF(COUNTRY_INFO!C80=0," ",COUNTRY_INFO!C80))) ->  | D80: =IF(INTRO!$E$39<>"Non-endemic", 0, IF(INTRO!$E$37="Non-endemic",0,IF(COUNTRY_INFO!$H80=1,COUNTRY_INFO!E80,0))) -> 0 | E80: =IF(INTRO!$E$39<>"Non-endemic", 0, IF(INTRO!$E$37="Non-endemic",0,IF(COUNTRY_INFO!$H80=1,COUNTRY_INFO!F80,0))) -> 0 | F80: =IF(INTRO!$E$39<>"Non-endemic", 0, IF(INTRO!$E$37="Non-endemic",0,IF(COUNTRY_INFO!$H80=1,COUNTRY_INFO!G80,0))) -> 0 | G80: 0 | H80: =IF(INTRO!$E$39="Non-endemic",IF(INTRO!$E$37="Non-endemic","Not required",COUNTRY_INFO!P80),"Treat with IVM") -> Treat with IVM | I80: 0 | J80: 0 | L80: 0 | M80: 0
A81: =IF(INTRO!$E$39<>"Non-endemic", " ", IF(INTRO!$E$37="Non-endemic"," ", IF(COUNTRY_INFO!A81=0," ",COUNTRY_INFO!A81))) ->  | B81: =IF(INTRO!$E$39<>"Non-endemic", " ", IF(INTRO!$E$37="Non-endemic"," ", IF(COUNTRY_INFO!B81=0," ",COUNTRY_INFO!B81))) ->  | C81: =IF(INTRO!$E$39<>"Non-endemic", " ", IF(INTRO!$E$37="Non-endemic"," ", IF(COUNTRY_INFO!C81=0," ",COUNTRY_INFO!C81))) ->  | D81: =IF(INTRO!$E$39<>"Non-endemic", 0, IF(INTRO!$E$37="Non-endemic",0,IF(COUNTRY_INFO!$H81=1,COUNTRY_INFO!E81,0))) -> 0 | E81: =IF(INTRO!$E$39<>"Non-endemic", 0, IF(INTRO!$E$37="Non-endemic",0,IF(COUNTRY_INFO!$H81=1,COUNTRY_INFO!F81,0))) -> 0 | F81: =IF(INTRO!$E$39<>"Non-endemic", 0, IF(INTRO!$E$37="Non-endemic",0,IF(COUNTRY_INFO!$H81=1,COUNTRY_INFO!G81,0))) -> 0 | G81: 0 | H81: =IF(INTRO!$E$39="Non-endemic",IF(INTRO!$E$37="Non-endemic","Not required",COUNTRY_INFO!P81),"Treat with IVM") -> Treat with IVM | I81: 0 | J81: 0 | L81: 0 | M81: 0
A82: =IF(INTRO!$E$39<>"Non-endemic", " ", IF(INTRO!$E$37="Non-endemic"," ", IF(COUNTRY_INFO!A82=0," ",COUNTRY_INFO!A82))) ->  | B82: =IF(INTRO!$E$39<>"Non-endemic", " ", IF(INTRO!$E$37="Non-endemic"," ", IF(COUNTRY_INFO!B82=0," ",COUNTRY_INFO!B82))) ->  | C82: =IF(INTRO!$E$39<>"Non-endemic", " ", IF(INTRO!$E$37="Non-endemic"," ", IF(COUNTRY_INFO!C82=0," ",COUNTRY_INFO!C82))) ->  | D82: =IF(INTRO!$E$39<>"Non-endemic", 0, IF(INTRO!$E$37="Non-endemic",0,IF(COUNTRY_INFO!$H82=1,COUNTRY_INFO!E82,0))) -> 0 | E82: =IF(INTRO!$E$39<>"Non-endemic", 0, IF(INTRO!$E$37="Non-endemic",0,IF(COUNTRY_INFO!$H82=1,COUNTRY_INFO!F82,0))) -> 0 | F82: =IF(INTRO!$E$39<>"Non-endemic", 0, IF(INTRO!$E$37="Non-endemic",0,IF(COUNTRY_INFO!$H82=1,COUNTRY_INFO!G82,0))) -> 0 | G82: 0 | H82: =IF(INTRO!$E$39="Non-endemic",IF(INTRO!$E$37="Non-endemic","Not required",COUNTRY_INFO!P82),"Treat with IVM") -> Treat with IVM | I82: 0 | J82: 0 | L82: 0 | M82: 0
A83: =IF(INTRO!$E$39<>"Non-endemic", " ", IF(INTRO!$E$37="Non-endemic"," ", IF(COUNTRY_INFO!A83=0," ",COUNTRY_INFO!A83))) ->  | B83: =IF(INTRO!$E$39<>"Non-endemic", " ", IF(INTRO!$E$37="Non-endemic"," ", IF(COUNTRY_INFO!B83=0," ",COUNTRY_INFO!B83))) ->  | C83: =IF(INTRO!$E$39<>"Non-endemic", " ", IF(INTRO!$E$37="Non-endemic"," ", IF(COUNTRY_INFO!C83=0," ",COUNTRY_INFO!C83))) ->  | D83: =IF(INTRO!$E$39<>"Non-endemic", 0, IF(INTRO!$E$37="Non-endemic",0,IF(COUNTRY_INFO!$H83=1,COUNTRY_INFO!E83,0))) -> 0 | E83: =IF(INTRO!$E$39<>"Non-endemic", 0, IF(INTRO!$E$37="Non-endemic",0,IF(COUNTRY_INFO!$H83=1,COUNTRY_INFO!F83,0))) -> 0 | F83: =IF(INTRO!$E$39<>"Non-endemic", 0, IF(INTRO!$E$37="Non-endemic",0,IF(COUNTRY_INFO!$H83=1,COUNTRY_INFO!G83,0))) -> 0 | G83: 0 | H83: =IF(INTRO!$E$39="Non-endemic",IF(INTRO!$E$37="Non-endemic","Not required",COUNTRY_INFO!P83),"Treat with IVM") -> Treat with IVM | I83: 0 | J83: 0 | L83: 0 | M83: 0
A84: =IF(INTRO!$E$39<>"Non-endemic", " ", IF(INTRO!$E$37="Non-endemic"," ", IF(COUNTRY_INFO!A84=0," ",COUNTRY_INFO!A84))) ->  | B84: =IF(INTRO!$E$39<>"Non-endemic", " ", IF(INTRO!$E$37="Non-endemic"," ", IF(COUNTRY_INFO!B84=0," ",COUNTRY_INFO!B84))) ->  | C84: =IF(INTRO!$E$39<>"Non-endemic", " ", IF(INTRO!$E$37="Non-endemic"," ", IF(COUNTRY_INFO!C84=0," ",COUNTRY_INFO!C84))) ->  | D84: =IF(INTRO!$E$39<>"Non-endemic", 0, IF(INTRO!$E$37="Non-endemic",0,IF(COUNTRY_INFO!$H84=1,COUNTRY_INFO!E84,0))) -> 0 | E84: =IF(INTRO!$E$39<>"Non-endemic", 0, IF(INTRO!$E$37="Non-endemic",0,IF(COUNTRY_INFO!$H84=1,COUNTRY_INFO!F84,0))) -> 0 | F84: =IF(INTRO!$E$39<>"Non-endemic", 0, IF(INTRO!$E$37="Non-endemic",0,IF(COUNTRY_INFO!$H84=1,COUNTRY_INFO!G84,0))) -> 0 | G84: 0 | H84: =IF(INTRO!$E$39="Non-endemic",IF(INTRO!$E$37="Non-endemic","Not required",COUNTRY_INFO!P84),"Treat with IVM") -> Treat with IVM | I84: 0 | J84: 0 | L84: 0 | M84: 0
A85: =IF(INTRO!$E$39<>"Non-endemic", " ", IF(INTRO!$E$37="Non-endemic"," ", IF(COUNTRY_INFO!A85=0," ",COUNTRY_INFO!A85))) ->  | B85: =IF(INTRO!$E$39<>"Non-endemic", " ", IF(INTRO!$E$37="Non-endemic"," ", IF(COUNTRY_INFO!B85=0," ",COUNTRY_INFO!B85))) ->  | C85: =IF(INTRO!$E$39<>"Non-endemic", " ", IF(INTRO!$E$37="Non-endemic"," ", IF(COUNTRY_INFO!C85=0," ",COUNTRY_INFO!C85))) ->  | D85: =IF(INTRO!$E$39<>"Non-endemic", 0, IF(INTRO!$E$37="Non-endemic",0,IF(COUNTRY_INFO!$H85=1,COUNTRY_INFO!E85,0))) -> 0 | E85: =IF(INTRO!$E$39<>"Non-endemic", 0, IF(INTRO!$E$37="Non-endemic",0,IF(COUNTRY_INFO!$H85=1,COUNTRY_INFO!F85,0))) -> 0 | F85: =IF(INTRO!$E$39<>"Non-endemic", 0, IF(INTRO!$E$37="Non-endemic",0,IF(COUNTRY_INFO!$H85=1,COUNTRY_INFO!G85,0))) -> 0 | G85: 0 | H85: =IF(INTRO!$E$39="Non-endemic",IF(INTRO!$E$37="Non-endemic","Not required",COUNTRY_INFO!P85),"Treat with IVM") -> Treat with IVM | I85: 0 | J85: 0 | L85: 0 | M85: 0
A86: =IF(INTRO!$E$39<>"Non-endemic", " ", IF(INTRO!$E$37="Non-endemic"," ", IF(COUNTRY_INFO!A86=0," ",COUNTRY_INFO!A86))) ->  | B86: =IF(INTRO!$E$39<>"Non-endemic", " ", IF(INTRO!$E$37="Non-endemic"," ", IF(COUNTRY_INFO!B86=0," ",COUNTRY_INFO!B86))) ->  | C86: =IF(INTRO!$E$39<>"Non-endemic", " ", IF(INTRO!$E$37="Non-endemic"," ", IF(COUNTRY_INFO!C86=0," ",COUNTRY_INFO!C86))) ->  | D86: =IF(INTRO!$E$39<>"Non-endemic", 0, IF(INTRO!$E$37="Non-endemic",0,IF(COUNTRY_INFO!$H86=1,COUNTRY_INFO!E86,0))) -> 0 | E86: =IF(INTRO!$E$39<>"Non-endemic", 0, IF(INTRO!$E$37="Non-endemic",0,IF(COUNTRY_INFO!$H86=1,COUNTRY_INFO!F86,0))) -> 0 | F86: =IF(INTRO!$E$39<>"Non-endemic", 0, IF(INTRO!$E$37="Non-endemic",0,IF(COUNTRY_INFO!$H86=1,COUNTRY_INFO!G86,0))) -> 0 | G86: 0 | H86: =IF(INTRO!$E$39="Non-endemic",IF(INTRO!$E$37="Non-endemic","Not required",COUNTRY_INFO!P86),"Treat with IVM") -> Treat with IVM | I86: 0 | J86: 0 | L86: 0 | M86: 0
A87: =IF(INTRO!$E$39<>"Non-endemic", " ", IF(INTRO!$E$37="Non-endemic"," ", IF(COUNTRY_INFO!A87=0," ",COUNTRY_INFO!A87))) ->  | B87: =IF(INTRO!$E$39<>"Non-endemic", " ", IF(INTRO!$E$37="Non-endemic"," ", IF(COUNTRY_INFO!B87=0," ",COUNTRY_INFO!B87))) ->  | C87: =IF(INTRO!$E$39<>"Non-endemic", " ", IF(INTRO!$E$37="Non-endemic"," ", IF(COUNTRY_INFO!C87=0," ",COUNTRY_INFO!C87))) ->  | D87: =IF(INTRO!$E$39<>"Non-endemic", 0, IF(INTRO!$E$37="Non-endemic",0,IF(COUNTRY_INFO!$H87=1,COUNTRY_INFO!E87,0))) -> 0 | E87: =IF(INTRO!$E$39<>"Non-endemic", 0, IF(INTRO!$E$37="Non-endemic",0,IF(COUNTRY_INFO!$H87=1,COUNTRY_INFO!F87,0))) -> 0 | F87: =IF(INTRO!$E$39<>"Non-endemic", 0, IF(INTRO!$E$37="Non-endemic",0,IF(COUNTRY_INFO!$H87=1,COUNTRY_INFO!G87,0))) -> 0 | G87: 0 | H87: =IF(INTRO!$E$39="Non-endemic",IF(INTRO!$E$37="Non-endemic","Not required",COUNTRY_INFO!P87),"Treat with IVM") -> Treat with IVM | I87: 0 | J87: 0 | L87: 0 | M87: 0
A88: =IF(INTRO!$E$39<>"Non-endemic", " ", IF(INTRO!$E$37="Non-endemic"," ", IF(COUNTRY_INFO!A88=0," ",COUNTRY_INFO!A88))) ->  | B88: =IF(INTRO!$E$39<>"Non-endemic", " ", IF(INTRO!$E$37="Non-endemic"," ", IF(COUNTRY_INFO!B88=0," ",COUNTRY_INFO!B88))) ->  | C88: =IF(INTRO!$E$39<>"Non-endemic", " ", IF(INTRO!$E$37="Non-endemic"," ", IF(COUNTRY_INFO!C88=0," ",COUNTRY_INFO!C88))) ->  | D88: =IF(INTRO!$E$39<>"Non-endemic", 0, IF(INTRO!$E$37="Non-endemic",0,IF(COUNTRY_INFO!$H88=1,COUNTRY_INFO!E88,0))) -> 0 | E88: =IF(INTRO!$E$39<>"Non-endemic", 0, IF(INTRO!$E$37="Non-endemic",0,IF(COUNTRY_INFO!$H88=1,COUNTRY_INFO!F88,0))) -> 0 | F88: =IF(INTRO!$E$39<>"Non-endemic", 0, IF(INTRO!$E$37="Non-endemic",0,IF(COUNTRY_INFO!$H88=1,COUNTRY_INFO!G88,0))) -> 0 | G88: 0 | H88: =IF(INTRO!$E$39="Non-endemic",IF(INTRO!$E$37="Non-endemic","Not required",COUNTRY_INFO!P88),"Treat with IVM") -> Treat with IVM | I88: 0 | J88: 0 | L88: 0 | M88: 0
A89: =IF(INTRO!$E$39<>"Non-endemic", " ", IF(INTRO!$E$37="Non-endemic"," ", IF(COUNTRY_INFO!A89=0," ",COUNTRY_INFO!A89))) ->  | B89: =IF(INTRO!$E$39<>"Non-endemic", " ", IF(INTRO!$E$37="Non-endemic"," ", IF(COUNTRY_INFO!B89=0," ",COUNTRY_INFO!B89))) ->  | C89: =IF(INTRO!$E$39<>"Non-endemic", " ", IF(INTRO!$E$37="Non-endemic"," ", IF(COUNTRY_INFO!C89=0," ",COUNTRY_INFO!C89))) ->  | D89: =IF(INTRO!$E$39<>"Non-endemic", 0, IF(INTRO!$E$37="Non-endemic",0,IF(COUNTRY_INFO!$H89=1,COUNTRY_INFO!E89,0))) -> 0 | E89: =IF(INTRO!$E$39<>"Non-endemic", 0, IF(INTRO!$E$37="Non-endemic",0,IF(COUNTRY_INFO!$H89=1,COUNTRY_INFO!F89,0))) -> 0 | F89: =IF(INTRO!$E$39<>"Non-endemic", 0, IF(INTRO!$E$37="Non-endemic",0,IF(COUNTRY_INFO!$H89=1,COUNTRY_INFO!G89,0))) -> 0 | G89: 0 | H89: =IF(INTRO!$E$39="Non-endemic",IF(INTRO!$E$37="Non-endemic","Not required",COUNTRY_INFO!P89),"Treat with IVM") -> Treat with IVM | I89: 0 | J89: 0 | L89: 0 | M89: 0
A90: =IF(INTRO!$E$39<>"Non-endemic", " ", IF(INTRO!$E$37="Non-endemic"," ", IF(COUNTRY_INFO!A90=0," ",COUNTRY_INFO!A90))) ->  | B90: =IF(INTRO!$E$39<>"Non-endemic", " ", IF(INTRO!$E$37="Non-endemic"," ", IF(COUNTRY_INFO!B90=0," ",COUNTRY_INFO!B90))) ->  | C90: =IF(INTRO!$E$39<>"Non-endemic", " ", IF(INTRO!$E$37="Non-endemic"," ", IF(COUNTRY_INFO!C90=0," ",COUNTRY_INFO!C90))) ->  | D90: =IF(INTRO!$E$39<>"Non-endemic", 0, IF(INTRO!$E$37="Non-endemic",0,IF(COUNTRY_INFO!$H90=1,COUNTRY_INFO!E90,0))) -> 0 | E90: =IF(INTRO!$E$39<>"Non-endemic", 0, IF(INTRO!$E$37="Non-endemic",0,IF(COUNTRY_INFO!$H90=1,COUNTRY_INFO!F90,0))) -> 0 | F90: =IF(INTRO!$E$39<>"Non-endemic", 0, IF(INTRO!$E$37="Non-endemic",0,IF(COUNTRY_INFO!$H90=1,COUNTRY_INFO!G90,0))) -> 0 | G90: 0 | H90: =IF(INTRO!$E$39="Non-endemic",IF(INTRO!$E$37="Non-endemic","Not required",COUNTRY_INFO!P90),"Treat with IVM") -> Treat with IVM | I90: 0 | J90: 0 | L90: 0 | M90: 0
A91: =IF(INTRO!$E$39<>"Non-endemic", " ", IF(INTRO!$E$37="Non-endemic"," ", IF(COUNTRY_INFO!A91=0," ",COUNTRY_INFO!A91))) ->  | B91: =IF(INTRO!$E$39<>"Non-endemic", " ", IF(INTRO!$E$37="Non-endemic"," ", IF(COUNTRY_INFO!B91=0," ",COUNTRY_INFO!B91))) ->  | C91: =IF(INTRO!$E$39<>"Non-endemic", " ", IF(INTRO!$E$37="Non-endemic"," ", IF(COUNTRY_INFO!C91=0," ",COUNTRY_INFO!C91))) ->  | D91: =IF(INTRO!$E$39<>"Non-endemic", 0, IF(INTRO!$E$37="Non-endemic",0,IF(COUNTRY_INFO!$H91=1,COUNTRY_INFO!E91,0))) -> 0 | E91: =IF(INTRO!$E$39<>"Non-endemic", 0, IF(INTRO!$E$37="Non-endemic",0,IF(COUNTRY_INFO!$H91=1,COUNTRY_INFO!F91,0))) -> 0 | F91: =IF(INTRO!$E$39<>"Non-endemic", 0, IF(INTRO!$E$37="Non-endemic",0,IF(COUNTRY_INFO!$H91=1,COUNTRY_INFO!G91,0))) -> 0 | G91: 0 | H91: =IF(INTRO!$E$39="Non-endemic",IF(INTRO!$E$37="Non-endemic","Not required",COUNTRY_INFO!P91),"Treat with IVM") -> Treat with IVM | I91: 0 | J91: 0 | L91: 0 | M91: 0
A92: =IF(INTRO!$E$39<>"Non-endemic", " ", IF(INTRO!$E$37="Non-endemic"," ", IF(COUNTRY_INFO!A92=0," ",COUNTRY_INFO!A92))) ->  | B92: =IF(INTRO!$E$39<>"Non-endemic", " ", IF(INTRO!$E$37="Non-endemic"," ", IF(COUNTRY_INFO!B92=0," ",COUNTRY_INFO!B92))) ->  | C92: =IF(INTRO!$E$39<>"Non-endemic", " ", IF(INTRO!$E$37="Non-endemic"," ", IF(COUNTRY_INFO!C92=0," ",COUNTRY_INFO!C92))) ->  | D92: =IF(INTRO!$E$39<>"Non-endemic", 0, IF(INTRO!$E$37="Non-endemic",0,IF(COUNTRY_INFO!$H92=1,COUNTRY_INFO!E92,0))) -> 0 | E92: =IF(INTRO!$E$39<>"Non-endemic", 0, IF(INTRO!$E$37="Non-endemic",0,IF(COUNTRY_INFO!$H92=1,COUNTRY_INFO!F92,0))) -> 0 | F92: =IF(INTRO!$E$39<>"Non-endemic", 0, IF(INTRO!$E$37="Non-endemic",0,IF(COUNTRY_INFO!$H92=1,COUNTRY_INFO!G92,0))) -> 0 | G92: 0 | H92: =IF(INTRO!$E$39="Non-endemic",IF(INTRO!$E$37="Non-endemic","Not required",COUNTRY_INFO!P92),"Treat with IVM") -> Treat with IVM | I92: 0 | J92: 0 | L92: 0 | M92: 0
A93: =IF(INTRO!$E$39<>"Non-endemic", " ", IF(INTRO!$E$37="Non-endemic"," ", IF(COUNTRY_INFO!A93=0," ",COUNTRY_INFO!A93))) ->  | B93: =IF(INTRO!$E$39<>"Non-endemic", " ", IF(INTRO!$E$37="Non-endemic"," ", IF(COUNTRY_INFO!B93=0," ",COUNTRY_INFO!B93))) ->  | C93: =IF(INTRO!$E$39<>"Non-endemic", " ", IF(INTRO!$E$37="Non-endemic"," ", IF(COUNTRY_INFO!C93=0," ",COUNTRY_INFO!C93))) ->  | D93: =IF(INTRO!$E$39<>"Non-endemic", 0, IF(INTRO!$E$37="Non-endemic",0,IF(COUNTRY_INFO!$H93=1,COUNTRY_INFO!E93,0))) -> 0 | E93: =IF(INTRO!$E$39<>"Non-endemic", 0, IF(INTRO!$E$37="Non-endemic",0,IF(COUNTRY_INFO!$H93=1,COUNTRY_INFO!F93,0))) -> 0 | F93: =IF(INTRO!$E$39<>"Non-endemic", 0, IF(INTRO!$E$37="Non-endemic",0,IF(COUNTRY_INFO!$H93=1,COUNTRY_INFO!G93,0))) -> 0 | G93: 0 | H93: =IF(INTRO!$E$39="Non-endemic",IF(INTRO!$E$37="Non-endemic","Not required",COUNTRY_INFO!P93),"Treat with IVM") -> Treat with IVM | I93: 0 | J93: 0 | L93: 0 | M93: 0
A94: =IF(INTRO!$E$39<>"Non-endemic", " ", IF(INTRO!$E$37="Non-endemic"," ", IF(COUNTRY_INFO!A94=0," ",COUNTRY_INFO!A94))) ->  | B94: =IF(INTRO!$E$39<>"Non-endemic", " ", IF(INTRO!$E$37="Non-endemic"," ", IF(COUNTRY_INFO!B94=0," ",COUNTRY_INFO!B94))) ->  | C94: =IF(INTRO!$E$39<>"Non-endemic", " ", IF(INTRO!$E$37="Non-endemic"," ", IF(COUNTRY_INFO!C94=0," ",COUNTRY_INFO!C94))) ->  | D94: =IF(INTRO!$E$39<>"Non-endemic", 0, IF(INTRO!$E$37="Non-endemic",0,IF(COUNTRY_INFO!$H94=1,COUNTRY_INFO!E94,0))) -> 0 | E94: =IF(INTRO!$E$39<>"Non-endemic", 0, IF(INTRO!$E$37="Non-endemic",0,IF(COUNTRY_INFO!$H94=1,COUNTRY_INFO!F94,0))) -> 0 | F94: =IF(INTRO!$E$39<>"Non-endemic", 0, IF(INTRO!$E$37="Non-endemic",0,IF(COUNTRY_INFO!$H94=1,COUNTRY_INFO!G94,0))) -> 0 | G94: 0 | H94: =IF(INTRO!$E$39="Non-endemic",IF(INTRO!$E$37="Non-endemic","Not required",COUNTRY_INFO!P94),"Treat with IVM") -> Treat with IVM | I94: 0 | J94: 0 | L94: 0 | M94: 0
A95: =IF(INTRO!$E$39<>"Non-endemic", " ", IF(INTRO!$E$37="Non-endemic"," ", IF(COUNTRY_INFO!A95=0," ",COUNTRY_INFO!A95))) ->  | B95: =IF(INTRO!$E$39<>"Non-endemic", " ", IF(INTRO!$E$37="Non-endemic"," ", IF(COUNTRY_INFO!B95=0," ",COUNTRY_INFO!B95))) ->  | C95: =IF(INTRO!$E$39<>"Non-endemic", " ", IF(INTRO!$E$37="Non-endemic"," ", IF(COUNTRY_INFO!C95=0," ",COUNTRY_INFO!C95))) ->  | D95: =IF(INTRO!$E$39<>"Non-endemic", 0, IF(INTRO!$E$37="Non-endemic",0,IF(COUNTRY_INFO!$H95=1,COUNTRY_INFO!E95,0))) -> 0 | E95: =IF(INTRO!$E$39<>"Non-endemic", 0, IF(INTRO!$E$37="Non-endemic",0,IF(COUNTRY_INFO!$H95=1,COUNTRY_INFO!F95,0))) -> 0 | F95: =IF(INTRO!$E$39<>"Non-endemic", 0, IF(INTRO!$E$37="Non-endemic",0,IF(COUNTRY_INFO!$H95=1,COUNTRY_INFO!G95,0))) -> 0 | G95: 0 | H95: =IF(INTRO!$E$39="Non-endemic",IF(INTRO!$E$37="Non-endemic","Not required",COUNTRY_INFO!P95),"Treat with IVM") -> Treat with IVM | I95: 0 | J95: 0 | L95: 0 | M95: 0
A96: =IF(INTRO!$E$39<>"Non-endemic", " ", IF(INTRO!$E$37="Non-endemic"," ", IF(COUNTRY_INFO!A96=0," ",COUNTRY_INFO!A96))) ->  | B96: =IF(INTRO!$E$39<>"Non-endemic", " ", IF(INTRO!$E$37="Non-endemic"," ", IF(COUNTRY_INFO!B96=0," ",COUNTRY_INFO!B96))) ->  | C96: =IF(INTRO!$E$39<>"Non-endemic", " ", IF(INTRO!$E$37="Non-endemic"," ", IF(COUNTRY_INFO!C96=0," ",COUNTRY_INFO!C96))) ->  | D96: =IF(INTRO!$E$39<>"Non-endemic", 0, IF(INTRO!$E$37="Non-endemic",0,IF(COUNTRY_INFO!$H96=1,COUNTRY_INFO!E96,0))) -> 0 | E96: =IF(INTRO!$E$39<>"Non-endemic", 0, IF(INTRO!$E$37="Non-endemic",0,IF(COUNTRY_INFO!$H96=1,COUNTRY_INFO!F96,0))) -> 0 | F96: =IF(INTRO!$E$39<>"Non-endemic", 0, IF(INTRO!$E$37="Non-endemic",0,IF(COUNTRY_INFO!$H96=1,COUNTRY_INFO!G96,0))) -> 0 | G96: 0 | H96: =IF(INTRO!$E$39="Non-endemic",IF(INTRO!$E$37="Non-endemic","Not required",COUNTRY_INFO!P96),"Treat with IVM") -> Treat with IVM | I96: 0 | J96: 0 | L96: 0 | M96: 0
A97: =IF(INTRO!$E$39<>"Non-endemic", " ", IF(INTRO!$E$37="Non-endemic"," ", IF(COUNTRY_INFO!A97=0," ",COUNTRY_INFO!A97))) ->  | B97: =IF(INTRO!$E$39<>"Non-endemic", " ", IF(INTRO!$E$37="Non-endemic"," ", IF(COUNTRY_INFO!B97=0," ",COUNTRY_INFO!B97))) ->  | C97: =IF(INTRO!$E$39<>"Non-endemic", " ", IF(INTRO!$E$37="Non-endemic"," ", IF(COUNTRY_INFO!C97=0," ",COUNTRY_INFO!C97))) ->  | D97: =IF(INTRO!$E$39<>"Non-endemic", 0, IF(INTRO!$E$37="Non-endemic",0,IF(COUNTRY_INFO!$H97=1,COUNTRY_INFO!E97,0))) -> 0 | E97: =IF(INTRO!$E$39<>"Non-endemic", 0, IF(INTRO!$E$37="Non-endemic",0,IF(COUNTRY_INFO!$H97=1,COUNTRY_INFO!F97,0))) -> 0 | F97: =IF(INTRO!$E$39<>"Non-endemic", 0, IF(INTRO!$E$37="Non-endemic",0,IF(COUNTRY_INFO!$H97=1,COUNTRY_INFO!G97,0))) -> 0 | G97: 0 | H97: =IF(INTRO!$E$39="Non-endemic",IF(INTRO!$E$37="Non-endemic","Not required",COUNTRY_INFO!P97),"Treat with IVM") -> Treat with IVM | I97: 0 | J97: 0 | L97: 0 | M97: 0
A98: =IF(INTRO!$E$39<>"Non-endemic", " ", IF(INTRO!$E$37="Non-endemic"," ", IF(COUNTRY_INFO!A98=0," ",COUNTRY_INFO!A98))) ->  | B98: =IF(INTRO!$E$39<>"Non-endemic", " ", IF(INTRO!$E$37="Non-endemic"," ", IF(COUNTRY_INFO!B98=0," ",COUNTRY_INFO!B98))) ->  | C98: =IF(INTRO!$E$39<>"Non-endemic", " ", IF(INTRO!$E$37="Non-endemic"," ", IF(COUNTRY_INFO!C98=0," ",COUNTRY_INFO!C98))) ->  | D98: =IF(INTRO!$E$39<>"Non-endemic", 0, IF(INTRO!$E$37="Non-endemic",0,IF(COUNTRY_INFO!$H98=1,COUNTRY_INFO!E98,0))) -> 0 | E98: =IF(INTRO!$E$39<>"Non-endemic", 0, IF(INTRO!$E$37="Non-endemic",0,IF(COUNTRY_INFO!$H98=1,COUNTRY_INFO!F98,0))) -> 0 | F98: =IF(INTRO!$E$39<>"Non-endemic", 0, IF(INTRO!$E$37="Non-endemic",0,IF(COUNTRY_INFO!$H98=1,COUNTRY_INFO!G98,0))) -> 0 | G98: 0 | H98: =IF(INTRO!$E$39="Non-endemic",IF(INTRO!$E$37="Non-endemic","Not required",COUNTRY_INFO!P98),"Treat with IVM") -> Treat with IVM | I98: 0 | J98: 0 | L98: 0 | M98: 0
A99: =IF(INTRO!$E$39<>"Non-endemic", " ", IF(INTRO!$E$37="Non-endemic"," ", IF(COUNTRY_INFO!A99=0," ",COUNTRY_INFO!A99))) ->  | B99: =IF(INTRO!$E$39<>"Non-endemic", " ", IF(INTRO!$E$37="Non-endemic"," ", IF(COUNTRY_INFO!B99=0," ",COUNTRY_INFO!B99))) ->  | C99: =IF(INTRO!$E$39<>"Non-endemic", " ", IF(INTRO!$E$37="Non-endemic"," ", IF(COUNTRY_INFO!C99=0," ",COUNTRY_INFO!C99))) ->  | D99: =IF(INTRO!$E$39<>"Non-endemic", 0, IF(INTRO!$E$37="Non-endemic",0,IF(COUNTRY_INFO!$H99=1,COUNTRY_INFO!E99,0))) -> 0 | E99: =IF(INTRO!$E$39<>"Non-endemic", 0, IF(INTRO!$E$37="Non-endemic",0,IF(COUNTRY_INFO!$H99=1,COUNTRY_INFO!F99,0))) -> 0 | F99: =IF(INTRO!$E$39<>"Non-endemic", 0, IF(INTRO!$E$37="Non-endemic",0,IF(COUNTRY_INFO!$H99=1,COUNTRY_INFO!G99,0))) -> 0 | G99: 0 | H99: =IF(INTRO!$E$39="Non-endemic",IF(INTRO!$E$37="Non-endemic","Not required",COUNTRY_INFO!P99),"Treat with IVM") -> Treat with IVM | I99: 0 | J99: 0 | L99: 0 | M99: 0
A100: =IF(INTRO!$E$39<>"Non-endemic", " ", IF(INTRO!$E$37="Non-endemic"," ", IF(COUNTRY_INFO!A100=0," ",COUNTRY_INFO!A100))) ->  | B100: =IF(INTRO!$E$39<>"Non-endemic", " ", IF(INTRO!$E$37="Non-endemic"," ", IF(COUNTRY_INFO!B100=0," ",COUNTRY_INFO!B100))) ->  | C100: =IF(INTRO!$E$39<>"Non-endemic", " ", IF(INTRO!$E$37="Non-endemic"," ", IF(COUNTRY_INFO!C100=0," ",COUNTRY_INFO!C100))) ->  | D100: =IF(INTRO!$E$39<>"Non-endemic", 0, IF(INTRO!$E$37="Non-endemic",0,IF(COUNTRY_INFO!$H100=1,COUNTRY_INFO!E100,0))) -> 0 | E100: =IF(INTRO!$E$39<>"Non-endemic", 0, IF(INTRO!$E$37="Non-endemic",0,IF(COUNTRY_INFO!$H100=1,COUNTRY_INFO!F100,0))) -> 0 | F100: =IF(INTRO!$E$39<>"Non-endemic", 0, IF(INTRO!$E$37="Non-endemic",0,IF(COUNTRY_INFO!$H100=1,COUNTRY_INFO!G100,0))) -> 0 | G100: 0 | H100: =IF(INTRO!$E$39="Non-endemic",IF(INTRO!$E$37="Non-endemic","Not required",COUNTRY_INFO!P100),"Treat with IVM") -> Treat with IVM | I100: 0 | J100: 0 | L100: 0 | M100: 0
A101: =IF(INTRO!$E$39<>"Non-endemic", " ", IF(INTRO!$E$37="Non-endemic"," ", IF(COUNTRY_INFO!A101=0," ",COUNTRY_INFO!A101))) ->  | B101: =IF(INTRO!$E$39<>"Non-endemic", " ", IF(INTRO!$E$37="Non-endemic"," ", IF(COUNTRY_INFO!B101=0," ",COUNTRY_INFO!B101))) ->  | C101: =IF(INTRO!$E$39<>"Non-endemic", " ", IF(INTRO!$E$37="Non-endemic"," ", IF(COUNTRY_INFO!C101=0," ",COUNTRY_INFO!C101))) ->  | D101: =IF(INTRO!$E$39<>"Non-endemic", 0, IF(INTRO!$E$37="Non-endemic",0,IF(COUNTRY_INFO!$H101=1,COUNTRY_INFO!E101,0))) -> 0 | E101: =IF(INTRO!$E$39<>"Non-endemic", 0, IF(INTRO!$E$37="Non-endemic",0,IF(COUNTRY_INFO!$H101=1,COUNTRY_INFO!F101,0))) -> 0 | F101: =IF(INTRO!$E$39<>"Non-endemic", 0, IF(INTRO!$E$37="Non-endemic",0,IF(COUNTRY_INFO!$H101=1,COUNTRY_INFO!G101,0))) -> 0 | G101: 0 | H101: =IF(INTRO!$E$39="Non-endemic",IF(INTRO!$E$37="Non-endemic","Not required",COUNTRY_INFO!P101),"Treat with IVM") -> Treat with IVM | I101: 0 | J101: 0 | L101: 0 | M101: 0
A102: =IF(INTRO!$E$39<>"Non-endemic", " ", IF(INTRO!$E$37="Non-endemic"," ", IF(COUNTRY_INFO!A102=0," ",COUNTRY_INFO!A102))) ->  | B102: =IF(INTRO!$E$39<>"Non-endemic", " ", IF(INTRO!$E$37="Non-endemic"," ", IF(COUNTRY_INFO!B102=0," ",COUNTRY_INFO!B102))) ->  | C102: =IF(INTRO!$E$39<>"Non-endemic", " ", IF(INTRO!$E$37="Non-endemic"," ", IF(COUNTRY_INFO!C102=0," ",COUNTRY_INFO!C102))) ->  | D102: =IF(INTRO!$E$39<>"Non-endemic", 0, IF(INTRO!$E$37="Non-endemic",0,IF(COUNTRY_INFO!$H102=1,COUNTRY_INFO!E102,0))) -> 0 | E102: =IF(INTRO!$E$39<>"Non-endemic", 0, IF(INTRO!$E$37="Non-endemic",0,IF(COUNTRY_INFO!$H102=1,COUNTRY_INFO!F102,0))) -> 0 | F102: =IF(INTRO!$E$39<>"Non-endemic", 0, IF(INTRO!$E$37="Non-endemic",0,IF(COUNTRY_INFO!$H102=1,COUNTRY_INFO!G102,0))) -> 0 | G102: 0 | H102: =IF(INTRO!$E$39="Non-endemic",IF(INTRO!$E$37="Non-endemic","Not required",COUNTRY_INFO!P102),"Treat with IVM") -> Treat with IVM | I102: 0 | J102: 0 | L102: 0 | M102: 0
A103: =IF(INTRO!$E$39<>"Non-endemic", " ", IF(INTRO!$E$37="Non-endemic"," ", IF(COUNTRY_INFO!A103=0," ",COUNTRY_INFO!A103))) ->  | B103: =IF(INTRO!$E$39<>"Non-endemic", " ", IF(INTRO!$E$37="Non-endemic"," ", IF(COUNTRY_INFO!B103=0," ",COUNTRY_INFO!B103))) ->  | C103: =IF(INTRO!$E$39<>"Non-endemic", " ", IF(INTRO!$E$37="Non-endemic"," ", IF(COUNTRY_INFO!C103=0," ",COUNTRY_INFO!C103))) ->  | D103: =IF(INTRO!$E$39<>"Non-endemic", 0, IF(INTRO!$E$37="Non-endemic",0,IF(COUNTRY_INFO!$H103=1,COUNTRY_INFO!E103,0))) -> 0 | E103: =IF(INTRO!$E$39<>"Non-endemic", 0, IF(INTRO!$E$37="Non-endemic",0,IF(COUNTRY_INFO!$H103=1,COUNTRY_INFO!F103,0))) -> 0 | F103: =IF(INTRO!$E$39<>"Non-endemic", 0, IF(INTRO!$E$37="Non-endemic",0,IF(COUNTRY_INFO!$H103=1,COUNTRY_INFO!G103,0))) -> 0 | G103: 0 | H103: =IF(INTRO!$E$39="Non-endemic",IF(INTRO!$E$37="Non-endemic","Not required",COUNTRY_INFO!P103),"Treat with IVM") -> Treat with IVM | I103: 0 | J103: 0 | L103: 0 | M103: 0
A104: =IF(INTRO!$E$39<>"Non-endemic", " ", IF(INTRO!$E$37="Non-endemic"," ", IF(COUNTRY_INFO!A104=0," ",COUNTRY_INFO!A104))) ->  | B104: =IF(INTRO!$E$39<>"Non-endemic", " ", IF(INTRO!$E$37="Non-endemic"," ", IF(COUNTRY_INFO!B104=0," ",COUNTRY_INFO!B104))) ->  | C104: =IF(INTRO!$E$39<>"Non-endemic", " ", IF(INTRO!$E$37="Non-endemic"," ", IF(COUNTRY_INFO!C104=0," ",COUNTRY_INFO!C104))) ->  | D104: =IF(INTRO!$E$39<>"Non-endemic", 0, IF(INTRO!$E$37="Non-endemic",0,IF(COUNTRY_INFO!$H104=1,COUNTRY_INFO!E104,0))) -> 0 | E104: =IF(INTRO!$E$39<>"Non-endemic", 0, IF(INTRO!$E$37="Non-endemic",0,IF(COUNTRY_INFO!$H104=1,COUNTRY_INFO!F104,0))) -> 0 | F104: =IF(INTRO!$E$39<>"Non-endemic", 0, IF(INTRO!$E$37="Non-endemic",0,IF(COUNTRY_INFO!$H104=1,COUNTRY_INFO!G104,0))) -> 0 | G104: 0 | H104: =IF(INTRO!$E$39="Non-endemic",IF(INTRO!$E$37="Non-endemic","Not required",COUNTRY_INFO!P104),"Treat with IVM") -> Treat with IVM | I104: 0 | J104: 0 | L104: 0 | M104: 0
A105: =IF(INTRO!$E$39<>"Non-endemic", " ", IF(INTRO!$E$37="Non-endemic"," ", IF(COUNTRY_INFO!A105=0," ",COUNTRY_INFO!A105))) ->  | B105: =IF(INTRO!$E$39<>"Non-endemic", " ", IF(INTRO!$E$37="Non-endemic"," ", IF(COUNTRY_INFO!B105=0," ",COUNTRY_INFO!B105))) ->  | C105: =IF(INTRO!$E$39<>"Non-endemic", " ", IF(INTRO!$E$37="Non-endemic"," ", IF(COUNTRY_INFO!C105=0," ",COUNTRY_INFO!C105))) ->  | D105: =IF(INTRO!$E$39<>"Non-endemic", 0, IF(INTRO!$E$37="Non-endemic",0,IF(COUNTRY_INFO!$H105=1,COUNTRY_INFO!E105,0))) -> 0 | E105: =IF(INTRO!$E$39<>"Non-endemic", 0, IF(INTRO!$E$37="Non-endemic",0,IF(COUNTRY_INFO!$H105=1,COUNTRY_INFO!F105,0))) -> 0 | F105: =IF(INTRO!$E$39<>"Non-endemic", 0, IF(INTRO!$E$37="Non-endemic",0,IF(COUNTRY_INFO!$H105=1,COUNTRY_INFO!G105,0))) -> 0 | G105: =SUM(D105:F105) -> 0 | H105: =IF(INTRO!$E$39="Non-endemic",IF(INTRO!$E$37="Non-endemic","Not required",COUNTRY_INFO!P105),"Treat with IVM") -> Treat with IVM | I105: =IF(H105=1,G105,0) -> 0 | J105: =IF(I105>0,I105*2.5,0) -> 0 | L105: =IF($J105>$K105,$J105-$K105,0) -> 0 | M105: =ROUNDUP($J105/1000,0) -> 0
A106: =IF(INTRO!$E$39<>"Non-endemic", " ", IF(INTRO!$E$37="Non-endemic"," ", IF(COUNTRY_INFO!A106=0," ",COUNTRY_INFO!A106))) ->  | B106: =IF(INTRO!$E$39<>"Non-endemic", " ", IF(INTRO!$E$37="Non-endemic"," ", IF(COUNTRY_INFO!B106=0," ",COUNTRY_INFO!B106))) ->  | C106: =IF(INTRO!$E$39<>"Non-endemic", " ", IF(INTRO!$E$37="Non-endemic"," ", IF(COUNTRY_INFO!C106=0," ",COUNTRY_INFO!C106))) ->  | D106: =IF(INTRO!$E$39<>"Non-endemic", 0, IF(INTRO!$E$37="Non-endemic",0,IF(COUNTRY_INFO!$H106=1,COUNTRY_INFO!E106,0))) -> 0 | E106: =IF(INTRO!$E$39<>"Non-endemic", 0, IF(INTRO!$E$37="Non-endemic",0,IF(COUNTRY_INFO!$H106=1,COUNTRY_INFO!F106,0))) -> 0 | F106: =IF(INTRO!$E$39<>"Non-endemic", 0, IF(INTRO!$E$37="Non-endemic",0,IF(COUNTRY_INFO!$H106=1,COUNTRY_INFO!G106,0))) -> 0 | G106: 0 | H106: =IF(INTRO!$E$39="Non-endemic",IF(INTRO!$E$37="Non-endemic","Not required",COUNTRY_INFO!P106),"Treat with IVM") -> Treat with IVM | I106: 0 | J106: 0 | L106: 0 | M106: 0
A107: =IF(INTRO!$E$39<>"Non-endemic", " ", IF(INTRO!$E$37="Non-endemic"," ", IF(COUNTRY_INFO!A107=0," ",COUNTRY_INFO!A107))) ->  | B107: =IF(INTRO!$E$39<>"Non-endemic", " ", IF(INTRO!$E$37="Non-endemic"," ", IF(COUNTRY_INFO!B107=0," ",COUNTRY_INFO!B107))) ->  | C107: =IF(INTRO!$E$39<>"Non-endemic", " ", IF(INTRO!$E$37="Non-endemic"," ", IF(COUNTRY_INFO!C107=0," ",COUNTRY_INFO!C107))) ->  | D107: =IF(INTRO!$E$39<>"Non-endemic", 0, IF(INTRO!$E$37="Non-endemic",0,IF(COUNTRY_INFO!$H107=1,COUNTRY_INFO!E107,0))) -> 0 | E107: =IF(INTRO!$E$39<>"Non-endemic", 0, IF(INTRO!$E$37="Non-endemic",0,IF(COUNTRY_INFO!$H107=1,COUNTRY_INFO!F107,0))) -> 0 | F107: =IF(INTRO!$E$39<>"Non-endemic", 0, IF(INTRO!$E$37="Non-endemic",0,IF(COUNTRY_INFO!$H107=1,COUNTRY_INFO!G107,0))) -> 0 | G107: 0 | H107: =IF(INTRO!$E$39="Non-endemic",IF(INTRO!$E$37="Non-endemic","Not required",COUNTRY_INFO!P107),"Treat with IVM") -> Treat with IVM | I107: 0 | J107: 0 | L107: 0 | M107: 0
A108: =IF(INTRO!$E$39<>"Non-endemic", " ", IF(INTRO!$E$37="Non-endemic"," ", IF(COUNTRY_INFO!A108=0," ",COUNTRY_INFO!A108))) ->  | B108: =IF(INTRO!$E$39<>"Non-endemic", " ", IF(INTRO!$E$37="Non-endemic"," ", IF(COUNTRY_INFO!B108=0," ",COUNTRY_INFO!B108))) ->  | C108: =IF(INTRO!$E$39<>"Non-endemic", " ", IF(INTRO!$E$37="Non-endemic"," ", IF(COUNTRY_INFO!C108=0," ",COUNTRY_INFO!C108))) ->  | D108: =IF(INTRO!$E$39<>"Non-endemic", 0, IF(INTRO!$E$37="Non-endemic",0,IF(COUNTRY_INFO!$H108=1,COUNTRY_INFO!E108,0))) -> 0 | E108: =IF(INTRO!$E$39<>"Non-endemic", 0, IF(INTRO!$E$37="Non-endemic",0,IF(COUNTRY_INFO!$H108=1,COUNTRY_INFO!F108,0))) -> 0 | F108: =IF(INTRO!$E$39<>"Non-endemic", 0, IF(INTRO!$E$37="Non-endemic",0,IF(COUNTRY_INFO!$H108=1,COUNTRY_INFO!G108,0))) -> 0 | G108: 0 | H108: =IF(INTRO!$E$39="Non-endemic",IF(INTRO!$E$37="Non-endemic","Not required",COUNTRY_INFO!P108),"Treat with IVM") -> Treat with IVM | I108: 0 | J108: 0 | L108: 0 | M108: 0
A109: =IF(INTRO!$E$39<>"Non-endemic", " ", IF(INTRO!$E$37="Non-endemic"," ", IF(COUNTRY_INFO!A109=0," ",COUNTRY_INFO!A109))) ->  | B109: =IF(INTRO!$E$39<>"Non-endemic", " ", IF(INTRO!$E$37="Non-endemic"," ", IF(COUNTRY_INFO!B109=0," ",COUNTRY_INFO!B109))) ->  | C109: =IF(INTRO!$E$39<>"Non-endemic", " ", IF(INTRO!$E$37="Non-endemic"," ", IF(COUNTRY_INFO!C109=0," ",COUNTRY_INFO!C109))) ->  | D109: =IF(INTRO!$E$39<>"Non-endemic", 0, IF(INTRO!$E$37="Non-endemic",0,IF(COUNTRY_INFO!$H109=1,COUNTRY_INFO!E109,0))) -> 0 | E109: =IF(INTRO!$E$39<>"Non-endemic", 0, IF(INTRO!$E$37="Non-endemic",0,IF(COUNTRY_INFO!$H109=1,COUNTRY_INFO!F109,0))) -> 0 | F109: =IF(INTRO!$E$39<>"Non-endemic", 0, IF(INTRO!$E$37="Non-endemic",0,IF(COUNTRY_INFO!$H109=1,COUNTRY_INFO!G109,0))) -> 0 | G109: 0 | H109: =IF(INTRO!$E$39="Non-endemic",IF(INTRO!$E$37="Non-endemic","Not required",COUNTRY_INFO!P109),"Treat with IVM") -> Treat with IVM | I109: 0 | J109: 0 | L109: 0 | M109: 0
A110: =IF(INTRO!$E$39<>"Non-endemic", " ", IF(INTRO!$E$37="Non-endemic"," ", IF(COUNTRY_INFO!A110=0," ",COUNTRY_INFO!A110))) ->  | B110: =IF(INTRO!$E$39<>"Non-endemic", " ", IF(INTRO!$E$37="Non-endemic"," ", IF(COUNTRY_INFO!B110=0," ",COUNTRY_INFO!B110))) ->  | C110: =IF(INTRO!$E$39<>"Non-endemic", " ", IF(INTRO!$E$37="Non-endemic"," ", IF(COUNTRY_INFO!C110=0," ",COUNTRY_INFO!C110))) ->  | D110: =IF(INTRO!$E$39<>"Non-endemic", 0, IF(INTRO!$E$37="Non-endemic",0,IF(COUNTRY_INFO!$H110=1,COUNTRY_INFO!E110,0))) -> 0 | E110: =IF(INTRO!$E$39<>"Non-endemic", 0, IF(INTRO!$E$37="Non-endemic",0,IF(COUNTRY_INFO!$H110=1,COUNTRY_INFO!F110,0))) -> 0 | F110: =IF(INTRO!$E$39<>"Non-endemic", 0, IF(INTRO!$E$37="Non-endemic",0,IF(COUNTRY_INFO!$H110=1,COUNTRY_INFO!G110,0))) -> 0 | G110: 0 | H110: =IF(INTRO!$E$39="Non-endemic",IF(INTRO!$E$37="Non-endemic","Not required",COUNTRY_INFO!P110),"Treat with IVM") -> Treat with IVM | I110: 0 | J110: 0 | L110: 0 | M110: 0
A111: =IF(INTRO!$E$39<>"Non-endemic", " ", IF(INTRO!$E$37="Non-endemic"," ", IF(COUNTRY_INFO!A111=0," ",COUNTRY_INFO!A111))) ->  | B111: =IF(INTRO!$E$39<>"Non-endemic", " ", IF(INTRO!$E$37="Non-endemic"," ", IF(COUNTRY_INFO!B111=0," ",COUNTRY_INFO!B111))) ->  | C111: =IF(INTRO!$E$39<>"Non-endemic", " ", IF(INTRO!$E$37="Non-endemic"," ", IF(COUNTRY_INFO!C111=0," ",COUNTRY_INFO!C111))) ->  | D111: =IF(INTRO!$E$39<>"Non-endemic", 0, IF(INTRO!$E$37="Non-endemic",0,IF(COUNTRY_INFO!$H111=1,COUNTRY_INFO!E111,0))) -> 0 | E111: =IF(INTRO!$E$39<>"Non-endemic", 0, IF(INTRO!$E$37="Non-endemic",0,IF(COUNTRY_INFO!$H111=1,COUNTRY_INFO!F111,0))) -> 0 | F111: =IF(INTRO!$E$39<>"Non-endemic", 0, IF(INTRO!$E$37="Non-endemic",0,IF(COUNTRY_INFO!$H111=1,COUNTRY_INFO!G111,0))) -> 0 | G111: 0 | H111: =IF(INTRO!$E$39="Non-endemic",IF(INTRO!$E$37="Non-endemic","Not required",COUNTRY_INFO!P111),"Treat with IVM") -> Treat with IVM | I111: 0 | J111: 0 | L111: 0 | M111: 0
A112: =IF(INTRO!$E$39<>"Non-endemic", " ", IF(INTRO!$E$37="Non-endemic"," ", IF(COUNTRY_INFO!A112=0," ",COUNTRY_INFO!A112))) ->  | B112: =IF(INTRO!$E$39<>"Non-endemic", " ", IF(INTRO!$E$37="Non-endemic"," ", IF(COUNTRY_INFO!B112=0," ",COUNTRY_INFO!B112))) ->  | C112: =IF(INTRO!$E$39<>"Non-endemic", " ", IF(INTRO!$E$37="Non-endemic"," ", IF(COUNTRY_INFO!C112=0," ",COUNTRY_INFO!C112))) ->  | D112: =IF(INTRO!$E$39<>"Non-endemic", 0, IF(INTRO!$E$37="Non-endemic",0,IF(COUNTRY_INFO!$H112=1,COUNTRY_INFO!E112,0))) -> 0 | E112: =IF(INTRO!$E$39<>"Non-endemic", 0, IF(INTRO!$E$37="Non-endemic",0,IF(COUNTRY_INFO!$H112=1,COUNTRY_INFO!F112,0))) -> 0 | F112: =IF(INTRO!$E$39<>"Non-endemic", 0, IF(INTRO!$E$37="Non-endemic",0,IF(COUNTRY_INFO!$H112=1,COUNTRY_INFO!G112,0))) -> 0 | G112: 0 | H112: =IF(INTRO!$E$39="Non-endemic",IF(INTRO!$E$37="Non-endemic","Not required",COUNTRY_INFO!P112),"Treat with IVM") -> Treat with IVM | I112: 0 | J112: 0 | L112: 0 | M112: 0
A113: =IF(INTRO!$E$39<>"Non-endemic", " ", IF(INTRO!$E$37="Non-endemic"," ", IF(COUNTRY_INFO!A113=0," ",COUNTRY_INFO!A113))) ->  | B113: =IF(INTRO!$E$39<>"Non-endemic", " ", IF(INTRO!$E$37="Non-endemic"," ", IF(COUNTRY_INFO!B113=0," ",COUNTRY_INFO!B113))) ->  | C113: =IF(INTRO!$E$39<>"Non-endemic", " ", IF(INTRO!$E$37="Non-endemic"," ", IF(COUNTRY_INFO!C113=0," ",COUNTRY_INFO!C113))) ->  | D113: =IF(INTRO!$E$39<>"Non-endemic", 0, IF(INTRO!$E$37="Non-endemic",0,IF(COUNTRY_INFO!$H113=1,COUNTRY_INFO!E113,0))) -> 0 | E113: =IF(INTRO!$E$39<>"Non-endemic", 0, IF(INTRO!$E$37="Non-endemic",0,IF(COUNTRY_INFO!$H113=1,COUNTRY_INFO!F113,0))) -> 0 | F113: =IF(INTRO!$E$39<>"Non-endemic", 0, IF(INTRO!$E$37="Non-endemic",0,IF(COUNTRY_INFO!$H113=1,COUNTRY_INFO!G113,0))) -> 0 | G113: 0 | H113: =IF(INTRO!$E$39="Non-endemic",IF(INTRO!$E$37="Non-endemic","Not required",COUNTRY_INFO!P113),"Treat with IVM") -> Treat with IVM | I113: 0 | J113: 0 | L113: 0 | M113: 0
A114: =IF(INTRO!$E$39<>"Non-endemic", " ", IF(INTRO!$E$37="Non-endemic"," ", IF(COUNTRY_INFO!A114=0," ",COUNTRY_INFO!A114))) ->  | B114: =IF(INTRO!$E$39<>"Non-endemic", " ", IF(INTRO!$E$37="Non-endemic"," ", IF(COUNTRY_INFO!B114=0," ",COUNTRY_INFO!B114))) ->  | C114: =IF(INTRO!$E$39<>"Non-endemic", " ", IF(INTRO!$E$37="Non-endemic"," ", IF(COUNTRY_INFO!C114=0," ",COUNTRY_INFO!C114))) ->  | D114: =IF(INTRO!$E$39<>"Non-endemic", 0, IF(INTRO!$E$37="Non-endemic",0,IF(COUNTRY_INFO!$H114=1,COUNTRY_INFO!E114,0))) -> 0 | E114: =IF(INTRO!$E$39<>"Non-endemic", 0, IF(INTRO!$E$37="Non-endemic",0,IF(COUNTRY_INFO!$H114=1,COUNTRY_INFO!F114,0))) -> 0 | F114: =IF(INTRO!$E$39<>"Non-endemic", 0, IF(INTRO!$E$37="Non-endemic",0,IF(COUNTRY_INFO!$H114=1,COUNTRY_INFO!G114,0))) -> 0 | G114: 0 | H114: =IF(INTRO!$E$39="Non-endemic",IF(INTRO!$E$37="Non-endemic","Not required",COUNTRY_INFO!P114),"Treat with IVM") -> Treat with IVM | I114: 0 | J114: 0 | L114: 0 | M114: 0
A115: =IF(INTRO!$E$39<>"Non-endemic", " ", IF(INTRO!$E$37="Non-endemic"," ", IF(COUNTRY_INFO!A115=0," ",COUNTRY_INFO!A115))) ->  | B115: =IF(INTRO!$E$39<>"Non-endemic", " ", IF(INTRO!$E$37="Non-endemic"," ", IF(COUNTRY_INFO!B115=0," ",COUNTRY_INFO!B115))) ->  | C115: =IF(INTRO!$E$39<>"Non-endemic", " ", IF(INTRO!$E$37="Non-endemic"," ", IF(COUNTRY_INFO!C115=0," ",COUNTRY_INFO!C115))) ->  | D115: =IF(INTRO!$E$39<>"Non-endemic", 0, IF(INTRO!$E$37="Non-endemic",0,IF(COUNTRY_INFO!$H115=1,COUNTRY_INFO!E115,0))) -> 0 | E115: =IF(INTRO!$E$39<>"Non-endemic", 0, IF(INTRO!$E$37="Non-endemic",0,IF(COUNTRY_INFO!$H115=1,COUNTRY_INFO!F115,0))) -> 0 | F115: =IF(INTRO!$E$39<>"Non-endemic", 0, IF(INTRO!$E$37="Non-endemic",0,IF(COUNTRY_INFO!$H115=1,COUNTRY_INFO!G115,0))) -> 0 | G115: 0 | H115: =IF(INTRO!$E$39="Non-endemic",IF(INTRO!$E$37="Non-endemic","Not required",COUNTRY_INFO!P115),"Treat with IVM") -> Treat with IVM | I115: 0 | J115: 0 | L115: 0 | M115: 0
A116: =IF(INTRO!$E$39<>"Non-endemic", " ", IF(INTRO!$E$37="Non-endemic"," ", IF(COUNTRY_INFO!A116=0," ",COUNTRY_INFO!A116))) ->  | B116: =IF(INTRO!$E$39<>"Non-endemic", " ", IF(INTRO!$E$37="Non-endemic"," ", IF(COUNTRY_INFO!B116=0," ",COUNTRY_INFO!B116))) ->  | C116: =IF(INTRO!$E$39<>"Non-endemic", " ", IF(INTRO!$E$37="Non-endemic"," ", IF(COUNTRY_INFO!C116=0," ",COUNTRY_INFO!C116))) ->  | D116: =IF(INTRO!$E$39<>"Non-endemic", 0, IF(INTRO!$E$37="Non-endemic",0,IF(COUNTRY_INFO!$H116=1,COUNTRY_INFO!E116,0))) -> 0 | E116: =IF(INTRO!$E$39<>"Non-endemic", 0, IF(INTRO!$E$37="Non-endemic",0,IF(COUNTRY_INFO!$H116=1,COUNTRY_INFO!F116,0))) -> 0 | F116: =IF(INTRO!$E$39<>"Non-endemic", 0, IF(INTRO!$E$37="Non-endemic",0,IF(COUNTRY_INFO!$H116=1,COUNTRY_INFO!G116,0))) -> 0 | G116: 0 | H116: =IF(INTRO!$E$39="Non-endemic",IF(INTRO!$E$37="Non-endemic","Not required",COUNTRY_INFO!P116),"Treat with IVM") -> Treat with IVM | I116: 0 | J116: 0 | L116: 0 | M116: 0
A117: =IF(INTRO!$E$39<>"Non-endemic", " ", IF(INTRO!$E$37="Non-endemic"," ", IF(COUNTRY_INFO!A117=0," ",COUNTRY_INFO!A117))) ->  | B117: =IF(INTRO!$E$39<>"Non-endemic", " ", IF(INTRO!$E$37="Non-endemic"," ", IF(COUNTRY_INFO!B117=0," ",COUNTRY_INFO!B117))) ->  | C117: =IF(INTRO!$E$39<>"Non-endemic", " ", IF(INTRO!$E$37="Non-endemic"," ", IF(COUNTRY_INFO!C117=0," ",COUNTRY_INFO!C117))) ->  | D117: =IF(INTRO!$E$39<>"Non-endemic", 0, IF(INTRO!$E$37="Non-endemic",0,IF(COUNTRY_INFO!$H117=1,COUNTRY_INFO!E117,0))) -> 0 | E117: =IF(INTRO!$E$39<>"Non-endemic", 0, IF(INTRO!$E$37="Non-endemic",0,IF(COUNTRY_INFO!$H117=1,COUNTRY_INFO!F117,0))) -> 0 | F117: =IF(INTRO!$E$39<>"Non-endemic", 0, IF(INTRO!$E$37="Non-endemic",0,IF(COUNTRY_INFO!$H117=1,COUNTRY_INFO!G117,0))) -> 0 | G117: 0 | H117: =IF(INTRO!$E$39="Non-endemic",IF(INTRO!$E$37="Non-endemic","Not required",COUNTRY_INFO!P117),"Treat with IVM") -> Treat with IVM | I117: 0 | J117: 0 | L117: 0 | M117: 0
A118: =IF(INTRO!$E$39<>"Non-endemic", " ", IF(INTRO!$E$37="Non-endemic"," ", IF(COUNTRY_INFO!A118=0," ",COUNTRY_INFO!A118))) ->  | B118: =IF(INTRO!$E$39<>"Non-endemic", " ", IF(INTRO!$E$37="Non-endemic"," ", IF(COUNTRY_INFO!B118=0," ",COUNTRY_INFO!B118))) ->  | C118: =IF(INTRO!$E$39<>"Non-endemic", " ", IF(INTRO!$E$37="Non-endemic"," ", IF(COUNTRY_INFO!C118=0," ",COUNTRY_INFO!C118))) ->  | D118: =IF(INTRO!$E$39<>"Non-endemic", 0, IF(INTRO!$E$37="Non-endemic",0,IF(COUNTRY_INFO!$H118=1,COUNTRY_INFO!E118,0))) -> 0 | E118: =IF(INTRO!$E$39<>"Non-endemic", 0, IF(INTRO!$E$37="Non-endemic",0,IF(COUNTRY_INFO!$H118=1,COUNTRY_INFO!F118,0))) -> 0 | F118: =IF(INTRO!$E$39<>"Non-endemic", 0, IF(INTRO!$E$37="Non-endemic",0,IF(COUNTRY_INFO!$H118=1,COUNTRY_INFO!G118,0))) -> 0 | G118: 0 | H118: =IF(INTRO!$E$39="Non-endemic",IF(INTRO!$E$37="Non-endemic","Not required",COUNTRY_INFO!P118),"Treat with IVM") -> Treat with IVM | I118: 0 | J118: 0 | L118: 0 | M118: 0
A119: =IF(INTRO!$E$39<>"Non-endemic", " ", IF(INTRO!$E$37="Non-endemic"," ", IF(COUNTRY_INFO!A119=0," ",COUNTRY_INFO!A119))) ->  | B119: =IF(INTRO!$E$39<>"Non-endemic", " ", IF(INTRO!$E$37="Non-endemic"," ", IF(COUNTRY_INFO!B119=0," ",COUNTRY_INFO!B119))) ->  | C119: =IF(INTRO!$E$39<>"Non-endemic", " ", IF(INTRO!$E$37="Non-endemic"," ", IF(COUNTRY_INFO!C119=0," ",COUNTRY_INFO!C119))) ->  | D119: =IF(INTRO!$E$39<>"Non-endemic", 0, IF(INTRO!$E$37="Non-endemic",0,IF(COUNTRY_INFO!$H119=1,COUNTRY_INFO!E119,0))) -> 0 | E119: =IF(INTRO!$E$39<>"Non-endemic", 0, IF(INTRO!$E$37="Non-endemic",0,IF(COUNTRY_INFO!$H119=1,COUNTRY_INFO!F119,0))) -> 0 | F119: =IF(INTRO!$E$39<>"Non-endemic", 0, IF(INTRO!$E$37="Non-endemic",0,IF(COUNTRY_INFO!$H119=1,COUNTRY_INFO!G119,0))) -> 0 | G119: 0 | H119: =IF(INTRO!$E$39="Non-endemic",IF(INTRO!$E$37="Non-endemic","Not required",COUNTRY_INFO!P119),"Treat with IVM") -> Treat with IVM | I119: 0 | J119: 0 | L119: 0 | M119: 0
A120: =IF(INTRO!$E$39<>"Non-endemic", " ", IF(INTRO!$E$37="Non-endemic"," ", IF(COUNTRY_INFO!A120=0," ",COUNTRY_INFO!A120))) ->  | B120: =IF(INTRO!$E$39<>"Non-endemic", " ", IF(INTRO!$E$37="Non-endemic"," ", IF(COUNTRY_INFO!B120=0," ",COUNTRY_INFO!B120))) ->  | C120: =IF(INTRO!$E$39<>"Non-endemic", " ", IF(INTRO!$E$37="Non-endemic"," ", IF(COUNTRY_INFO!C120=0," ",COUNTRY_INFO!C120))) ->  | D120: =IF(INTRO!$E$39<>"Non-endemic", 0, IF(INTRO!$E$37="Non-endemic",0,IF(COUNTRY_INFO!$H120=1,COUNTRY_INFO!E120,0))) -> 0 | E120: =IF(INTRO!$E$39<>"Non-endemic", 0, IF(INTRO!$E$37="Non-endemic",0,IF(COUNTRY_INFO!$H120=1,COUNTRY_INFO!F120,0))) -> 0 | F120: =IF(INTRO!$E$39<>"Non-endemic", 0, IF(INTRO!$E$37="Non-endemic",0,IF(COUNTRY_INFO!$H120=1,COUNTRY_INFO!G120,0))) -> 0 | G120: 0 | H120: =IF(INTRO!$E$39="Non-endemic",IF(INTRO!$E$37="Non-endemic","Not required",COUNTRY_INFO!P120),"Treat with IVM") -> Treat with IVM | I120: 0 | J120: 0 | L120: 0 | M120: 0
A121: =IF(INTRO!$E$39<>"Non-endemic", " ", IF(INTRO!$E$37="Non-endemic"," ", IF(COUNTRY_INFO!A121=0," ",COUNTRY_INFO!A121))) ->  | B121: =IF(INTRO!$E$39<>"Non-endemic", " ", IF(INTRO!$E$37="Non-endemic"," ", IF(COUNTRY_INFO!B121=0," ",COUNTRY_INFO!B121))) ->  | C121: =IF(INTRO!$E$39<>"Non-endemic", " ", IF(INTRO!$E$37="Non-endemic"," ", IF(COUNTRY_INFO!C121=0," ",COUNTRY_INFO!C121))) ->  | D121: =IF(INTRO!$E$39<>"Non-endemic", 0, IF(INTRO!$E$37="Non-endemic",0,IF(COUNTRY_INFO!$H121=1,COUNTRY_INFO!E121,0))) -> 0 | E121: =IF(INTRO!$E$39<>"Non-endemic", 0, IF(INTRO!$E$37="Non-endemic",0,IF(COUNTRY_INFO!$H121=1,COUNTRY_INFO!F121,0))) -> 0 | F121: =IF(INTRO!$E$39<>"Non-endemic", 0, IF(INTRO!$E$37="Non-endemic",0,IF(COUNTRY_INFO!$H121=1,COUNTRY_INFO!G121,0))) -> 0 | G121: 0 | H121: =IF(INTRO!$E$39="Non-endemic",IF(INTRO!$E$37="Non-endemic","Not required",COUNTRY_INFO!P121),"Treat with IVM") -> Treat with IVM | I121: 0 | J121: 0 | L121: 0 | M121: 0
A122: =IF(INTRO!$E$39<>"Non-endemic", " ", IF(INTRO!$E$37="Non-endemic"," ", IF(COUNTRY_INFO!A122=0," ",COUNTRY_INFO!A122))) ->  | B122: =IF(INTRO!$E$39<>"Non-endemic", " ", IF(INTRO!$E$37="Non-endemic"," ", IF(COUNTRY_INFO!B122=0," ",COUNTRY_INFO!B122))) ->  | C122: =IF(INTRO!$E$39<>"Non-endemic", " ", IF(INTRO!$E$37="Non-endemic"," ", IF(COUNTRY_INFO!C122=0," ",COUNTRY_INFO!C122))) ->  | D122: =IF(INTRO!$E$39<>"Non-endemic", 0, IF(INTRO!$E$37="Non-endemic",0,IF(COUNTRY_INFO!$H122=1,COUNTRY_INFO!E122,0))) -> 0 | E122: =IF(INTRO!$E$39<>"Non-endemic", 0, IF(INTRO!$E$37="Non-endemic",0,IF(COUNTRY_INFO!$H122=1,COUNTRY_INFO!F122,0))) -> 0 | F122: =IF(INTRO!$E$39<>"Non-endemic", 0, IF(INTRO!$E$37="Non-endemic",0,IF(COUNTRY_INFO!$H122=1,COUNTRY_INFO!G122,0))) -> 0 | G122: 0 | H122: =IF(INTRO!$E$39="Non-endemic",IF(INTRO!$E$37="Non-endemic","Not required",COUNTRY_INFO!P122),"Treat with IVM") -> Treat with IVM | I122: 0 | J122: 0 | L122: 0 | M122: 0
A123: =IF(INTRO!$E$39<>"Non-endemic", " ", IF(INTRO!$E$37="Non-endemic"," ", IF(COUNTRY_INFO!A123=0," ",COUNTRY_INFO!A123))) ->  | B123: =IF(INTRO!$E$39<>"Non-endemic", " ", IF(INTRO!$E$37="Non-endemic"," ", IF(COUNTRY_INFO!B123=0," ",COUNTRY_INFO!B123))) ->  | C123: =IF(INTRO!$E$39<>"Non-endemic", " ", IF(INTRO!$E$37="Non-endemic"," ", IF(COUNTRY_INFO!C123=0," ",COUNTRY_INFO!C123))) ->  | D123: =IF(INTRO!$E$39<>"Non-endemic", 0, IF(INTRO!$E$37="Non-endemic",0,IF(COUNTRY_INFO!$H123=1,COUNTRY_INFO!E123,0))) -> 0 | E123: =IF(INTRO!$E$39<>"Non-endemic", 0, IF(INTRO!$E$37="Non-endemic",0,IF(COUNTRY_INFO!$H123=1,COUNTRY_INFO!F123,0))) -> 0 | F123: =IF(INTRO!$E$39<>"Non-endemic", 0, IF(INTRO!$E$37="Non-endemic",0,IF(COUNTRY_INFO!$H123=1,COUNTRY_INFO!G123,0))) -> 0 | G123: 0 | H123: =IF(INTRO!$E$39="Non-endemic",IF(INTRO!$E$37="Non-endemic","Not required",COUNTRY_INFO!P123),"Treat with IVM") -> Treat with IVM | I123: 0 | J123: 0 | L123: 0 | M123: 0
A124: =IF(INTRO!$E$39<>"Non-endemic", " ", IF(INTRO!$E$37="Non-endemic"," ", IF(COUNTRY_INFO!A124=0," ",COUNTRY_INFO!A124))) ->  | B124: =IF(INTRO!$E$39<>"Non-endemic", " ", IF(INTRO!$E$37="Non-endemic"," ", IF(COUNTRY_INFO!B124=0," ",COUNTRY_INFO!B124))) ->  | C124: =IF(INTRO!$E$39<>"Non-endemic", " ", IF(INTRO!$E$37="Non-endemic"," ", IF(COUNTRY_INFO!C124=0," ",COUNTRY_INFO!C124))) ->  | D124: =IF(INTRO!$E$39<>"Non-endemic", 0, IF(INTRO!$E$37="Non-endemic",0,IF(COUNTRY_INFO!$H124=1,COUNTRY_INFO!E124,0))) -> 0 | E124: =IF(INTRO!$E$39<>"Non-endemic", 0, IF(INTRO!$E$37="Non-endemic",0,IF(COUNTRY_INFO!$H124=1,COUNTRY_INFO!F124,0))) -> 0 | F124: =IF(INTRO!$E$39<>"Non-endemic", 0, IF(INTRO!$E$37="Non-endemic",0,IF(COUNTRY_INFO!$H124=1,COUNTRY_INFO!G124,0))) -> 0 | G124: 0 | H124: =IF(INTRO!$E$39="Non-endemic",IF(INTRO!$E$37="Non-endemic","Not required",COUNTRY_INFO!P124),"Treat with IVM") -> Treat with IVM | I124: 0 | J124: 0 | L124: 0 | M124: 0
A125: =IF(INTRO!$E$39<>"Non-endemic", " ", IF(INTRO!$E$37="Non-endemic"," ", IF(COUNTRY_INFO!A125=0," ",COUNTRY_INFO!A125))) ->  | B125: =IF(INTRO!$E$39<>"Non-endemic", " ", IF(INTRO!$E$37="Non-endemic"," ", IF(COUNTRY_INFO!B125=0," ",COUNTRY_INFO!B125))) ->  | C125: =IF(INTRO!$E$39<>"Non-endemic", " ", IF(INTRO!$E$37="Non-endemic"," ", IF(COUNTRY_INFO!C125=0," ",COUNTRY_INFO!C125))) ->  | D125: =IF(INTRO!$E$39<>"Non-endemic", 0, IF(INTRO!$E$37="Non-endemic",0,IF(COUNTRY_INFO!$H125=1,COUNTRY_INFO!E125,0))) -> 0 | E125: =IF(INTRO!$E$39<>"Non-endemic", 0, IF(INTRO!$E$37="Non-endemic",0,IF(COUNTRY_INFO!$H125=1,COUNTRY_INFO!F125,0))) -> 0 | F125: =IF(INTRO!$E$39<>"Non-endemic", 0, IF(INTRO!$E$37="Non-endemic",0,IF(COUNTRY_INFO!$H125=1,COUNTRY_INFO!G125,0))) -> 0 | G125: 0 | H125: =IF(INTRO!$E$39="Non-endemic",IF(INTRO!$E$37="Non-endemic","Not required",COUNTRY_INFO!P125),"Treat with IVM") -> Treat with IVM | I125: 0 | J125: 0 | L125: 0 | M125: 0
A126: =IF(INTRO!$E$39<>"Non-endemic", " ", IF(INTRO!$E$37="Non-endemic"," ", IF(COUNTRY_INFO!A126=0," ",COUNTRY_INFO!A126))) ->  | B126: =IF(INTRO!$E$39<>"Non-endemic", " ", IF(INTRO!$E$37="Non-endemic"," ", IF(COUNTRY_INFO!B126=0," ",COUNTRY_INFO!B126))) ->  | C126: =IF(INTRO!$E$39<>"Non-endemic", " ", IF(INTRO!$E$37="Non-endemic"," ", IF(COUNTRY_INFO!C126=0," ",COUNTRY_INFO!C126))) ->  | D126: =IF(INTRO!$E$39<>"Non-endemic", 0, IF(INTRO!$E$37="Non-endemic",0,IF(COUNTRY_INFO!$H126=1,COUNTRY_INFO!E126,0))) -> 0 | E126: =IF(INTRO!$E$39<>"Non-endemic", 0, IF(INTRO!$E$37="Non-endemic",0,IF(COUNTRY_INFO!$H126=1,COUNTRY_INFO!F126,0))) -> 0 | F126: =IF(INTRO!$E$39<>"Non-endemic", 0, IF(INTRO!$E$37="Non-endemic",0,IF(COUNTRY_INFO!$H126=1,COUNTRY_INFO!G126,0))) -> 0 | G126: 0 | H126: =IF(INTRO!$E$39="Non-endemic",IF(INTRO!$E$37="Non-endemic","Not required",COUNTRY_INFO!P126),"Treat with IVM") -> Treat with IVM | I126: 0 | J126: 0 | L126: 0 | M126: 0
A127: =IF(INTRO!$E$39<>"Non-endemic", " ", IF(INTRO!$E$37="Non-endemic"," ", IF(COUNTRY_INFO!A127=0," ",COUNTRY_INFO!A127))) ->  | B127: =IF(INTRO!$E$39<>"Non-endemic", " ", IF(INTRO!$E$37="Non-endemic"," ", IF(COUNTRY_INFO!B127=0," ",COUNTRY_INFO!B127))) ->  | C127: =IF(INTRO!$E$39<>"Non-endemic", " ", IF(INTRO!$E$37="Non-endemic"," ", IF(COUNTRY_INFO!C127=0," ",COUNTRY_INFO!C127))) ->  | D127: =IF(INTRO!$E$39<>"Non-endemic", 0, IF(INTRO!$E$37="Non-endemic",0,IF(COUNTRY_INFO!$H127=1,COUNTRY_INFO!E127,0))) -> 0 | E127: =IF(INTRO!$E$39<>"Non-endemic", 0, IF(INTRO!$E$37="Non-endemic",0,IF(COUNTRY_INFO!$H127=1,COUNTRY_INFO!F127,0))) -> 0 | F127: =IF(INTRO!$E$39<>"Non-endemic", 0, IF(INTRO!$E$37="Non-endemic",0,IF(COUNTRY_INFO!$H127=1,COUNTRY_INFO!G127,0))) -> 0 | G127: 0 | H127: =IF(INTRO!$E$39="Non-endemic",IF(INTRO!$E$37="Non-endemic","Not required",COUNTRY_INFO!P127),"Treat with IVM") -> Treat with IVM | I127: 0 | J127: 0 | L127: 0 | M127: 0
A128: =IF(INTRO!$E$39<>"Non-endemic", " ", IF(INTRO!$E$37="Non-endemic"," ", IF(COUNTRY_INFO!A128=0," ",COUNTRY_INFO!A128))) ->  | B128: =IF(INTRO!$E$39<>"Non-endemic", " ", IF(INTRO!$E$37="Non-endemic"," ", IF(COUNTRY_INFO!B128=0," ",COUNTRY_INFO!B128))) ->  | C128: =IF(INTRO!$E$39<>"Non-endemic", " ", IF(INTRO!$E$37="Non-endemic"," ", IF(COUNTRY_INFO!C128=0," ",COUNTRY_INFO!C128))) ->  | D128: =IF(INTRO!$E$39<>"Non-endemic", 0, IF(INTRO!$E$37="Non-endemic",0,IF(COUNTRY_INFO!$H128=1,COUNTRY_INFO!E128,0))) -> 0 | E128: =IF(INTRO!$E$39<>"Non-endemic", 0, IF(INTRO!$E$37="Non-endemic",0,IF(COUNTRY_INFO!$H128=1,COUNTRY_INFO!F128,0))) -> 0 | F128: =IF(INTRO!$E$39<>"Non-endemic", 0, IF(INTRO!$E$37="Non-endemic",0,IF(COUNTRY_INFO!$H128=1,COUNTRY_INFO!G128,0))) -> 0 | G128: 0 | H128: =IF(INTRO!$E$39="Non-endemic",IF(INTRO!$E$37="Non-endemic","Not required",COUNTRY_INFO!P128),"Treat with IVM") -> Treat with IVM | I128: 0 | J128: 0 | L128: 0 | M128: 0
A129: =IF(INTRO!$E$39<>"Non-endemic", " ", IF(INTRO!$E$37="Non-endemic"," ", IF(COUNTRY_INFO!A129=0," ",COUNTRY_INFO!A129))) ->  | B129: =IF(INTRO!$E$39<>"Non-endemic", " ", IF(INTRO!$E$37="Non-endemic"," ", IF(COUNTRY_INFO!B129=0," ",COUNTRY_INFO!B129))) ->  | C129: =IF(INTRO!$E$39<>"Non-endemic", " ", IF(INTRO!$E$37="Non-endemic"," ", IF(COUNTRY_INFO!C129=0," ",COUNTRY_INFO!C129))) ->  | D129: =IF(INTRO!$E$39<>"Non-endemic", 0, IF(INTRO!$E$37="Non-endemic",0,IF(COUNTRY_INFO!$H129=1,COUNTRY_INFO!E129,0))) -> 0 | E129: =IF(INTRO!$E$39<>"Non-endemic", 0, IF(INTRO!$E$37="Non-endemic",0,IF(COUNTRY_INFO!$H129=1,COUNTRY_INFO!F129,0))) -> 0 | F129: =IF(INTRO!$E$39<>"Non-endemic", 0, IF(INTRO!$E$37="Non-endemic",0,IF(COUNTRY_INFO!$H129=1,COUNTRY_INFO!G129,0))) -> 0 | G129: 0 | H129: =IF(INTRO!$E$39="Non-endemic",IF(INTRO!$E$37="Non-endemic","Not required",COUNTRY_INFO!P129),"Treat with IVM") -> Treat with IVM | I129: 0 | J129: 0 | L129: 0 | M129: 0
A130: =IF(INTRO!$E$39<>"Non-endemic", " ", IF(INTRO!$E$37="Non-endemic"," ", IF(COUNTRY_INFO!A130=0," ",COUNTRY_INFO!A130))) ->  | B130: =IF(INTRO!$E$39<>"Non-endemic", " ", IF(INTRO!$E$37="Non-endemic"," ", IF(COUNTRY_INFO!B130=0," ",COUNTRY_INFO!B130))) ->  | C130: =IF(INTRO!$E$39<>"Non-endemic", " ", IF(INTRO!$E$37="Non-endemic"," ", IF(COUNTRY_INFO!C130=0," ",COUNTRY_INFO!C130))) ->  | D130: =IF(INTRO!$E$39<>"Non-endemic", 0, IF(INTRO!$E$37="Non-endemic",0,IF(COUNTRY_INFO!$H130=1,COUNTRY_INFO!E130,0))) -> 0 | E130: =IF(INTRO!$E$39<>"Non-endemic", 0, IF(INTRO!$E$37="Non-endemic",0,IF(COUNTRY_INFO!$H130=1,COUNTRY_INFO!F130,0))) -> 0 | F130: =IF(INTRO!$E$39<>"Non-endemic", 0, IF(INTRO!$E$37="Non-endemic",0,IF(COUNTRY_INFO!$H130=1,COUNTRY_INFO!G130,0))) -> 0 | G130: 0 | H130: =IF(INTRO!$E$39="Non-endemic",IF(INTRO!$E$37="Non-endemic","Not required",COUNTRY_INFO!P130),"Treat with IVM") -> Treat with IVM | I130: 0 | J130: 0 | L130: 0 | M130: 0
A131: =IF(INTRO!$E$39<>"Non-endemic", " ", IF(INTRO!$E$37="Non-endemic"," ", IF(COUNTRY_INFO!A131=0," ",COUNTRY_INFO!A131))) ->  | B131: =IF(INTRO!$E$39<>"Non-endemic", " ", IF(INTRO!$E$37="Non-endemic"," ", IF(COUNTRY_INFO!B131=0," ",COUNTRY_INFO!B131))) ->  | C131: =IF(INTRO!$E$39<>"Non-endemic", " ", IF(INTRO!$E$37="Non-endemic"," ", IF(COUNTRY_INFO!C131=0," ",COUNTRY_INFO!C131))) ->  | D131: =IF(INTRO!$E$39<>"Non-endemic", 0, IF(INTRO!$E$37="Non-endemic",0,IF(COUNTRY_INFO!$H131=1,COUNTRY_INFO!E131,0))) -> 0 | E131: =IF(INTRO!$E$39<>"Non-endemic", 0, IF(INTRO!$E$37="Non-endemic",0,IF(COUNTRY_INFO!$H131=1,COUNTRY_INFO!F131,0))) -> 0 | F131: =IF(INTRO!$E$39<>"Non-endemic", 0, IF(INTRO!$E$37="Non-endemic",0,IF(COUNTRY_INFO!$H131=1,COUNTRY_INFO!G131,0))) -> 0 | G131: 0 | H131: =IF(INTRO!$E$39="Non-endemic",IF(INTRO!$E$37="Non-endemic","Not required",COUNTRY_INFO!P131),"Treat with IVM") -> Treat with IVM | I131: 0 | J131: 0 | L131: 0 | M131: 0
A132: =IF(INTRO!$E$39<>"Non-endemic", " ", IF(INTRO!$E$37="Non-endemic"," ", IF(COUNTRY_INFO!A132=0," ",COUNTRY_INFO!A132))) ->  | B132: =IF(INTRO!$E$39<>"Non-endemic", " ", IF(INTRO!$E$37="Non-endemic"," ", IF(COUNTRY_INFO!B132=0," ",COUNTRY_INFO!B132))) ->  | C132: =IF(INTRO!$E$39<>"Non-endemic", " ", IF(INTRO!$E$37="Non-endemic"," ", IF(COUNTRY_INFO!C132=0," ",COUNTRY_INFO!C132))) ->  | D132: =IF(INTRO!$E$39<>"Non-endemic", 0, IF(INTRO!$E$37="Non-endemic",0,IF(COUNTRY_INFO!$H132=1,COUNTRY_INFO!E132,0))) -> 0 | E132: =IF(INTRO!$E$39<>"Non-endemic", 0, IF(INTRO!$E$37="Non-endemic",0,IF(COUNTRY_INFO!$H132=1,COUNTRY_INFO!F132,0))) -> 0 | F132: =IF(INTRO!$E$39<>"Non-endemic", 0, IF(INTRO!$E$37="Non-endemic",0,IF(COUNTRY_INFO!$H132=1,COUNTRY_INFO!G132,0))) -> 0 | G132: 0 | H132: =IF(INTRO!$E$39="Non-endemic",IF(INTRO!$E$37="Non-endemic","Not required",COUNTRY_INFO!P132),"Treat with IVM") -> Treat with IVM | I132: 0 | J132: 0 | L132: 0 | M132: 0
A133: =IF(INTRO!$E$39<>"Non-endemic", " ", IF(INTRO!$E$37="Non-endemic"," ", IF(COUNTRY_INFO!A133=0," ",COUNTRY_INFO!A133))) ->  | B133: =IF(INTRO!$E$39<>"Non-endemic", " ", IF(INTRO!$E$37="Non-endemic"," ", IF(COUNTRY_INFO!B133=0," ",COUNTRY_INFO!B133))) ->  | C133: =IF(INTRO!$E$39<>"Non-endemic", " ", IF(INTRO!$E$37="Non-endemic"," ", IF(COUNTRY_INFO!C133=0," ",COUNTRY_INFO!C133))) ->  | D133: =IF(INTRO!$E$39<>"Non-endemic", 0, IF(INTRO!$E$37="Non-endemic",0,IF(COUNTRY_INFO!$H133=1,COUNTRY_INFO!E133,0))) -> 0 | E133: =IF(INTRO!$E$39<>"Non-endemic", 0, IF(INTRO!$E$37="Non-endemic",0,IF(COUNTRY_INFO!$H133=1,COUNTRY_INFO!F133,0))) -> 0 | F133: =IF(INTRO!$E$39<>"Non-endemic", 0, IF(INTRO!$E$37="Non-endemic",0,IF(COUNTRY_INFO!$H133=1,COUNTRY_INFO!G133,0))) -> 0 | G133: 0 | H133: =IF(INTRO!$E$39="Non-endemic",IF(INTRO!$E$37="Non-endemic","Not required",COUNTRY_INFO!P133),"Treat with IVM") -> Treat with IVM | I133: 0 | J133: 0 | L133: 0 | M133: 0
A134: =IF(INTRO!$E$39<>"Non-endemic", " ", IF(INTRO!$E$37="Non-endemic"," ", IF(COUNTRY_INFO!A134=0," ",COUNTRY_INFO!A134))) ->  | B134: =IF(INTRO!$E$39<>"Non-endemic", " ", IF(INTRO!$E$37="Non-endemic"," ", IF(COUNTRY_INFO!B134=0," ",COUNTRY_INFO!B134))) ->  | C134: =IF(INTRO!$E$39<>"Non-endemic", " ", IF(INTRO!$E$37="Non-endemic"," ", IF(COUNTRY_INFO!C134=0," ",COUNTRY_INFO!C134))) ->  | D134: =IF(INTRO!$E$39<>"Non-endemic", 0, IF(INTRO!$E$37="Non-endemic",0,IF(COUNTRY_INFO!$H134=1,COUNTRY_INFO!E134,0))) -> 0 | E134: =IF(INTRO!$E$39<>"Non-endemic", 0, IF(INTRO!$E$37="Non-endemic",0,IF(COUNTRY_INFO!$H134=1,COUNTRY_INFO!F134,0))) -> 0 | F134: =IF(INTRO!$E$39<>"Non-endemic", 0, IF(INTRO!$E$37="Non-endemic",0,IF(COUNTRY_INFO!$H134=1,COUNTRY_INFO!G134,0))) -> 0 | G134: 0 | H134: =IF(INTRO!$E$39="Non-endemic",IF(INTRO!$E$37="Non-endemic","Not required",COUNTRY_INFO!P134),"Treat with IVM") -> Treat with IVM | I134: 0 | J134: 0 | L134: 0 | M134: 0
A135: =IF(INTRO!$E$39<>"Non-endemic", " ", IF(INTRO!$E$37="Non-endemic"," ", IF(COUNTRY_INFO!A135=0," ",COUNTRY_INFO!A135))) ->  | B135: =IF(INTRO!$E$39<>"Non-endemic", " ", IF(INTRO!$E$37="Non-endemic"," ", IF(COUNTRY_INFO!B135=0," ",COUNTRY_INFO!B135))) ->  | C135: =IF(INTRO!$E$39<>"Non-endemic", " ", IF(INTRO!$E$37="Non-endemic"," ", IF(COUNTRY_INFO!C135=0," ",COUNTRY_INFO!C135))) ->  | D135: =IF(INTRO!$E$39<>"Non-endemic", 0, IF(INTRO!$E$37="Non-endemic",0,IF(COUNTRY_INFO!$H135=1,COUNTRY_INFO!E135,0))) -> 0 | E135: =IF(INTRO!$E$39<>"Non-endemic", 0, IF(INTRO!$E$37="Non-endemic",0,IF(COUNTRY_INFO!$H135=1,COUNTRY_INFO!F135,0))) -> 0 | F135: =IF(INTRO!$E$39<>"Non-endemic", 0, IF(INTRO!$E$37="Non-endemic",0,IF(COUNTRY_INFO!$H135=1,COUNTRY_INFO!G135,0))) -> 0 | G135: 0 | H135: =IF(INTRO!$E$39="Non-endemic",IF(INTRO!$E$37="Non-endemic","Not required",COUNTRY_INFO!P135),"Treat with IVM") -> Treat with IVM | I135: 0 | J135: 0 | L135: 0 | M135: 0
A136: =IF(INTRO!$E$39<>"Non-endemic", " ", IF(INTRO!$E$37="Non-endemic"," ", IF(COUNTRY_INFO!A136=0," ",COUNTRY_INFO!A136))) ->  | B136: =IF(INTRO!$E$39<>"Non-endemic", " ", IF(INTRO!$E$37="Non-endemic"," ", IF(COUNTRY_INFO!B136=0," ",COUNTRY_INFO!B136))) ->  | C136: =IF(INTRO!$E$39<>"Non-endemic", " ", IF(INTRO!$E$37="Non-endemic"," ", IF(COUNTRY_INFO!C136=0," ",COUNTRY_INFO!C136))) ->  | D136: =IF(INTRO!$E$39<>"Non-endemic", 0, IF(INTRO!$E$37="Non-endemic",0,IF(COUNTRY_INFO!$H136=1,COUNTRY_INFO!E136,0))) -> 0 | E136: =IF(INTRO!$E$39<>"Non-endemic", 0, IF(INTRO!$E$37="Non-endemic",0,IF(COUNTRY_INFO!$H136=1,COUNTRY_INFO!F136,0))) -> 0 | F136: =IF(INTRO!$E$39<>"Non-endemic", 0, IF(INTRO!$E$37="Non-endemic",0,IF(COUNTRY_INFO!$H136=1,COUNTRY_INFO!G136,0))) -> 0 | G136: 0 | H136: =IF(INTRO!$E$39="Non-endemic",IF(INTRO!$E$37="Non-endemic","Not required",COUNTRY_INFO!P136),"Treat with IVM") -> Treat with IVM | I136: 0 | J136: 0 | L136: 0 | M136: 0
A137: =IF(INTRO!$E$39<>"Non-endemic", " ", IF(INTRO!$E$37="Non-endemic"," ", IF(COUNTRY_INFO!A137=0," ",COUNTRY_INFO!A137))) ->  | B137: =IF(INTRO!$E$39<>"Non-endemic", " ", IF(INTRO!$E$37="Non-endemic"," ", IF(COUNTRY_INFO!B137=0," ",COUNTRY_INFO!B137))) ->  | C137: =IF(INTRO!$E$39<>"Non-endemic", " ", IF(INTRO!$E$37="Non-endemic"," ", IF(COUNTRY_INFO!C137=0," ",COUNTRY_INFO!C137))) ->  | D137: =IF(INTRO!$E$39<>"Non-endemic", 0, IF(INTRO!$E$37="Non-endemic",0,IF(COUNTRY_INFO!$H137=1,COUNTRY_INFO!E137,0))) -> 0 | E137: =IF(INTRO!$E$39<>"Non-endemic", 0, IF(INTRO!$E$37="Non-endemic",0,IF(COUNTRY_INFO!$H137=1,COUNTRY_INFO!F137,0))) -> 0 | F137: =IF(INTRO!$E$39<>"Non-endemic", 0, IF(INTRO!$E$37="Non-endemic",0,IF(COUNTRY_INFO!$H137=1,COUNTRY_INFO!G137,0))) -> 0 | G137: =SUM(D137:F137) -> 0 | H137: =IF(INTRO!$E$39="Non-endemic",IF(INTRO!$E$37="Non-endemic","Not required",COUNTRY_INFO!P137),"Treat with IVM") -> Treat with IVM | I137: =IF(H137=1,G137,0) -> 0 | J137: =IF(I137>0,I137*2.5,0) -> 0 | L137: =IF($J137>$K137,$J137-$K137,0) -> 0 | M137: =ROUNDUP($J137/1000,0) -> 0
A138: =IF(INTRO!$E$39<>"Non-endemic", " ", IF(INTRO!$E$37="Non-endemic"," ", IF(COUNTRY_INFO!A138=0," ",COUNTRY_INFO!A138))) ->  | B138: =IF(INTRO!$E$39<>"Non-endemic", " ", IF(INTRO!$E$37="Non-endemic"," ", IF(COUNTRY_INFO!B138=0," ",COUNTRY_INFO!B138))) ->  | C138: =IF(INTRO!$E$39<>"Non-endemic", " ", IF(INTRO!$E$37="Non-endemic"," ", IF(COUNTRY_INFO!C138=0," ",COUNTRY_INFO!C138))) ->  | D138: =IF(INTRO!$E$39<>"Non-endemic", 0, IF(INTRO!$E$37="Non-endemic",0,IF(COUNTRY_INFO!$H138=1,COUNTRY_INFO!E138,0))) -> 0 | E138: =IF(INTRO!$E$39<>"Non-endemic", 0, IF(INTRO!$E$37="Non-endemic",0,IF(COUNTRY_INFO!$H138=1,COUNTRY_INFO!F138,0))) -> 0 | F138: =IF(INTRO!$E$39<>"Non-endemic", 0, IF(INTRO!$E$37="Non-endemic",0,IF(COUNTRY_INFO!$H138=1,COUNTRY_INFO!G138,0))) -> 0 | G138: 0 | H138: =IF(INTRO!$E$39="Non-endemic",IF(INTRO!$E$37="Non-endemic","Not required",COUNTRY_INFO!P138),"Treat with IVM") -> Treat with IVM | I138: 0 | J138: 0 | L138: 0 | M138: 0
A139: =IF(INTRO!$E$39<>"Non-endemic", " ", IF(INTRO!$E$37="Non-endemic"," ", IF(COUNTRY_INFO!A139=0," ",COUNTRY_INFO!A139))) ->  | B139: =IF(INTRO!$E$39<>"Non-endemic", " ", IF(INTRO!$E$37="Non-endemic"," ", IF(COUNTRY_INFO!B139=0," ",COUNTRY_INFO!B139))) ->  | C139: =IF(INTRO!$E$39<>"Non-endemic", " ", IF(INTRO!$E$37="Non-endemic"," ", IF(COUNTRY_INFO!C139=0," ",COUNTRY_INFO!C139))) ->  | D139: =IF(INTRO!$E$39<>"Non-endemic", 0, IF(INTRO!$E$37="Non-endemic",0,IF(COUNTRY_INFO!$H139=1,COUNTRY_INFO!E139,0))) -> 0 | E139: =IF(INTRO!$E$39<>"Non-endemic", 0, IF(INTRO!$E$37="Non-endemic",0,IF(COUNTRY_INFO!$H139=1,COUNTRY_INFO!F139,0))) -> 0 | F139: =IF(INTRO!$E$39<>"Non-endemic", 0, IF(INTRO!$E$37="Non-endemic",0,IF(COUNTRY_INFO!$H139=1,COUNTRY_INFO!G139,0))) -> 0 | G139: 0 | H139: =IF(INTRO!$E$39="Non-endemic",IF(INTRO!$E$37="Non-endemic","Not required",COUNTRY_INFO!P139),"Treat with IVM") -> Treat with IVM | I139: 0 | J139: 0 | L139: 0 | M139: 0
A140: =IF(INTRO!$E$39<>"Non-endemic", " ", IF(INTRO!$E$37="Non-endemic"," ", IF(COUNTRY_INFO!A140=0," ",COUNTRY_INFO!A140))) ->  | B140: =IF(INTRO!$E$39<>"Non-endemic", " ", IF(INTRO!$E$37="Non-endemic"," ", IF(COUNTRY_INFO!B140=0," ",COUNTRY_INFO!B140))) ->  | C140: =IF(INTRO!$E$39<>"Non-endemic", " ", IF(INTRO!$E$37="Non-endemic"," ", IF(COUNTRY_INFO!C140=0," ",COUNTRY_INFO!C140))) ->  | D140: =IF(INTRO!$E$39<>"Non-endemic", 0, IF(INTRO!$E$37="Non-endemic",0,IF(COUNTRY_INFO!$H140=1,COUNTRY_INFO!E140,0))) -> 0 | E140: =IF(INTRO!$E$39<>"Non-endemic", 0, IF(INTRO!$E$37="Non-endemic",0,IF(COUNTRY_INFO!$H140=1,COUNTRY_INFO!F140,0))) -> 0 | F140: =IF(INTRO!$E$39<>"Non-endemic", 0, IF(INTRO!$E$37="Non-endemic",0,IF(COUNTRY_INFO!$H140=1,COUNTRY_INFO!G140,0))) -> 0 | G140: 0 | H140: =IF(INTRO!$E$39="Non-endemic",IF(INTRO!$E$37="Non-endemic","Not required",COUNTRY_INFO!P140),"Treat with IVM") -> Treat with IVM | I140: 0 | J140: 0 | L140: 0 | M140: 0
A141: =IF(INTRO!$E$39<>"Non-endemic", " ", IF(INTRO!$E$37="Non-endemic"," ", IF(COUNTRY_INFO!A141=0," ",COUNTRY_INFO!A141))) ->  | B141: =IF(INTRO!$E$39<>"Non-endemic", " ", IF(INTRO!$E$37="Non-endemic"," ", IF(COUNTRY_INFO!B141=0," ",COUNTRY_INFO!B141))) ->  | C141: =IF(INTRO!$E$39<>"Non-endemic", " ", IF(INTRO!$E$37="Non-endemic"," ", IF(COUNTRY_INFO!C141=0," ",COUNTRY_INFO!C141))) ->  | D141: =IF(INTRO!$E$39<>"Non-endemic", 0, IF(INTRO!$E$37="Non-endemic",0,IF(COUNTRY_INFO!$H141=1,COUNTRY_INFO!E141,0))) -> 0 | E141: =IF(INTRO!$E$39<>"Non-endemic", 0, IF(INTRO!$E$37="Non-endemic",0,IF(COUNTRY_INFO!$H141=1,COUNTRY_INFO!F141,0))) -> 0 | F141: =IF(INTRO!$E$39<>"Non-endemic", 0, IF(INTRO!$E$37="Non-endemic",0,IF(COUNTRY_INFO!$H141=1,COUNTRY_INFO!G141,0))) -> 0 | G141: 0 | H141: =IF(INTRO!$E$39="Non-endemic",IF(INTRO!$E$37="Non-endemic","Not required",COUNTRY_INFO!P141),"Treat with IVM") -> Treat with IVM | I141: 0 | J141: 0 | L141: 0 | M141: 0
A142: =IF(INTRO!$E$39<>"Non-endemic", " ", IF(INTRO!$E$37="Non-endemic"," ", IF(COUNTRY_INFO!A142=0," ",COUNTRY_INFO!A142))) ->  | B142: =IF(INTRO!$E$39<>"Non-endemic", " ", IF(INTRO!$E$37="Non-endemic"," ", IF(COUNTRY_INFO!B142=0," ",COUNTRY_INFO!B142))) ->  | C142: =IF(INTRO!$E$39<>"Non-endemic", " ", IF(INTRO!$E$37="Non-endemic"," ", IF(COUNTRY_INFO!C142=0," ",COUNTRY_INFO!C142))) ->  | D142: =IF(INTRO!$E$39<>"Non-endemic", 0, IF(INTRO!$E$37="Non-endemic",0,IF(COUNTRY_INFO!$H142=1,COUNTRY_INFO!E142,0))) -> 0 | E142: =IF(INTRO!$E$39<>"Non-endemic", 0, IF(INTRO!$E$37="Non-endemic",0,IF(COUNTRY_INFO!$H142=1,COUNTRY_INFO!F142,0))) -> 0 | F142: =IF(INTRO!$E$39<>"Non-endemic", 0, IF(INTRO!$E$37="Non-endemic",0,IF(COUNTRY_INFO!$H142=1,COUNTRY_INFO!G142,0))) -> 0 | G142: 0 | H142: =IF(INTRO!$E$39="Non-endemic",IF(INTRO!$E$37="Non-endemic","Not required",COUNTRY_INFO!P142),"Treat with IVM") -> Treat with IVM | I142: 0 | J142: 0 | L142: 0 | M142: 0
A143: =IF(INTRO!$E$39<>"Non-endemic", " ", IF(INTRO!$E$37="Non-endemic"," ", IF(COUNTRY_INFO!A143=0," ",COUNTRY_INFO!A143))) ->  | B143: =IF(INTRO!$E$39<>"Non-endemic", " ", IF(INTRO!$E$37="Non-endemic"," ", IF(COUNTRY_INFO!B143=0," ",COUNTRY_INFO!B143))) ->  | C143: =IF(INTRO!$E$39<>"Non-endemic", " ", IF(INTRO!$E$37="Non-endemic"," ", IF(COUNTRY_INFO!C143=0," ",COUNTRY_INFO!C143))) ->  | D143: =IF(INTRO!$E$39<>"Non-endemic", 0, IF(INTRO!$E$37="Non-endemic",0,IF(COUNTRY_INFO!$H143=1,COUNTRY_INFO!E143,0))) -> 0 | E143: =IF(INTRO!$E$39<>"Non-endemic", 0, IF(INTRO!$E$37="Non-endemic",0,IF(COUNTRY_INFO!$H143=1,COUNTRY_INFO!F143,0))) -> 0 | F143: =IF(INTRO!$E$39<>"Non-endemic", 0, IF(INTRO!$E$37="Non-endemic",0,IF(COUNTRY_INFO!$H143=1,COUNTRY_INFO!G143,0))) -> 0 | G143: 0 | H143: =IF(INTRO!$E$39="Non-endemic",IF(INTRO!$E$37="Non-endemic","Not required",COUNTRY_INFO!P143),"Treat with IVM") -> Treat with IVM | I143: 0 | J143: 0 | L143: 0 | M143: 0
A144: =IF(INTRO!$E$39<>"Non-endemic", " ", IF(INTRO!$E$37="Non-endemic"," ", IF(COUNTRY_INFO!A144=0," ",COUNTRY_INFO!A144))) ->  | B144: =IF(INTRO!$E$39<>"Non-endemic", " ", IF(INTRO!$E$37="Non-endemic"," ", IF(COUNTRY_INFO!B144=0," ",COUNTRY_INFO!B144))) ->  | C144: =IF(INTRO!$E$39<>"Non-endemic", " ", IF(INTRO!$E$37="Non-endemic"," ", IF(COUNTRY_INFO!C144=0," ",COUNTRY_INFO!C144))) ->  | D144: =IF(INTRO!$E$39<>"Non-endemic", 0, IF(INTRO!$E$37="Non-endemic",0,IF(COUNTRY_INFO!$H144=1,COUNTRY_INFO!E144,0))) -> 0 | E144: =IF(INTRO!$E$39<>"Non-endemic", 0, IF(INTRO!$E$37="Non-endemic",0,IF(COUNTRY_INFO!$H144=1,COUNTRY_INFO!F144,0))) -> 0 | F144: =IF(INTRO!$E$39<>"Non-endemic", 0, IF(INTRO!$E$37="Non-endemic",0,IF(COUNTRY_INFO!$H144=1,COUNTRY_INFO!G144,0))) -> 0 | G144: 0 | H144: =IF(INTRO!$E$39="Non-endemic",IF(INTRO!$E$37="Non-endemic","Not required",COUNTRY_INFO!P144),"Treat with IVM") -> Treat with IVM | I144: 0 | J144: 0 | L144: 0 | M144: 0
A145: =IF(INTRO!$E$39<>"Non-endemic", " ", IF(INTRO!$E$37="Non-endemic"," ", IF(COUNTRY_INFO!A145=0," ",COUNTRY_INFO!A145))) ->  | B145: =IF(INTRO!$E$39<>"Non-endemic", " ", IF(INTRO!$E$37="Non-endemic"," ", IF(COUNTRY_INFO!B145=0," ",COUNTRY_INFO!B145))) ->  | C145: =IF(INTRO!$E$39<>"Non-endemic", " ", IF(INTRO!$E$37="Non-endemic"," ", IF(COUNTRY_INFO!C145=0," ",COUNTRY_INFO!C145))) ->  | D145: =IF(INTRO!$E$39<>"Non-endemic", 0, IF(INTRO!$E$37="Non-endemic",0,IF(COUNTRY_INFO!$H145=1,COUNTRY_INFO!E145,0))) -> 0 | E145: =IF(INTRO!$E$39<>"Non-endemic", 0, IF(INTRO!$E$37="Non-endemic",0,IF(COUNTRY_INFO!$H145=1,COUNTRY_INFO!F145,0))) -> 0 | F145: =IF(INTRO!$E$39<>"Non-endemic", 0, IF(INTRO!$E$37="Non-endemic",0,IF(COUNTRY_INFO!$H145=1,COUNTRY_INFO!G145,0))) -> 0 | G145: 0 | H145: =IF(INTRO!$E$39="Non-endemic",IF(INTRO!$E$37="Non-endemic","Not required",COUNTRY_INFO!P145),"Treat with IVM") -> Treat with IVM | I145: 0 | J145: 0 | L145: 0 | M145: 0
A146: =IF(INTRO!$E$39<>"Non-endemic", " ", IF(INTRO!$E$37="Non-endemic"," ", IF(COUNTRY_INFO!A146=0," ",COUNTRY_INFO!A146))) ->  | B146: =IF(INTRO!$E$39<>"Non-endemic", " ", IF(INTRO!$E$37="Non-endemic"," ", IF(COUNTRY_INFO!B146=0," ",COUNTRY_INFO!B146))) ->  | C146: =IF(INTRO!$E$39<>"Non-endemic", " ", IF(INTRO!$E$37="Non-endemic"," ", IF(COUNTRY_INFO!C146=0," ",COUNTRY_INFO!C146))) ->  | D146: =IF(INTRO!$E$39<>"Non-endemic", 0, IF(INTRO!$E$37="Non-endemic",0,IF(COUNTRY_INFO!$H146=1,COUNTRY_INFO!E146,0))) -> 0 | E146: =IF(INTRO!$E$39<>"Non-endemic", 0, IF(INTRO!$E$37="Non-endemic",0,IF(COUNTRY_INFO!$H146=1,COUNTRY_INFO!F146,0))) -> 0 | F146: =IF(INTRO!$E$39<>"Non-endemic", 0, IF(INTRO!$E$37="Non-endemic",0,IF(COUNTRY_INFO!$H146=1,COUNTRY_INFO!G146,0))) -> 0 | G146: 0 | H146: =IF(INTRO!$E$39="Non-endemic",IF(INTRO!$E$37="Non-endemic","Not required",COUNTRY_INFO!P146),"Treat with IVM") -> Treat with IVM | I146: 0 | J146: 0 | L146: 0 | M146: 0
A147: =IF(INTRO!$E$39<>"Non-endemic", " ", IF(INTRO!$E$37="Non-endemic"," ", IF(COUNTRY_INFO!A147=0," ",COUNTRY_INFO!A147))) ->  | B147: =IF(INTRO!$E$39<>"Non-endemic", " ", IF(INTRO!$E$37="Non-endemic"," ", IF(COUNTRY_INFO!B147=0," ",COUNTRY_INFO!B147))) ->  | C147: =IF(INTRO!$E$39<>"Non-endemic", " ", IF(INTRO!$E$37="Non-endemic"," ", IF(COUNTRY_INFO!C147=0," ",COUNTRY_INFO!C147))) ->  | D147: =IF(INTRO!$E$39<>"Non-endemic", 0, IF(INTRO!$E$37="Non-endemic",0,IF(COUNTRY_INFO!$H147=1,COUNTRY_INFO!E147,0))) -> 0 | E147: =IF(INTRO!$E$39<>"Non-endemic", 0, IF(INTRO!$E$37="Non-endemic",0,IF(COUNTRY_INFO!$H147=1,COUNTRY_INFO!F147,0))) -> 0 | F147: =IF(INTRO!$E$39<>"Non-endemic", 0, IF(INTRO!$E$37="Non-endemic",0,IF(COUNTRY_INFO!$H147=1,COUNTRY_INFO!G147,0))) -> 0 | G147: 0 | H147: =IF(INTRO!$E$39="Non-endemic",IF(INTRO!$E$37="Non-endemic","Not required",COUNTRY_INFO!P147),"Treat with IVM") -> Treat with IVM | I147: 0 | J147: 0 | L147: 0 | M147: 0
A148: =IF(INTRO!$E$39<>"Non-endemic", " ", IF(INTRO!$E$37="Non-endemic"," ", IF(COUNTRY_INFO!A148=0," ",COUNTRY_INFO!A148))) ->  | B148: =IF(INTRO!$E$39<>"Non-endemic", " ", IF(INTRO!$E$37="Non-endemic"," ", IF(COUNTRY_INFO!B148=0," ",COUNTRY_INFO!B148))) ->  | C148: =IF(INTRO!$E$39<>"Non-endemic", " ", IF(INTRO!$E$37="Non-endemic"," ", IF(COUNTRY_INFO!C148=0," ",COUNTRY_INFO!C148))) ->  | D148: =IF(INTRO!$E$39<>"Non-endemic", 0, IF(INTRO!$E$37="Non-endemic",0,IF(COUNTRY_INFO!$H148=1,COUNTRY_INFO!E148,0))) -> 0 | E148: =IF(INTRO!$E$39<>"Non-endemic", 0, IF(INTRO!$E$37="Non-endemic",0,IF(COUNTRY_INFO!$H148=1,COUNTRY_INFO!F148,0))) -> 0 | F148: =IF(INTRO!$E$39<>"Non-endemic", 0, IF(INTRO!$E$37="Non-endemic",0,IF(COUNTRY_INFO!$H148=1,COUNTRY_INFO!G148,0))) -> 0 | G148: 0 | H148: =IF(INTRO!$E$39="Non-endemic",IF(INTRO!$E$37="Non-endemic","Not required",COUNTRY_INFO!P148),"Treat with IVM") -> Treat with IVM | I148: 0 | J148: 0 | L148: 0 | M148: 0
A149: =IF(INTRO!$E$39<>"Non-endemic", " ", IF(INTRO!$E$37="Non-endemic"," ", IF(COUNTRY_INFO!A149=0," ",COUNTRY_INFO!A149))) ->  | B149: =IF(INTRO!$E$39<>"Non-endemic", " ", IF(INTRO!$E$37="Non-endemic"," ", IF(COUNTRY_INFO!B149=0," ",COUNTRY_INFO!B149))) ->  | C149: =IF(INTRO!$E$39<>"Non-endemic", " ", IF(INTRO!$E$37="Non-endemic"," ", IF(COUNTRY_INFO!C149=0," ",COUNTRY_INFO!C149))) ->  | D149: =IF(INTRO!$E$39<>"Non-endemic", 0, IF(INTRO!$E$37="Non-endemic",0,IF(COUNTRY_INFO!$H149=1,COUNTRY_INFO!E149,0))) -> 0 | E149: =IF(INTRO!$E$39<>"Non-endemic", 0, IF(INTRO!$E$37="Non-endemic",0,IF(COUNTRY_INFO!$H149=1,COUNTRY_INFO!F149,0))) -> 0 | F149: =IF(INTRO!$E$39<>"Non-endemic", 0, IF(INTRO!$E$37="Non-endemic",0,IF(COUNTRY_INFO!$H149=1,COUNTRY_INFO!G149,0))) -> 0 | G149: 0 | H149: =IF(INTRO!$E$39="Non-endemic",IF(INTRO!$E$37="Non-endemic","Not required",COUNTRY_INFO!P149),"Treat with IVM") -> Treat with IVM | I149: 0 | J149: 0 | L149: 0 | M149: 0
A150: =IF(INTRO!$E$39<>"Non-endemic", " ", IF(INTRO!$E$37="Non-endemic"," ", IF(COUNTRY_INFO!A150=0," ",COUNTRY_INFO!A150))) ->  | B150: =IF(INTRO!$E$39<>"Non-endemic", " ", IF(INTRO!$E$37="Non-endemic"," ", IF(COUNTRY_INFO!B150=0," ",COUNTRY_INFO!B150))) ->  | C150: =IF(INTRO!$E$39<>"Non-endemic", " ", IF(INTRO!$E$37="Non-endemic"," ", IF(COUNTRY_INFO!C150=0," ",COUNTRY_INFO!C150))) ->  | D150: =IF(INTRO!$E$39<>"Non-endemic", 0, IF(INTRO!$E$37="Non-endemic",0,IF(COUNTRY_INFO!$H150=1,COUNTRY_INFO!E150,0))) -> 0 | E150: =IF(INTRO!$E$39<>"Non-endemic", 0, IF(INTRO!$E$37="Non-endemic",0,IF(COUNTRY_INFO!$H150=1,COUNTRY_INFO!F150,0))) -> 0 | F150: =IF(INTRO!$E$39<>"Non-endemic", 0, IF(INTRO!$E$37="Non-endemic",0,IF(COUNTRY_INFO!$H150=1,COUNTRY_INFO!G150,0))) -> 0 | G150: 0 | H150: =IF(INTRO!$E$39="Non-endemic",IF(INTRO!$E$37="Non-endemic","Not required",COUNTRY_INFO!P150),"Treat with IVM") -> Treat with IVM | I150: 0 | J150: 0 | L150: 0 | M150: 0
A151: =IF(INTRO!$E$39<>"Non-endemic", " ", IF(INTRO!$E$37="Non-endemic"," ", IF(COUNTRY_INFO!A151=0," ",COUNTRY_INFO!A151))) ->  | B151: =IF(INTRO!$E$39<>"Non-endemic", " ", IF(INTRO!$E$37="Non-endemic"," ", IF(COUNTRY_INFO!B151=0," ",COUNTRY_INFO!B151))) ->  | C151: =IF(INTRO!$E$39<>"Non-endemic", " ", IF(INTRO!$E$37="Non-endemic"," ", IF(COUNTRY_INFO!C151=0," ",COUNTRY_INFO!C151))) ->  | D151: =IF(INTRO!$E$39<>"Non-endemic", 0, IF(INTRO!$E$37="Non-endemic",0,IF(COUNTRY_INFO!$H151=1,COUNTRY_INFO!E151,0))) -> 0 | E151: =IF(INTRO!$E$39<>"Non-endemic", 0, IF(INTRO!$E$37="Non-endemic",0,IF(COUNTRY_INFO!$H151=1,COUNTRY_INFO!F151,0))) -> 0 | F151: =IF(INTRO!$E$39<>"Non-endemic", 0, IF(INTRO!$E$37="Non-endemic",0,IF(COUNTRY_INFO!$H151=1,COUNTRY_INFO!G151,0))) -> 0 | G151: 0 | H151: =IF(INTRO!$E$39="Non-endemic",IF(INTRO!$E$37="Non-endemic","Not required",COUNTRY_INFO!P151),"Treat with IVM") -> Treat with IVM | I151: 0 | J151: 0 | L151: 0 | M151: 0
A152: =IF(INTRO!$E$39<>"Non-endemic", " ", IF(INTRO!$E$37="Non-endemic"," ", IF(COUNTRY_INFO!A152=0," ",COUNTRY_INFO!A152))) ->  | B152: =IF(INTRO!$E$39<>"Non-endemic", " ", IF(INTRO!$E$37="Non-endemic"," ", IF(COUNTRY_INFO!B152=0," ",COUNTRY_INFO!B152))) ->  | C152: =IF(INTRO!$E$39<>"Non-endemic", " ", IF(INTRO!$E$37="Non-endemic"," ", IF(COUNTRY_INFO!C152=0," ",COUNTRY_INFO!C152))) ->  | D152: =IF(INTRO!$E$39<>"Non-endemic", 0, IF(INTRO!$E$37="Non-endemic",0,IF(COUNTRY_INFO!$H152=1,COUNTRY_INFO!E152,0))) -> 0 | E152: =IF(INTRO!$E$39<>"Non-endemic", 0, IF(INTRO!$E$37="Non-endemic",0,IF(COUNTRY_INFO!$H152=1,COUNTRY_INFO!F152,0))) -> 0 | F152: =IF(INTRO!$E$39<>"Non-endemic", 0, IF(INTRO!$E$37="Non-endemic",0,IF(COUNTRY_INFO!$H152=1,COUNTRY_INFO!G152,0))) -> 0 | G152: 0 | H152: =IF(INTRO!$E$39="Non-endemic",IF(INTRO!$E$37="Non-endemic","Not required",COUNTRY_INFO!P152),"Treat with IVM") -> Treat with IVM | I152: 0 | J152: 0 | L152: 0 | M152: 0
